Workbook

Sheet An Príomh-Roghchlár
A1: FSSU
C3: An Príomh-Roghchlár
B7: Cliceáil ar na naisc thíos le haghaidh Mear-nascleanúna
B8: Treoracha
B9: COA
B10: Tuairiscí Miosúla Ioncam & Cait
B11: Iarmhír v Buiséad
B12: Leathnach Achoimre Bainc
C14: Ioncam | D14: Payments | E14: Bank Rec
B15: Meán Fomhair | C15: Cliceáil | D15: Cliceáil | E15: Cliceáil
B16: Deireadh Fómhair | C16: Cliceáil | D16: Cliceáil | E16: Cliceáil
B17: Samhain | C17: Cliceáil | D17: Cliceáil | E17: Cliceáil
B18: Nollaig | C18: Cliceáil | D18: Cliceáil | E18: Cliceáil
B19: Eanair | C19: Cliceáil | D19: Cliceáil | E19: Cliceáil
B20: Feabhra | C20: Cliceáil | D20: Cliceáil | E20: Cliceáil
B21: Márta | C21: Cliceáil | D21: Cliceáil | E21: Cliceáil
B22: Aibreán | C22: Cliceáil | D22: Cliceáil | E22: Cliceáil
B23: Bealtaine | C23: Cliceáil | D23: Cliceáil | E23: Cliceáil
B24: Meitheamh | C24: Cliceáil | D24: Cliceáil | E24: Cliceáil
B25: Iúil | C25: Cliceáil | D25: Cliceáil | E25: Cliceáil
B26: Lúnasa | C26: Cliceáil | D26: Cliceáil | E26: Cliceáil
B28: Sreabhadh Airgid
B29: Tuairisc ar Fháltais
B30: Idirbhearta Fáltais
B31: Tuairisc ar íocaíochtaí
A32: v3 | B32: Idirbhearta Iocaíochtaí
B34: Lists | C34: Hidden in final version
B35: Payments | C35: Hidden in final version
B36: Receipts | C36: Hidden in final version

Sheet Treoracha
A1: An Príomh-Roghchlár
B2: TREORACHA:
B4: CÉIM 1: | C4: Cuir Isteach Ainm do Scoile: | G4: Cuir Isteach Anseo É
B6: CÉIM 2: | C6: Cuir Isteach Uimh. Rolla do Scoile: | G6: Cuir Isteach Anseo É
B8: CÉIM 3: | C8: Iontráil Ainmneacha na gCuntas Bainc | G8: Banc 1
G9: Banc 2
G10: Banc 3
G11: Banc 4
B12: CÉIM 4: | C12: Bileog - COA
C13: Scrúdaigh an liosta le cinneadh cé acu de na ‘Cur síos ar Chód Ainmniúil’ a bhaineann le do scoil
C14: Ba cheart cóid nach mbaineann le do scoil a athrú go “N” i gcolún E
C15: Caith súil siar ar do chuid athruithe chun a chinntiú go bhfuil na míreanna a athraíodh go “N” cruinn
C16: Cliceáil ar "Nuashonraigh Colúin Fholaithe" lena dtaispeánfar/bhfolófar na míreanna sin ó bhileoga riachtanacha
M17: Téir go dtí: | N17: Céim 4
B19: Céim 5 | C19: Bileog - Iarbhír v Buiséad
C20: Tuarascáil Buiséad 1: Bliain Iarbhír go Dáta v Buiséad - allmhairiú/onnmhairiú figúirí buiséad | M20: Téir go dtí: | N20: Céim 5
B22: Céim 6 | C22: Bileog - Iarbhír v Buiséad
C23: Tuarascáil Buiséad 2: Bliain Iarbhír go Dáta v Bliain Roimhe - Cuir isteach figúirí Iarbhír bliain roimhe | M23: Téir go dtí: | N23: Céim 6
B25: Céim 7 | C25: Bileog - Leathnach Achoimre Bainc
C26: Déantar iarmhéideanna deiridh deontais ón mbliain roimhe a iontráil
C27: sa Rannán Anailíse ar Dheontais | M27: Téir go dtí: | N27: Céim 7
B29: Céim 8 | C29: Bileoga - Íocaíochtaí Mhí Mheán Fómhair go dtí Íocaíochtaí Mhí Lúnasa
C30: Imréiteach Bainc Mhí Mheán Fómhair - Iontráil suim an iarmhéid bhainc thosaigh a bhaintear den ráiteas bainc amhail an 1 Meán Fómhair (Níl an t-iarmhéid bainc tosaigh ag teastáil ach do mhí Mheán Fómhair amháin, tá an t-iarmhéid bainc deiridh ag teastáil do na míonna go léir.)
C32: Baintear na hiarmhéideanna bainc tosaigh den ráiteas bainc amhail ag deireadh na míosa | M32: Téir go dtí: | N32: Céim 8
B34: Cuir isteach | C34: Bileoga - Ioncam/Íocaíochtaí Mhí Mheán Fómhair go dtí Ioncam/Íocaíochtaí Mhí Lúnasa
B35: an t-Eolas | C35: Déantar sonraí a bhaineann le hidirbhearta gach míosa a thaifeadadh sna bileoga míosúla agus cuirfear
C36: faisnéis sna bileoga a leanas go huathoibríoch mar thoradh: COA, Ioncam agus Caiteachas Míosúil, Tuairiscí Buiséid, Achoimre Bainc agus Sreabhadh Airgid
C37: Baintear iarmhéideanna deiridh bainc ón ráiteas bainc ag deireadh na míosa
C38: Seiceálacha taifid a dreéachtaíodh sa mhí ach nár tiolacadh sa bhanc sa chuid seiceála gan íoc
C39: Cinntigh go ndéantar réiteach iomlán ar gach mí sula dtéann tú ar aghaidh go dtí an mhí seo chugainn
B41: Tuairisc don: | C41: Úsáid an cnaipe 'PRIONTÁIL' ar gach leathanach chun na tuairiscí seo a leanas a phriontáil amach le haghaidh chruinniú an Bhoird Bainistíochta. Is féidir na tuairiscí seo a leanas a phriontáil:
B42: Bórd Bainistíochta
C43: Bliantiúil/Míosúil - Tuairisc Ioncam & Caiteachas na Scoile
C44: Bliantiúil/Míosúil - Tuairisc Caipital agus Cúlchistí
C45: Tuairisc Buiséad 1: Iarmhír Bliain go Dáta v Buiséad
C46: Tuairisc Buiséad 2: Iarbhír Bliain to Dáta v Bliain Roimhe
C47: Tuairiscí Míosúla Imréiteach Bainc
B49: Reports: | C49: Is féidir aon tuairiscí breise a phriontáil de réir mar is gá:
C50: Anailís ar Dheontas
C51: Anailís ar Ioncam Deontais
C52: Anailís ar Chaiteachas Deontais
C53: Tuairisc ar shreabhadh Airgid
C54: Miontuairiscí sainiúla in aghaidh an Bhainc, na Tréimhse, an Cur Síos agus na Catagóire
B56: Tabhair faoi deara: | C56: Tá foirmlí sna cealla liatha agus tá siad faoi chosaint chun a chinntiú nach ndéantar for-chlóscríobh orthu
B58: MÁ THEASTAÍONN TUILLEADH CÚNAIMH UAIT, TÉIGH CHUIG WWW.FSSU.IE/TEMPLATES
B59: CHUN TREORACHA MIONSONRAITHE A FHÁIL NÓ CUIR GLAO ORAINN AR 01-9104020
B61: NÁ DÉAN DEARMAD CÓIP CHÚLTACA A DHÉANAMH DE DO CHUID OIBRE GACH UAIR A ÚSÁIDEANN TÚ AN SCARBHILEOG SEO!
B62: IS FÉIDIR CÓIP CHÚLTACA A CHUR CHUIG GLÉAS SEACHTRACH NÓ CHUIG FREASTALAÍ

Sheet COA
A1: Cód Ainmniúil | B1: Cur Síos | C1: Cineál | D1: Catagóir | E1: Cuir san áireamh | F1: Iomlán | K1: =B4 -> Cur Síos
A2: =IFERROR(DGET($A$4:$F$189,A1,$K$1:$K$2),"") -> 
A3: An Príomh-Roghchlár | B3: FSSU - Cairt Cuntas ar Leibhéal na Bunscoile
A4: Cód Ainmniúil | B4: Cur Síos | C4: Cineál | D4: Catagóir | E4: Cuir san áireamh | F4: Iomlán | G4: Iarmhéid Oscailte | H4: Coigeartuithe Iarmhéid Oscailte | I4: Coigeartuithe na bliana reatha | J4: Cuntais Deiridh | K4: Notaí | AA4: =COUNTIF(AB5:AAB324,"?*") -> 185
A5: 3010 | B5: Buiséad Caipitíochta/Neamhphá | C5: Ioncam | D5: An Roinn Oideachais | E5: Y | F5: ='Tuairiscí Miosúla Ioncam & Cait'!O8 -> 0 | J5: =-SUM(F5)-(G5+H5+I5) -> 0 | L5: H | Y5: =IF(ISNUMBER(SEARCH($K$2,B5)),MAX($Y$4:Y4)+1,0) -> 1 | Z5: Buiséad Caipitíochta/Neamhphá | AA5: =OFFSET($AB$5,,,COUNTIF($AB$5:$AB$269,"?*")) -> Buiséad Caipitíochta/Neamhphá | AB5: =IFERROR(VLOOKUP(ROWS($AB$5:AB5),$Y$5:$Z$189,2,0),"") -> Buiséad Caipitíochta/Neamhphá
A6: 3020 | B6: Deontas DEIS | C6: Ioncam | D6: An Roinn Oideachais | E6: Y | F6: ='Tuairiscí Miosúla Ioncam & Cait'!O9 -> 0 | J6: =-SUM(F6)-(G6+H6+I6) -> 0 | L6: I | Y6: =IF(ISNUMBER(SEARCH($K$2,B6)),MAX($Y$4:Y5)+1,0) -> 2 | Z6: Deontas DEIS | AB6: =IFERROR(VLOOKUP(ROWS($AB$5:AB6),$Y$5:$Z$189,2,0),"") -> Deontas DEIS
A7: 3021 | B7: Deontas Scéim luath-thosaithe le haghaidh Ábh/Tre/For Tuis | C7: Ioncam | D7: An Roinn Oideachais | E7: N | F7: ='Tuairiscí Miosúla Ioncam & Cait'!O10 -> 0 | J7: 0 | L7: J | Y7: =IF(ISNUMBER(SEARCH($K$2,B7)),MAX($Y$4:Y6)+1,0) -> 3 | Z7: Deontas Scéim luath-thosaithe le haghaidh Ábh/Tre/For Tuis | AB7: =IFERROR(VLOOKUP(ROWS($AB$5:AB7),$Y$5:$Z$189,2,0),"") -> Deontas Scéim luath-thosaithe le haghaidh Ábh/Tre/For Tuis
A8: 3022 | B8: Scéim luath-thosaithe Caipitíocht | C8: Ioncam | D8: An Roinn Oideachais | E8: N | F8: ='Tuairiscí Miosúla Ioncam & Cait'!O11 -> 0 | J8: 0 | L8: K | Y8: =IF(ISNUMBER(SEARCH($K$2,B8)),MAX($Y$4:Y7)+1,0) -> 4 | Z8: Scéim luath-thosaithe Caipitíocht | AB8: =IFERROR(VLOOKUP(ROWS($AB$5:AB8),$Y$5:$Z$189,2,0),"") -> Scéim luath-thosaithe Caipitíocht
A9: 3050 | B9: Buiséad Pá Neamhtheagaisc | C9: Ioncam | D9: An Roinn Oideachais | E9: Y | F9: ='Tuairiscí Miosúla Ioncam & Cait'!O12 -> 0 | J9: 0 | L9: L | Y9: =IF(ISNUMBER(SEARCH($K$2,B9)),MAX($Y$4:Y8)+1,0) -> 5 | Z9: Buiséad Pá Neamhtheagaisc | AB9: =IFERROR(VLOOKUP(ROWS($AB$5:AB9),$Y$5:$Z$189,2,0),"") -> Buiséad Pá Neamhtheagaisc
A10: 3140 | B10: Deontas do Threalamh Oideachais Speisialta | C10: Ioncam | D10: An Roinn Oideachais | E10: Y | F10: ='Tuairiscí Miosúla Ioncam & Cait'!O13 -> 0 | J10: 0 | L10: M | Y10: =IF(ISNUMBER(SEARCH($K$2,B10)),MAX($Y$4:Y9)+1,0) -> 6 | Z10: Deontas do Threalamh Oideachais Speisialta | AB10: =IFERROR(VLOOKUP(ROWS($AB$5:AB10),$Y$5:$Z$189,2,0),"") -> Deontas do Threalamh Oideachais Speisialta
A11: 3151 | B11: Deontas leabhar scoile saor in aisce | C11: Ioncam | D11: An Roinn Oideachais | E11: Y | F11: ='Tuairiscí Miosúla Ioncam & Cait'!O14 -> 0 | J11: 0 | L11: N | Y11: =IF(ISNUMBER(SEARCH($K$2,B11)),MAX($Y$4:Y10)+1,0) -> 7 | Z11: Deontas leabhar scoile saor in aisce | AB11: =IFERROR(VLOOKUP(ROWS($AB$5:AB11),$Y$5:$Z$189,2,0),"") -> Deontas leabhar scoile saor in aisce
A12: 3152 | B12: Deontas riaracháin leabhar scoile saor in aisce | C12: Ioncam | D12: An Roinn Oideachais | E12: Y | F12: ='Tuairiscí Miosúla Ioncam & Cait'!O15 -> 0 | J12: 0 | L12: O | Y12: =IF(ISNUMBER(SEARCH($K$2,B12)),MAX($Y$4:Y11)+1,0) -> 8 | Z12: Deontas riaracháin leabhar scoile saor in aisce | AB12: =IFERROR(VLOOKUP(ROWS($AB$5:AB12),$Y$5:$Z$189,2,0),"") -> Deontas riaracháin leabhar scoile saor in aisce
A13: 3155 | B13: Deontas Caipitil do Leabhair Leabharlainne Scoile | C13: Ioncam | D13: An Roinn Oideachais | E13: N | F13: ='Tuairiscí Miosúla Ioncam & Cait'!O16 -> 0 | J13: 0 | L13: P | Y13: =IF(ISNUMBER(SEARCH($K$2,B13)),MAX($Y$4:Y12)+1,0) -> 9 | Z13: Deontas Caipitil do Leabhair Leabharlainne Scoile | AB13: =IFERROR(VLOOKUP(ROWS($AB$5:AB13),$Y$5:$Z$189,2,0),"") -> Deontas Caipitil do Leabhair Leabharlainne Scoile
A14: 3170 | B14: Deontas na nÁbhar Speisialta | C14: Ioncam | D14: An Roinn Oideachais | E14: N | F14: ='Tuairiscí Miosúla Ioncam & Cait'!O17 -> 0 | J14: 0 | L14: Q | Y14: =IF(ISNUMBER(SEARCH($K$2,B14)),MAX($Y$4:Y13)+1,0) -> 10 | Z14: Deontas na nÁbhar Speisialta | AB14: =IFERROR(VLOOKUP(ROWS($AB$5:AB14),$Y$5:$Z$189,2,0),"") -> Deontas na nÁbhar Speisialta
A15: 3171 | B15: Deontas scoile Gaeilge agus Dátheangach | C15: Ioncam | D15: An Roinn Oideachais | E15: N | F15: ='Tuairiscí Miosúla Ioncam & Cait'!O18 -> 0 | J15: 0 | L15: R | Y15: =IF(ISNUMBER(SEARCH($K$2,B15)),MAX($Y$4:Y14)+1,0) -> 11 | Z15: Deontas scoile Gaeilge agus Dátheangach | AB15: =IFERROR(VLOOKUP(ROWS($AB$5:AB15),$Y$5:$Z$189,2,0),"") -> Deontas scoile Gaeilge agus Dátheangach
A16: 3190 | B16: Deontas Chlár Scoile an Teastais Shóisearaigh | C16: Ioncam | D16: An Roinn Oideachais | E16: N | F16: ='Tuairiscí Miosúla Ioncam & Cait'!O19 -> 0 | J16: 0 | L16: S | Y16: =IF(ISNUMBER(SEARCH($K$2,B16)),MAX($Y$4:Y15)+1,0) -> 12 | Z16: Deontas Chlár Scoile an Teastais Shóisearaigh | AB16: =IFERROR(VLOOKUP(ROWS($AB$5:AB16),$Y$5:$Z$189,2,0),"") -> Deontas Chlár Scoile an Teastais Shóisearaigh
A17: 3200 | B17: Deontas Idirbhliana | C17: Ioncam | D17: An Roinn Oideachais | E17: N | F17: ='Tuairiscí Miosúla Ioncam & Cait'!O20 -> 0 | J17: 0 | L17: T | Y17: =IF(ISNUMBER(SEARCH($K$2,B17)),MAX($Y$4:Y16)+1,0) -> 13 | Z17: Deontas Idirbhliana | AB17: =IFERROR(VLOOKUP(ROWS($AB$5:AB17),$Y$5:$Z$189,2,0),"") -> Deontas Idirbhliana
A18: 3210 | B18: Deontas na hArdteistiméireachta Feidhmí | C18: Ioncam | D18: An Roinn Oideachais | E18: N | F18: ='Tuairiscí Miosúla Ioncam & Cait'!O21 -> 0 | J18: 0 | L18: U | Y18: =IF(ISNUMBER(SEARCH($K$2,B18)),MAX($Y$4:Y17)+1,0) -> 14 | Z18: Deontas na hArdteistiméireachta Feidhmí | AB18: =IFERROR(VLOOKUP(ROWS($AB$5:AB18),$Y$5:$Z$189,2,0),"") -> Deontas na hArdteistiméireachta Feidhmí
A19: 3225 | B19: Amúchadh Deontas Trealamh RO | C19: Ioncam | D19: An Roinn Oideachais | E19: N | F19: ='Tuairiscí Miosúla Ioncam & Cait'!O22 -> 0 | J19: 0 | L19: V | Y19: =IF(ISNUMBER(SEARCH($K$2,B19)),MAX($Y$4:Y18)+1,0) -> 15 | Z19: Amúchadh Deontas Trealamh RO | AB19: =IFERROR(VLOOKUP(ROWS($AB$5:AB19),$Y$5:$Z$189,2,0),"") -> Amúchadh Deontas Trealamh RO
A20: 3226 | B20: Amúchadh Deontas TFC RO | C20: Ioncam | D20: An Roinn Oideachais | E20: N | F20: ='Tuairiscí Miosúla Ioncam & Cait'!O23 -> 0 | J20: 0 | L20: W | Y20: =IF(ISNUMBER(SEARCH($K$2,B20)),MAX($Y$4:Y19)+1,0) -> 16 | Z20: Amúchadh Deontas TFC RO | AB20: =IFERROR(VLOOKUP(ROWS($AB$5:AB20),$Y$5:$Z$189,2,0),"") -> Amúchadh Deontas TFC RO
A21: 3227 | B21: Amúchadh Deontas Eile RO | C21: Ioncam | D21: An Roinn Oideachais | E21: N | F21: ='Tuairiscí Miosúla Ioncam & Cait'!O24 -> 0 | J21: =-SUM(F21)-(G21+H21+I21) -> 0 | L21: X | Y21: =IF(ISNUMBER(SEARCH($K$2,B21)),MAX($Y$4:Y20)+1,0) -> 17 | Z21: Amúchadh Deontas Eile RO | AB21: =IFERROR(VLOOKUP(ROWS($AB$5:AB21),$Y$5:$Z$189,2,0),"") -> Amúchadh Deontas Eile RO
A22: 3230 | B22: Deontas TFC Neamhchaipitiúil | C22: Ioncam | D22: An Roinn Oideachais | E22: Y | F22: ='Tuairiscí Miosúla Ioncam & Cait'!O25 -> 0 | J22: 0 | L22: Y | Y22: =IF(ISNUMBER(SEARCH($K$2,B22)),MAX($Y$4:Y21)+1,0) -> 18 | Z22: Deontas TFC Neamhchaipitiúil | AB22: =IFERROR(VLOOKUP(ROWS($AB$5:AB22),$Y$5:$Z$189,2,0),"") -> Deontas TFC Neamhchaipitiúil
A23: 3260 | B23: Ioncam ón gCiste Barr Feabhais Scoileanna | C23: Ioncam | D23: An Roinn Oideachais | E23: N | F23: ='Tuairiscí Miosúla Ioncam & Cait'!O26 -> 0 | J23: 0 | L23: Z | Y23: =IF(ISNUMBER(SEARCH($K$2,B23)),MAX($Y$4:Y22)+1,0) -> 19 | Z23: Ioncam ón gCiste Barr Feabhais Scoileanna | AB23: =IFERROR(VLOOKUP(ROWS($AB$5:AB23),$Y$5:$Z$189,2,0),"") -> Ioncam ón gCiste Barr Feabhais Scoileanna
A24: 3275 | B24: Deontas Mionoibreacha Neamhchaipitiúla | C24: Ioncam | D24: An Roinn Oideachais | E24: Y | F24: ='Tuairiscí Miosúla Ioncam & Cait'!O27 -> 0 | J24: 0 | L24: AA | Y24: =IF(ISNUMBER(SEARCH($K$2,B24)),MAX($Y$4:Y23)+1,0) -> 20 | Z24: Deontas Mionoibreacha Neamhchaipitiúla | AB24: =IFERROR(VLOOKUP(ROWS($AB$5:AB24),$Y$5:$Z$189,2,0),"") -> Deontas Mionoibreacha Neamhchaipitiúla
A25: 3276 | B25: Ioncam ón Deontas Cóiríochta Sealadaí | C25: Ioncam | D25: An Roinn Oideachais | E25: Y | F25: ='Tuairiscí Miosúla Ioncam & Cait'!O28 -> 0 | J25: 0 | L25: AB | Y25: =IF(ISNUMBER(SEARCH($K$2,B25)),MAX($Y$4:Y24)+1,0) -> 21 | Z25: Ioncam ón Deontas Cóiríochta Sealadaí | AB25: =IFERROR(VLOOKUP(ROWS($AB$5:AB25),$Y$5:$Z$189,2,0),"") -> Ioncam ón Deontas Cóiríochta Sealadaí
A26: 3277 | B26: Deontas i leith Mionoibreacha COVID | C26: Ioncam | D26: An Roinn Oideachais | E26: N | F26: ='Tuairiscí Miosúla Ioncam & Cait'!O29 -> 0 | J26: 0 | L26: AC | Y26: =IF(ISNUMBER(SEARCH($K$2,B26)),MAX($Y$4:Y25)+1,0) -> 22 | Z26: Deontas i leith Mionoibreacha COVID | AB26: =IFERROR(VLOOKUP(ROWS($AB$5:AB26),$Y$5:$Z$189,2,0),"") -> Deontas i leith Mionoibreacha COVID
A27: 3288 | B27: Caipitíocht COVID do Ghlantachán agus Deontas TCP | C27: Ioncam | D27: An Roinn Oideachais | E27: N | F27: ='Tuairiscí Miosúla Ioncam & Cait'!O30 -> 0 | J27: 0 | L27: AD | Y27: =IF(ISNUMBER(SEARCH($K$2,B27)),MAX($Y$4:Y26)+1,0) -> 23 | Z27: Caipitíocht COVID do Ghlantachán agus Deontas TCP | AB27: =IFERROR(VLOOKUP(ROWS($AB$5:AB27),$Y$5:$Z$189,2,0),"") -> Caipitíocht COVID do Ghlantachán agus Deontas TCP
A28: 3289 | B28: Deontas Aonuaire baintach le chostas Maireachtála | C28: Ioncam | D28: An Roinn Oideachais | E28: Y | F28: ='Tuairiscí Miosúla Ioncam & Cait'!O31 -> 0 | J28: 0 | L28: AE | Y28: =IF(ISNUMBER(SEARCH($K$2,B28)),MAX($Y$4:Y27)+1,0) -> 24 | Z28: Deontas Aonuaire baintach le chostas Maireachtála | AB28: =IFERROR(VLOOKUP(ROWS($AB$5:AB28),$Y$5:$Z$189,2,0),"") -> Deontas Aonuaire baintach le chostas Maireachtála
A29: 3290 | B29: Ioncam Deontais Neamhchaipitil Eile RO | C29: Ioncam | D29: An Roinn Oideachais | E29: Y | F29: ='Tuairiscí Miosúla Ioncam & Cait'!O32 -> 0 | J29: 0 | L29: AF | Y29: =IF(ISNUMBER(SEARCH($K$2,B29)),MAX($Y$4:Y28)+1,0) -> 25 | Z29: Ioncam Deontais Neamhchaipitil Eile RO | AB29: =IFERROR(VLOOKUP(ROWS($AB$5:AB29),$Y$5:$Z$189,2,0),"") -> Ioncam Deontais Neamhchaipitil Eile RO
A30: 3292 | B30: Deontas Trialacha Caighdeánaithe | C30: Ioncam | D30: An Roinn Oideachais | E30: Y | F30: ='Tuairiscí Miosúla Ioncam & Cait'!O33 -> 0 | J30: 0 | L30: AG | Y30: =IF(ISNUMBER(SEARCH($K$2,B30)),MAX($Y$4:Y29)+1,0) -> 26 | Z30: Deontas Trialacha Caighdeánaithe | AB30: =IFERROR(VLOOKUP(ROWS($AB$5:AB30),$Y$5:$Z$189,2,0),"") -> Deontas Trialacha Caighdeánaithe
A31: 3293 | B31: Deontas Soláthair Samhraidh | C31: Ioncam | D31: An Roinn Oideachais | E31: Y | F31: ='Tuairiscí Miosúla Ioncam & Cait'!O34 -> 0 | J31: 0 | L31: AH | Y31: =IF(ISNUMBER(SEARCH($K$2,B31)),MAX($Y$4:Y30)+1,0) -> 27 | Z31: Deontas Soláthair Samhraidh | AB31: =IFERROR(VLOOKUP(ROWS($AB$5:AB31),$Y$5:$Z$189,2,0),"") -> Deontas Soláthair Samhraidh
A32: 3294 | B32: Deontas le haghaidh Tionlacaithe Bus | C32: Ioncam | D32: An Roinn Oideachais | E32: Y | F32: ='Tuairiscí Miosúla Ioncam & Cait'!O35 -> 0 | J32: 0 | L32: AI | Y32: =IF(ISNUMBER(SEARCH($K$2,B32)),MAX($Y$4:Y31)+1,0) -> 28 | Z32: Deontas le haghaidh Tionlacaithe Bus | AB32: =IFERROR(VLOOKUP(ROWS($AB$5:AB32),$Y$5:$Z$189,2,0),"") -> Deontas le haghaidh Tionlacaithe Bus
A33: 3295 | B33: Ioncam ón Roinn Leanaí agus Gnóthaí Óige | C33: Ioncam | D33: Ioncam Eile ón Stát | E33: N | F33: ='Tuairiscí Miosúla Ioncam & Cait'!O36 -> 0 | J33: 0 | L33: AJ | Y33: =IF(ISNUMBER(SEARCH($K$2,B33)),MAX($Y$4:Y32)+1,0) -> 29 | Z33: Ioncam ón Roinn Leanaí agus Gnóthaí Óige | AB33: =IFERROR(VLOOKUP(ROWS($AB$5:AB33),$Y$5:$Z$189,2,0),"") -> Ioncam ón Roinn Leanaí agus Gnóthaí Óige
A34: 3296 | B34: Deontas le haghaidh Béilí Scoile ó RGFCS | C34: Ioncam | D34: Ioncam Eile ón Stát | E34: Y | F34: ='Tuairiscí Miosúla Ioncam & Cait'!O37 -> 0 | J34: 0 | L34: AK | Y34: =IF(ISNUMBER(SEARCH($K$2,B34)),MAX($Y$4:Y33)+1,0) -> 30 | Z34: Deontas le haghaidh Béilí Scoile ó RGFCS | AB34: =IFERROR(VLOOKUP(ROWS($AB$5:AB34),$Y$5:$Z$189,2,0),"") -> Deontas le haghaidh Béilí Scoile ó RGFCS
A35: 3297 | B35: Ioncam Erasmus | C35: Ioncam | D35: Ioncam Eile ón Stát | E35: N | F35: ='Tuairiscí Miosúla Ioncam & Cait'!O38 -> 0 | J35: 0 | L35: AL | Y35: =IF(ISNUMBER(SEARCH($K$2,B35)),MAX($Y$4:Y34)+1,0) -> 31 | Z35: Ioncam Erasmus | AB35: =IFERROR(VLOOKUP(ROWS($AB$5:AB35),$Y$5:$Z$189,2,0),"") -> Ioncam Erasmus
A36: 3298 | B36: Maoiniú ó FSS | C36: Ioncam | D36: Ioncam Eile ón Stát | E36: N | F36: ='Tuairiscí Miosúla Ioncam & Cait'!O39 -> 0 | J36: 0 | L36: AM | Y36: =IF(ISNUMBER(SEARCH($K$2,B36)),MAX($Y$4:Y35)+1,0) -> 32 | Z36: Maoiniú ó FSS | AB36: =IFERROR(VLOOKUP(ROWS($AB$5:AB36),$Y$5:$Z$189,2,0),"") -> Maoiniú ó FSS
A37: 3299 | B37: Maoiniú Stáit Eile | C37: Ioncam | D37: Ioncam Eile ón Stát | E37: Y | F37: ='Tuairiscí Miosúla Ioncam & Cait'!O40 -> 0 | J37: 0 | L37: AN | Y37: =IF(ISNUMBER(SEARCH($K$2,B37)),MAX($Y$4:Y36)+1,0) -> 33 | Z37: Maoiniú Stáit Eile | AB37: =IFERROR(VLOOKUP(ROWS($AB$5:AB37),$Y$5:$Z$189,2,0),"") -> Maoiniú Stáit Eile
A38: 3300 | B38: Táillí Oideachais (Scoileanna Táille) | C38: Ioncam | D38: Ioncam arna Ghiniúint ag an Scoil | E38: N | F38: ='Tuairiscí Miosúla Ioncam & Cait'!O41 -> 0 | J38: 0 | L38: AO | Y38: =IF(ISNUMBER(SEARCH($K$2,B38)),MAX($Y$4:Y37)+1,0) -> 34 | Z38: Táillí Oideachais (Scoileanna Táille) | AB38: =IFERROR(VLOOKUP(ROWS($AB$5:AB38),$Y$5:$Z$189,2,0),"") -> Táillí Oideachais (Scoileanna Táille)
A39: 3310 | B39: Ioncam Idirbhliana | C39: Ioncam | D39: Ioncam arna Ghiniúint ag an Scoil | E39: N | F39: ='Tuairiscí Miosúla Ioncam & Cait'!O42 -> 0 | J39: 0 | L39: AP | Y39: =IF(ISNUMBER(SEARCH($K$2,B39)),MAX($Y$4:Y38)+1,0) -> 35 | Z39: Ioncam Idirbhliana | AB39: =IFERROR(VLOOKUP(ROWS($AB$5:AB39),$Y$5:$Z$189,2,0),"") -> Ioncam Idirbhliana
A40: 3335 | B40: Ioncam ó Leabhair Ranga/Acmhainní | C40: Ioncam | D40: Ioncam arna Ghiniúint ag an Scoil | E40: Y | F40: ='Tuairiscí Miosúla Ioncam & Cait'!O43 -> 0 | J40: 0 | L40: AQ | Y40: =IF(ISNUMBER(SEARCH($K$2,B40)),MAX($Y$4:Y39)+1,0) -> 36 | Z40: Ioncam ó Leabhair Ranga/Acmhainní | AB40: =IFERROR(VLOOKUP(ROWS($AB$5:AB40),$Y$5:$Z$189,2,0),"") -> Ioncam ó Leabhair Ranga/Acmhainní
A41: 3350 | B41: Ioncam Cíosa ó Áiseanna a Ligean ar Fhruiliú | C41: Ioncam | D41: Ioncam arna Ghiniúint ag an Scoil | E41: Y | F41: ='Tuairiscí Miosúla Ioncam & Cait'!O44 -> 0 | J41: 0 | L41: AR | Y41: =IF(ISNUMBER(SEARCH($K$2,B41)),MAX($Y$4:Y40)+1,0) -> 37 | Z41: Ioncam Cíosa ó Áiseanna a Ligean ar Fhruiliú | AB41: =IFERROR(VLOOKUP(ROWS($AB$5:AB41),$Y$5:$Z$189,2,0),"") -> Ioncam Cíosa ó Áiseanna a Ligean ar Fhruiliú
A42: 3370 | B42: Ioncam ó Thaisceadáin | C42: Ioncam | D42: Ioncam arna Ghiniúint ag an Scoil | E42: N | F42: ='Tuairiscí Miosúla Ioncam & Cait'!O45 -> 0 | J42: 0 | L42: AS | Y42: =IF(ISNUMBER(SEARCH($K$2,B42)),MAX($Y$4:Y41)+1,0) -> 38 | Z42: Ioncam ó Thaisceadáin | AB42: =IFERROR(VLOOKUP(ROWS($AB$5:AB42),$Y$5:$Z$189,2,0),"") -> Ioncam ó Thaisceadáin
A43: 3375 | B43: Ioncam ó Dhialanna agus Bliainirisí | C43: Ioncam | D43: Ioncam arna Ghiniúint ag an Scoil | E43: Y | F43: ='Tuairiscí Miosúla Ioncam & Cait'!O46 -> 0 | J43: 0 | L43: AT | Y43: =IF(ISNUMBER(SEARCH($K$2,B43)),MAX($Y$4:Y42)+1,0) -> 39 | Z43: Ioncam ó Dhialanna agus Bliainirisí | AB43: =IFERROR(VLOOKUP(ROWS($AB$5:AB43),$Y$5:$Z$189,2,0),"") -> Ioncam ó Dhialanna agus Bliainirisí
A44: 3380 | B44: Ioncam fótachóipeáil mac léinn | C44: Ioncam | D44: Ioncam arna Ghiniúint ag an Scoil | E44: Y | F44: ='Tuairiscí Miosúla Ioncam & Cait'!O47 -> 0 | J44: 0 | L44: AU | Y44: =IF(ISNUMBER(SEARCH($K$2,B44)),MAX($Y$4:Y43)+1,0) -> 40 | Z44: Ioncam fótachóipeáil mac léinn | AB44: =IFERROR(VLOOKUP(ROWS($AB$5:AB44),$Y$5:$Z$189,2,0),"") -> Ioncam fótachóipeáil mac léinn
A45: 3390 | B45: Táillí riaracháin scoile | C45: Ioncam | D45: Ioncam arna Ghiniúint ag an Scoil | E45: Y | F45: ='Tuairiscí Miosúla Ioncam & Cait'!O48 -> 0 | J45: =-SUM(F45)-(G45+H45+I45) -> 0 | L45: AV | Y45: =IF(ISNUMBER(SEARCH($K$2,B45)),MAX($Y$4:Y44)+1,0) -> 41 | Z45: Student Photocopying Income | AB45: =IFERROR(VLOOKUP(ROWS($AB$5:AB45),$Y$5:$Z$189,2,0),"") -> Student Photocopying Income
A46: 3410 | B46: Ioncam Oideachais Aosaigh | C46: Ioncam | D46: Ioncam arna Ghiniúint ag an Scoil | E46: N | F46: ='Tuairiscí Miosúla Ioncam & Cait'!O49 -> 0 | J46: 0 | L46: AW | Y46: =IF(ISNUMBER(SEARCH($K$2,B46)),MAX($Y$4:Y45)+1,0) -> 42 | Z46: Ioncam Oideachais Aosaigh | AB46: =IFERROR(VLOOKUP(ROWS($AB$5:AB46),$Y$5:$Z$189,2,0),"") -> Ioncam Oideachais Aosaigh
A47: 3420 | B47: Ioncam ó Cheaintíní | C47: Ioncam | D47: Ioncam arna Ghiniúint ag an Scoil | E47: N | F47: ='Tuairiscí Miosúla Ioncam & Cait'!O50 -> 0 | J47: 0 | L47: AX | Y47: =IF(ISNUMBER(SEARCH($K$2,B47)),MAX($Y$4:Y46)+1,0) -> 43 | Z47: Ioncam ó Cheaintíní | AB47: =IFERROR(VLOOKUP(ROWS($AB$5:AB47),$Y$5:$Z$189,2,0),"") -> Ioncam ó Cheaintíní
A48: 3430 | B48: Ioncam ó Shiopaí Sólaistí | C48: Ioncam | D48: Ioncam arna Ghiniúint ag an Scoil | E48: Y | F48: ='Tuairiscí Miosúla Ioncam & Cait'!O51 -> 0 | J48: 0 | L48: AY | Y48: =IF(ISNUMBER(SEARCH($K$2,B48)),MAX($Y$4:Y47)+1,0) -> 44 | Z48: Ioncam ó Shiopaí Sólaistí | AB48: =IFERROR(VLOOKUP(ROWS($AB$5:AB48),$Y$5:$Z$189,2,0),"") -> Ioncam ó Shiopaí Sólaistí
A49: 3440 | B49: Ioncam ó Éidí Scoile | C49: Ioncam | D49: Ioncam arna Ghiniúint ag an Scoil | E49: Y | F49: ='Tuairiscí Miosúla Ioncam & Cait'!O52 -> 0 | J49: 0 | L49: AZ | Y49: =IF(ISNUMBER(SEARCH($K$2,B49)),MAX($Y$4:Y48)+1,0) -> 45 | Z49: Ioncam ó Éidí Scoile | AB49: =IFERROR(VLOOKUP(ROWS($AB$5:AB49),$Y$5:$Z$189,2,0),"") -> Ioncam ó Éidí Scoile
A50: 3450 | B50: Ioncam Reiligiúin/Éitis | C50: Ioncam | D50: Ioncam arna Ghiniúint ag an Scoil | E50: Y | F50: ='Tuairiscí Miosúla Ioncam & Cait'!O53 -> 0 | J50: 0 | L50: BA | Y50: =IF(ISNUMBER(SEARCH($K$2,B50)),MAX($Y$4:Y49)+1,0) -> 46 | Z50: Ioncam Reiligiúin/Éitis | AB50: =IFERROR(VLOOKUP(ROWS($AB$5:AB50),$Y$5:$Z$189,2,0),"") -> Ioncam Reiligiúin/Éitis
A51: 3490 | B51: Ioncam Club/Staidéir Iarscoile | C51: Ioncam | D51: Ioncam arna Ghiniúint ag an Scoil | E51: Y | F51: ='Tuairiscí Miosúla Ioncam & Cait'!O54 -> 0 | J51: 0 | L51: BB | Y51: =IF(ISNUMBER(SEARCH($K$2,B51)),MAX($Y$4:Y50)+1,0) -> 47 | Z51: Ioncam Club/Staidéir Iarscoile | AB51: =IFERROR(VLOOKUP(ROWS($AB$5:AB51),$Y$5:$Z$189,2,0),"") -> Ioncam Club/Staidéir Iarscoile
A52: 3500 | B52: Ioncam ó Chluichí | C52: Ioncam | D52: Ioncam arna Ghiniúint ag an Scoil | E52: Y | F52: ='Tuairiscí Miosúla Ioncam & Cait'!O55 -> 0 | J52: 0 | L52: BC | Y52: =IF(ISNUMBER(SEARCH($K$2,B52)),MAX($Y$4:Y51)+1,0) -> 48 | Z52: Ioncam ó Chluichí | AB52: =IFERROR(VLOOKUP(ROWS($AB$5:AB52),$Y$5:$Z$189,2,0),"") -> Ioncam ó Chluichí
A53: 3510 | B53: Fruiliú Bus le haghaidh Ioncam Cluichí | C53: Ioncam | D53: Ioncam arna Ghiniúint ag an Scoil | E53: Y | F53: ='Tuairiscí Miosúla Ioncam & Cait'!O56 -> 0 | J53: 0 | L53: BD | Y53: =IF(ISNUMBER(SEARCH($K$2,B53)),MAX($Y$4:Y52)+1,0) -> 49 | Z53: Fruiliú Bus le haghaidh Ioncam Cluichí | AB53: =IFERROR(VLOOKUP(ROWS($AB$5:AB53),$Y$5:$Z$189,2,0),"") -> Fruiliú Bus le haghaidh Ioncam Cluichí
A54: 3511 | B54: Ioncam Eile ar Fruiliú Bus | C54: Ioncam | D54: Ioncam arna Ghiniúint ag an Scoil | E54: Y | F54: ='Tuairiscí Miosúla Ioncam & Cait'!O57 -> 0 | J54: 0 | L54: BE | Y54: =IF(ISNUMBER(SEARCH($K$2,B54)),MAX($Y$4:Y53)+1,0) -> 50 | Z54: Ioncam Eile ar Fruiliú Bus | AB54: =IFERROR(VLOOKUP(ROWS($AB$5:AB54),$Y$5:$Z$189,2,0),"") -> Ioncam Eile ar Fruiliú Bus
A55: 3520 | B55: Ioncam ó Cheoldrámaí/Dhrámaí Scoile | C55: Ioncam | D55: Ioncam arna Ghiniúint ag an Scoil | E55: Y | F55: ='Tuairiscí Miosúla Ioncam & Cait'!O58 -> 0 | J55: 0 | L55: BF | Y55: =IF(ISNUMBER(SEARCH($K$2,B55)),MAX($Y$4:Y54)+1,0) -> 51 | Z55: Ioncam ó Cheoldrámaí/Dhrámaí Scoile | AB55: =IFERROR(VLOOKUP(ROWS($AB$5:AB55),$Y$5:$Z$189,2,0),"") -> Ioncam ó Cheoldrámaí/Dhrámaí Scoile
A56: 3530 | B56: Ioncam ó Thurais Scoile | C56: Ioncam | D56: Ioncam arna Ghiniúint ag an Scoil | E56: Y | F56: ='Tuairiscí Miosúla Ioncam & Cait'!O59 -> 0 | J56: 0 | L56: BG | Y56: =IF(ISNUMBER(SEARCH($K$2,B56)),MAX($Y$4:Y55)+1,0) -> 52 | Z56: Ioncam ó Thurais Scoile | AB56: =IFERROR(VLOOKUP(ROWS($AB$5:AB56),$Y$5:$Z$189,2,0),"") -> Ioncam ó Thurais Scoile
A57: 3531 | B57: Ioncam ó Snámh Scoile | C57: Ioncam | D57: Ioncam arna Ghiniúint ag an Scoil | E57: Y | F57: ='Tuairiscí Miosúla Ioncam & Cait'!O60 -> 0 | J57: 0 | L57: BH | Y57: =IF(ISNUMBER(SEARCH($K$2,B57)),MAX($Y$4:Y56)+1,0) -> 53 | Z57: Ioncam ó Snámh Scoile | AB57: =IFERROR(VLOOKUP(ROWS($AB$5:AB57),$Y$5:$Z$189,2,0),"") -> Ioncam ó Snámh Scoile
A58: 3535 | B58: Ioncam ó Árachas Daltaí | C58: Ioncam | D58: Ioncam arna Ghiniúint ag an Scoil | E58: Y | F58: ='Tuairiscí Miosúla Ioncam & Cait'!O61 -> 0 | J58: 0 | L58: BI | Y58: =IF(ISNUMBER(SEARCH($K$2,B58)),MAX($Y$4:Y57)+1,0) -> 54 | Z58: Ioncam ó Árachas Daltaí | AB58: =IFERROR(VLOOKUP(ROWS($AB$5:AB58),$Y$5:$Z$189,2,0),"") -> Ioncam ó Árachas Daltaí
A59: 3540 | B59: Ioncam Réamhscoile | C59: Ioncam | D59: Ioncam arna Ghiniúint ag an Scoil | E59: Y | F59: ='Tuairiscí Miosúla Ioncam & Cait'!O62 -> 0 | J59: 0 | L59: BJ | Y59: =IF(ISNUMBER(SEARCH($K$2,B59)),MAX($Y$4:Y58)+1,0) -> 55 | Z59: Ioncam Réamhscoile | AB59: =IFERROR(VLOOKUP(ROWS($AB$5:AB59),$Y$5:$Z$189,2,0),"") -> Ioncam Réamhscoile
A60: 3545 | B60: Ioncam ó Champaí Samhraidh | C60: Ioncam | D60: Ioncam arna Ghiniúint ag an Scoil | E60: N | F60: ='Tuairiscí Miosúla Ioncam & Cait'!O63 -> 0 | J60: 0 | L60: BK | Y60: =IF(ISNUMBER(SEARCH($K$2,B60)),MAX($Y$4:Y59)+1,0) -> 56 | Z60: Ioncam ó Champaí Samhraidh | AB60: =IFERROR(VLOOKUP(ROWS($AB$5:AB60),$Y$5:$Z$189,2,0),"") -> Ioncam ó Champaí Samhraidh
A61: 3550 | B61: Ioncam In-Aisíoctha | C61: Ioncam | D61: Ioncam arna Ghiniúint ag an Scoil | E61: Y | F61: ='Tuairiscí Miosúla Ioncam & Cait'!O64 -> 0 | J61: 0 | L61: BL | Y61: =IF(ISNUMBER(SEARCH($K$2,B61)),MAX($Y$4:Y60)+1,0) -> 57 | Z61: Ioncam In-Aisíoctha | AB61: =IFERROR(VLOOKUP(ROWS($AB$5:AB61),$Y$5:$Z$189,2,0),"") -> Ioncam In-Aisíoctha
A62: 3570 | B62: Ioncam Eile arna Ghiniúint ag an Scoil | C62: Ioncam | D62: Ioncam arna Ghiniúint ag an Scoil | E62: Y | F62: ='Tuairiscí Miosúla Ioncam & Cait'!O65 -> 0 | J62: 0 | L62: BM | Y62: =IF(ISNUMBER(SEARCH($K$2,B62)),MAX($Y$4:Y61)+1,0) -> 58 | Z62: Ioncam Eile arna Ghiniúint ag an Scoil | AB62: =IFERROR(VLOOKUP(ROWS($AB$5:AB62),$Y$5:$Z$189,2,0),"") -> Ioncam Eile arna Ghiniúint ag an Scoil
A63: 3572 | B63: Ioncam Ealaíon agus Ceardaíochta Scoile | C63: Ioncam | D63: Ioncam arna Ghiniúint ag an Scoil | E63: Y | F63: ='Tuairiscí Miosúla Ioncam & Cait'!O66 -> 0 | J63: 0 | L63: BN | Y63: =IF(ISNUMBER(SEARCH($K$2,B63)),MAX($Y$4:Y62)+1,0) -> 59 | Z63: Ioncam Ealaíon agus Ceardaíochta Scoile | AB63: =IFERROR(VLOOKUP(ROWS($AB$5:AB63),$Y$5:$Z$189,2,0),"") -> Ioncam Ealaíon agus Ceardaíochta Scoile
A64: 3573 | B64: Ioncam Damhsa Scoile | C64: Ioncam | D64: Ioncam arna Ghiniúint ag an Scoil | E64: Y | F64: ='Tuairiscí Miosúla Ioncam & Cait'!O67 -> 0 | J64: 0 | L64: BO | Y64: =IF(ISNUMBER(SEARCH($K$2,B64)),MAX($Y$4:Y63)+1,0) -> 60 | Z64: Ioncam Damhsa Scoile | AB64: =IFERROR(VLOOKUP(ROWS($AB$5:AB64),$Y$5:$Z$189,2,0),"") -> Ioncam Damhsa Scoile
A65: 3574 | B65: Tiomsú Airgid Srianta Scoile (Neamhchaipitiúil) | C65: Ioncam | D65: Ioncam arna Ghiniúint ag an Scoil | E65: Y | F65: ='Tuairiscí Miosúla Ioncam & Cait'!O68 -> 0 | J65: 0 | L65: BP | Y65: =IF(ISNUMBER(SEARCH($K$2,B65)),MAX($Y$4:Y64)+1,0) -> 61 | Z65: Tiomsú Airgid Srianta Scoile (Neamhchaipitiúil) | AB65: =IFERROR(VLOOKUP(ROWS($AB$5:AB65),$Y$5:$Z$189,2,0),"") -> Tiomsú Airgid Srianta Scoile (Neamhchaipitiúil)
A66: 3575 | B66: Tiomsú Airgid Neamhshrianta Scoile (Neamhchaipitiúil) | C66: Ioncam | D66: Ioncam arna Ghiniúint ag an Scoil | E66: Y | F66: ='Tuairiscí Miosúla Ioncam & Cait'!O69 -> 0 | J66: 0 | L66: BQ | Y66: =IF(ISNUMBER(SEARCH($K$2,B66)),MAX($Y$4:Y65)+1,0) -> 62 | Z66: Tiomsú Airgid Neamhshrianta Scoile (Neamhchaipitiúil) | AB66: =IFERROR(VLOOKUP(ROWS($AB$5:AB66),$Y$5:$Z$189,2,0),"") -> Tiomsú Airgid Neamhshrianta Scoile (Neamhchaipitiúil)
A67: 3580 | B67: Lascainí Tugtha | C67: Ioncam | D67: Ioncam arna Ghiniúint ag an Scoil | E67: N | F67: ='Tuairiscí Miosúla Ioncam & Cait'!O70 -> 0 | J67: 0 | L67: BR | Y67: =IF(ISNUMBER(SEARCH($K$2,B67)),MAX($Y$4:Y66)+1,0) -> 63 | Z67: Lascainí Tugtha | AB67: =IFERROR(VLOOKUP(ROWS($AB$5:AB67),$Y$5:$Z$189,2,0),"") -> Lascainí Tugtha
A68: 3650 | B68: Ranníocaíochtaí Saorálacha | C68: Ioncam | D68: Ioncam Eile | E68: Y | F68: ='Tuairiscí Miosúla Ioncam & Cait'!O71 -> 0 | J68: 0 | L68: BS | Y68: =IF(ISNUMBER(SEARCH($K$2,B68)),MAX($Y$4:Y67)+1,0) -> 64 | Z68: Ranníocaíochtaí Saorálacha | AB68: =IFERROR(VLOOKUP(ROWS($AB$5:AB68),$Y$5:$Z$189,2,0),"") -> Ranníocaíochtaí Saorálacha
A69: 3700 | B69: Ioncam ó Chumann na dTuismitheoirí | C69: Ioncam | D69: Ioncam Eile | E69: Y | F69: ='Tuairiscí Miosúla Ioncam & Cait'!O72 -> 0 | J69: 0 | L69: BT | Y69: =IF(ISNUMBER(SEARCH($K$2,B69)),MAX($Y$4:Y68)+1,0) -> 65 | Z69: Ioncam ó Chumann na dTuismitheoirí | AB69: =IFERROR(VLOOKUP(ROWS($AB$5:AB69),$Y$5:$Z$189,2,0),"") -> Ioncam ó Chumann na dTuismitheoirí
A70: 3770 | B70: Ioncam ó Éilimh Árachais | C70: Ioncam | D70: Ioncam Eile | E70: Y | F70: ='Tuairiscí Miosúla Ioncam & Cait'!O73 -> 0 | J70: =-SUM(F70)-(G70+H70+I70) -> 0 | L70: BU | Y70: =IF(ISNUMBER(SEARCH($K$2,B70)),MAX($Y$4:Y69)+1,0) -> 66 | Z70: Ioncam ó Éilimh Árachais | AB70: =IFERROR(VLOOKUP(ROWS($AB$5:AB70),$Y$5:$Z$189,2,0),"") -> Ioncam ó Éilimh Árachais
A71: 3800 | B71: Ús Bainc Faighte | C71: Ioncam | D71: Ioncam Eile | E71: Y | F71: ='Tuairiscí Miosúla Ioncam & Cait'!O74 -> 0 | J71: 0 | L71: BV | Y71: =IF(ISNUMBER(SEARCH($K$2,B71)),MAX($Y$4:Y70)+1,0) -> 67 | Z71: Ús Bainc Faighte | AB71: =IFERROR(VLOOKUP(ROWS($AB$5:AB71),$Y$5:$Z$189,2,0),"") -> Ús Bainc Faighte
A72: 3840 | B72: Amúchadh Maoinithe nach bhFuarthas ón RO | C72: Ioncam | D72: Ioncam Eile | E72: N | F72: ='Tuairiscí Miosúla Ioncam & Cait'!O75 -> 0 | J72: 0 | L72: BW | Y72: =IF(ISNUMBER(SEARCH($K$2,B72)),MAX($Y$4:Y71)+1,0) -> 68 | Z72: Amúchadh Maoinithe nach bhFuarthas ón RO | AB72: =IFERROR(VLOOKUP(ROWS($AB$5:AB72),$Y$5:$Z$189,2,0),"") -> Amúchadh Maoinithe nach bhFuarthas ón RO
A73: 3850 | B73: Ioncam Eile | C73: Ioncam | D73: Ioncam Eile | E73: Y | F73: ='Tuairiscí Miosúla Ioncam & Cait'!O76 -> 0 | J73: 0 | L73: BX | Y73: =IF(ISNUMBER(SEARCH($K$2,B73)),MAX($Y$4:Y72)+1,0) -> 69 | Z73: Ioncam Eile | AB73: =IFERROR(VLOOKUP(ROWS($AB$5:AB73),$Y$5:$Z$189,2,0),"") -> Ioncam Eile
A74: 3851 | B74: Ioncam Ainmnithe (Neamhchaipitiúil) | C74: Ioncam | D74: Ioncam Eile | E74: Y | F74: ='Tuairiscí Miosúla Ioncam & Cait'!O77 -> 0 | J74: 0 | L74: BY | Y74: =IF(ISNUMBER(SEARCH($K$2,B74)),MAX($Y$4:Y73)+1,0) -> 70 | Z74: Ioncam Ainmnithe (Neamhchaipitiúil) | AB74: =IFERROR(VLOOKUP(ROWS($AB$5:AB74),$Y$5:$Z$189,2,0),"") -> Ioncam Ainmnithe (Neamhchaipitiúil)
A75: 3852 | B75: Tiomsú Airgid Srianta Seachtrach (Neamhchaipitiúil) | C75: Ioncam | D75: Ioncam Eile | E75: Y | F75: ='Tuairiscí Miosúla Ioncam & Cait'!O78 -> 0 | J75: 0 | L75: BZ | Y75: =IF(ISNUMBER(SEARCH($K$2,B75)),MAX($Y$4:Y74)+1,0) -> 71 | Z75: Tiomsú Airgid Srianta Seachtrach (Neamhchaipitiúil) | AB75: =IFERROR(VLOOKUP(ROWS($AB$5:AB75),$Y$5:$Z$189,2,0),"") -> Tiomsú Airgid Srianta Seachtrach (Neamhchaipitiúil)
A76: 3853 | B76: Tiomsú Airgid Neamhshrianta Seachtrach (Neamhchaipitiúil) | C76: Ioncam | D76: Ioncam Eile | E76: Y | F76: ='Tuairiscí Miosúla Ioncam & Cait'!O79 -> 0 | J76: 0 | L76: CA | Y76: =IF(ISNUMBER(SEARCH($K$2,B76)),MAX($Y$4:Y75)+1,0) -> 72 | Z76: Tiomsú Airgid Neamhshrianta Seachtrach (Neamhchaipitiúil) | AB76: =IFERROR(VLOOKUP(ROWS($AB$5:AB76),$Y$5:$Z$189,2,0),"") -> Tiomsú Airgid Neamhshrianta Seachtrach (Neamhchaipitiúil)
A77: 4110 | B77: Costas Múinteoirí Ionaid | C77: Caiteachas | D77: Tuarastal Oideachais | E77: Y | F77: ='Tuairiscí Miosúla Ioncam & Cait'!O84 -> 0 | J77: =F77+G77+H77+I77 -> 0 | L77: H | Y77: =IF(ISNUMBER(SEARCH($K$2,B77)),MAX($Y$4:Y76)+1,0) -> 73 | Z77: Costas Múinteoirí Ionaid | AB77: =IFERROR(VLOOKUP(ROWS($AB$5:AB77),$Y$5:$Z$189,2,0),"") -> Costas Múinteoirí Ionaid
A78: 4111 | B78: Costas Múinteoirí a Íoctar go Príobháideach | C78: Caiteachas | D78: Tuarastal Oideachais | E78: Y | F78: ='Tuairiscí Miosúla Ioncam & Cait'!O85 -> 0 | J78: =F78+G78+H78+I78 -> 0 | L78: I | Y78: =IF(ISNUMBER(SEARCH($K$2,B78)),MAX($Y$4:Y77)+1,0) -> 74 | Z78: Costas Múinteoirí a Íoctar go Príobháideach | AB78: =IFERROR(VLOOKUP(ROWS($AB$5:AB78),$Y$5:$Z$189,2,0),"") -> Costas Múinteoirí a Íoctar go Príobháideach
A79: 4113 | B79: Costais riaracháin leabhar scoile saor in aisce | C79: Caiteachas | D79: Tuarastal Oideachais | E79: Y | F79: ='Tuairiscí Miosúla Ioncam & Cait'!O86 -> 0 | J79: 0 | L79: J | Y79: =IF(ISNUMBER(SEARCH($K$2,B79)),MAX($Y$4:Y78)+1,0) -> 75 | Z79: Costais riaracháin leabhar scoile saor in aisce | AB79: =IFERROR(VLOOKUP(ROWS($AB$5:AB79),$Y$5:$Z$189,2,0),"") -> Costais riaracháin leabhar scoile saor in aisce
A80: 4150 | B80: Costas Tuarastal Maoirseachta agus Ionadaithe | C80: Caiteachas | D80: Tuarastal Oideachais | E80: N | F80: ='Tuairiscí Miosúla Ioncam & Cait'!O87 -> 0 | J80: 0 | L80: K | Y80: =IF(ISNUMBER(SEARCH($K$2,B80)),MAX($Y$4:Y79)+1,0) -> 76 | Z80: Costas Tuarastal Maoirseachta agus Ionadaithe | AB80: =IFERROR(VLOOKUP(ROWS($AB$5:AB80),$Y$5:$Z$189,2,0),"") -> Costas Tuarastal Maoirseachta agus Ionadaithe
A81: 4170 | B81: Costas Tuarastal Oideachais Aosaigh | C81: Caiteachas | D81: Tuarastal Oideachais | E81: N | F81: ='Tuairiscí Miosúla Ioncam & Cait'!O88 -> 0 | J81: 0 | L81: L | Y81: =IF(ISNUMBER(SEARCH($K$2,B81)),MAX($Y$4:Y80)+1,0) -> 77 | Z81: Costas Tuarastal Oideachais Aosaigh | AB81: =IFERROR(VLOOKUP(ROWS($AB$5:AB81),$Y$5:$Z$189,2,0),"") -> Costas Tuarastal Oideachais Aosaigh
A82: 4181 | B82: Costais Thuarastail an Cheaintín | C82: Caiteachas | D82: Tuarastal Oideachais | E82: N | F82: ='Tuairiscí Miosúla Ioncam & Cait'!O89 -> 0 | J82: 0 | L82: M | Y82: =IF(ISNUMBER(SEARCH($K$2,B82)),MAX($Y$4:Y81)+1,0) -> 78 | Z82: Costais Thuarastail an Cheaintín | AB82: =IFERROR(VLOOKUP(ROWS($AB$5:AB82),$Y$5:$Z$189,2,0),"") -> Costais Thuarastail an Cheaintín
A83: 4190 | B83: Costas Tuarastal Staidéir/Club Iarscoile | C83: Caiteachas | D83: Tuarastal Oideachais | E83: Y | F83: ='Tuairiscí Miosúla Ioncam & Cait'!O90 -> 0 | J83: 0 | L83: N | Y83: =IF(ISNUMBER(SEARCH($K$2,B83)),MAX($Y$4:Y82)+1,0) -> 79 | Z83: Costas Tuarastal Staidéir/Club Iarscoile | AB83: =IFERROR(VLOOKUP(ROWS($AB$5:AB83),$Y$5:$Z$189,2,0),"") -> Costas Tuarastal Staidéir/Club Iarscoile
A84: 4191 | B84: Costais Tuarastail Campaí Samhraidh | C84: Caiteachas | D84: Tuarastal Oideachais | E84: N | F84: ='Tuairiscí Miosúla Ioncam & Cait'!O91 -> 0 | J84: 0 | L84: O | Y84: =IF(ISNUMBER(SEARCH($K$2,B84)),MAX($Y$4:Y83)+1,0) -> 80 | Z84: Costais Tuarastail Campaí Samhraidh | AB84: =IFERROR(VLOOKUP(ROWS($AB$5:AB84),$Y$5:$Z$189,2,0),"") -> Costais Tuarastail Campaí Samhraidh
A85: 4196 | B85: Costas Tuarastail Tionlacaithe Bus | C85: Caiteachas | D85: Tuarastal Oideachais | E85: Y | F85: ='Tuairiscí Miosúla Ioncam & Cait'!O92 -> 0 | J85: 0 | L85: P | Y85: =IF(ISNUMBER(SEARCH($K$2,B85)),MAX($Y$4:Y84)+1,0) -> 81 | Z85: Costas Tuarastail Tionlacaithe Bus | AB85: =IFERROR(VLOOKUP(ROWS($AB$5:AB85),$Y$5:$Z$189,2,0),"") -> Costas Tuarastail Tionlacaithe Bus
A86: 4198 | B86: Costais Tuarastail Oideachais Eile | C86: Caiteachas | D86: Tuarastal Oideachais | E86: Y | F86: ='Tuairiscí Miosúla Ioncam & Cait'!O93 -> 0 | J86: 0 | L86: Q | Y86: =IF(ISNUMBER(SEARCH($K$2,B86)),MAX($Y$4:Y85)+1,0) -> 82 | Z86: Costais Tuarastail Oideachais Eile | AB86: =IFERROR(VLOOKUP(ROWS($AB$5:AB86),$Y$5:$Z$189,2,0),"") -> Costais Tuarastail Oideachais Eile
A87: 4199 | B87: Costais Tuarastail Maoinithe ag FSS | C87: Caiteachas | D87: Tuarastal Oideachais | E87: N | F87: ='Tuairiscí Miosúla Ioncam & Cait'!O94 -> 0 | J87: 0 | L87: R | Y87: =IF(ISNUMBER(SEARCH($K$2,B87)),MAX($Y$4:Y86)+1,0) -> 83 | Z87: Costais Tuarastail Maoinithe ag FSS | AB87: =IFERROR(VLOOKUP(ROWS($AB$5:AB87),$Y$5:$Z$189,2,0),"") -> Costais Tuarastail Maoinithe ag FSS
A88: 4310 | B88: Costas Áiseanna Teagaisc | C88: Caiteachas | D88: Caiteachas Oideachais Eile | E88: Y | F88: ='Tuairiscí Miosúla Ioncam & Cait'!O95 -> 0 | J88: 0 | L88: S | Y88: =IF(ISNUMBER(SEARCH($K$2,B88)),MAX($Y$4:Y87)+1,0) -> 84 | Z88: Costas Áiseanna Teagaisc | AB88: =IFERROR(VLOOKUP(ROWS($AB$5:AB88),$Y$5:$Z$189,2,0),"") -> Costas Áiseanna Teagaisc
A89: 4311 | B89: Costaisí Scéim luath-thosaithe le haghaidh Ábh/Tre/For tuis | C89: Caiteachas | D89: Caiteachas Oideachais Eile | E89: N | F89: ='Tuairiscí Miosúla Ioncam & Cait'!O96 -> 0 | J89: =F89+G89+H89+I89 -> 0 | L89: T | Y89: =IF(ISNUMBER(SEARCH($K$2,B89)),MAX($Y$4:Y88)+1,0) -> 85 | Z89: Costaisí Scéim luath-thosaithe le haghaidh Ábh/Tre/For tuis | AB89: =IFERROR(VLOOKUP(ROWS($AB$5:AB89),$Y$5:$Z$189,2,0),"") -> Costaisí Scéim luath-thosaithe le haghaidh Ábh/Tre/For tuis
A90: 4315 | B90: Costas fótachóipeáil mac léinn | C90: Caiteachas | D90: Caiteachas Oideachais Eile | E90: Y | F90: ='Tuairiscí Miosúla Ioncam & Cait'!O97 -> 0 | J90: 0 | L90: U | Y90: =IF(ISNUMBER(SEARCH($K$2,B90)),MAX($Y$4:Y89)+1,0) -> 86 | Z90: Costas fótachóipeáil mac léinn | AB90: =IFERROR(VLOOKUP(ROWS($AB$5:AB90),$Y$5:$Z$189,2,0),"") -> Costas fótachóipeáil mac léinn
A91: 4330 | B91: Costas maidir le Reiligiún/hÉiteas | C91: Caiteachas | D91: Caiteachas Oideachais Eile | E91: Y | F91: ='Tuairiscí Miosúla Ioncam & Cait'!O98 -> 0 | J91: 0 | L91: V | Y91: =IF(ISNUMBER(SEARCH($K$2,B91)),MAX($Y$4:Y90)+1,0) -> 87 | Z91: Costas maidir le Reiligiún/hÉiteas | AB91: =IFERROR(VLOOKUP(ROWS($AB$5:AB91),$Y$5:$Z$189,2,0),"") -> Costas maidir le Reiligiún/hÉiteas
A92: 4410 | B92: Costais Deontais Neamhchaipitil TFC | C92: Caiteachas | D92: Caiteachas Oideachais Eile | E92: Y | F92: ='Tuairiscí Miosúla Ioncam & Cait'!O99 -> 0 | J92: 0 | L92: W | Y92: =IF(ISNUMBER(SEARCH($K$2,B92)),MAX($Y$4:Y91)+1,0) -> 88 | Z92: Costais Deontais Neamhchaipitil TFC | AB92: =IFERROR(VLOOKUP(ROWS($AB$5:AB92),$Y$5:$Z$189,2,0),"") -> Costais Deontais Neamhchaipitil TFC
A93: 4420 | B93: Costais Cothabhála & Tacaíochta Ríomhaireachta | C93: Caiteachas | D93: Caiteachas Oideachais Eile | E93: Y | F93: ='Tuairiscí Miosúla Ioncam & Cait'!O100 -> 0 | J93: 0 | L93: X | Y93: =IF(ISNUMBER(SEARCH($K$2,B93)),MAX($Y$4:Y92)+1,0) -> 89 | Z93: Costais Cothabhála & Tacaíochta Ríomhaireachta | AB93: =IFERROR(VLOOKUP(ROWS($AB$5:AB93),$Y$5:$Z$189,2,0),"") -> Costais Cothabhála & Tacaíochta Ríomhaireachta
A94: 4490 | B94: Costas d’Ábhair Eile | C94: Caiteachas | D94: Caiteachas Oideachais Eile | E94: N | F94: ='Tuairiscí Miosúla Ioncam & Cait'!O101 -> 0 | J94: 0 | L94: Y | Y94: =IF(ISNUMBER(SEARCH($K$2,B94)),MAX($Y$4:Y93)+1,0) -> 90 | Z94: Costas d’Ábhair Eile | AB94: =IFERROR(VLOOKUP(ROWS($AB$5:AB94),$Y$5:$Z$189,2,0),"") -> Costas d’Ábhair Eile
A95: 4550 | B95: Costas don Ardteistiméireacht Fheidhmeach | C95: Caiteachas | D95: Caiteachas Oideachais Eile | E95: N | F95: ='Tuairiscí Miosúla Ioncam & Cait'!O102 -> 0 | J95: 0 | L95: Z | Y95: =IF(ISNUMBER(SEARCH($K$2,B95)),MAX($Y$4:Y94)+1,0) -> 91 | Z95: Costas don Ardteistiméireacht Fheidhmeach | AB95: =IFERROR(VLOOKUP(ROWS($AB$5:AB95),$Y$5:$Z$189,2,0),"") -> Costas don Ardteistiméireacht Fheidhmeach
A96: 4570 | B96: Costas do Ghairmchlár na hArdteistiméireachta | C96: Caiteachas | D96: Caiteachas Oideachais Eile | E96: N | F96: ='Tuairiscí Miosúla Ioncam & Cait'!O103 -> 0 | J96: 0 | L96: AA | Y96: =IF(ISNUMBER(SEARCH($K$2,B96)),MAX($Y$4:Y95)+1,0) -> 92 | Z96: Costas do Ghairmchlár na hArdteistiméireachta | AB96: =IFERROR(VLOOKUP(ROWS($AB$5:AB96),$Y$5:$Z$189,2,0),"") -> Costas do Ghairmchlár na hArdteistiméireachta
A97: 4590 | B97: Costas na hIdirbhliana | C97: Caiteachas | D97: Caiteachas Oideachais Eile | E97: N | F97: ='Tuairiscí Miosúla Ioncam & Cait'!O104 -> 0 | J97: 0 | L97: AB | Y97: =IF(ISNUMBER(SEARCH($K$2,B97)),MAX($Y$4:Y96)+1,0) -> 93 | Z97: Costas na hIdirbhliana | AB97: =IFERROR(VLOOKUP(ROWS($AB$5:AB97),$Y$5:$Z$189,2,0),"") -> Costas na hIdirbhliana
A98: 4610 | B98: Costas na Tacaíochta Foghlama | C98: Caiteachas | D98: Caiteachas Oideachais Eile | E98: Y | F98: ='Tuairiscí Miosúla Ioncam & Cait'!O105 -> 0 | J98: 0 | L98: AC | Y98: =IF(ISNUMBER(SEARCH($K$2,B98)),MAX($Y$4:Y97)+1,0) -> 94 | Z98: Costas na Tacaíochta Foghlama | AB98: =IFERROR(VLOOKUP(ROWS($AB$5:AB98),$Y$5:$Z$189,2,0),"") -> Costas na Tacaíochta Foghlama
A99: 4620 | B99: Costas Inseirbhíse agus Oiliúna Múinteoirí | C99: Caiteachas | D99: Caiteachas Oideachais Eile | E99: Y | F99: ='Tuairiscí Miosúla Ioncam & Cait'!O106 -> 0 | J99: 0 | L99: AD | Y99: =IF(ISNUMBER(SEARCH($K$2,B99)),MAX($Y$4:Y98)+1,0) -> 95 | Z99: Costas Inseirbhíse agus Oiliúna Múinteoirí | AB99: =IFERROR(VLOOKUP(ROWS($AB$5:AB99),$Y$5:$Z$189,2,0),"") -> Costas Inseirbhíse agus Oiliúna Múinteoirí
A100: 4635 | B100: Costais i leith Folláine Mac Léinn | C100: Caiteachas | D100: Caiteachas Oideachais Eile | E100: Y | F100: ='Tuairiscí Miosúla Ioncam & Cait'!O107 -> 0 | J100: 0 | L100: AE | Y100: =IF(ISNUMBER(SEARCH($K$2,B100)),MAX($Y$4:Y99)+1,0) -> 96 | Z100: Costais i leith Folláine Mac Léinn | AB100: =IFERROR(VLOOKUP(ROWS($AB$5:AB100),$Y$5:$Z$189,2,0),"") -> Costais i leith Folláine Mac Léinn
A101: 4640 | B101: Caiteachas Leabharlainne nach Maoinítear Deontas | C101: Caiteachas | D101: Caiteachas Oideachais Eile | E101: N | F101: ='Tuairiscí Miosúla Ioncam & Cait'!O108 -> 0 | J101: 0 | L101: AF | Y101: =IF(ISNUMBER(SEARCH($K$2,B101)),MAX($Y$4:Y100)+1,0) -> 97 | Z101: Caiteachas Leabharlainne nach Maoinítear Deontas | AB101: =IFERROR(VLOOKUP(ROWS($AB$5:AB101),$Y$5:$Z$189,2,0),"") -> Caiteachas Leabharlainne nach Maoinítear Deontas
A102: 4641 | B102: Caiteachas Deontas Caipitil Leabhair Leabharlainne Scoile | C102: Caiteachas | D102: Caiteachas Oideachais Eile | E102: N | F102: ='Tuairiscí Miosúla Ioncam & Cait'!O109 -> 0 | J102: =F102+G102+H102+I102 -> 0 | L102: AG | Y102: =IF(ISNUMBER(SEARCH($K$2,B102)),MAX($Y$4:Y101)+1,0) -> 98 | Z102: Caiteachas Deontas Caipitil Leabhair Leabharlainne Scoile | AB102: =IFERROR(VLOOKUP(ROWS($AB$5:AB102),$Y$5:$Z$189,2,0),"") -> Caiteachas Deontas Caipitil Leabhair Leabharlainne Scoile
A103: 4650 | B103: Costas Corpoideachais | C103: Caiteachas | D103: Caiteachas Oideachais Eile | E103: Y | F103: ='Tuairiscí Miosúla Ioncam & Cait'!O110 -> 0 | J103: 0 | L103: AH | Y103: =IF(ISNUMBER(SEARCH($K$2,B103)),MAX($Y$4:Y102)+1,0) -> 99 | Z103: Costas Corpoideachais | AB103: =IFERROR(VLOOKUP(ROWS($AB$5:AB103),$Y$5:$Z$189,2,0),"") -> Costas Corpoideachais
A104: 4670 | B104: Costas Cluichí (gan taisteal san áireamh) | C104: Caiteachas | D104: Caiteachas Oideachais Eile | E104: Y | F104: ='Tuairiscí Miosúla Ioncam & Cait'!O111 -> 0 | J104: 0 | L104: AI | Y104: =IF(ISNUMBER(SEARCH($K$2,B104)),MAX($Y$4:Y103)+1,0) -> 100 | Z104: Costas Cluichí (gan taisteal san áireamh) | AB104: =IFERROR(VLOOKUP(ROWS($AB$5:AB104),$Y$5:$Z$189,2,0),"") -> Costas Cluichí (gan taisteal san áireamh)
A105: 4671 | B105: Cíosú Bus le haghaidh Costas Cluichí | C105: Caiteachas | D105: Caiteachas Oideachais Eile | E105: Y | F105: ='Tuairiscí Miosúla Ioncam & Cait'!O112 -> 0 | J105: 0 | L105: AJ | Y105: =IF(ISNUMBER(SEARCH($K$2,B105)),MAX($Y$4:Y104)+1,0) -> 101 | Z105: Cíosú Bus le haghaidh Costas Cluichí | AB105: =IFERROR(VLOOKUP(ROWS($AB$5:AB105),$Y$5:$Z$189,2,0),"") -> Cíosú Bus le haghaidh Costas Cluichí
A106: 4690 | B106: Costas Eile ar Fruiliú Bus | C106: Caiteachas | D106: Caiteachas Oideachais Eile | E106: Y | F106: ='Tuairiscí Miosúla Ioncam & Cait'!O113 -> 0 | J106: 0 | L106: AK | Y106: =IF(ISNUMBER(SEARCH($K$2,B106)),MAX($Y$4:Y105)+1,0) -> 102 | Z106: Costas Eile ar Fruiliú Bus | AB106: =IFERROR(VLOOKUP(ROWS($AB$5:AB106),$Y$5:$Z$189,2,0),"") -> Costas Eile ar Fruiliú Bus
A107: 4710 | B107: Costas Turas Scoile | C107: Caiteachas | D107: Caiteachas Oideachais Eile | E107: Y | F107: ='Tuairiscí Miosúla Ioncam & Cait'!O114 -> 0 | J107: 0 | L107: AL | Y107: =IF(ISNUMBER(SEARCH($K$2,B107)),MAX($Y$4:Y106)+1,0) -> 103 | Z107: Costas Turas Scoile | AB107: =IFERROR(VLOOKUP(ROWS($AB$5:AB107),$Y$5:$Z$189,2,0),"") -> Costas Turas Scoile
A108: 4720 | B108: Costas Ceoldráma/Dráma Scoile | C108: Caiteachas | D108: Caiteachas Oideachais Eile | E108: Y | F108: ='Tuairiscí Miosúla Ioncam & Cait'!O115 -> 0 | J108: 0 | L108: AM | Y108: =IF(ISNUMBER(SEARCH($K$2,B108)),MAX($Y$4:Y107)+1,0) -> 104 | Z108: Costas Ceoldráma/Dráma Scoile | AB108: =IFERROR(VLOOKUP(ROWS($AB$5:AB108),$Y$5:$Z$189,2,0),"") -> Costas Ceoldráma/Dráma Scoile
A109: 4731 | B109: Costas Deontas Scoile saor in aisce | C109: Caiteachas | D109: Caiteachas Oideachais Eile | E109: Y | F109: ='Tuairiscí Miosúla Ioncam & Cait'!O116 -> 0 | J109: 0 | L109: AN | Y109: =IF(ISNUMBER(SEARCH($K$2,B109)),MAX($Y$4:Y108)+1,0) -> 105 | Z109: Costas Deontas Scoile saor in aisce | AB109: =IFERROR(VLOOKUP(ROWS($AB$5:AB109),$Y$5:$Z$189,2,0),"") -> Costas Deontas Scoile saor in aisce
A110: 4740 | B110: Costas Scéim na Leabhar ar Cíos | C110: Caiteachas | D110: Caiteachas Oideachais Eile | E110: N | F110: ='Tuairiscí Miosúla Ioncam & Cait'!O117 -> 0 | J110: 0 | L110: AO | Y110: =IF(ISNUMBER(SEARCH($K$2,B110)),MAX($Y$4:Y109)+1,0) -> 106 | Z110: Costas Scéim na Leabhar ar Cíos | AB110: =IFERROR(VLOOKUP(ROWS($AB$5:AB110),$Y$5:$Z$189,2,0),"") -> Costas Scéim na Leabhar ar Cíos
A111: 4741 | B111: Costais Leabhar Seomra Ranga | C111: Caiteachas | D111: Caiteachas Oideachais Eile | E111: Y | F111: ='Tuairiscí Miosúla Ioncam & Cait'!O118 -> 0 | J111: 0 | L111: AP | Y111: =IF(ISNUMBER(SEARCH($K$2,B111)),MAX($Y$4:Y110)+1,0) -> 107 | Z111: Costais Leabhar Seomra Ranga | AB111: =IFERROR(VLOOKUP(ROWS($AB$5:AB111),$Y$5:$Z$189,2,0),"") -> Costais Leabhar Seomra Ranga
A112: 4760 | B112: Costas Bliainirisí/Dialanna Scoile | C112: Caiteachas | D112: Caiteachas Oideachais Eile | E112: Y | F112: ='Tuairiscí Miosúla Ioncam & Cait'!O119 -> 0 | J112: 0 | L112: AQ | Y112: =IF(ISNUMBER(SEARCH($K$2,B112)),MAX($Y$4:Y111)+1,0) -> 108 | Z112: Costas Bliainirisí/Dialanna Scoile | AB112: =IFERROR(VLOOKUP(ROWS($AB$5:AB112),$Y$5:$Z$189,2,0),"") -> Costas Bliainirisí/Dialanna Scoile
A113: 4770 | B113: Costas Trófaithe agus Duaiseanna | C113: Caiteachas | D113: Caiteachas Oideachais Eile | E113: Y | F113: ='Tuairiscí Miosúla Ioncam & Cait'!O120 -> 0 | J113: 0 | L113: AR | Y113: =IF(ISNUMBER(SEARCH($K$2,B113)),MAX($Y$4:Y112)+1,0) -> 109 | Z113: Costas Trófaithe agus Duaiseanna | AB113: =IFERROR(VLOOKUP(ROWS($AB$5:AB113),$Y$5:$Z$189,2,0),"") -> Costas Trófaithe agus Duaiseanna
A114: 4780 | B114: Costas Éidí | C114: Caiteachas | D114: Caiteachas Oideachais Eile | E114: Y | F114: ='Tuairiscí Miosúla Ioncam & Cait'!O121 -> 0 | J114: 0 | L114: AS | Y114: =IF(ISNUMBER(SEARCH($K$2,B114)),MAX($Y$4:Y113)+1,0) -> 110 | Z114: Costas Éidí | AB114: =IFERROR(VLOOKUP(ROWS($AB$5:AB114),$Y$5:$Z$189,2,0),"") -> Costas Éidí
A115: 4810 | B115: Costas na Teagmhála idir an Baile agus an Scoil | C115: Caiteachas | D115: Caiteachas Oideachais Eile | E115: Y | F115: ='Tuairiscí Miosúla Ioncam & Cait'!O122 -> 0 | J115: 0 | L115: AT | Y115: =IF(ISNUMBER(SEARCH($K$2,B115)),MAX($Y$4:Y114)+1,0) -> 111 | Z115: Costas na Teagmhála idir an Baile agus an Scoil | AB115: =IFERROR(VLOOKUP(ROWS($AB$5:AB115),$Y$5:$Z$189,2,0),"") -> Costas na Teagmhála idir an Baile agus an Scoil
A116: 4815 | B116: Costas an Chiste Barr Feabhais Scoileanna | C116: Caiteachas | D116: Caiteachas Oideachais Eile | E116: N | F116: ='Tuairiscí Miosúla Ioncam & Cait'!O123 -> 0 | J116: 0 | L116: AU | Y116: =IF(ISNUMBER(SEARCH($K$2,B116)),MAX($Y$4:Y115)+1,0) -> 112 | Z116: Costas an Chiste Barr Feabhais Scoileanna | AB116: =IFERROR(VLOOKUP(ROWS($AB$5:AB116),$Y$5:$Z$189,2,0),"") -> Costas an Chiste Barr Feabhais Scoileanna
A117: 4908 | B117: Costais Eile Campaí Samhraidh | C117: Caiteachas | D117: Caiteachas Oideachais Eile | E117: N | F117: ='Tuairiscí Miosúla Ioncam & Cait'!O124 -> 0 | J117: 0 | L117: AV | Y117: =IF(ISNUMBER(SEARCH($K$2,B117)),MAX($Y$4:Y116)+1,0) -> 113 | Z117: Costais Eile Campaí Samhraidh | AB117: =IFERROR(VLOOKUP(ROWS($AB$5:AB117),$Y$5:$Z$189,2,0),"") -> Costais Eile Campaí Samhraidh
A118: 4909 | B118: Costais Sholáthar Eile Samhraidh | C118: Caiteachas | D118: Caiteachas Oideachais Eile | E118: Y | F118: ='Tuairiscí Miosúla Ioncam & Cait'!O125 -> 0 | J118: 0 | L118: AW | Y118: =IF(ISNUMBER(SEARCH($K$2,B118)),MAX($Y$4:Y117)+1,0) -> 114 | Z118: Costais Sholáthar Eile Samhraidh | AB118: =IFERROR(VLOOKUP(ROWS($AB$5:AB118),$Y$5:$Z$189,2,0),"") -> Costais Sholáthar Eile Samhraidh
A119: 4910 | B119: Costas Oideachais Eile | C119: Caiteachas | D119: Caiteachas Oideachais Eile | E119: Y | F119: ='Tuairiscí Miosúla Ioncam & Cait'!O126 -> 0 | J119: 0 | L119: AX | Y119: =IF(ISNUMBER(SEARCH($K$2,B119)),MAX($Y$4:Y118)+1,0) -> 115 | Z119: Costas Oideachais Eile | AB119: =IFERROR(VLOOKUP(ROWS($AB$5:AB119),$Y$5:$Z$189,2,0),"") -> Costas Oideachais Eile
A120: 4911 | B120: Costas Ghníomhaíochtaí na Roinne Leanaí agus Gnóthaí Óige | C120: Caiteachas | D120: Caiteachas Oideachais Eile | E120: N | F120: ='Tuairiscí Miosúla Ioncam & Cait'!O127 -> 0 | J120: 0 | L120: AY | Y120: =IF(ISNUMBER(SEARCH($K$2,B120)),MAX($Y$4:Y119)+1,0) -> 116 | Z120: Costas Ghníomhaíochtaí na Roinne Leanaí agus Gnóthaí Óige | AB120: =IFERROR(VLOOKUP(ROWS($AB$5:AB120),$Y$5:$Z$189,2,0),"") -> Costas Ghníomhaíochtaí na Roinne Leanaí agus Gnóthaí Óige
A121: 4912 | B121: Costais Bia Béilí Scoileanna na Roinne Coimirce Sóisialaí | C121: Caiteachas | D121: Caiteachas Oideachais Eile | E121: Y | F121: ='Tuairiscí Miosúla Ioncam & Cait'!O128 -> 0 | J121: 0 | L121: AZ | Y121: =IF(ISNUMBER(SEARCH($K$2,B121)),MAX($Y$4:Y120)+1,0) -> 117 | Z121: Costais Bia Béilí Scoileanna na Roinne Coimirce Sóisialaí | AB121: =IFERROR(VLOOKUP(ROWS($AB$5:AB121),$Y$5:$Z$189,2,0),"") -> Costais Bia Béilí Scoileanna na Roinne Coimirce Sóisialaí
A122: 4913 | B122: Costas Erasmus | C122: Caiteachas | D122: Caiteachas Oideachais Eile | E122: N | F122: ='Tuairiscí Miosúla Ioncam & Cait'!O129 -> 0 | J122: 0 | L122: BA | Y122: =IF(ISNUMBER(SEARCH($K$2,B122)),MAX($Y$4:Y121)+1,0) -> 118 | Z122: Costas Erasmus | AB122: =IFERROR(VLOOKUP(ROWS($AB$5:AB122),$Y$5:$Z$189,2,0),"") -> Costas Erasmus
A123: 4914 | B123: Costais Deontais Neamhchaipitil Eile RO | C123: Caiteachas | D123: Caiteachas Oideachais Eile | E123: Y | F123: ='Tuairiscí Miosúla Ioncam & Cait'!O130 -> 0 | J123: 0 | L123: BB | Y123: =IF(ISNUMBER(SEARCH($K$2,B123)),MAX($Y$4:Y122)+1,0) -> 119 | Z123: Costais Deontais Neamhchaipitil Eile RO | AB123: =IFERROR(VLOOKUP(ROWS($AB$5:AB123),$Y$5:$Z$189,2,0),"") -> Costais Deontais Neamhchaipitil Eile RO
A124: 4915 | B124: Costais Eile Ceaintín | C124: Caiteachas | D124: Caiteachas Oideachais Eile | E124: Y | F124: ='Tuairiscí Miosúla Ioncam & Cait'!O131 -> 0 | J124: 0 | L124: BC | Y124: =IF(ISNUMBER(SEARCH($K$2,B124)),MAX($Y$4:Y123)+1,0) -> 120 | Z124: Costais Eile Ceaintín | AB124: =IFERROR(VLOOKUP(ROWS($AB$5:AB124),$Y$5:$Z$189,2,0),"") -> Costais Eile Ceaintín
A125: 4916 | B125: Costas Árachais Daltaí | C125: Caiteachas | D125: Caiteachas Oideachais Eile | E125: Y | F125: ='Tuairiscí Miosúla Ioncam & Cait'!O132 -> 0 | J125: 0 | L125: BD | Y125: =IF(ISNUMBER(SEARCH($K$2,B125)),MAX($Y$4:Y124)+1,0) -> 121 | Z125: Costas Árachais Daltaí | AB125: =IFERROR(VLOOKUP(ROWS($AB$5:AB125),$Y$5:$Z$189,2,0),"") -> Costas Árachais Daltaí
A126: 4917 | B126: Costas Trialacha Caighdeánaithe | C126: Caiteachas | D126: Caiteachas Oideachais Eile | E126: Y | F126: ='Tuairiscí Miosúla Ioncam & Cait'!O133 -> 0 | J126: 0 | L126: BE | Y126: =IF(ISNUMBER(SEARCH($K$2,B126)),MAX($Y$4:Y125)+1,0) -> 122 | Z126: Costas Trialacha Caighdeánaithe | AB126: =IFERROR(VLOOKUP(ROWS($AB$5:AB126),$Y$5:$Z$189,2,0),"") -> Costas Trialacha Caighdeánaithe
A127: 4918 | B127: Caiteachas Ainmnithe (Neamhchaipitiúil) | C127: Caiteachas | D127: Caiteachas Oideachais Eile | E127: Y | F127: ='Tuairiscí Miosúla Ioncam & Cait'!O134 -> 0 | J127: 0 | L127: BF | Y127: =IF(ISNUMBER(SEARCH($K$2,B127)),MAX($Y$4:Y126)+1,0) -> 123 | Z127: Caiteachas Ainmnithe (Neamhchaipitiúil) | AB127: =IFERROR(VLOOKUP(ROWS($AB$5:AB127),$Y$5:$Z$189,2,0),"") -> Caiteachas Ainmnithe (Neamhchaipitiúil)
A128: 4919 | B128: Costas Trealaimh Oideachais Speisialta (Neamhchaipitiúil) | C128: Caiteachas | D128: Caiteachas Oideachais Eile | E128: Y | F128: ='Tuairiscí Miosúla Ioncam & Cait'!O135 -> 0 | J128: 0 | L128: BG | Y128: =IF(ISNUMBER(SEARCH($K$2,B128)),MAX($Y$4:Y127)+1,0) -> 124 | Z128: Costas Trealaimh Oideachais Speisialta (Neamhchaipitiúil) | AB128: =IFERROR(VLOOKUP(ROWS($AB$5:AB128),$Y$5:$Z$189,2,0),"") -> Costas Trealaimh Oideachais Speisialta (Neamhchaipitiúil)
A129: 4920 | B129: Costas Damhsa na Scoile | C129: Caiteachas | D129: Caiteachas Oideachais Eile | E129: Y | F129: ='Tuairiscí Miosúla Ioncam & Cait'!O136 -> 0 | J129: 0 | L129: BH | Y129: =IF(ISNUMBER(SEARCH($K$2,B129)),MAX($Y$4:Y128)+1,0) -> 125 | Z129: Costas Damhsa na Scoile | AB129: =IFERROR(VLOOKUP(ROWS($AB$5:AB129),$Y$5:$Z$189,2,0),"") -> Costas Damhsa na Scoile
A130: 4921 | B130: Costas Snámha Scoile | C130: Caiteachas | D130: Caiteachas Oideachais Eile | E130: Y | F130: ='Tuairiscí Miosúla Ioncam & Cait'!O137 -> 0 | J130: 0 | L130: BI | Y130: =IF(ISNUMBER(SEARCH($K$2,B130)),MAX($Y$4:Y129)+1,0) -> 126 | Z130: Costas Snámha Scoile | AB130: =IFERROR(VLOOKUP(ROWS($AB$5:AB130),$Y$5:$Z$189,2,0),"") -> Costas Snámha Scoile
A131: 4922 | B131: Costais a bhaineann le Tiomsú Airgid Srianta Scoile (Neamhchaipitiúil) | C131: Caiteachas | D131: Caiteachas Oideachais Eile | E131: Y | F131: ='Tuairiscí Miosúla Ioncam & Cait'!O138 -> 0 | J131: 0 | L131: BJ | Y131: =IF(ISNUMBER(SEARCH($K$2,B131)),MAX($Y$4:Y130)+1,0) -> 127 | Z131: Costas Snámha ScoileCostais a bhaineann le Tiomsú Airgid Srianta Scoile (Neamhchaipitiúil) | AB131: =IFERROR(VLOOKUP(ROWS($AB$5:AB131),$Y$5:$Z$189,2,0),"") -> Costas Snámha ScoileCostais a bhaineann le Tiomsú Airgid Srianta Scoile (Neamhchaipitiúil)
A132: 4923 | B132: Costais a bhaineann le Tiomsú Airgid Srianta Seachtrach (Neamhchaipitiúil) | C132: Caiteachas | D132: Caiteachas Oideachais Eile | E132: Y | F132: ='Tuairiscí Miosúla Ioncam & Cait'!O139 -> 0 | J132: 0 | L132: BK | Y132: =IF(ISNUMBER(SEARCH($K$2,B132)),MAX($Y$4:Y131)+1,0) -> 128 | Z132: Costais a bhaineann le Tiomsú Airgid Srianta Seachtrach (Neamhchaipitiúil) | AB132: =IFERROR(VLOOKUP(ROWS($AB$5:AB132),$Y$5:$Z$189,2,0),"") -> Costais a bhaineann le Tiomsú Airgid Srianta Seachtrach (Neamhchaipitiúil)
A133: 4924 | B133: Costais a bhaineann le Tiomsú Airgid Neamhshrianta Seachtrach (Neamhchaipitiúil) | C133: Caiteachas | D133: Caiteachas Oideachais Eile | E133: Y | F133: ='Tuairiscí Miosúla Ioncam & Cait'!O140 -> 0 | J133: 0 | L133: BL | Y133: =IF(ISNUMBER(SEARCH($K$2,B133)),MAX($Y$4:Y132)+1,0) -> 129 | Z133: Costais a bhaineann le Tiomsú Airgid Neamhshrianta Seachtrach (Neamhchaipitiúil) | AB133: =IFERROR(VLOOKUP(ROWS($AB$5:AB133),$Y$5:$Z$189,2,0),"") -> Costais a bhaineann le Tiomsú Airgid Neamhshrianta Seachtrach (Neamhchaipitiúil)
A134: 4925 | B134: Costais Tiomsaithe Airgid Neamhshrianta Scoile (Neamhchaipitiúil) | C134: Caiteachas | D134: Caiteachas Oideachais Eile | E134: Y | F134: ='Tuairiscí Miosúla Ioncam & Cait'!O141 -> 0 | J134: 0 | L134: BM | Y134: =IF(ISNUMBER(SEARCH($K$2,B134)),MAX($Y$4:Y133)+1,0) -> 130 | Z134: Costais Tiomsaithe Airgid Neamhshrianta Scoile (Neamhchaipitiúil) | AB134: =IFERROR(VLOOKUP(ROWS($AB$5:AB134),$Y$5:$Z$189,2,0),"") -> Costais Tiomsaithe Airgid Neamhshrianta Scoile (Neamhchaipitiúil)
A135: 4927 | B135: Costais Ealaíon agus Ceardaíochta Scoile | C135: Caiteachas | D135: Caiteachas Oideachais Eile | E135: Y | F135: ='Tuairiscí Miosúla Ioncam & Cait'!O142 -> 0 | J135: 0 | L135: BN | Y135: =IF(ISNUMBER(SEARCH($K$2,B135)),MAX($Y$4:Y134)+1,0) -> 131 | Z135: Costais Ealaíon agus Ceardaíochta Scoile | AB135: =IFERROR(VLOOKUP(ROWS($AB$5:AB135),$Y$5:$Z$189,2,0),"") -> Costais Ealaíon agus Ceardaíochta Scoile
A136: 4928 | B136: Costais Eile FSS | C136: Caiteachas | D136: Caiteachas Oideachais Eile | E136: N | F136: ='Tuairiscí Miosúla Ioncam & Cait'!O143 -> 0 | J136: 0 | L136: BO | Y136: =IF(ISNUMBER(SEARCH($K$2,B136)),MAX($Y$4:Y135)+1,0) -> 132 | Z136: Costais Eile FSS | AB136: =IFERROR(VLOOKUP(ROWS($AB$5:AB136),$Y$5:$Z$189,2,0),"") -> Costais Eile FSS
A137: 4929 | B137: Costas Maoinithe eile ón Stát | C137: Caiteachas | D137: Caiteachas Oideachais Eile | E137: Y | F137: ='Tuairiscí Miosúla Ioncam & Cait'!O144 -> 0 | J137: 0 | L137: BP | Y137: =IF(ISNUMBER(SEARCH($K$2,B137)),MAX($Y$4:Y136)+1,0) -> 133 | Z137: Costas Maoinithe eile ón Stát | AB137: =IFERROR(VLOOKUP(ROWS($AB$5:AB137),$Y$5:$Z$189,2,0),"") -> Costas Maoinithe eile ón Stát
A138: 4930 | B138: Costas Réamhscoile | C138: Caiteachas | D138: Caiteachas Oideachais Eile | E138: N | F138: ='Tuairiscí Miosúla Ioncam & Cait'!O145 -> 0 | J138: 0 | L138: BQ | Y138: =IF(ISNUMBER(SEARCH($K$2,B138)),MAX($Y$4:Y137)+1,0) -> 134 | Z138: Costas Réamhscoile | AB138: =IFERROR(VLOOKUP(ROWS($AB$5:AB138),$Y$5:$Z$189,2,0),"") -> Costas Réamhscoile
A139: 5010 | B139: Costas Pá Feighlí | C139: Caiteachas | D139: Deisiúcháin, Cothabháil agus Bunú | E139: Y | F139: ='Tuairiscí Miosúla Ioncam & Cait'!O146 -> 0 | J139: 0 | L139: BR | Y139: =IF(ISNUMBER(SEARCH($K$2,B139)),MAX($Y$4:Y138)+1,0) -> 135 | Z139: Costas Pá Feighlí | AB139: =IFERROR(VLOOKUP(ROWS($AB$5:AB139),$Y$5:$Z$189,2,0),"") -> Costas Pá Feighlí
A140: 5030 | B140: Costas Pinsin na bhFeighlithe | C140: Caiteachas | D140: Deisiúcháin, Cothabháil agus Bunú | E140: N | F140: ='Tuairiscí Miosúla Ioncam & Cait'!O147 -> 0 | J140: 0 | L140: BS | Y140: =IF(ISNUMBER(SEARCH($K$2,B140)),MAX($Y$4:Y139)+1,0) -> 136 | Z140: Costas Pinsin na bhFeighlithe | AB140: =IFERROR(VLOOKUP(ROWS($AB$5:AB140),$Y$5:$Z$189,2,0),"") -> Costas Pinsin na bhFeighlithe
A141: 5110 | B141: Costas Pá Glantóirí | C141: Caiteachas | D141: Deisiúcháin, Cothabháil agus Bunú | E141: Y | F141: ='Tuairiscí Miosúla Ioncam & Cait'!O148 -> 0 | J141: 0 | L141: BT | Y141: =IF(ISNUMBER(SEARCH($K$2,B141)),MAX($Y$4:Y140)+1,0) -> 137 | Z141: Costas Pá Glantóirí | AB141: =IFERROR(VLOOKUP(ROWS($AB$5:AB141),$Y$5:$Z$189,2,0),"") -> Costas Pá Glantóirí
A142: 5112 | B142: Costas Pinsin Glantóirí | C142: Caiteachas | D142: Deisiúcháin, Cothabháil agus Bunú | E142: N | F142: ='Tuairiscí Miosúla Ioncam & Cait'!O149 -> 0 | J142: 0 | L142: BU | Y142: =IF(ISNUMBER(SEARCH($K$2,B142)),MAX($Y$4:Y141)+1,0) -> 138 | Z142: Costas Pinsin Glantóirí | AB142: =IFERROR(VLOOKUP(ROWS($AB$5:AB142),$Y$5:$Z$189,2,0),"") -> Costas Pinsin Glantóirí
A143: 5150 | B143: Costas Glantóirí ar Conradh | C143: Caiteachas | D143: Deisiúcháin, Cothabháil agus Bunú | E143: Y | F143: ='Tuairiscí Miosúla Ioncam & Cait'!O150 -> 0 | J143: =F143+G143+H143+I143 -> 0 | L143: BV | Y143: =IF(ISNUMBER(SEARCH($K$2,B143)),MAX($Y$4:Y142)+1,0) -> 139 | Z143: Costas Glantóirí ar Conradh | AB143: =IFERROR(VLOOKUP(ROWS($AB$5:AB143),$Y$5:$Z$189,2,0),"") -> Costas Glantóirí ar Conradh
A144: 5170 | B144: Costas Ábhar Glantacháin | C144: Caiteachas | D144: Deisiúcháin, Cothabháil agus Bunú | E144: Y | F144: ='Tuairiscí Miosúla Ioncam & Cait'!O151 -> 0 | J144: 0 | L144: BW | Y144: =IF(ISNUMBER(SEARCH($K$2,B144)),MAX($Y$4:Y143)+1,0) -> 140 | Z144: Costas Ábhar Glantacháin | AB144: =IFERROR(VLOOKUP(ROWS($AB$5:AB144),$Y$5:$Z$189,2,0),"") -> Costas Ábhar Glantacháin
A145: 5175 | B145: Costais Ghlantacháin agus Sláintíochta Eile | C145: Caiteachas | D145: Deisiúcháin, Cothabháil agus Bunú | E145: Y | F145: ='Tuairiscí Miosúla Ioncam & Cait'!O152 -> 0 | J145: 0 | L145: BX | Y145: =IF(ISNUMBER(SEARCH($K$2,B145)),MAX($Y$4:Y144)+1,0) -> 141 | Z145: Costais Ghlantacháin agus Sláintíochta Eile | AB145: =IFERROR(VLOOKUP(ROWS($AB$5:AB145),$Y$5:$Z$189,2,0),"") -> Costais Ghlantacháin agus Sláintíochta Eile
A146: 5310 | B146: Costas Deisiúchán ar Fhoirgnimh agus Thailte | C146: Caiteachas | D146: Deisiúcháin, Cothabháil agus Bunú | E146: Y | F146: ='Tuairiscí Miosúla Ioncam & Cait'!O153 -> 0 | J146: 0 | L146: BY | Y146: =IF(ISNUMBER(SEARCH($K$2,B146)),MAX($Y$4:Y145)+1,0) -> 142 | Z146: Costas Deisiúchán ar Fhoirgnimh agus Thailte | AB146: =IFERROR(VLOOKUP(ROWS($AB$5:AB146),$Y$5:$Z$189,2,0),"") -> Costas Deisiúchán ar Fhoirgnimh agus Thailte
A147: 5315 | B147: Costas Deontas Mionoibreacha (Neamhchaipitiúil) | C147: Caiteachas | D147: Deisiúcháin, Cothabháil agus Bunú | E147: Y | F147: ='Tuairiscí Miosúla Ioncam & Cait'!O154 -> 0 | J147: 0 | L147: BZ | Y147: =IF(ISNUMBER(SEARCH($K$2,B147)),MAX($Y$4:Y146)+1,0) -> 143 | Z147: Costas Deontas Mionoibreacha (Neamhchaipitiúil) | AB147: =IFERROR(VLOOKUP(ROWS($AB$5:AB147),$Y$5:$Z$189,2,0),"") -> Costas Deontas Mionoibreacha (Neamhchaipitiúil)
A148: 5350 | B148: Costas Deisiúchán ar Throscán, Feistis agus Trealamh | C148: Caiteachas | D148: Deisiúcháin, Cothabháil agus Bunú | E148: Y | F148: ='Tuairiscí Miosúla Ioncam & Cait'!O155 -> 0 | J148: 0 | L148: CA | Y148: =IF(ISNUMBER(SEARCH($K$2,B148)),MAX($Y$4:Y147)+1,0) -> 144 | Z148: Costas Deisiúchán ar Throscán, Feistis agus Trealamh | AB148: =IFERROR(VLOOKUP(ROWS($AB$5:AB148),$Y$5:$Z$189,2,0),"") -> Costas Deisiúchán ar Throscán, Feistis agus Trealamh
A149: 5400 | B149: Gnáthchostas Slándála | C149: Caiteachas | D149: Deisiúcháin, Cothabháil agus Bunú | E149: Y | F149: ='Tuairiscí Miosúla Ioncam & Cait'!O156 -> 0 | J149: 0 | L149: CB | Y149: =IF(ISNUMBER(SEARCH($K$2,B149)),MAX($Y$4:Y148)+1,0) -> 145 | Z149: Gnáthchostas Slándála | AB149: =IFERROR(VLOOKUP(ROWS($AB$5:AB149),$Y$5:$Z$189,2,0),"") -> Gnáthchostas Slándála
A150: 5450 | B150: Costas Árachais Ghinearálta | C150: Caiteachas | D150: Deisiúcháin, Cothabháil agus Bunú | E150: Y | F150: ='Tuairiscí Miosúla Ioncam & Cait'!O157 -> 0 | J150: 0 | L150: CC | Y150: =IF(ISNUMBER(SEARCH($K$2,B150)),MAX($Y$4:Y149)+1,0) -> 146 | Z150: Costas Árachais Ghinearálta | AB150: =IFERROR(VLOOKUP(ROWS($AB$5:AB150),$Y$5:$Z$189,2,0),"") -> Costas Árachais Ghinearálta
A151: 5510 | B151: Costas Téimh | C151: Caiteachas | D151: Deisiúcháin, Cothabháil agus Bunú | E151: Y | F151: ='Tuairiscí Miosúla Ioncam & Cait'!O158 -> 0 | J151: 0 | L151: CD | Y151: =IF(ISNUMBER(SEARCH($K$2,B151)),MAX($Y$4:Y150)+1,0) -> 147 | Z151: Costas Téimh | AB151: =IFERROR(VLOOKUP(ROWS($AB$5:AB151),$Y$5:$Z$189,2,0),"") -> Costas Téimh
A152: 5550 | B152: Costas Soilse agus Cumhachta | C152: Caiteachas | D152: Deisiúcháin, Cothabháil agus Bunú | E152: Y | F152: ='Tuairiscí Miosúla Ioncam & Cait'!O159 -> 0 | J152: 0 | L152: CE | Y152: =IF(ISNUMBER(SEARCH($K$2,B152)),MAX($Y$4:Y151)+1,0) -> 148 | Z152: Costas Soilse agus Cumhachta | AB152: =IFERROR(VLOOKUP(ROWS($AB$5:AB152),$Y$5:$Z$189,2,0),"") -> Costas Soilse agus Cumhachta
A153: 5551 | B153: Costas Cíosa Cóiríochta Sealadaí | C153: Caiteachas | D153: Deisiúcháin, Cothabháil agus Bunú | E153: Y | F153: ='Tuairiscí Miosúla Ioncam & Cait'!O160 -> 0 | J153: 0 | L153: CF | Y153: =IF(ISNUMBER(SEARCH($K$2,B153)),MAX($Y$4:Y152)+1,0) -> 149 | Z153: Costas Cíosa Cóiríochta Sealadaí | AB153: =IFERROR(VLOOKUP(ROWS($AB$5:AB153),$Y$5:$Z$189,2,0),"") -> Costas Cíosa Cóiríochta Sealadaí
A154: 5552 | B154: Costais Cíosa Eile | C154: Caiteachas | D154: Deisiúcháin, Cothabháil agus Bunú | E154: N | F154: ='Tuairiscí Miosúla Ioncam & Cait'!O161 -> 0 | J154: 0 | L154: CG | Y154: =IF(ISNUMBER(SEARCH($K$2,B154)),MAX($Y$4:Y153)+1,0) -> 150 | Z154: Costais Cíosa Eile | AB154: =IFERROR(VLOOKUP(ROWS($AB$5:AB154),$Y$5:$Z$189,2,0),"") -> Costais Cíosa Eile
A155: 5610 | B155: Costas Bruscair | C155: Caiteachas | D155: Deisiúcháin, Cothabháil agus Bunú | E155: Y | F155: ='Tuairiscí Miosúla Ioncam & Cait'!O162 -> 0 | J155: 0 | L155: CH | Y155: =IF(ISNUMBER(SEARCH($K$2,B155)),MAX($Y$4:Y154)+1,0) -> 151 | Z155: Costas Bruscair | AB155: =IFERROR(VLOOKUP(ROWS($AB$5:AB155),$Y$5:$Z$189,2,0),"") -> Costas Bruscair
A156: 5611 | B156: Costais Rátaí Uisce | C156: Caiteachas | D156: Deisiúcháin, Cothabháil agus Bunú | E156: Y | F156: ='Tuairiscí Miosúla Ioncam & Cait'!O163 -> 0 | J156: 0 | L156: CI | Y156: =IF(ISNUMBER(SEARCH($K$2,B156)),MAX($Y$4:Y155)+1,0) -> 152 | Z156: Costais Rátaí Uisce | AB156: =IFERROR(VLOOKUP(ROWS($AB$5:AB156),$Y$5:$Z$189,2,0),"") -> Costais Rátaí Uisce
A157: 5700 | B157: Costas na Táille Ceadúnais don Phátrún/Iontaobhaí | C157: Caiteachas | D157: Deisiúcháin, Cothabháil agus Bunú | E157: Y | F157: ='Tuairiscí Miosúla Ioncam & Cait'!O164 -> 0 | J157: 0 | L157: CJ | Y157: =IF(ISNUMBER(SEARCH($K$2,B157)),MAX($Y$4:Y156)+1,0) -> 153 | Z157: Costas na Táille Ceadúnais don Phátrún/Iontaobhaí | AB157: =IFERROR(VLOOKUP(ROWS($AB$5:AB157),$Y$5:$Z$189,2,0),"") -> Costas na Táille Ceadúnais don Phátrún/Iontaobhaí
A158: 5800 | B158: Costas Deisiúcháin agus Cothabhála Eile | C158: Caiteachas | D158: Deisiúcháin, Cothabháil agus Bunú | E158: Y | F158: ='Tuairiscí Miosúla Ioncam & Cait'!O165 -> 0 | J158: 0 | L158: CK | Y158: =IF(ISNUMBER(SEARCH($K$2,B158)),MAX($Y$4:Y157)+1,0) -> 154 | Z158: Costas Deisiúcháin agus Cothabhála Eile | AB158: =IFERROR(VLOOKUP(ROWS($AB$5:AB158),$Y$5:$Z$189,2,0),"") -> Costas Deisiúcháin agus Cothabhála Eile
A159: 5804 | B159: Deontas Caipitíochta COVID le haghaidh Chostas Pá Glantacháin | C159: Caiteachas | D159: Deisiúcháin, Cothabháil agus Bunú | E159: N | F159: ='Tuairiscí Miosúla Ioncam & Cait'!O166 -> 0 | J159: 0 | L159: CL | Y159: =IF(ISNUMBER(SEARCH($K$2,B159)),MAX($Y$4:Y158)+1,0) -> 155 | Z159: Deontas Caipitíochta COVID le haghaidh Chostas Pá Glantacháin | AB159: =IFERROR(VLOOKUP(ROWS($AB$5:AB159),$Y$5:$Z$189,2,0),"") -> Deontas Caipitíochta COVID le haghaidh Chostas Pá Glantacháin
A160: 5806 | B160: Deontas Caipitíochta Covid le haghaidh Chostas Glantacháin (Neamhphá) & PPE | C160: Caiteachas | D160: Deisiúcháin, Cothabháil agus Bunú | E160: N | F160: ='Tuairiscí Miosúla Ioncam & Cait'!O167 -> 0 | J160: 0 | L160: CM | Y160: =IF(ISNUMBER(SEARCH($K$2,B160)),MAX($Y$4:Y159)+1,0) -> 156 | Z160: Deontas Caipitíochta Covid le haghaidh Chostas Glantacháin (Neamhphá) & PPE | AB160: =IFERROR(VLOOKUP(ROWS($AB$5:AB160),$Y$5:$Z$189,2,0),"") -> Deontas Caipitíochta Covid le haghaidh Chostas Glantacháin (Neamhphá) & PPE
A161: 6010 | B161: Costas Pá Oifigeach Cléireachais/Rúnaíochta | C161: Caiteachas | D161: Riarachán | E161: Y | F161: ='Tuairiscí Miosúla Ioncam & Cait'!O168 -> 0 | J161: 0 | L161: CN | Y161: =IF(ISNUMBER(SEARCH($K$2,B161)),MAX($Y$4:Y160)+1,0) -> 157 | Z161: Costas Pá Oifigeach Cléireachais/Rúnaíochta | AB161: =IFERROR(VLOOKUP(ROWS($AB$5:AB161),$Y$5:$Z$189,2,0),"") -> Costas Pá Oifigeach Cléireachais/Rúnaíochta
A162: 6050 | B162: Costas Pinsin Oifigeach Cléireachais/Rúnaíochta | C162: Caiteachas | D162: Riarachán | E162: N | F162: ='Tuairiscí Miosúla Ioncam & Cait'!O169 -> 0 | J162: 0 | L162: CO | Y162: =IF(ISNUMBER(SEARCH($K$2,B162)),MAX($Y$4:Y161)+1,0) -> 158 | Z162: Costas Pinsin Oifigeach Cléireachais/Rúnaíochta | AB162: =IFERROR(VLOOKUP(ROWS($AB$5:AB162),$Y$5:$Z$189,2,0),"") -> Costas Pinsin Oifigeach Cléireachais/Rúnaíochta
A163: 6100 | B163: Costas Earcaíochta | C163: Caiteachas | D163: Riarachán | E163: Y | F163: ='Tuairiscí Miosúla Ioncam & Cait'!O170 -> 0 | J163: 0 | L163: CP | Y163: =IF(ISNUMBER(SEARCH($K$2,B163)),MAX($Y$4:Y162)+1,0) -> 159 | Z163: Costas Earcaíochta | AB163: =IFERROR(VLOOKUP(ROWS($AB$5:AB163),$Y$5:$Z$189,2,0),"") -> Costas Earcaíochta
A164: 6150 | B164: Costas Fógraíochta / Caidrimh Phoiblí | C164: Caiteachas | D164: Riarachán | E164: Y | F164: ='Tuairiscí Miosúla Ioncam & Cait'!O171 -> 0 | J164: 0 | L164: CQ | Y164: =IF(ISNUMBER(SEARCH($K$2,B164)),MAX($Y$4:Y163)+1,0) -> 160 | Z164: Costas Fógraíochta / Caidrimh Phoiblí | AB164: =IFERROR(VLOOKUP(ROWS($AB$5:AB164),$Y$5:$Z$189,2,0),"") -> Costas Fógraíochta / Caidrimh Phoiblí
A165: 6210 | B165: Costas Postais | C165: Caiteachas | D165: Riarachán | E165: Y | F165: ='Tuairiscí Miosúla Ioncam & Cait'!O172 -> 0 | J165: 0 | L165: CR | Y165: =IF(ISNUMBER(SEARCH($K$2,B165)),MAX($Y$4:Y164)+1,0) -> 161 | Z165: Costas Postais | AB165: =IFERROR(VLOOKUP(ROWS($AB$5:AB165),$Y$5:$Z$189,2,0),"") -> Costas Postais
A166: 6250 | B166: Costas Gutháin / SMS | C166: Caiteachas | D166: Riarachán | E166: Y | F166: ='Tuairiscí Miosúla Ioncam & Cait'!O173 -> 0 | J166: 0 | L166: CS | Y166: =IF(ISNUMBER(SEARCH($K$2,B166)),MAX($Y$4:Y165)+1,0) -> 162 | Z166: Costas Gutháin / SMS | AB166: =IFERROR(VLOOKUP(ROWS($AB$5:AB166),$Y$5:$Z$189,2,0),"") -> Costas Gutháin / SMS
A167: 6300 | B167: Costas Clódóireachta agus Páipéarachais | C167: Caiteachas | D167: Riarachán | E167: Y | F167: ='Tuairiscí Miosúla Ioncam & Cait'!O174 -> 0 | J167: 0 | L167: CT | Y167: =IF(ISNUMBER(SEARCH($K$2,B167)),MAX($Y$4:Y166)+1,0) -> 163 | Z167: Costas Clódóireachta agus Páipéarachais | AB167: =IFERROR(VLOOKUP(ROWS($AB$5:AB167),$Y$5:$Z$189,2,0),"") -> Costas Clódóireachta agus Páipéarachais
A168: 6350 | B168: Costas Trealaimh Oifige (Neamhchaipitiúil) | C168: Caiteachas | D168: Riarachán | E168: Y | F168: ='Tuairiscí Miosúla Ioncam & Cait'!O175 -> 0 | J168: 0 | L168: CU | Y168: =IF(ISNUMBER(SEARCH($K$2,B168)),MAX($Y$4:Y167)+1,0) -> 164 | Z168: Costas Trealaimh Oifige (Neamhchaipitiúil) | AB168: =IFERROR(VLOOKUP(ROWS($AB$5:AB168),$Y$5:$Z$189,2,0),"") -> Costas Trealaimh Oifige (Neamhchaipitiúil)
A169: 6355 | B169: Costas Ríomhairí Oifige nach bhFuarthas Deontas TFC ina leith | C169: Caiteachas | D169: Riarachán | E169: Y | F169: ='Tuairiscí Miosúla Ioncam & Cait'!O176 -> 0 | J169: 0 | L169: CV | Y169: =IF(ISNUMBER(SEARCH($K$2,B169)),MAX($Y$4:Y168)+1,0) -> 165 | Z169: Costas Ríomhairí Oifige nach bhFuarthas Deontas TFC ina leith | AB169: =IFERROR(VLOOKUP(ROWS($AB$5:AB169),$Y$5:$Z$189,2,0),"") -> Costas Ríomhairí Oifige nach bhFuarthas Deontas TFC ina leith
A170: 6400 | B170: Costas Cuntasaíochta / Iniúchóireachta | C170: Caiteachas | D170: Riarachán | E170: Y | F170: ='Tuairiscí Miosúla Ioncam & Cait'!O177 -> 0 | J170: 0 | L170: CW | Y170: =IF(ISNUMBER(SEARCH($K$2,B170)),MAX($Y$4:Y169)+1,0) -> 166 | Z170: Costas Cuntasaíochta / Iniúchóireachta | AB170: =IFERROR(VLOOKUP(ROWS($AB$5:AB170),$Y$5:$Z$189,2,0),"") -> Costas Cuntasaíochta / Iniúchóireachta
A171: 6450 | B171: Costas Táillí Gairmiúla Eile | C171: Caiteachas | D171: Riarachán | E171: Y | F171: ='Tuairiscí Miosúla Ioncam & Cait'!O178 -> 0 | J171: 0 | L171: CX | Y171: =IF(ISNUMBER(SEARCH($K$2,B171)),MAX($Y$4:Y170)+1,0) -> 167 | Z171: Costas Táillí Gairmiúla Eile | AB171: =IFERROR(VLOOKUP(ROWS($AB$5:AB171),$Y$5:$Z$189,2,0),"") -> Costas Táillí Gairmiúla Eile
A172: 6500 | B172: Costas Taistil agus Cothaithe | C172: Caiteachas | D172: Riarachán | E172: Y | F172: ='Tuairiscí Miosúla Ioncam & Cait'!O179 -> 0 | J172: 0 | L172: CY | Y172: =IF(ISNUMBER(SEARCH($K$2,B172)),MAX($Y$4:Y171)+1,0) -> 168 | Z172: Costas Taistil agus Cothaithe | AB172: =IFERROR(VLOOKUP(ROWS($AB$5:AB172),$Y$5:$Z$189,2,0),"") -> Costas Taistil agus Cothaithe
A173: 6600 | B173: Costais an Phríomhoide | C173: Caiteachas | D173: Riarachán | E173: Y | F173: ='Tuairiscí Miosúla Ioncam & Cait'!O180 -> 0 | J173: 0 | L173: CZ | Y173: =IF(ISNUMBER(SEARCH($K$2,B173)),MAX($Y$4:Y172)+1,0) -> 169 | Z173: Costais an Phríomhoide | AB173: =IFERROR(VLOOKUP(ROWS($AB$5:AB173),$Y$5:$Z$189,2,0),"") -> Costais an Phríomhoide
A174: 6650 | B174: Costas an Bhoird Bainistíocha | C174: Caiteachas | D174: Riarachán | E174: Y | F174: ='Tuairiscí Miosúla Ioncam & Cait'!O181 -> 0 | J174: 0 | L174: DA | Y174: =IF(ISNUMBER(SEARCH($K$2,B174)),MAX($Y$4:Y173)+1,0) -> 170 | Z174: Costas an Bhoird Bainistíocha | AB174: =IFERROR(VLOOKUP(ROWS($AB$5:AB174),$Y$5:$Z$189,2,0),"") -> Costas an Bhoird Bainistíocha
A175: 6700 | B175: Costas na Síntiús Bliantúil | C175: Caiteachas | D175: Riarachán | E175: Y | F175: ='Tuairiscí Miosúla Ioncam & Cait'!O182 -> 0 | J175: 0 | L175: DB | Y175: =IF(ISNUMBER(SEARCH($K$2,B175)),MAX($Y$4:Y174)+1,0) -> 171 | Z175: Costas na Síntiús Bliantúil | AB175: =IFERROR(VLOOKUP(ROWS($AB$5:AB175),$Y$5:$Z$189,2,0),"") -> Costas na Síntiús Bliantúil
A176: 6730 | B176: Costas an Chórais Riaracháin Inscoile | C176: Caiteachas | D176: Riarachán | E176: Y | F176: ='Tuairiscí Miosúla Ioncam & Cait'!O183 -> 0 | J176: 0 | L176: DC | Y176: =IF(ISNUMBER(SEARCH($K$2,B176)),MAX($Y$4:Y175)+1,0) -> 172 | Z176: Costas an Chórais Riaracháin Inscoile | AB176: =IFERROR(VLOOKUP(ROWS($AB$5:AB176),$Y$5:$Z$189,2,0),"") -> Costas an Chórais Riaracháin Inscoile
A177: 6731 | B177: Costais Bogearraí Cuntasaíochta / Bogearraí Párolla | C177: Caiteachas | D177: Riarachán | E177: Y | F177: ='Tuairiscí Miosúla Ioncam & Cait'!O184 -> 0 | J177: 0 | L177: DD | Y177: =IF(ISNUMBER(SEARCH($K$2,B177)),MAX($Y$4:Y176)+1,0) -> 173 | Z177: Costais Bogearraí Cuntasaíochta / Bogearraí Párolla | AB177: =IFERROR(VLOOKUP(ROWS($AB$5:AB177),$Y$5:$Z$189,2,0),"") -> Costais Bogearraí Cuntasaíochta / Bogearraí Párolla
A178: 6750 | B178: Tabhartais do Charthanais | C178: Caiteachas | D178: Riarachán | E178: Y | F178: ='Tuairiscí Miosúla Ioncam & Cait'!O185 -> 0 | J178: 0 | L178: DE | Y178: =IF(ISNUMBER(SEARCH($K$2,B178)),MAX($Y$4:Y177)+1,0) -> 174 | Z178: Tabhartais do Charthanais | AB178: =IFERROR(VLOOKUP(ROWS($AB$5:AB178),$Y$5:$Z$189,2,0),"") -> Tabhartais do Charthanais
A179: 6755 | B179: Costas Leighis agus Garchabhrach | C179: Caiteachas | D179: Riarachán | E179: Y | F179: ='Tuairiscí Miosúla Ioncam & Cait'!O186 -> 0 | J179: 0 | L179: DF | Y179: =IF(ISNUMBER(SEARCH($K$2,B179)),MAX($Y$4:Y178)+1,0) -> 175 | Z179: Costas Leighis agus Garchabhrach | AB179: =IFERROR(VLOOKUP(ROWS($AB$5:AB179),$Y$5:$Z$189,2,0),"") -> Costas Leighis agus Garchabhrach
A180: 6780 | B180: Costais an tSeomra Foirne | C180: Caiteachas | D180: Riarachán | E180: Y | F180: ='Tuairiscí Miosúla Ioncam & Cait'!O187 -> 0 | J180: 0 | L180: DG | Y180: =IF(ISNUMBER(SEARCH($K$2,B180)),MAX($Y$4:Y179)+1,0) -> 176 | Z180: Costais an tSeomra Foirne | AB180: =IFERROR(VLOOKUP(ROWS($AB$5:AB180),$Y$5:$Z$189,2,0),"") -> Costais an tSeomra Foirne
A181: 6800 | B181: Costas Fáilteachais | C181: Caiteachas | D181: Riarachán | E181: Y | F181: ='Tuairiscí Miosúla Ioncam & Cait'!O188 -> 0 | J181: 0 | L181: DH | Y181: =IF(ISNUMBER(SEARCH($K$2,B181)),MAX($Y$4:Y180)+1,0) -> 177 | Z181: Costas Fáilteachais | AB181: =IFERROR(VLOOKUP(ROWS($AB$5:AB181),$Y$5:$Z$189,2,0),"") -> Costas Fáilteachais
A182: 6830 | B182: Costas Siopa Milseán | C182: Caiteachas | D182: Riarachán | E182: Y | F182: ='Tuairiscí Miosúla Ioncam & Cait'!O189 -> 0 | J182: 0 | L182: DI | Y182: =IF(ISNUMBER(SEARCH($K$2,B182)),MAX($Y$4:Y181)+1,0) -> 178 | Z182: Costas Siopa Milseán | AB182: =IFERROR(VLOOKUP(ROWS($AB$5:AB182),$Y$5:$Z$189,2,0),"") -> Costas Siopa Milseán
A183: 6900 | B183: Costais Riaracháin Eile | C183: Caiteachas | D183: Riarachán | E183: Y | F183: ='Tuairiscí Miosúla Ioncam & Cait'!O190 -> 0 | J183: 0 | L183: DJ | Y183: =IF(ISNUMBER(SEARCH($K$2,B183)),MAX($Y$4:Y182)+1,0) -> 179 | Z183: Costais Riaracháin Eile | AB183: =IFERROR(VLOOKUP(ROWS($AB$5:AB183),$Y$5:$Z$189,2,0),"") -> Costais Riaracháin Eile
A184: 7300 | B184: Costais Léasaithe | C184: Caiteachas | D184: Airgeadais | E184: Y | F184: ='Tuairiscí Miosúla Ioncam & Cait'!O191 -> 0 | J184: 0 | L184: DK | Y184: =IF(ISNUMBER(SEARCH($K$2,B184)),MAX($Y$4:Y183)+1,0) -> 180 | Z184: Costais Léasaithe | AB184: =IFERROR(VLOOKUP(ROWS($AB$5:AB184),$Y$5:$Z$189,2,0),"") -> Costais Léasaithe
A185: 7320 | B185: Costas Táillí Iasachta | C185: Caiteachas | D185: Airgeadais | E185: Y | F185: ='Tuairiscí Miosúla Ioncam & Cait'!O192 -> 0 | J185: 0 | L185: DL | Y185: =IF(ISNUMBER(SEARCH($K$2,B185)),MAX($Y$4:Y184)+1,0) -> 181 | Z185: Costas Táillí Iasachta | AB185: =IFERROR(VLOOKUP(ROWS($AB$5:AB185),$Y$5:$Z$189,2,0),"") -> Costas Táillí Iasachta
A186: 7400 | B186: Costas Úis Bainc | C186: Caiteachas | D186: Airgeadais | E186: Y | F186: ='Tuairiscí Miosúla Ioncam & Cait'!O193 -> 0 | J186: 0 | L186: DM | Y186: =IF(ISNUMBER(SEARCH($K$2,B186)),MAX($Y$4:Y185)+1,0) -> 182 | Z186: Costas Úis Bainc | AB186: =IFERROR(VLOOKUP(ROWS($AB$5:AB186),$Y$5:$Z$189,2,0),"") -> Costas Úis Bainc
A187: 7450 | B187: Costas Táillí Bainc | C187: Caiteachas | D187: Airgeadais | E187: Y | F187: ='Tuairiscí Miosúla Ioncam & Cait'!O194 -> 0 | J187: 0 | L187: DN | Y187: =IF(ISNUMBER(SEARCH($K$2,B187)),MAX($Y$4:Y186)+1,0) -> 183 | Z187: Costas Táillí Bainc | AB187: =IFERROR(VLOOKUP(ROWS($AB$5:AB187),$Y$5:$Z$189,2,0),"") -> Costas Táillí Bainc
A188: 7800 | B188: Costais In-Aisíoctha | C188: Caiteachas | D188: Airgeadais | E188: Y | F188: ='Tuairiscí Miosúla Ioncam & Cait'!O195 -> 0 | J188: 0 | L188: DO | Y188: =IF(ISNUMBER(SEARCH($K$2,B188)),MAX($Y$4:Y187)+1,0) -> 184 | Z188: Costais In-Aisíoctha | AB188: =IFERROR(VLOOKUP(ROWS($AB$5:AB188),$Y$5:$Z$189,2,0),"") -> Costais In-Aisíoctha
A189: 7850 | B189: Lascainí Faighte | C189: Caiteachas | D189: Airgeadais | E189: N | F189: ='Tuairiscí Miosúla Ioncam & Cait'!O196 -> 0 | J189: 0 | L189: DP | Y189: =IF(ISNUMBER(SEARCH($K$2,B189)),MAX($Y$4:Y188)+1,0) -> 185 | Z189: Lascainí Faighte | AB189: =IFERROR(VLOOKUP(ROWS($AB$5:AB189),$Y$5:$Z$189,2,0),"") -> Lascainí Faighte
A190: 8000 | B190: Dímheas Bliantúil: Foirgnimh | C190: Caiteachas | D190: Dímheas | J190: =F190+G190+H190+I190 -> 0 | AB190: =IFERROR(VLOOKUP(ROWS($AB$5:AB190),$Y$5:$Z$189,2,0),"") -> 
A191: 8020 | B191: Dímheas Bliantúil: Daingneáin, Feistis agus Trealamh | C191: Caiteachas | D191: Dímheas | J191: =F191+G191+H191+I191 -> 0 | AB191: =IFERROR(VLOOKUP(ROWS($AB$5:AB191),$Y$5:$Z$189,2,0),"") -> 
A192: 8040 | B192: Dímheas Bliantúil: Mótarfheithiclí | C192: Caiteachas | D192: Dímheas | J192: 0 | AB192: =IFERROR(VLOOKUP(ROWS($AB$5:AB192),$Y$5:$Z$189,2,0),"") -> 
A193: 8060 | B193: Dímheas Bliantúil: TFC | C193: Caiteachas | D193: Dímheas | J193: 0 | AB193: =IFERROR(VLOOKUP(ROWS($AB$5:AB193),$Y$5:$Z$189,2,0),"") -> 
A194: 8080 | B194: Dímheas Bliantúil: Eile | C194: Caiteachas | D194: Dímheas | J194: 0 | AB194: =IFERROR(VLOOKUP(ROWS($AB$5:AB194),$Y$5:$Z$189,2,0),"") -> 
A195: 1400 | B195: Caipiteal: Talamh agus Foirgnimh, costas tugtha ar aghaidh | C195: Sócmhainn Sheasta | D195: Sócmhainn Sheasta | J195: 0 | AB195: =IFERROR(VLOOKUP(ROWS($AB$5:AB195),$Y$5:$Z$189,2,0),"") -> 
A196: 1401 | B196: Caipiteal: Breiseanna Talún agus Foirgneamh | C196: Sócmhainn Sheasta | D196: Sócmhainn Sheasta | J196: 0
A197: 1402 | B197: Caipiteal: Diúscairtí Talún agus Foirgnimh | C197: Sócmhainn Sheasta | D197: Sócmhainn Sheasta | J197: 0
A198: 1410 | B198: Dímheas Carntha: Talamh agus Foirgnimh, tugtha ar aghaidh | C198: Sócmhainn Sheasta | D198: Sócmhainn Sheasta | J198: 0 | AB198: =IFERROR(VLOOKUP(ROWS($AB$5:AB198),$Y$5:$Z$189,2,0),"") -> 
A199: 1411 | B199: Dímheas: Talamh agus Foirgnimh don bhlian reatha | C199: Sócmhainn Sheasta | D199: Sócmhainn Sheasta | J199: 0
A200: 1412 | B200: Dímheas: Diúscairtí Talamh agus Foirgnimh | C200: Sócmhainn Sheasta | D200: Sócmhainn Sheasta | J200: 0
... 115 more rows

Sheet Tuairiscí Miosúla Ioncam & Cait
B1: An Príomh-Roghchlár | E1: Caipiteal agus Cúlchistí | O1: Tuarascáil tréimhse ioncaim agus caiteachais | S1: Tuarascáil tréimhse ioncaim agus caiteachais
B3: =Treoracha!G4 -> Cuir Isteach Anseo É
B4: Eolas Bord Bainistíochta Amháin
B5: TUAIRISC MHÍOSÚIL IONCAIM AGUS CAITEACHAIS NA SCOILE | O5: Iomlán | S5: Meán Fomhair
B7: IONCAM SCOILE | C7: Meán Fomhair | D7: Deireadh Fómhair | E7: Samhain | F7: Nollaig | G7: Eanair | H7: Feabhra | I7: Márta | J7: Aibreán | K7: Bealtaine | L7: Meitheamh | M7: Iúil | N7: Lúnasa | O7: Iomlán | R7: IONCAM MÍOSÚIL NA SCOILE | S7: =S5 -> Meán Fomhair | T7: Iomlán
B8: Buiséad Caipitíochta/Neamhphá | C8: ='Leathnach Achoimre Bainc'!$C$4 -> 0 | D8: ='Leathnach Achoimre Bainc'!$C$5 -> 0 | E8: ='Leathnach Achoimre Bainc'!$C$6 -> 0 | F8: ='Leathnach Achoimre Bainc'!$C$7 -> 0 | G8: ='Leathnach Achoimre Bainc'!$C$8 -> 0 | H8: ='Leathnach Achoimre Bainc'!$C$9 -> 0 | I8: ='Leathnach Achoimre Bainc'!$C$10 -> 0 | J8: ='Leathnach Achoimre Bainc'!$C$11 -> 0 | K8: ='Leathnach Achoimre Bainc'!$C$12 -> 0 | L8: ='Leathnach Achoimre Bainc'!$C$13 -> 0 | M8: ='Leathnach Achoimre Bainc'!$C$14 -> 0 | N8: ='Leathnach Achoimre Bainc'!$C$15 -> 0 | O8: =(CELL("width",C8)>0)*C8+(CELL("width",D8)>0)*D8+(CELL("width",E8)>0)*E8+(CELL("width",F8)>0)*F8+(CELL("width",G8)>0)*G8+(CELL("width",H8)>0)*H8+(CELL("width",I8)>0)*I8+(CELL("width",J8)>0)*J8+(CELL("width",K8)>0)*K8+(CELL("width",L8)>0)*L8+(CELL("width",M8)>0)*M8+(CELL("width",N8)>0)*N8 -> 0 | Q8: =IF(COA!$E$5="Y","Show","Hide") -> Show | R8: Buiséad Caipitíochta/Neamhphá | S8: =INDEX($C$8:$O$80,MATCH(R8,$B$8:$B$80,0),MATCH($S$7,$C$7:$O$7,0)) -> 0 | T8: =O8 -> 0 | W8: =IF(AND(O8=0,Q8="Show"),"N","Y") -> N
B9: Deontas DEIS | C9: ='Leathnach Achoimre Bainc'!$D$4 -> 0 | D9: ='Leathnach Achoimre Bainc'!$D$5 -> 0 | E9: ='Leathnach Achoimre Bainc'!$D$6 -> 0 | F9: ='Leathnach Achoimre Bainc'!$D$7 -> 0 | G9: ='Leathnach Achoimre Bainc'!$D$8 -> 0 | H9: ='Leathnach Achoimre Bainc'!$D$9 -> 0 | I9: ='Leathnach Achoimre Bainc'!$D$10 -> 0 | J9: ='Leathnach Achoimre Bainc'!$D$11 -> 0 | K9: ='Leathnach Achoimre Bainc'!$D$12 -> 0 | L9: ='Leathnach Achoimre Bainc'!$D$13 -> 0 | M9: ='Leathnach Achoimre Bainc'!$D$14 -> 0 | N9: ='Leathnach Achoimre Bainc'!$D$15 -> 0 | O9: =(CELL("width",C9)>0)*C9+(CELL("width",D9)>0)*D9+(CELL("width",E9)>0)*E9+(CELL("width",F9)>0)*F9+(CELL("width",G9)>0)*G9+(CELL("width",H9)>0)*H9+(CELL("width",I9)>0)*I9+(CELL("width",J9)>0)*J9+(CELL("width",K9)>0)*K9+(CELL("width",L9)>0)*L9+(CELL("width",M9)>0)*M9+(CELL("width",N9)>0)*N9 -> 0 | Q9: =IF(COA!$E$6="Y","Show","Hide") -> Show | R9: Deontas DEIS | S9: 0 | T9: =O9 -> 0 | W9: =IF(AND(O9=0,Q9="Show"),"N","Y") -> N
B10: Deontas Scéim luath-thosaithe le haghaidh Ábh/Tre/For Tuis | C10: ='Leathnach Achoimre Bainc'!$E$4 -> 0 | D10: ='Leathnach Achoimre Bainc'!$E$5 -> 0 | E10: ='Leathnach Achoimre Bainc'!$E$6 -> 0 | F10: ='Leathnach Achoimre Bainc'!$E$7 -> 0 | G10: ='Leathnach Achoimre Bainc'!$E$8 -> 0 | H10: ='Leathnach Achoimre Bainc'!$E$9 -> 0 | I10: ='Leathnach Achoimre Bainc'!$E$10 -> 0 | J10: ='Leathnach Achoimre Bainc'!$E$11 -> 0 | K10: ='Leathnach Achoimre Bainc'!$E$12 -> 0 | L10: ='Leathnach Achoimre Bainc'!$E$13 -> 0 | M10: ='Leathnach Achoimre Bainc'!$E$14 -> 0 | N10: ='Leathnach Achoimre Bainc'!$E$15 -> 0 | O10: 0 | Q10: =IF(COA!$E$7="Y","Show","Hide") -> Hide | R10: Deontas Scéim luath-thosaithe le haghaidh Ábh/Tre/For Tuis | S10: 0 | T10: 0 | W10: Y
B11: Scéim luath-thosaithe Caipitíocht | C11: ='Leathnach Achoimre Bainc'!$F$4 -> 0 | D11: ='Leathnach Achoimre Bainc'!$F$5 -> 0 | E11: ='Leathnach Achoimre Bainc'!$F$6 -> 0 | F11: ='Leathnach Achoimre Bainc'!$F$7 -> 0 | G11: ='Leathnach Achoimre Bainc'!$F$8 -> 0 | H11: ='Leathnach Achoimre Bainc'!$F$9 -> 0 | I11: ='Leathnach Achoimre Bainc'!$F$10 -> 0 | J11: ='Leathnach Achoimre Bainc'!$F$11 -> 0 | K11: ='Leathnach Achoimre Bainc'!$F$12 -> 0 | L11: ='Leathnach Achoimre Bainc'!$F$13 -> 0 | M11: ='Leathnach Achoimre Bainc'!$F$14 -> 0 | N11: ='Leathnach Achoimre Bainc'!$F$15 -> 0 | O11: 0 | Q11: =IF(COA!$E$8="Y","Show","Hide") -> Hide | R11: Scéim luath-thosaithe Caipitíocht | S11: 0 | T11: 0 | W11: Y
B12: Buiséad Pá Neamhtheagaisc | C12: ='Leathnach Achoimre Bainc'!$G$4 -> 0 | D12: ='Leathnach Achoimre Bainc'!$G$5 -> 0 | E12: ='Leathnach Achoimre Bainc'!$G$6 -> 0 | F12: ='Leathnach Achoimre Bainc'!$G$7 -> 0 | G12: ='Leathnach Achoimre Bainc'!$G$8 -> 0 | H12: ='Leathnach Achoimre Bainc'!$G$9 -> 0 | I12: ='Leathnach Achoimre Bainc'!$G$10 -> 0 | J12: ='Leathnach Achoimre Bainc'!$G$11 -> 0 | K12: ='Leathnach Achoimre Bainc'!$G$12 -> 0 | L12: ='Leathnach Achoimre Bainc'!$G$13 -> 0 | M12: ='Leathnach Achoimre Bainc'!$G$14 -> 0 | N12: ='Leathnach Achoimre Bainc'!$G$15 -> 0 | O12: 0 | Q12: =IF(COA!$E$9="Y","Show","Hide") -> Show | R12: Buiséad Pá Neamhtheagaisc | S12: 0 | T12: 0 | W12: N
B13: Deontas do Threalamh Oideachais Speisialta | C13: ='Leathnach Achoimre Bainc'!$H$4 -> 0 | D13: ='Leathnach Achoimre Bainc'!$H$5 -> 0 | E13: ='Leathnach Achoimre Bainc'!$H$6 -> 0 | F13: ='Leathnach Achoimre Bainc'!$H$7 -> 0 | G13: ='Leathnach Achoimre Bainc'!$H$8 -> 0 | H13: ='Leathnach Achoimre Bainc'!$H$9 -> 0 | I13: ='Leathnach Achoimre Bainc'!$H$10 -> 0 | J13: ='Leathnach Achoimre Bainc'!$H$11 -> 0 | K13: ='Leathnach Achoimre Bainc'!$H$12 -> 0 | L13: ='Leathnach Achoimre Bainc'!$H$13 -> 0 | M13: ='Leathnach Achoimre Bainc'!$H$14 -> 0 | N13: ='Leathnach Achoimre Bainc'!$H$15 -> 0 | O13: 0 | Q13: =IF(COA!$E$10="Y","Show","Hide") -> Show | R13: Deontas do Threalamh Oideachais Speisialta | S13: 0 | T13: 0 | W13: N
B14: Deontas leabhar scoile saor in aisce | C14: ='Leathnach Achoimre Bainc'!$I$4 -> 0 | D14: ='Leathnach Achoimre Bainc'!$I$5 -> 0 | E14: ='Leathnach Achoimre Bainc'!$I$6 -> 0 | F14: ='Leathnach Achoimre Bainc'!$I$7 -> 0 | G14: ='Leathnach Achoimre Bainc'!$I$8 -> 0 | H14: ='Leathnach Achoimre Bainc'!$I$9 -> 0 | I14: ='Leathnach Achoimre Bainc'!$I$10 -> 0 | J14: ='Leathnach Achoimre Bainc'!$I$11 -> 0 | K14: ='Leathnach Achoimre Bainc'!$I$12 -> 0 | L14: ='Leathnach Achoimre Bainc'!$I$13 -> 0 | M14: ='Leathnach Achoimre Bainc'!$I$14 -> 0 | N14: ='Leathnach Achoimre Bainc'!$I$15 -> 0 | O14: 0 | Q14: =IF(COA!$E$11="Y","Show","Hide") -> Show | R14: Deontas leabhar scoile saor in aisce | S14: 0 | T14: 0 | W14: N
B15: Deontas riaracháin leabhar scoile saor in aisce | C15: ='Leathnach Achoimre Bainc'!$J$4 -> 0 | D15: ='Leathnach Achoimre Bainc'!$J$5 -> 0 | E15: ='Leathnach Achoimre Bainc'!$J$6 -> 0 | F15: ='Leathnach Achoimre Bainc'!$J$7 -> 0 | G15: ='Leathnach Achoimre Bainc'!$J$8 -> 0 | H15: ='Leathnach Achoimre Bainc'!$J$9 -> 0 | I15: ='Leathnach Achoimre Bainc'!$J$10 -> 0 | J15: ='Leathnach Achoimre Bainc'!$J$11 -> 0 | K15: ='Leathnach Achoimre Bainc'!$J$12 -> 0 | L15: ='Leathnach Achoimre Bainc'!$J$13 -> 0 | M15: ='Leathnach Achoimre Bainc'!$J$14 -> 0 | N15: ='Leathnach Achoimre Bainc'!$J$15 -> 0 | O15: 0 | Q15: =IF(COA!$E$12="Y","Show","Hide") -> Show | R15: Deontas riaracháin leabhar scoile saor in aisce | S15: 0 | T15: 0 | W15: N
B16: Deontas Caipitil do Leabhair Leabharlainne Scoile | C16: ='Leathnach Achoimre Bainc'!$K$4 -> 0 | D16: ='Leathnach Achoimre Bainc'!$K$5 -> 0 | E16: ='Leathnach Achoimre Bainc'!$K$6 -> 0 | F16: ='Leathnach Achoimre Bainc'!$K$7 -> 0 | G16: ='Leathnach Achoimre Bainc'!$K$8 -> 0 | H16: ='Leathnach Achoimre Bainc'!$K$9 -> 0 | I16: ='Leathnach Achoimre Bainc'!$K$10 -> 0 | J16: ='Leathnach Achoimre Bainc'!$K$11 -> 0 | K16: ='Leathnach Achoimre Bainc'!$K$12 -> 0 | L16: ='Leathnach Achoimre Bainc'!$K$13 -> 0 | M16: ='Leathnach Achoimre Bainc'!$K$14 -> 0 | N16: ='Leathnach Achoimre Bainc'!$K$15 -> 0 | O16: 0 | Q16: =IF(COA!$E$13="Y","Show","Hide") -> Hide | R16: Deontas Caipitil do Leabhair Leabharlainne Scoile | S16: 0 | T16: 0 | W16: Y
B17: Deontas na nÁbhar Speisialta | C17: ='Leathnach Achoimre Bainc'!$L$4 -> 0 | D17: ='Leathnach Achoimre Bainc'!$L$5 -> 0 | E17: ='Leathnach Achoimre Bainc'!$L$6 -> 0 | F17: ='Leathnach Achoimre Bainc'!$L$7 -> 0 | G17: ='Leathnach Achoimre Bainc'!$L$8 -> 0 | H17: ='Leathnach Achoimre Bainc'!$L$9 -> 0 | I17: ='Leathnach Achoimre Bainc'!$L$10 -> 0 | J17: ='Leathnach Achoimre Bainc'!$L$11 -> 0 | K17: ='Leathnach Achoimre Bainc'!$L$12 -> 0 | L17: ='Leathnach Achoimre Bainc'!$L$13 -> 0 | M17: ='Leathnach Achoimre Bainc'!$L$14 -> 0 | N17: ='Leathnach Achoimre Bainc'!$L$15 -> 0 | O17: 0 | Q17: =IF(COA!$E$14="Y","Show","Hide") -> Hide | R17: Deontas na nÁbhar Speisialta | S17: 0 | T17: 0 | W17: Y
B18: Deontas scoile Gaeilge agus Dátheangach | C18: ='Leathnach Achoimre Bainc'!$M$4 -> 0 | D18: ='Leathnach Achoimre Bainc'!$M$5 -> 0 | E18: ='Leathnach Achoimre Bainc'!$M$6 -> 0 | F18: ='Leathnach Achoimre Bainc'!$M$7 -> 0 | G18: ='Leathnach Achoimre Bainc'!$M$8 -> 0 | H18: ='Leathnach Achoimre Bainc'!$M$9 -> 0 | I18: ='Leathnach Achoimre Bainc'!$M$10 -> 0 | J18: ='Leathnach Achoimre Bainc'!$M$11 -> 0 | K18: ='Leathnach Achoimre Bainc'!$M$12 -> 0 | L18: ='Leathnach Achoimre Bainc'!$M$13 -> 0 | M18: ='Leathnach Achoimre Bainc'!$M$14 -> 0 | N18: ='Leathnach Achoimre Bainc'!$M$15 -> 0 | O18: 0 | Q18: =IF(COA!$E$15="Y","Show","Hide") -> Hide | R18: Deontas scoile Gaeilge agus Dátheangach | S18: 0 | T18: 0 | W18: Y
B19: Deontas Chlár Scoile an Teastais Shóisearaigh | C19: ='Leathnach Achoimre Bainc'!$N$4 -> 0 | D19: ='Leathnach Achoimre Bainc'!$N$5 -> 0 | E19: ='Leathnach Achoimre Bainc'!$N$6 -> 0 | F19: ='Leathnach Achoimre Bainc'!$N$7 -> 0 | G19: ='Leathnach Achoimre Bainc'!$N$8 -> 0 | H19: ='Leathnach Achoimre Bainc'!$N$9 -> 0 | I19: ='Leathnach Achoimre Bainc'!$N$10 -> 0 | J19: ='Leathnach Achoimre Bainc'!$N$11 -> 0 | K19: ='Leathnach Achoimre Bainc'!$N$12 -> 0 | L19: ='Leathnach Achoimre Bainc'!$N$13 -> 0 | M19: ='Leathnach Achoimre Bainc'!$N$14 -> 0 | N19: ='Leathnach Achoimre Bainc'!$N$15 -> 0 | O19: 0 | Q19: =IF(COA!$E$16="Y","Show","Hide") -> Hide | R19: Deontas Chlár Scoile an Teastais Shóisearaigh | S19: 0 | T19: 0 | W19: Y
B20: Deontas Idirbhliana | C20: ='Leathnach Achoimre Bainc'!$O$4 -> 0 | D20: ='Leathnach Achoimre Bainc'!$O$5 -> 0 | E20: ='Leathnach Achoimre Bainc'!$O$6 -> 0 | F20: ='Leathnach Achoimre Bainc'!$O$7 -> 0 | G20: ='Leathnach Achoimre Bainc'!$O$8 -> 0 | H20: ='Leathnach Achoimre Bainc'!$O$9 -> 0 | I20: ='Leathnach Achoimre Bainc'!$O$10 -> 0 | J20: ='Leathnach Achoimre Bainc'!$O$11 -> 0 | K20: ='Leathnach Achoimre Bainc'!$O$12 -> 0 | L20: ='Leathnach Achoimre Bainc'!$O$13 -> 0 | M20: ='Leathnach Achoimre Bainc'!$O$14 -> 0 | N20: ='Leathnach Achoimre Bainc'!$O$15 -> 0 | O20: 0 | Q20: =IF(COA!$E$17="Y","Show","Hide") -> Hide | R20: Deontas Idirbhliana | S20: 0 | T20: 0 | W20: Y
B21: Deontas na hArdteistiméireachta Feidhmí | C21: ='Leathnach Achoimre Bainc'!$P$4 -> 0 | D21: ='Leathnach Achoimre Bainc'!$P$5 -> 0 | E21: ='Leathnach Achoimre Bainc'!$P$6 -> 0 | F21: ='Leathnach Achoimre Bainc'!$P$7 -> 0 | G21: ='Leathnach Achoimre Bainc'!$P$8 -> 0 | H21: ='Leathnach Achoimre Bainc'!$P$9 -> 0 | I21: ='Leathnach Achoimre Bainc'!$P$10 -> 0 | J21: ='Leathnach Achoimre Bainc'!$P$11 -> 0 | K21: ='Leathnach Achoimre Bainc'!$P$12 -> 0 | L21: ='Leathnach Achoimre Bainc'!$P$13 -> 0 | M21: ='Leathnach Achoimre Bainc'!$P$14 -> 0 | N21: ='Leathnach Achoimre Bainc'!$P$15 -> 0 | O21: 0 | Q21: =IF(COA!$E$18="Y","Show","Hide") -> Hide | R21: Deontas na hArdteistiméireachta Feidhmí | S21: 0 | T21: 0 | W21: Y
B22: Amúchadh Deontas Trealamh RO | C22: ='Leathnach Achoimre Bainc'!$Q$4 -> 0 | D22: ='Leathnach Achoimre Bainc'!$Q$5 -> 0 | E22: ='Leathnach Achoimre Bainc'!$Q$6 -> 0 | F22: ='Leathnach Achoimre Bainc'!$Q$7 -> 0 | G22: ='Leathnach Achoimre Bainc'!$Q$8 -> 0 | H22: ='Leathnach Achoimre Bainc'!$Q$9 -> 0 | I22: ='Leathnach Achoimre Bainc'!$Q$10 -> 0 | J22: ='Leathnach Achoimre Bainc'!$Q$11 -> 0 | K22: ='Leathnach Achoimre Bainc'!$Q$12 -> 0 | L22: ='Leathnach Achoimre Bainc'!$Q$13 -> 0 | M22: ='Leathnach Achoimre Bainc'!$Q$14 -> 0 | N22: ='Leathnach Achoimre Bainc'!$Q$15 -> 0 | O22: 0 | Q22: =IF(COA!$E$19="Y","Show","Hide") -> Hide | R22: Amúchadh Deontas Trealamh RO | S22: 0 | T22: 0 | W22: Y
B23: Amúchadh Deontas TFC RO | C23: ='Leathnach Achoimre Bainc'!$R$4 -> 0 | D23: ='Leathnach Achoimre Bainc'!$R$5 -> 0 | E23: ='Leathnach Achoimre Bainc'!$R$6 -> 0 | F23: ='Leathnach Achoimre Bainc'!$R$7 -> 0 | G23: ='Leathnach Achoimre Bainc'!$R$8 -> 0 | H23: ='Leathnach Achoimre Bainc'!$R$9 -> 0 | I23: ='Leathnach Achoimre Bainc'!$R$10 -> 0 | J23: ='Leathnach Achoimre Bainc'!$R$11 -> 0 | K23: ='Leathnach Achoimre Bainc'!$R$12 -> 0 | L23: ='Leathnach Achoimre Bainc'!$R$13 -> 0 | M23: ='Leathnach Achoimre Bainc'!$R$14 -> 0 | N23: ='Leathnach Achoimre Bainc'!$R$15 -> 0 | O23: 0 | Q23: =IF(COA!$E$20="Y","Show","Hide") -> Hide | R23: Amúchadh Deontas TFC RO | S23: 0 | T23: 0 | W23: Y
B24: Amúchadh Deontas Eile RO | C24: ='Leathnach Achoimre Bainc'!$S$4 -> 0 | D24: ='Leathnach Achoimre Bainc'!$S$5 -> 0 | E24: ='Leathnach Achoimre Bainc'!$S$6 -> 0 | F24: ='Leathnach Achoimre Bainc'!$S$7 -> 0 | G24: ='Leathnach Achoimre Bainc'!$S$8 -> 0 | H24: ='Leathnach Achoimre Bainc'!$S$9 -> 0 | I24: ='Leathnach Achoimre Bainc'!$S$10 -> 0 | J24: ='Leathnach Achoimre Bainc'!$S$11 -> 0 | K24: ='Leathnach Achoimre Bainc'!$S$12 -> 0 | L24: ='Leathnach Achoimre Bainc'!$S$13 -> 0 | M24: ='Leathnach Achoimre Bainc'!$S$14 -> 0 | N24: ='Leathnach Achoimre Bainc'!$S$15 -> 0 | O24: 0 | Q24: =IF(COA!$E$21="Y","Show","Hide") -> Hide | R24: Amúchadh Deontas Eile RO | S24: 0 | T24: 0 | W24: Y
B25: Deontas TFC Neamhchaipitiúil | C25: ='Leathnach Achoimre Bainc'!$T$4 -> 0 | D25: ='Leathnach Achoimre Bainc'!$T$5 -> 0 | E25: ='Leathnach Achoimre Bainc'!$T$6 -> 0 | F25: ='Leathnach Achoimre Bainc'!$T$7 -> 0 | G25: ='Leathnach Achoimre Bainc'!$T$8 -> 0 | H25: ='Leathnach Achoimre Bainc'!$T$9 -> 0 | I25: ='Leathnach Achoimre Bainc'!$T$10 -> 0 | J25: ='Leathnach Achoimre Bainc'!$T$11 -> 0 | K25: ='Leathnach Achoimre Bainc'!$T$12 -> 0 | L25: ='Leathnach Achoimre Bainc'!$T$13 -> 0 | M25: ='Leathnach Achoimre Bainc'!$T$14 -> 0 | N25: ='Leathnach Achoimre Bainc'!$T$15 -> 0 | O25: 0 | Q25: =IF(COA!$E$22="Y","Show","Hide") -> Show | R25: Deontas TFC Neamhchaipitiúil | S25: 0 | T25: 0 | W25: N
B26: Ioncam ón gCiste Barr Feabhais Scoileanna | C26: ='Leathnach Achoimre Bainc'!$U$4 -> 0 | D26: ='Leathnach Achoimre Bainc'!$U$5 -> 0 | E26: ='Leathnach Achoimre Bainc'!$U$6 -> 0 | F26: ='Leathnach Achoimre Bainc'!$U$7 -> 0 | G26: ='Leathnach Achoimre Bainc'!$U$8 -> 0 | H26: ='Leathnach Achoimre Bainc'!$U$9 -> 0 | I26: ='Leathnach Achoimre Bainc'!$U$10 -> 0 | J26: ='Leathnach Achoimre Bainc'!$U$11 -> 0 | K26: ='Leathnach Achoimre Bainc'!$U$12 -> 0 | L26: ='Leathnach Achoimre Bainc'!$U$13 -> 0 | M26: ='Leathnach Achoimre Bainc'!$U$14 -> 0 | N26: ='Leathnach Achoimre Bainc'!$U$15 -> 0 | O26: 0 | Q26: =IF(COA!$E$23="Y","Show","Hide") -> Hide | R26: Ioncam ón gCiste Barr Feabhais Scoileanna | S26: 0 | T26: 0 | W26: Y
B27: Deontas Mionoibreacha Neamhchaipitiúla | C27: ='Leathnach Achoimre Bainc'!$V$4 -> 0 | D27: ='Leathnach Achoimre Bainc'!$V$5 -> 0 | E27: ='Leathnach Achoimre Bainc'!$V$6 -> 0 | F27: ='Leathnach Achoimre Bainc'!$V$7 -> 0 | G27: ='Leathnach Achoimre Bainc'!$V$8 -> 0 | H27: ='Leathnach Achoimre Bainc'!$V$9 -> 0 | I27: ='Leathnach Achoimre Bainc'!$V$10 -> 0 | J27: ='Leathnach Achoimre Bainc'!$V$11 -> 0 | K27: ='Leathnach Achoimre Bainc'!$V$12 -> 0 | L27: ='Leathnach Achoimre Bainc'!$V$13 -> 0 | M27: ='Leathnach Achoimre Bainc'!$V$14 -> 0 | N27: ='Leathnach Achoimre Bainc'!$V$15 -> 0 | O27: 0 | Q27: =IF(COA!$E$24="Y","Show","Hide") -> Show | R27: Deontas Mionoibreacha Neamhchaipitiúla | S27: 0 | T27: 0 | W27: N
B28: Ioncam ón Deontas Cóiríochta Sealadaí | C28: ='Leathnach Achoimre Bainc'!$W$4 -> 0 | D28: ='Leathnach Achoimre Bainc'!$W$5 -> 0 | E28: ='Leathnach Achoimre Bainc'!$W$6 -> 0 | F28: ='Leathnach Achoimre Bainc'!$W$7 -> 0 | G28: ='Leathnach Achoimre Bainc'!$W$8 -> 0 | H28: ='Leathnach Achoimre Bainc'!$W$9 -> 0 | I28: ='Leathnach Achoimre Bainc'!$W$10 -> 0 | J28: ='Leathnach Achoimre Bainc'!$W$11 -> 0 | K28: ='Leathnach Achoimre Bainc'!$W$12 -> 0 | L28: ='Leathnach Achoimre Bainc'!$W$13 -> 0 | M28: ='Leathnach Achoimre Bainc'!$W$14 -> 0 | N28: ='Leathnach Achoimre Bainc'!$W$15 -> 0 | O28: 0 | Q28: =IF(COA!$E$25="Y","Show","Hide") -> Show | R28: Ioncam ón Deontas Cóiríochta Sealadaí | S28: 0 | T28: 0 | W28: N
B29: Deontas i leith Mionoibreacha COVID | C29: ='Leathnach Achoimre Bainc'!$X$4 -> 0 | D29: ='Leathnach Achoimre Bainc'!$X$5 -> 0 | E29: ='Leathnach Achoimre Bainc'!$X$6 -> 0 | F29: ='Leathnach Achoimre Bainc'!$X$7 -> 0 | G29: ='Leathnach Achoimre Bainc'!$X$8 -> 0 | H29: ='Leathnach Achoimre Bainc'!$X$9 -> 0 | I29: ='Leathnach Achoimre Bainc'!$X$10 -> 0 | J29: ='Leathnach Achoimre Bainc'!$X$11 -> 0 | K29: ='Leathnach Achoimre Bainc'!$X$12 -> 0 | L29: ='Leathnach Achoimre Bainc'!$X$13 -> 0 | M29: ='Leathnach Achoimre Bainc'!$X$14 -> 0 | N29: ='Leathnach Achoimre Bainc'!$X$15 -> 0 | O29: 0 | Q29: =IF(COA!$E$26="Y","Show","Hide") -> Hide | R29: Deontas i leith Mionoibreacha COVID | S29: 0 | T29: 0 | W29: Y
B30: Caipitíocht COVID do Ghlantachán agus Deontas TCP | C30: ='Leathnach Achoimre Bainc'!$Y$4 -> 0 | D30: ='Leathnach Achoimre Bainc'!$Y$5 -> 0 | E30: ='Leathnach Achoimre Bainc'!$Y$6 -> 0 | F30: ='Leathnach Achoimre Bainc'!$Y$7 -> 0 | G30: ='Leathnach Achoimre Bainc'!$Y$8 -> 0 | H30: ='Leathnach Achoimre Bainc'!$Y$9 -> 0 | I30: ='Leathnach Achoimre Bainc'!$Y$10 -> 0 | J30: ='Leathnach Achoimre Bainc'!$Y$11 -> 0 | K30: ='Leathnach Achoimre Bainc'!$Y$12 -> 0 | L30: ='Leathnach Achoimre Bainc'!$Y$13 -> 0 | M30: ='Leathnach Achoimre Bainc'!$Y$14 -> 0 | N30: ='Leathnach Achoimre Bainc'!$Y$15 -> 0 | O30: 0 | Q30: =IF(COA!$E$27="Y","Show","Hide") -> Hide | R30: Caipitíocht COVID do Ghlantachán agus Deontas TCP | S30: 0 | T30: 0 | W30: Y
B31: Deontas Aonuaire baintach le chostas Maireachtála | C31: ='Leathnach Achoimre Bainc'!$Z$4 -> 0 | D31: ='Leathnach Achoimre Bainc'!$Z$5 -> 0 | E31: ='Leathnach Achoimre Bainc'!$Z$6 -> 0 | F31: ='Leathnach Achoimre Bainc'!$Z$7 -> 0 | G31: ='Leathnach Achoimre Bainc'!$Z$8 -> 0 | H31: ='Leathnach Achoimre Bainc'!$Z$9 -> 0 | I31: ='Leathnach Achoimre Bainc'!$Z$10 -> 0 | J31: ='Leathnach Achoimre Bainc'!$Z$11 -> 0 | K31: ='Leathnach Achoimre Bainc'!$Z$12 -> 0 | L31: ='Leathnach Achoimre Bainc'!$Z$13 -> 0 | M31: ='Leathnach Achoimre Bainc'!$Z$14 -> 0 | N31: ='Leathnach Achoimre Bainc'!$Z$15 -> 0 | O31: 0 | Q31: =IF(COA!$E$28="Y","Show","Hide") -> Show | R31: Deontas Aonuaire baintach le chostas Maireachtála | S31: 0 | T31: 0 | W31: N
B32: Ioncam Deontais Neamhchaipitil Eile RO | C32: ='Leathnach Achoimre Bainc'!$AA$4 -> 0 | D32: ='Leathnach Achoimre Bainc'!$AA$5 -> 0 | E32: ='Leathnach Achoimre Bainc'!$AA$6 -> 0 | F32: ='Leathnach Achoimre Bainc'!$AA$7 -> 0 | G32: ='Leathnach Achoimre Bainc'!$AA$8 -> 0 | H32: ='Leathnach Achoimre Bainc'!$AA$9 -> 0 | I32: ='Leathnach Achoimre Bainc'!$AA$10 -> 0 | J32: ='Leathnach Achoimre Bainc'!$AA$11 -> 0 | K32: ='Leathnach Achoimre Bainc'!$AA$12 -> 0 | L32: ='Leathnach Achoimre Bainc'!$AA$13 -> 0 | M32: ='Leathnach Achoimre Bainc'!$AA$14 -> 0 | N32: ='Leathnach Achoimre Bainc'!$AA$15 -> 0 | O32: 0 | Q32: =IF(COA!$E$29="Y","Show","Hide") -> Show | R32: Ioncam Deontais Neamhchaipitil Eile RO | S32: 0 | T32: 0 | W32: N
B33: Deontas Trialacha Caighdeánaithe | C33: ='Leathnach Achoimre Bainc'!$AB$4 -> 0 | D33: ='Leathnach Achoimre Bainc'!$AB$5 -> 0 | E33: ='Leathnach Achoimre Bainc'!$AB$6 -> 0 | F33: ='Leathnach Achoimre Bainc'!$AB$7 -> 0 | G33: ='Leathnach Achoimre Bainc'!$AB$8 -> 0 | H33: ='Leathnach Achoimre Bainc'!$AB$9 -> 0 | I33: ='Leathnach Achoimre Bainc'!$AB$10 -> 0 | J33: ='Leathnach Achoimre Bainc'!$AB$11 -> 0 | K33: ='Leathnach Achoimre Bainc'!$AB$12 -> 0 | L33: ='Leathnach Achoimre Bainc'!$AB$13 -> 0 | M33: ='Leathnach Achoimre Bainc'!$AB$14 -> 0 | N33: ='Leathnach Achoimre Bainc'!$AB$15 -> 0 | O33: 0 | Q33: =IF(COA!$E$30="Y","Show","Hide") -> Show | R33: Deontas Trialacha Caighdeánaithe | S33: 0 | T33: 0 | W33: N
B34: Deontas Soláthair Samhraidh | C34: ='Leathnach Achoimre Bainc'!$AC$4 -> 0 | D34: ='Leathnach Achoimre Bainc'!$AC$5 -> 0 | E34: ='Leathnach Achoimre Bainc'!$AC$6 -> 0 | F34: ='Leathnach Achoimre Bainc'!$AC$7 -> 0 | G34: ='Leathnach Achoimre Bainc'!$AC$8 -> 0 | H34: ='Leathnach Achoimre Bainc'!$AC$9 -> 0 | I34: ='Leathnach Achoimre Bainc'!$AC$10 -> 0 | J34: ='Leathnach Achoimre Bainc'!$AC$11 -> 0 | K34: ='Leathnach Achoimre Bainc'!$AC$12 -> 0 | L34: ='Leathnach Achoimre Bainc'!$AC$13 -> 0 | M34: ='Leathnach Achoimre Bainc'!$AC$14 -> 0 | N34: ='Leathnach Achoimre Bainc'!$AC$15 -> 0 | O34: 0 | Q34: =IF(COA!$E$31="Y","Show","Hide") -> Show | R34: Deontas Soláthair Samhraidh | S34: 0 | T34: 0 | W34: N
B35: Deontas le haghaidh Tionlacaithe Bus | C35: ='Leathnach Achoimre Bainc'!$AD$4 -> 0 | D35: ='Leathnach Achoimre Bainc'!$AD$5 -> 0 | E35: ='Leathnach Achoimre Bainc'!$AD$6 -> 0 | F35: ='Leathnach Achoimre Bainc'!$AD$7 -> 0 | G35: ='Leathnach Achoimre Bainc'!$AD$8 -> 0 | H35: ='Leathnach Achoimre Bainc'!$AD$9 -> 0 | I35: ='Leathnach Achoimre Bainc'!$AD$10 -> 0 | J35: ='Leathnach Achoimre Bainc'!$AD$11 -> 0 | K35: ='Leathnach Achoimre Bainc'!$AD$12 -> 0 | L35: ='Leathnach Achoimre Bainc'!$AD$13 -> 0 | M35: ='Leathnach Achoimre Bainc'!$AD$14 -> 0 | N35: ='Leathnach Achoimre Bainc'!$AD$15 -> 0 | O35: 0 | Q35: =IF(COA!$E$32="Y","Show","Hide") -> Show | R35: Deontas le haghaidh Tionlacaithe Bus | S35: 0 | T35: 0 | W35: N
B36: Ioncam ón Roinn Leanaí agus Gnóthaí Óige | C36: ='Leathnach Achoimre Bainc'!$AE$4 -> 0 | D36: ='Leathnach Achoimre Bainc'!$AE$5 -> 0 | E36: ='Leathnach Achoimre Bainc'!$AE$6 -> 0 | F36: ='Leathnach Achoimre Bainc'!$AE$7 -> 0 | G36: ='Leathnach Achoimre Bainc'!$AE$8 -> 0 | H36: ='Leathnach Achoimre Bainc'!$AE$9 -> 0 | I36: ='Leathnach Achoimre Bainc'!$AE$10 -> 0 | J36: ='Leathnach Achoimre Bainc'!$AE$11 -> 0 | K36: ='Leathnach Achoimre Bainc'!$AE$12 -> 0 | L36: ='Leathnach Achoimre Bainc'!$AE$13 -> 0 | M36: ='Leathnach Achoimre Bainc'!$AE$14 -> 0 | N36: ='Leathnach Achoimre Bainc'!$AE$15 -> 0 | O36: 0 | Q36: =IF(COA!$E$33="Y","Show","Hide") -> Hide | R36: Ioncam ón Roinn Leanaí agus Gnóthaí Óige | S36: 0 | T36: 0 | W36: Y
B37: Deontas le haghaidh Béilí Scoile ó RGFCS | C37: ='Leathnach Achoimre Bainc'!$AF$4 -> 0 | D37: ='Leathnach Achoimre Bainc'!$AF$5 -> 0 | E37: ='Leathnach Achoimre Bainc'!$AF$6 -> 0 | F37: ='Leathnach Achoimre Bainc'!$AF$7 -> 0 | G37: ='Leathnach Achoimre Bainc'!$AF$8 -> 0 | H37: ='Leathnach Achoimre Bainc'!$AF$9 -> 0 | I37: ='Leathnach Achoimre Bainc'!$AF$10 -> 0 | J37: ='Leathnach Achoimre Bainc'!$AF$11 -> 0 | K37: ='Leathnach Achoimre Bainc'!$AF$12 -> 0 | L37: ='Leathnach Achoimre Bainc'!$AF$13 -> 0 | M37: ='Leathnach Achoimre Bainc'!$AF$14 -> 0 | N37: ='Leathnach Achoimre Bainc'!$AF$15 -> 0 | O37: 0 | Q37: =IF(COA!$E$34="Y","Show","Hide") -> Show | R37: Deontas le haghaidh Béilí Scoile ó RGFCS | S37: 0 | T37: 0 | W37: N
B38: Ioncam Erasmus | C38: ='Leathnach Achoimre Bainc'!$AG$4 -> 0 | D38: ='Leathnach Achoimre Bainc'!$AG$5 -> 0 | E38: ='Leathnach Achoimre Bainc'!$AG$6 -> 0 | F38: ='Leathnach Achoimre Bainc'!$AG$7 -> 0 | G38: ='Leathnach Achoimre Bainc'!$AG$8 -> 0 | H38: ='Leathnach Achoimre Bainc'!$AG$9 -> 0 | I38: ='Leathnach Achoimre Bainc'!$AG$10 -> 0 | J38: ='Leathnach Achoimre Bainc'!$AG$11 -> 0 | K38: ='Leathnach Achoimre Bainc'!$AG$12 -> 0 | L38: ='Leathnach Achoimre Bainc'!$AG$13 -> 0 | M38: ='Leathnach Achoimre Bainc'!$AG$14 -> 0 | N38: ='Leathnach Achoimre Bainc'!$AG$15 -> 0 | O38: 0 | Q38: =IF(COA!$E$35="Y","Show","Hide") -> Hide | R38: Ioncam Erasmus | S38: 0 | T38: 0 | W38: Y
B39: Maoiniú ó FSS | C39: ='Leathnach Achoimre Bainc'!$AH$4 -> 0 | D39: ='Leathnach Achoimre Bainc'!$AH$5 -> 0 | E39: ='Leathnach Achoimre Bainc'!$AH$6 -> 0 | F39: ='Leathnach Achoimre Bainc'!$AH$7 -> 0 | G39: ='Leathnach Achoimre Bainc'!$AH$8 -> 0 | H39: ='Leathnach Achoimre Bainc'!$AH$9 -> 0 | I39: ='Leathnach Achoimre Bainc'!$AH$10 -> 0 | J39: ='Leathnach Achoimre Bainc'!$AH$11 -> 0 | K39: ='Leathnach Achoimre Bainc'!$AH$12 -> 0 | L39: ='Leathnach Achoimre Bainc'!$AH$13 -> 0 | M39: ='Leathnach Achoimre Bainc'!$AH$14 -> 0 | N39: ='Leathnach Achoimre Bainc'!$AH$15 -> 0 | O39: 0 | Q39: =IF(COA!$E$36="Y","Show","Hide") -> Hide | R39: Maoiniú ó FSS | S39: 0 | T39: 0 | W39: Y
B40: Maoiniú Stáit Eile | C40: ='Leathnach Achoimre Bainc'!$AI$4 -> 0 | D40: ='Leathnach Achoimre Bainc'!$AI$5 -> 0 | E40: ='Leathnach Achoimre Bainc'!$AI$6 -> 0 | F40: ='Leathnach Achoimre Bainc'!$AI$7 -> 0 | G40: ='Leathnach Achoimre Bainc'!$AI$8 -> 0 | H40: ='Leathnach Achoimre Bainc'!$AI$9 -> 0 | I40: ='Leathnach Achoimre Bainc'!$AI$10 -> 0 | J40: ='Leathnach Achoimre Bainc'!$AI$11 -> 0 | K40: ='Leathnach Achoimre Bainc'!$AI$12 -> 0 | L40: ='Leathnach Achoimre Bainc'!$AI$13 -> 0 | M40: ='Leathnach Achoimre Bainc'!$AI$14 -> 0 | N40: ='Leathnach Achoimre Bainc'!$AI$15 -> 0 | O40: 0 | Q40: =IF(COA!$E$37="Y","Show","Hide") -> Show | R40: Maoiniú Stáit Eile | S40: =INDEX($C$8:$O$80,MATCH(R40,$B$8:$B$80,0),MATCH($S$7,$C$7:$O$7,0)) -> 0 | T40: 0 | W40: N
B41: Táillí Oideachais (Scoileanna Táille) | C41: ='Leathnach Achoimre Bainc'!$AJ$4 -> 0 | D41: ='Leathnach Achoimre Bainc'!$AJ$5 -> 0 | E41: ='Leathnach Achoimre Bainc'!$AJ$6 -> 0 | F41: ='Leathnach Achoimre Bainc'!$AJ$7 -> 0 | G41: ='Leathnach Achoimre Bainc'!$AJ$8 -> 0 | H41: ='Leathnach Achoimre Bainc'!$AJ$9 -> 0 | I41: ='Leathnach Achoimre Bainc'!$AJ$10 -> 0 | J41: ='Leathnach Achoimre Bainc'!$AJ$11 -> 0 | K41: ='Leathnach Achoimre Bainc'!$AJ$12 -> 0 | L41: ='Leathnach Achoimre Bainc'!$AJ$13 -> 0 | M41: ='Leathnach Achoimre Bainc'!$AJ$14 -> 0 | N41: ='Leathnach Achoimre Bainc'!$AJ$15 -> 0 | O41: 0 | Q41: =IF(COA!$E$38="Y","Show","Hide") -> Hide | R41: Táillí Oideachais (Scoileanna Táille) | S41: 0 | T41: 0 | W41: Y
B42: Ioncam Idirbhliana | C42: ='Leathnach Achoimre Bainc'!$AK$4 -> 0 | D42: ='Leathnach Achoimre Bainc'!$AK$5 -> 0 | E42: ='Leathnach Achoimre Bainc'!$AK$6 -> 0 | F42: ='Leathnach Achoimre Bainc'!$AK$7 -> 0 | G42: ='Leathnach Achoimre Bainc'!$AK$8 -> 0 | H42: ='Leathnach Achoimre Bainc'!$AK$9 -> 0 | I42: ='Leathnach Achoimre Bainc'!$AK$10 -> 0 | J42: ='Leathnach Achoimre Bainc'!$AK$11 -> 0 | K42: ='Leathnach Achoimre Bainc'!$AK$12 -> 0 | L42: ='Leathnach Achoimre Bainc'!$AK$13 -> 0 | M42: ='Leathnach Achoimre Bainc'!$AK$14 -> 0 | N42: ='Leathnach Achoimre Bainc'!$AK$15 -> 0 | O42: 0 | Q42: =IF(COA!$E$39="Y","Show","Hide") -> Hide | R42: Ioncam Idirbhliana | S42: 0 | T42: 0 | W42: Y
B43: Ioncam ó Leabhair Ranga/Acmhainní | C43: ='Leathnach Achoimre Bainc'!$AL$4 -> 0 | D43: ='Leathnach Achoimre Bainc'!$AL$5 -> 0 | E43: ='Leathnach Achoimre Bainc'!$AL$6 -> 0 | F43: ='Leathnach Achoimre Bainc'!$AL$7 -> 0 | G43: ='Leathnach Achoimre Bainc'!$AL$8 -> 0 | H43: ='Leathnach Achoimre Bainc'!$AL$9 -> 0 | I43: ='Leathnach Achoimre Bainc'!$AL$10 -> 0 | J43: ='Leathnach Achoimre Bainc'!$AL$11 -> 0 | K43: ='Leathnach Achoimre Bainc'!$AL$12 -> 0 | L43: ='Leathnach Achoimre Bainc'!$AL$13 -> 0 | M43: ='Leathnach Achoimre Bainc'!$AL$14 -> 0 | N43: ='Leathnach Achoimre Bainc'!$AL$15 -> 0 | O43: 0 | Q43: =IF(COA!$E$40="Y","Show","Hide") -> Show | R43: Ioncam ó Leabhair Ranga/Acmhainní | S43: 0 | T43: 0 | W43: N
B44: Ioncam Cíosa ó Áiseanna a Ligean ar Fhruiliú | C44: ='Leathnach Achoimre Bainc'!$AM$4 -> 0 | D44: ='Leathnach Achoimre Bainc'!$AM$5 -> 0 | E44: ='Leathnach Achoimre Bainc'!$AM$6 -> 0 | F44: ='Leathnach Achoimre Bainc'!$AM$7 -> 0 | G44: ='Leathnach Achoimre Bainc'!$AM$8 -> 0 | H44: ='Leathnach Achoimre Bainc'!$AM$9 -> 0 | I44: ='Leathnach Achoimre Bainc'!$AM$10 -> 0 | J44: ='Leathnach Achoimre Bainc'!$AM$11 -> 0 | K44: ='Leathnach Achoimre Bainc'!$AM$12 -> 0 | L44: ='Leathnach Achoimre Bainc'!$AM$13 -> 0 | M44: ='Leathnach Achoimre Bainc'!$AM$14 -> 0 | N44: ='Leathnach Achoimre Bainc'!$AM$15 -> 0 | O44: 0 | Q44: =IF(COA!$E$41="Y","Show","Hide") -> Show | R44: Ioncam Cíosa ó Áiseanna a Ligean ar Fhruiliú | S44: 0 | T44: 0 | W44: N
B45: Ioncam ó Thaisceadáin | C45: ='Leathnach Achoimre Bainc'!$AN$4 -> 0 | D45: ='Leathnach Achoimre Bainc'!$AN$5 -> 0 | E45: ='Leathnach Achoimre Bainc'!$AN$6 -> 0 | F45: ='Leathnach Achoimre Bainc'!$AN$7 -> 0 | G45: ='Leathnach Achoimre Bainc'!$AN$8 -> 0 | H45: ='Leathnach Achoimre Bainc'!$AN$9 -> 0 | I45: ='Leathnach Achoimre Bainc'!$AN$10 -> 0 | J45: ='Leathnach Achoimre Bainc'!$AN$11 -> 0 | K45: ='Leathnach Achoimre Bainc'!$AN$12 -> 0 | L45: ='Leathnach Achoimre Bainc'!$AN$13 -> 0 | M45: ='Leathnach Achoimre Bainc'!$AN$14 -> 0 | N45: ='Leathnach Achoimre Bainc'!$AN$15 -> 0 | O45: 0 | Q45: =IF(COA!$E$42="Y","Show","Hide") -> Hide | R45: Ioncam ó Thaisceadáin | S45: 0 | T45: 0 | W45: Y
B46: Ioncam ó Dhialanna agus Bliainirisí | C46: ='Leathnach Achoimre Bainc'!$AO$4 -> 0 | D46: ='Leathnach Achoimre Bainc'!$AO$5 -> 0 | E46: ='Leathnach Achoimre Bainc'!$AO$6 -> 0 | F46: ='Leathnach Achoimre Bainc'!$AO$7 -> 0 | G46: ='Leathnach Achoimre Bainc'!$AO$8 -> 0 | H46: ='Leathnach Achoimre Bainc'!$AO$9 -> 0 | I46: ='Leathnach Achoimre Bainc'!$AO$10 -> 0 | J46: ='Leathnach Achoimre Bainc'!$AO$11 -> 0 | K46: ='Leathnach Achoimre Bainc'!$AO$12 -> 0 | L46: ='Leathnach Achoimre Bainc'!$AO$13 -> 0 | M46: ='Leathnach Achoimre Bainc'!$AO$14 -> 0 | N46: ='Leathnach Achoimre Bainc'!$AO$15 -> 0 | O46: 0 | Q46: =IF(COA!$E$43="Y","Show","Hide") -> Show | R46: Ioncam ó Dhialanna agus Bliainirisí | S46: 0 | T46: 0 | W46: N
B47: Ioncam fótachóipeáil mac léinn | C47: ='Leathnach Achoimre Bainc'!$AP$4 -> 0 | D47: ='Leathnach Achoimre Bainc'!$AP$5 -> 0 | E47: ='Leathnach Achoimre Bainc'!$AP$6 -> 0 | F47: ='Leathnach Achoimre Bainc'!$AP$7 -> 0 | G47: ='Leathnach Achoimre Bainc'!$AP$8 -> 0 | H47: ='Leathnach Achoimre Bainc'!$AP$9 -> 0 | I47: ='Leathnach Achoimre Bainc'!$AP$10 -> 0 | J47: ='Leathnach Achoimre Bainc'!$AP$11 -> 0 | K47: ='Leathnach Achoimre Bainc'!$AP$12 -> 0 | L47: ='Leathnach Achoimre Bainc'!$AP$13 -> 0 | M47: ='Leathnach Achoimre Bainc'!$AP$14 -> 0 | N47: ='Leathnach Achoimre Bainc'!$AP$15 -> 0 | O47: 0 | Q47: =IF(COA!$E$44="Y","Show","Hide") -> Show | R47: Ioncam fótachóipeáil mac léinn | S47: 0 | T47: 0 | W47: N
B48: Táillí riaracháin scoile | C48: ='Leathnach Achoimre Bainc'!$AQ$4 -> 0 | D48: ='Leathnach Achoimre Bainc'!$AQ$5 -> 0 | E48: ='Leathnach Achoimre Bainc'!$AQ$6 -> 0 | F48: ='Leathnach Achoimre Bainc'!$AQ$7 -> 0 | G48: ='Leathnach Achoimre Bainc'!$AQ$8 -> 0 | H48: ='Leathnach Achoimre Bainc'!$AQ$9 -> 0 | I48: ='Leathnach Achoimre Bainc'!$AQ$10 -> 0 | J48: ='Leathnach Achoimre Bainc'!$AQ$11 -> 0 | K48: ='Leathnach Achoimre Bainc'!$AQ$12 -> 0 | L48: ='Leathnach Achoimre Bainc'!$AQ$13 -> 0 | M48: ='Leathnach Achoimre Bainc'!$AQ$14 -> 0 | N48: ='Leathnach Achoimre Bainc'!$AQ$15 -> 0 | O48: 0 | Q48: =IF(COA!$E$45="Y","Show","Hide") -> Show | R48: Táillí riaracháin scoile | S48: 0 | T48: 0 | W48: N
B49: Ioncam Oideachais Aosaigh | C49: ='Leathnach Achoimre Bainc'!$AR$4 -> 0 | D49: ='Leathnach Achoimre Bainc'!$AR$5 -> 0 | E49: ='Leathnach Achoimre Bainc'!$AR$6 -> 0 | F49: ='Leathnach Achoimre Bainc'!$AR$7 -> 0 | G49: ='Leathnach Achoimre Bainc'!$AR$8 -> 0 | H49: ='Leathnach Achoimre Bainc'!$AR$9 -> 0 | I49: ='Leathnach Achoimre Bainc'!$AR$10 -> 0 | J49: ='Leathnach Achoimre Bainc'!$AR$11 -> 0 | K49: ='Leathnach Achoimre Bainc'!$AR$12 -> 0 | L49: ='Leathnach Achoimre Bainc'!$AR$13 -> 0 | M49: ='Leathnach Achoimre Bainc'!$AR$14 -> 0 | N49: ='Leathnach Achoimre Bainc'!$AR$15 -> 0 | O49: 0 | Q49: =IF(COA!$E$46="Y","Show","Hide") -> Hide | R49: Ioncam Oideachais Aosaigh | S49: 0 | T49: 0 | W49: Y
B50: Ioncam ó Cheaintíní | C50: ='Leathnach Achoimre Bainc'!$AS$4 -> 0 | D50: ='Leathnach Achoimre Bainc'!$AS$5 -> 0 | E50: ='Leathnach Achoimre Bainc'!$AS$6 -> 0 | F50: ='Leathnach Achoimre Bainc'!$AS$7 -> 0 | G50: ='Leathnach Achoimre Bainc'!$AS$8 -> 0 | H50: ='Leathnach Achoimre Bainc'!$AS$9 -> 0 | I50: ='Leathnach Achoimre Bainc'!$AS$10 -> 0 | J50: ='Leathnach Achoimre Bainc'!$AS$11 -> 0 | K50: ='Leathnach Achoimre Bainc'!$AS$12 -> 0 | L50: ='Leathnach Achoimre Bainc'!$AS$13 -> 0 | M50: ='Leathnach Achoimre Bainc'!$AS$14 -> 0 | N50: ='Leathnach Achoimre Bainc'!$AS$15 -> 0 | O50: 0 | Q50: =IF(COA!$E$47="Y","Show","Hide") -> Hide | R50: Ioncam ó Cheaintíní | S50: 0 | T50: 0 | W50: Y
B51: Ioncam ó Shiopaí Sólaistí | C51: ='Leathnach Achoimre Bainc'!$AT$4 -> 0 | D51: ='Leathnach Achoimre Bainc'!$AT$5 -> 0 | E51: ='Leathnach Achoimre Bainc'!$AT$6 -> 0 | F51: ='Leathnach Achoimre Bainc'!$AT$7 -> 0 | G51: ='Leathnach Achoimre Bainc'!$AT$8 -> 0 | H51: ='Leathnach Achoimre Bainc'!$AT$9 -> 0 | I51: ='Leathnach Achoimre Bainc'!$AT$10 -> 0 | J51: ='Leathnach Achoimre Bainc'!$AT$11 -> 0 | K51: ='Leathnach Achoimre Bainc'!$AT$12 -> 0 | L51: ='Leathnach Achoimre Bainc'!$AT$13 -> 0 | M51: ='Leathnach Achoimre Bainc'!$AT$14 -> 0 | N51: ='Leathnach Achoimre Bainc'!$AT$15 -> 0 | O51: 0 | Q51: =IF(COA!$E$48="Y","Show","Hide") -> Show | R51: Ioncam ó Shiopaí Sólaistí | S51: 0 | T51: 0 | W51: N
B52: Ioncam ó Éidí Scoile | C52: ='Leathnach Achoimre Bainc'!$AU$4 -> 0 | D52: ='Leathnach Achoimre Bainc'!$AU$5 -> 0 | E52: ='Leathnach Achoimre Bainc'!$AU$6 -> 0 | F52: ='Leathnach Achoimre Bainc'!$AU$7 -> 0 | G52: ='Leathnach Achoimre Bainc'!$AU$8 -> 0 | H52: ='Leathnach Achoimre Bainc'!$AU$9 -> 0 | I52: ='Leathnach Achoimre Bainc'!$AU$10 -> 0 | J52: ='Leathnach Achoimre Bainc'!$AU$11 -> 0 | K52: ='Leathnach Achoimre Bainc'!$AU$12 -> 0 | L52: ='Leathnach Achoimre Bainc'!$AU$13 -> 0 | M52: ='Leathnach Achoimre Bainc'!$AU$14 -> 0 | N52: ='Leathnach Achoimre Bainc'!$AU$15 -> 0 | O52: 0 | Q52: =IF(COA!$E$49="Y","Show","Hide") -> Show | R52: Ioncam ó Éidí Scoile | S52: 0 | T52: 0 | W52: N
B53: Ioncam Reiligiúin/Éitis | C53: ='Leathnach Achoimre Bainc'!$AV$4 -> 0 | D53: ='Leathnach Achoimre Bainc'!$AV$5 -> 0 | E53: ='Leathnach Achoimre Bainc'!$AV$6 -> 0 | F53: ='Leathnach Achoimre Bainc'!$AV$7 -> 0 | G53: ='Leathnach Achoimre Bainc'!$AV$8 -> 0 | H53: ='Leathnach Achoimre Bainc'!$AV$9 -> 0 | I53: ='Leathnach Achoimre Bainc'!$AV$10 -> 0 | J53: ='Leathnach Achoimre Bainc'!$AV$11 -> 0 | K53: ='Leathnach Achoimre Bainc'!$AV$12 -> 0 | L53: ='Leathnach Achoimre Bainc'!$AV$13 -> 0 | M53: ='Leathnach Achoimre Bainc'!$AV$14 -> 0 | N53: ='Leathnach Achoimre Bainc'!$AV$15 -> 0 | O53: 0 | Q53: =IF(COA!$E$50="Y","Show","Hide") -> Show | R53: Ioncam Reiligiúin/Éitis | S53: 0 | T53: 0 | W53: N
B54: Ioncam Club/Staidéir Iarscoile | C54: ='Leathnach Achoimre Bainc'!$AW$4 -> 0 | D54: ='Leathnach Achoimre Bainc'!$AW$5 -> 0 | E54: ='Leathnach Achoimre Bainc'!$AW$6 -> 0 | F54: ='Leathnach Achoimre Bainc'!$AW$7 -> 0 | G54: ='Leathnach Achoimre Bainc'!$AW$8 -> 0 | H54: ='Leathnach Achoimre Bainc'!$AW$9 -> 0 | I54: ='Leathnach Achoimre Bainc'!$AW$10 -> 0 | J54: ='Leathnach Achoimre Bainc'!$AW$11 -> 0 | K54: ='Leathnach Achoimre Bainc'!$AW$12 -> 0 | L54: ='Leathnach Achoimre Bainc'!$AW$13 -> 0 | M54: ='Leathnach Achoimre Bainc'!$AW$14 -> 0 | N54: ='Leathnach Achoimre Bainc'!$AW$15 -> 0 | O54: 0 | Q54: =IF(COA!$E$51="Y","Show","Hide") -> Show | R54: Ioncam Club/Staidéir Iarscoile | S54: 0 | T54: 0 | W54: N
B55: Ioncam ó Chluichí | C55: ='Leathnach Achoimre Bainc'!$AX$4 -> 0 | D55: ='Leathnach Achoimre Bainc'!$AX$5 -> 0 | E55: ='Leathnach Achoimre Bainc'!$AX$6 -> 0 | F55: ='Leathnach Achoimre Bainc'!$AX$7 -> 0 | G55: ='Leathnach Achoimre Bainc'!$AX$8 -> 0 | H55: ='Leathnach Achoimre Bainc'!$AX$9 -> 0 | I55: ='Leathnach Achoimre Bainc'!$AX$10 -> 0 | J55: ='Leathnach Achoimre Bainc'!$AX$11 -> 0 | K55: ='Leathnach Achoimre Bainc'!$AX$12 -> 0 | L55: ='Leathnach Achoimre Bainc'!$AX$13 -> 0 | M55: ='Leathnach Achoimre Bainc'!$AX$14 -> 0 | N55: ='Leathnach Achoimre Bainc'!$AX$15 -> 0 | O55: 0 | Q55: =IF(COA!$E$52="Y","Show","Hide") -> Show | R55: Ioncam ó Chluichí | S55: 0 | T55: 0 | W55: N
B56: Fruiliú Bus le haghaidh Ioncam Cluichí | C56: ='Leathnach Achoimre Bainc'!$AY$4 -> 0 | D56: ='Leathnach Achoimre Bainc'!$AY$5 -> 0 | E56: ='Leathnach Achoimre Bainc'!$AY$6 -> 0 | F56: ='Leathnach Achoimre Bainc'!$AY$7 -> 0 | G56: ='Leathnach Achoimre Bainc'!$AY$8 -> 0 | H56: ='Leathnach Achoimre Bainc'!$AY$9 -> 0 | I56: ='Leathnach Achoimre Bainc'!$AY$10 -> 0 | J56: ='Leathnach Achoimre Bainc'!$AY$11 -> 0 | K56: ='Leathnach Achoimre Bainc'!$AY$12 -> 0 | L56: ='Leathnach Achoimre Bainc'!$AY$13 -> 0 | M56: ='Leathnach Achoimre Bainc'!$AY$14 -> 0 | N56: ='Leathnach Achoimre Bainc'!$AY$15 -> 0 | O56: 0 | Q56: =IF(COA!$E$53="Y","Show","Hide") -> Show | R56: Fruiliú Bus le haghaidh Ioncam Cluichí | S56: 0 | T56: 0 | W56: N
B57: Ioncam Eile ar Fruiliú Bus | C57: ='Leathnach Achoimre Bainc'!$AZ$4 -> 0 | D57: ='Leathnach Achoimre Bainc'!$AZ$5 -> 0 | E57: ='Leathnach Achoimre Bainc'!$AZ$6 -> 0 | F57: ='Leathnach Achoimre Bainc'!$AZ$7 -> 0 | G57: ='Leathnach Achoimre Bainc'!$AZ$8 -> 0 | H57: ='Leathnach Achoimre Bainc'!$AZ$9 -> 0 | I57: ='Leathnach Achoimre Bainc'!$AZ$10 -> 0 | J57: ='Leathnach Achoimre Bainc'!$AZ$11 -> 0 | K57: ='Leathnach Achoimre Bainc'!$AZ$12 -> 0 | L57: ='Leathnach Achoimre Bainc'!$AZ$13 -> 0 | M57: ='Leathnach Achoimre Bainc'!$AZ$14 -> 0 | N57: ='Leathnach Achoimre Bainc'!$AZ$15 -> 0 | O57: 0 | Q57: =IF(COA!$E$54="Y","Show","Hide") -> Show | R57: Ioncam Eile ar Fruiliú Bus | S57: 0 | T57: 0 | W57: N
B58: Ioncam ó Cheoldrámaí/Dhrámaí Scoile | C58: ='Leathnach Achoimre Bainc'!$BA$4 -> 0 | D58: ='Leathnach Achoimre Bainc'!$BA$5 -> 0 | E58: ='Leathnach Achoimre Bainc'!$BA$6 -> 0 | F58: ='Leathnach Achoimre Bainc'!$BA$7 -> 0 | G58: ='Leathnach Achoimre Bainc'!$BA$8 -> 0 | H58: ='Leathnach Achoimre Bainc'!$BA$9 -> 0 | I58: ='Leathnach Achoimre Bainc'!$BA$10 -> 0 | J58: ='Leathnach Achoimre Bainc'!$BA$11 -> 0 | K58: ='Leathnach Achoimre Bainc'!$BA$12 -> 0 | L58: ='Leathnach Achoimre Bainc'!$BA$13 -> 0 | M58: ='Leathnach Achoimre Bainc'!$BA$14 -> 0 | N58: ='Leathnach Achoimre Bainc'!$BA$15 -> 0 | O58: 0 | Q58: =IF(COA!$E$55="Y","Show","Hide") -> Show | R58: Ioncam ó Cheoldrámaí/Dhrámaí Scoile | S58: 0 | T58: 0 | W58: N
B59: Ioncam ó Thurais Scoile | C59: ='Leathnach Achoimre Bainc'!$BB$4 -> 0 | D59: ='Leathnach Achoimre Bainc'!$BB$5 -> 0 | E59: ='Leathnach Achoimre Bainc'!$BB$6 -> 0 | F59: ='Leathnach Achoimre Bainc'!$BB$7 -> 0 | G59: ='Leathnach Achoimre Bainc'!$BB$8 -> 0 | H59: ='Leathnach Achoimre Bainc'!$BB$9 -> 0 | I59: ='Leathnach Achoimre Bainc'!$BB$10 -> 0 | J59: ='Leathnach Achoimre Bainc'!$BB$11 -> 0 | K59: ='Leathnach Achoimre Bainc'!$BB$12 -> 0 | L59: ='Leathnach Achoimre Bainc'!$BB$13 -> 0 | M59: ='Leathnach Achoimre Bainc'!$BB$14 -> 0 | N59: ='Leathnach Achoimre Bainc'!$BB$15 -> 0 | O59: 0 | Q59: =IF(COA!$E$56="Y","Show","Hide") -> Show | R59: Ioncam ó Thurais Scoile | S59: 0 | T59: 0 | W59: N
B60: Ioncam ó Snámh Scoile | C60: ='Leathnach Achoimre Bainc'!$BC$4 -> 0 | D60: ='Leathnach Achoimre Bainc'!$BC$5 -> 0 | E60: ='Leathnach Achoimre Bainc'!$BC$6 -> 0 | F60: ='Leathnach Achoimre Bainc'!$BC$7 -> 0 | G60: ='Leathnach Achoimre Bainc'!$BC$8 -> 0 | H60: ='Leathnach Achoimre Bainc'!$BC$9 -> 0 | I60: ='Leathnach Achoimre Bainc'!$BC$10 -> 0 | J60: ='Leathnach Achoimre Bainc'!$BC$11 -> 0 | K60: ='Leathnach Achoimre Bainc'!$BC$12 -> 0 | L60: ='Leathnach Achoimre Bainc'!$BC$13 -> 0 | M60: ='Leathnach Achoimre Bainc'!$BC$14 -> 0 | N60: ='Leathnach Achoimre Bainc'!$BC$15 -> 0 | O60: 0 | Q60: =IF(COA!$E$57="Y","Show","Hide") -> Show | R60: Ioncam ó Snámh Scoile | S60: 0 | T60: 0 | W60: N
B61: Ioncam ó Árachas Daltaí | C61: ='Leathnach Achoimre Bainc'!$BD$4 -> 0 | D61: ='Leathnach Achoimre Bainc'!$BD$5 -> 0 | E61: ='Leathnach Achoimre Bainc'!$BD$6 -> 0 | F61: ='Leathnach Achoimre Bainc'!$BD$7 -> 0 | G61: ='Leathnach Achoimre Bainc'!$BD$8 -> 0 | H61: ='Leathnach Achoimre Bainc'!$BD$9 -> 0 | I61: ='Leathnach Achoimre Bainc'!$BD$10 -> 0 | J61: ='Leathnach Achoimre Bainc'!$BD$11 -> 0 | K61: ='Leathnach Achoimre Bainc'!$BD$12 -> 0 | L61: ='Leathnach Achoimre Bainc'!$BD$13 -> 0 | M61: ='Leathnach Achoimre Bainc'!$BD$14 -> 0 | N61: ='Leathnach Achoimre Bainc'!$BD$15 -> 0 | O61: 0 | Q61: =IF(COA!$E$58="Y","Show","Hide") -> Show | R61: Ioncam ó Árachas Daltaí | S61: 0 | T61: 0 | W61: N
B62: Ioncam Réamhscoile | C62: ='Leathnach Achoimre Bainc'!$BE$4 -> 0 | D62: ='Leathnach Achoimre Bainc'!$BE$5 -> 0 | E62: ='Leathnach Achoimre Bainc'!$BE$6 -> 0 | F62: ='Leathnach Achoimre Bainc'!$BE$7 -> 0 | G62: ='Leathnach Achoimre Bainc'!$BE$8 -> 0 | H62: ='Leathnach Achoimre Bainc'!$BE$9 -> 0 | I62: ='Leathnach Achoimre Bainc'!$BE$10 -> 0 | J62: ='Leathnach Achoimre Bainc'!$BE$11 -> 0 | K62: ='Leathnach Achoimre Bainc'!$BE$12 -> 0 | L62: ='Leathnach Achoimre Bainc'!$BE$13 -> 0 | M62: ='Leathnach Achoimre Bainc'!$BE$14 -> 0 | N62: ='Leathnach Achoimre Bainc'!$BE$15 -> 0 | O62: 0 | Q62: =IF(COA!$E$59="Y","Show","Hide") -> Show | R62: Ioncam Réamhscoile | S62: 0 | T62: 0 | W62: N
B63: Ioncam ó Champaí Samhraidh | C63: ='Leathnach Achoimre Bainc'!$BF$4 -> 0 | D63: ='Leathnach Achoimre Bainc'!$BF$5 -> 0 | E63: ='Leathnach Achoimre Bainc'!$BF$6 -> 0 | F63: ='Leathnach Achoimre Bainc'!$BF$7 -> 0 | G63: ='Leathnach Achoimre Bainc'!$BF$8 -> 0 | H63: ='Leathnach Achoimre Bainc'!$BF$9 -> 0 | I63: ='Leathnach Achoimre Bainc'!$BF$10 -> 0 | J63: ='Leathnach Achoimre Bainc'!$BF$11 -> 0 | K63: ='Leathnach Achoimre Bainc'!$BF$12 -> 0 | L63: ='Leathnach Achoimre Bainc'!$BF$13 -> 0 | M63: ='Leathnach Achoimre Bainc'!$BF$14 -> 0 | N63: ='Leathnach Achoimre Bainc'!$BF$15 -> 0 | O63: 0 | Q63: =IF(COA!$E$60="Y","Show","Hide") -> Hide | R63: Ioncam ó Champaí Samhraidh | S63: 0 | T63: 0 | W63: Y
B64: Ioncam In-Aisíoctha | C64: ='Leathnach Achoimre Bainc'!$BG$4 -> 0 | D64: ='Leathnach Achoimre Bainc'!$BG$5 -> 0 | E64: ='Leathnach Achoimre Bainc'!$BG$6 -> 0 | F64: ='Leathnach Achoimre Bainc'!$BG$7 -> 0 | G64: ='Leathnach Achoimre Bainc'!$BG$8 -> 0 | H64: ='Leathnach Achoimre Bainc'!$BG$9 -> 0 | I64: ='Leathnach Achoimre Bainc'!$BG$10 -> 0 | J64: ='Leathnach Achoimre Bainc'!$BG$11 -> 0 | K64: ='Leathnach Achoimre Bainc'!$BG$12 -> 0 | L64: ='Leathnach Achoimre Bainc'!$BG$13 -> 0 | M64: ='Leathnach Achoimre Bainc'!$BG$14 -> 0 | N64: ='Leathnach Achoimre Bainc'!$BG$15 -> 0 | O64: 0 | Q64: =IF(COA!$E$61="Y","Show","Hide") -> Show | R64: Ioncam In-Aisíoctha | S64: 0 | T64: 0 | W64: N
B65: Ioncam Eile arna Ghiniúint ag an Scoil | C65: ='Leathnach Achoimre Bainc'!$BH$4 -> 0 | D65: ='Leathnach Achoimre Bainc'!$BH$5 -> 0 | E65: ='Leathnach Achoimre Bainc'!$BH$6 -> 0 | F65: ='Leathnach Achoimre Bainc'!$BH$7 -> 0 | G65: ='Leathnach Achoimre Bainc'!$BH$8 -> 0 | H65: ='Leathnach Achoimre Bainc'!$BH$9 -> 0 | I65: ='Leathnach Achoimre Bainc'!$BH$10 -> 0 | J65: ='Leathnach Achoimre Bainc'!$BH$11 -> 0 | K65: ='Leathnach Achoimre Bainc'!$BH$12 -> 0 | L65: ='Leathnach Achoimre Bainc'!$BH$13 -> 0 | M65: ='Leathnach Achoimre Bainc'!$BH$14 -> 0 | N65: ='Leathnach Achoimre Bainc'!$BH$15 -> 0 | O65: 0 | Q65: =IF(COA!$E$62="Y","Show","Hide") -> Show | R65: Ioncam Eile arna Ghiniúint ag an Scoil | S65: 0 | T65: 0 | W65: N
B66: Ioncam Ealaíon agus Ceardaíochta Scoile | C66: ='Leathnach Achoimre Bainc'!$BI$4 -> 0 | D66: ='Leathnach Achoimre Bainc'!$BI$5 -> 0 | E66: ='Leathnach Achoimre Bainc'!$BI$6 -> 0 | F66: ='Leathnach Achoimre Bainc'!$BI$7 -> 0 | G66: ='Leathnach Achoimre Bainc'!$BI$8 -> 0 | H66: ='Leathnach Achoimre Bainc'!$BI$9 -> 0 | I66: ='Leathnach Achoimre Bainc'!$BI$10 -> 0 | J66: ='Leathnach Achoimre Bainc'!$BI$11 -> 0 | K66: ='Leathnach Achoimre Bainc'!$BI$12 -> 0 | L66: ='Leathnach Achoimre Bainc'!$BI$13 -> 0 | M66: ='Leathnach Achoimre Bainc'!$BI$14 -> 0 | N66: ='Leathnach Achoimre Bainc'!$BI$15 -> 0 | O66: 0 | Q66: =IF(COA!$E$63="Y","Show","Hide") -> Show | R66: Ioncam Ealaíon agus Ceardaíochta Scoile | S66: 0 | T66: 0 | W66: N
B67: Ioncam Damhsa Scoile | C67: ='Leathnach Achoimre Bainc'!$BJ$4 -> 0 | D67: ='Leathnach Achoimre Bainc'!$BJ$5 -> 0 | E67: ='Leathnach Achoimre Bainc'!$BJ$6 -> 0 | F67: ='Leathnach Achoimre Bainc'!$BJ$7 -> 0 | G67: ='Leathnach Achoimre Bainc'!$BJ$8 -> 0 | H67: ='Leathnach Achoimre Bainc'!$BJ$9 -> 0 | I67: ='Leathnach Achoimre Bainc'!$BJ$10 -> 0 | J67: ='Leathnach Achoimre Bainc'!$BJ$11 -> 0 | K67: ='Leathnach Achoimre Bainc'!$BJ$12 -> 0 | L67: ='Leathnach Achoimre Bainc'!$BJ$13 -> 0 | M67: ='Leathnach Achoimre Bainc'!$BJ$14 -> 0 | N67: ='Leathnach Achoimre Bainc'!$BJ$15 -> 0 | O67: 0 | Q67: =IF(COA!$E$64="Y","Show","Hide") -> Show | R67: Ioncam Damhsa Scoile | S67: 0 | T67: 0 | W67: N
B68: Tiomsú Airgid Srianta Scoile (Neamhchaipitiúil) | C68: ='Leathnach Achoimre Bainc'!$BK$4 -> 0 | D68: ='Leathnach Achoimre Bainc'!$BK$5 -> 0 | E68: ='Leathnach Achoimre Bainc'!$BK$6 -> 0 | F68: ='Leathnach Achoimre Bainc'!$BK$7 -> 0 | G68: ='Leathnach Achoimre Bainc'!$BK$8 -> 0 | H68: ='Leathnach Achoimre Bainc'!$BK$9 -> 0 | I68: ='Leathnach Achoimre Bainc'!$BK$10 -> 0 | J68: ='Leathnach Achoimre Bainc'!$BK$11 -> 0 | K68: ='Leathnach Achoimre Bainc'!$BK$12 -> 0 | L68: ='Leathnach Achoimre Bainc'!$BK$13 -> 0 | M68: ='Leathnach Achoimre Bainc'!$BK$14 -> 0 | N68: ='Leathnach Achoimre Bainc'!$BK$15 -> 0 | O68: 0 | Q68: =IF(COA!$E$65="Y","Show","Hide") -> Show | R68: Tiomsú Airgid Srianta Scoile (Neamhchaipitiúil) | S68: 0 | T68: =O68 -> 0 | W68: N
B69: Tiomsú Airgid Neamhshrianta Scoile (Neamhchaipitiúil) | C69: ='Leathnach Achoimre Bainc'!$BL$4 -> 0 | D69: ='Leathnach Achoimre Bainc'!$BL$5 -> 0 | E69: ='Leathnach Achoimre Bainc'!$BL$6 -> 0 | F69: ='Leathnach Achoimre Bainc'!$BL$7 -> 0 | G69: ='Leathnach Achoimre Bainc'!$BL$8 -> 0 | H69: ='Leathnach Achoimre Bainc'!$BL$9 -> 0 | I69: ='Leathnach Achoimre Bainc'!$BL$10 -> 0 | J69: ='Leathnach Achoimre Bainc'!$BL$11 -> 0 | K69: ='Leathnach Achoimre Bainc'!$BL$12 -> 0 | L69: ='Leathnach Achoimre Bainc'!$BL$13 -> 0 | M69: ='Leathnach Achoimre Bainc'!$BL$14 -> 0 | N69: ='Leathnach Achoimre Bainc'!$BL$15 -> 0 | O69: 0 | Q69: =IF(COA!$E$66="Y","Show","Hide") -> Show | R69: Tiomsú Airgid Neamhshrianta Scoile (Neamhchaipitiúil) | S69: 0 | T69: 0 | W69: N
B70: Lascainí Tugtha | C70: ='Leathnach Achoimre Bainc'!$BM$4 -> 0 | D70: ='Leathnach Achoimre Bainc'!$BM$5 -> 0 | E70: ='Leathnach Achoimre Bainc'!$BM$6 -> 0 | F70: ='Leathnach Achoimre Bainc'!$BM$7 -> 0 | G70: ='Leathnach Achoimre Bainc'!$BM$8 -> 0 | H70: ='Leathnach Achoimre Bainc'!$BM$9 -> 0 | I70: ='Leathnach Achoimre Bainc'!$BM$10 -> 0 | J70: ='Leathnach Achoimre Bainc'!$BM$11 -> 0 | K70: ='Leathnach Achoimre Bainc'!$BM$12 -> 0 | L70: ='Leathnach Achoimre Bainc'!$BM$13 -> 0 | M70: ='Leathnach Achoimre Bainc'!$BM$14 -> 0 | N70: ='Leathnach Achoimre Bainc'!$BM$15 -> 0 | O70: 0 | Q70: =IF(COA!$E$67="Y","Show","Hide") -> Hide | R70: Lascainí Tugtha | S70: 0 | T70: 0 | W70: Y
B71: Ranníocaíochtaí Saorálacha | C71: ='Leathnach Achoimre Bainc'!$BN$4 -> 0 | D71: ='Leathnach Achoimre Bainc'!$BN$5 -> 0 | E71: ='Leathnach Achoimre Bainc'!$BN$6 -> 0 | F71: ='Leathnach Achoimre Bainc'!$BN$7 -> 0 | G71: ='Leathnach Achoimre Bainc'!$BN$8 -> 0 | H71: ='Leathnach Achoimre Bainc'!$BN$9 -> 0 | I71: ='Leathnach Achoimre Bainc'!$BN$10 -> 0 | J71: ='Leathnach Achoimre Bainc'!$BN$11 -> 0 | K71: ='Leathnach Achoimre Bainc'!$BN$12 -> 0 | L71: ='Leathnach Achoimre Bainc'!$BN$13 -> 0 | M71: ='Leathnach Achoimre Bainc'!$BN$14 -> 0 | N71: ='Leathnach Achoimre Bainc'!$BN$15 -> 0 | O71: 0 | Q71: =IF(COA!$E$68="Y","Show","Hide") -> Show | R71: Ranníocaíochtaí Saorálacha | S71: 0 | T71: 0 | W71: N
B72: Ioncam ó Chumann na dTuismitheoirí | C72: ='Leathnach Achoimre Bainc'!$BO$4 -> 0 | D72: ='Leathnach Achoimre Bainc'!$BO$5 -> 0 | E72: ='Leathnach Achoimre Bainc'!$BO$6 -> 0 | F72: ='Leathnach Achoimre Bainc'!$BO$7 -> 0 | G72: ='Leathnach Achoimre Bainc'!$BO$8 -> 0 | H72: ='Leathnach Achoimre Bainc'!$BO$9 -> 0 | I72: ='Leathnach Achoimre Bainc'!$BO$10 -> 0 | J72: ='Leathnach Achoimre Bainc'!$BO$11 -> 0 | K72: ='Leathnach Achoimre Bainc'!$BO$12 -> 0 | L72: ='Leathnach Achoimre Bainc'!$BO$13 -> 0 | M72: ='Leathnach Achoimre Bainc'!$BO$14 -> 0 | N72: ='Leathnach Achoimre Bainc'!$BO$15 -> 0 | O72: 0 | Q72: =IF(COA!$E$69="Y","Show","Hide") -> Show | R72: Ioncam ó Chumann na dTuismitheoirí | S72: =INDEX($C$8:$O$80,MATCH(R72,$B$8:$B$80,0),MATCH($S$7,$C$7:$O$7,0)) -> 0 | T72: 0 | W72: N
B73: Ioncam ó Éilimh Árachais | C73: ='Leathnach Achoimre Bainc'!$BP$4 -> 0 | D73: ='Leathnach Achoimre Bainc'!$BP$5 -> 0 | E73: ='Leathnach Achoimre Bainc'!$BP$6 -> 0 | F73: ='Leathnach Achoimre Bainc'!$BP$7 -> 0 | G73: ='Leathnach Achoimre Bainc'!$BP$8 -> 0 | H73: ='Leathnach Achoimre Bainc'!$BP$9 -> 0 | I73: ='Leathnach Achoimre Bainc'!$BP$10 -> 0 | J73: ='Leathnach Achoimre Bainc'!$BP$11 -> 0 | K73: ='Leathnach Achoimre Bainc'!$BP$12 -> 0 | L73: ='Leathnach Achoimre Bainc'!$BP$13 -> 0 | M73: ='Leathnach Achoimre Bainc'!$BP$14 -> 0 | N73: ='Leathnach Achoimre Bainc'!$BP$15 -> 0 | O73: =(CELL("width",C73)>0)*C73+(CELL("width",D73)>0)*D73+(CELL("width",E73)>0)*E73+(CELL("width",F73)>0)*F73+(CELL("width",G73)>0)*G73+(CELL("width",H73)>0)*H73+(CELL("width",I73)>0)*I73+(CELL("width",J73)>0)*J73+(CELL("width",K73)>0)*K73+(CELL("width",L73)>0)*L73+(CELL("width",M73)>0)*M73+(CELL("width",N73)>0)*N73 -> 0 | Q73: =IF(COA!$E$70="Y","Show","Hide") -> Show | R73: Ioncam ó Éilimh Árachais | S73: 0 | T73: 0 | W73: =IF(AND(O73=0,Q73="Show"),"N","Y") -> N
B74: Ús Bainc Faighte | C74: ='Leathnach Achoimre Bainc'!$BQ$4 -> 0 | D74: ='Leathnach Achoimre Bainc'!$BQ$5 -> 0 | E74: ='Leathnach Achoimre Bainc'!$BQ$6 -> 0 | F74: ='Leathnach Achoimre Bainc'!$BQ$7 -> 0 | G74: ='Leathnach Achoimre Bainc'!$BQ$8 -> 0 | H74: ='Leathnach Achoimre Bainc'!$BQ$9 -> 0 | I74: ='Leathnach Achoimre Bainc'!$BQ$10 -> 0 | J74: ='Leathnach Achoimre Bainc'!$BQ$11 -> 0 | K74: ='Leathnach Achoimre Bainc'!$BQ$12 -> 0 | L74: ='Leathnach Achoimre Bainc'!$BQ$13 -> 0 | M74: ='Leathnach Achoimre Bainc'!$BQ$14 -> 0 | N74: ='Leathnach Achoimre Bainc'!$BQ$15 -> 0 | O74: 0 | Q74: =IF(COA!$E$71="Y","Show","Hide") -> Show | R74: Ús Bainc Faighte | S74: 0 | T74: 0 | W74: N
B75: Amúchadh Maoinithe nach bhFuarthas ón RO | C75: ='Leathnach Achoimre Bainc'!$BR$4 -> 0 | D75: ='Leathnach Achoimre Bainc'!$BR$5 -> 0 | E75: ='Leathnach Achoimre Bainc'!$BR$6 -> 0 | F75: ='Leathnach Achoimre Bainc'!$BR$7 -> 0 | G75: ='Leathnach Achoimre Bainc'!$BR$8 -> 0 | H75: ='Leathnach Achoimre Bainc'!$BR$9 -> 0 | I75: ='Leathnach Achoimre Bainc'!$BR$10 -> 0 | J75: ='Leathnach Achoimre Bainc'!$BR$11 -> 0 | K75: ='Leathnach Achoimre Bainc'!$BR$12 -> 0 | L75: ='Leathnach Achoimre Bainc'!$BR$13 -> 0 | M75: ='Leathnach Achoimre Bainc'!$BR$14 -> 0 | N75: ='Leathnach Achoimre Bainc'!$BR$15 -> 0 | O75: 0 | Q75: =IF(COA!$E$72="Y","Show","Hide") -> Hide | R75: Amúchadh Maoinithe nach bhFuarthas ón RO | S75: 0 | T75: 0 | W75: Y
B76: Ioncam Eile | C76: ='Leathnach Achoimre Bainc'!$BS$4 -> 0 | D76: ='Leathnach Achoimre Bainc'!$BS$5 -> 0 | E76: ='Leathnach Achoimre Bainc'!$BS$6 -> 0 | F76: ='Leathnach Achoimre Bainc'!$BS$7 -> 0 | G76: ='Leathnach Achoimre Bainc'!$BS$8 -> 0 | H76: ='Leathnach Achoimre Bainc'!$BS$9 -> 0 | I76: ='Leathnach Achoimre Bainc'!$BS$10 -> 0 | J76: ='Leathnach Achoimre Bainc'!$BS$11 -> 0 | K76: ='Leathnach Achoimre Bainc'!$BS$12 -> 0 | L76: ='Leathnach Achoimre Bainc'!$BS$13 -> 0 | M76: ='Leathnach Achoimre Bainc'!$BS$14 -> 0 | N76: ='Leathnach Achoimre Bainc'!$BS$15 -> 0 | O76: 0 | Q76: =IF(COA!$E$73="Y","Show","Hide") -> Show | R76: Ioncam Eile | S76: 0 | T76: 0 | W76: N
B77: Ioncam Ainmnithe (Neamhchaipitiúil) | C77: ='Leathnach Achoimre Bainc'!$BT$4 -> 0 | D77: ='Leathnach Achoimre Bainc'!$BT$5 -> 0 | E77: ='Leathnach Achoimre Bainc'!$BT$6 -> 0 | F77: ='Leathnach Achoimre Bainc'!$BT$7 -> 0 | G77: ='Leathnach Achoimre Bainc'!$BT$8 -> 0 | H77: ='Leathnach Achoimre Bainc'!$BT$9 -> 0 | I77: ='Leathnach Achoimre Bainc'!$BT$10 -> 0 | J77: ='Leathnach Achoimre Bainc'!$BT$11 -> 0 | K77: ='Leathnach Achoimre Bainc'!$BT$12 -> 0 | L77: ='Leathnach Achoimre Bainc'!$BT$13 -> 0 | M77: ='Leathnach Achoimre Bainc'!$BT$14 -> 0 | N77: ='Leathnach Achoimre Bainc'!$BT$15 -> 0 | O77: 0 | Q77: =IF(COA!$E$74="Y","Show","Hide") -> Show | R77: Ioncam Ainmnithe (Neamhchaipitiúil) | S77: 0 | T77: 0 | W77: N
B78: Tiomsú Airgid Srianta Seachtrach (Neamhchaipitiúil) | C78: ='Leathnach Achoimre Bainc'!$BU$4 -> 0 | D78: ='Leathnach Achoimre Bainc'!$BU$5 -> 0 | E78: ='Leathnach Achoimre Bainc'!$BU$6 -> 0 | F78: ='Leathnach Achoimre Bainc'!$BU$7 -> 0 | G78: ='Leathnach Achoimre Bainc'!$BU$8 -> 0 | H78: ='Leathnach Achoimre Bainc'!$BU$9 -> 0 | I78: ='Leathnach Achoimre Bainc'!$BU$10 -> 0 | J78: ='Leathnach Achoimre Bainc'!$BU$11 -> 0 | K78: ='Leathnach Achoimre Bainc'!$BU$12 -> 0 | L78: ='Leathnach Achoimre Bainc'!$BU$13 -> 0 | M78: ='Leathnach Achoimre Bainc'!$BU$14 -> 0 | N78: ='Leathnach Achoimre Bainc'!$BU$15 -> 0 | O78: 0 | Q78: =IF(COA!$E$75="Y","Show","Hide") -> Show | R78: Tiomsú Airgid Srianta Seachtrach (Neamhchaipitiúil) | S78: 0 | T78: 0 | W78: N
B79: Tiomsú Airgid Neamhshrianta Seachtrach (Neamhchaipitiúil) | C79: ='Leathnach Achoimre Bainc'!$BV$4 -> 0 | D79: ='Leathnach Achoimre Bainc'!$BV$5 -> 0 | E79: ='Leathnach Achoimre Bainc'!$BV$6 -> 0 | F79: ='Leathnach Achoimre Bainc'!$BV$7 -> 0 | G79: ='Leathnach Achoimre Bainc'!$BV$8 -> 0 | H79: ='Leathnach Achoimre Bainc'!$BV$9 -> 0 | I79: ='Leathnach Achoimre Bainc'!$BV$10 -> 0 | J79: ='Leathnach Achoimre Bainc'!$BV$11 -> 0 | K79: ='Leathnach Achoimre Bainc'!$BV$12 -> 0 | L79: ='Leathnach Achoimre Bainc'!$BV$13 -> 0 | M79: ='Leathnach Achoimre Bainc'!$BV$14 -> 0 | N79: ='Leathnach Achoimre Bainc'!$BV$15 -> 0 | O79: 0 | Q79: =IF(COA!$E$76="Y","Show","Hide") -> Show | R79: Tiomsú Airgid Neamhshrianta Seachtrach (Neamhchaipitiúil) | S79: 0 | T79: 0 | W79: N
B80: Aistriú Isteach | C80: ='Leathnach Achoimre Bainc'!$CF$4 -> 0 | D80: ='Leathnach Achoimre Bainc'!$CF$5 -> 0 | E80: ='Leathnach Achoimre Bainc'!$CF$6 -> 0 | F80: ='Leathnach Achoimre Bainc'!$CF$7 -> 0 | G80: ='Leathnach Achoimre Bainc'!$CF$8 -> 0 | H80: ='Leathnach Achoimre Bainc'!$CF$9 -> 0 | I80: ='Leathnach Achoimre Bainc'!$CF$10 -> 0 | J80: ='Leathnach Achoimre Bainc'!$CF$11 -> 0 | K80: ='Leathnach Achoimre Bainc'!$CF$12 -> 0 | L80: ='Leathnach Achoimre Bainc'!$CF$13 -> 0 | M80: ='Leathnach Achoimre Bainc'!$CF$14 -> 0 | N80: ='Leathnach Achoimre Bainc'!$CF$15 -> 0 | O80: 0 | R80: Aistriú Isteach | S80: 0 | T80: 0
B81: IONCAM IOMLÁN NA SCOILE | C81: =SUM(C8:C80) -> 0 | D81: 0 | E81: 0 | F81: 0 | G81: 0 | H81: 0 | I81: 0 | J81: 0 | K81: 0 | L81: 0 | M81: 0 | N81: 0 | O81: 0 | R81: IONCAM IOMLÁN NA SCOILE | S81: =SUM(S8:S80) -> 0 | T81: =SUM(T8:T80) -> 0
B83: CAITEACHAS NA SCOILE | C83: Meán Fomhair | D83: Deireadh Fómhair | E83: Samhain | F83: Nollaig | G83: Eanair | H83: Feabhra | I83: Márta | J83: Aibreán | K83: Bealtaine | L83: Meitheamh | M83: Iúil | N83: Lúnasa | O83: Iomlán | R83: CAITEACHAS NA SCOILE | S83: =S5 -> Meán Fomhair | T83: Iomlán | W83: =IF(AND(O83=0,Q83="Show"),"N","Y") -> Y
B84: Costas Múinteoirí Ionaid | C84: ='Leathnach Achoimre Bainc'!$C$21 -> 0 | D84: ='Leathnach Achoimre Bainc'!$C$22 -> 0 | E84: ='Leathnach Achoimre Bainc'!$C$23 -> 0 | F84: ='Leathnach Achoimre Bainc'!$C$24 -> 0 | G84: ='Leathnach Achoimre Bainc'!$C$25 -> 0 | H84: ='Leathnach Achoimre Bainc'!$C$26 -> 0 | I84: ='Leathnach Achoimre Bainc'!$C$27 -> 0 | J84: ='Leathnach Achoimre Bainc'!$C$28 -> 0 | K84: ='Leathnach Achoimre Bainc'!$C$29 -> 0 | L84: ='Leathnach Achoimre Bainc'!$C$30 -> 0 | M84: ='Leathnach Achoimre Bainc'!$C$31 -> 0 | N84: ='Leathnach Achoimre Bainc'!$C$32 -> 0 | O84: =(CELL("width",C84)>0)*C84+(CELL("width",D84)>0)*D84+(CELL("width",E84)>0)*E84+(CELL("width",F84)>0)*F84+(CELL("width",G84)>0)*G84+(CELL("width",H84)>0)*H84+(CELL("width",I84)>0)*I84+(CELL("width",J84)>0)*J84+(CELL("width",K84)>0)*K84+(CELL("width",L84)>0)*L84+(CELL("width",M84)>0)*M84+(CELL("width",N84)>0)*N84 -> 0 | Q84: =IF(COA!$E$77="Y","Show","Hide") -> Show | R84: Costas Múinteoirí Ionaid | S84: =INDEX($C$84:$O$197,MATCH(R84,$B$84:$B$197,0),MATCH($S$83,$C$83:$O$83,0)) -> 0 | T84: =O84 -> 0 | W84: =IF(AND(O84=0,Q84="Show"),"N","Y") -> N
B85: Costas Múinteoirí a Íoctar go Príobháideach | C85: ='Leathnach Achoimre Bainc'!$D$21 -> 0 | D85: ='Leathnach Achoimre Bainc'!$D$22 -> 0 | E85: ='Leathnach Achoimre Bainc'!$D$23 -> 0 | F85: ='Leathnach Achoimre Bainc'!$D$24 -> 0 | G85: ='Leathnach Achoimre Bainc'!$D$25 -> 0 | H85: ='Leathnach Achoimre Bainc'!$D$26 -> 0 | I85: ='Leathnach Achoimre Bainc'!$D$27 -> 0 | J85: ='Leathnach Achoimre Bainc'!$D$28 -> 0 | K85: ='Leathnach Achoimre Bainc'!$D$29 -> 0 | L85: ='Leathnach Achoimre Bainc'!$D$30 -> 0 | M85: ='Leathnach Achoimre Bainc'!$D$31 -> 0 | N85: ='Leathnach Achoimre Bainc'!$D$32 -> 0 | O85: =(CELL("width",C85)>0)*C85+(CELL("width",D85)>0)*D85+(CELL("width",E85)>0)*E85+(CELL("width",F85)>0)*F85+(CELL("width",G85)>0)*G85+(CELL("width",H85)>0)*H85+(CELL("width",I85)>0)*I85+(CELL("width",J85)>0)*J85+(CELL("width",K85)>0)*K85+(CELL("width",L85)>0)*L85+(CELL("width",M85)>0)*M85+(CELL("width",N85)>0)*N85 -> 0 | Q85: =IF(COA!$E$78="Y","Show","Hide") -> Show | R85: Costas Múinteoirí a Íoctar go Príobháideach | S85: 0 | T85: =O85 -> 0 | W85: N
B86: Costais riaracháin leabhar scoile saor in aisce | C86: ='Leathnach Achoimre Bainc'!$E$21 -> 0 | D86: ='Leathnach Achoimre Bainc'!$E$22 -> 0 | E86: ='Leathnach Achoimre Bainc'!$E$23 -> 0 | F86: ='Leathnach Achoimre Bainc'!$E$24 -> 0 | G86: ='Leathnach Achoimre Bainc'!$E$25 -> 0 | H86: ='Leathnach Achoimre Bainc'!$E$26 -> 0 | I86: ='Leathnach Achoimre Bainc'!$E$27 -> 0 | J86: ='Leathnach Achoimre Bainc'!$E$28 -> 0 | K86: ='Leathnach Achoimre Bainc'!$E$29 -> 0 | L86: ='Leathnach Achoimre Bainc'!$E$30 -> 0 | M86: ='Leathnach Achoimre Bainc'!$E$31 -> 0 | N86: ='Leathnach Achoimre Bainc'!$E$32 -> 0 | O86: 0 | Q86: =IF(COA!$E$79="Y","Show","Hide") -> Show | R86: Costais riaracháin leabhar scoile saor in aisce | S86: 0 | T86: 0 | W86: N
B87: Costas Tuarastal Maoirseachta agus Ionadaithe | C87: ='Leathnach Achoimre Bainc'!$F$21 -> 0 | D87: ='Leathnach Achoimre Bainc'!$F$22 -> 0 | E87: ='Leathnach Achoimre Bainc'!$F$23 -> 0 | F87: ='Leathnach Achoimre Bainc'!$F$24 -> 0 | G87: ='Leathnach Achoimre Bainc'!$F$25 -> 0 | H87: ='Leathnach Achoimre Bainc'!$F$26 -> 0 | I87: ='Leathnach Achoimre Bainc'!$F$27 -> 0 | J87: ='Leathnach Achoimre Bainc'!$F$28 -> 0 | K87: ='Leathnach Achoimre Bainc'!$F$29 -> 0 | L87: ='Leathnach Achoimre Bainc'!$F$30 -> 0 | M87: ='Leathnach Achoimre Bainc'!$F$31 -> 0 | N87: ='Leathnach Achoimre Bainc'!$F$32 -> 0 | O87: 0 | Q87: =IF(COA!$E$80="Y","Show","Hide") -> Hide | R87: Costas Tuarastal Maoirseachta agus Ionadaithe | S87: 0 | T87: 0 | W87: Y
B88: Costas Tuarastal Oideachais Aosaigh | C88: ='Leathnach Achoimre Bainc'!$G$21 -> 0 | D88: ='Leathnach Achoimre Bainc'!$G$22 -> 0 | E88: ='Leathnach Achoimre Bainc'!$G$23 -> 0 | F88: ='Leathnach Achoimre Bainc'!$G$24 -> 0 | G88: ='Leathnach Achoimre Bainc'!$G$25 -> 0 | H88: ='Leathnach Achoimre Bainc'!$G$26 -> 0 | I88: ='Leathnach Achoimre Bainc'!$G$27 -> 0 | J88: ='Leathnach Achoimre Bainc'!$G$28 -> 0 | K88: ='Leathnach Achoimre Bainc'!$G$29 -> 0 | L88: ='Leathnach Achoimre Bainc'!$G$30 -> 0 | M88: ='Leathnach Achoimre Bainc'!$G$31 -> 0 | N88: ='Leathnach Achoimre Bainc'!$G$32 -> 0 | O88: 0 | Q88: =IF(COA!$E$81="Y","Show","Hide") -> Hide | R88: Costas Tuarastal Oideachais Aosaigh | S88: 0 | T88: 0 | W88: Y
B89: Costais Thuarastail an Cheaintín | C89: ='Leathnach Achoimre Bainc'!$H$21 -> 0 | D89: ='Leathnach Achoimre Bainc'!$H$22 -> 0 | E89: ='Leathnach Achoimre Bainc'!$H$23 -> 0 | F89: ='Leathnach Achoimre Bainc'!$H$24 -> 0 | G89: ='Leathnach Achoimre Bainc'!$H$25 -> 0 | H89: ='Leathnach Achoimre Bainc'!$H$26 -> 0 | I89: ='Leathnach Achoimre Bainc'!$H$27 -> 0 | J89: ='Leathnach Achoimre Bainc'!$H$28 -> 0 | K89: ='Leathnach Achoimre Bainc'!$H$29 -> 0 | L89: ='Leathnach Achoimre Bainc'!$H$30 -> 0 | M89: ='Leathnach Achoimre Bainc'!$H$31 -> 0 | N89: ='Leathnach Achoimre Bainc'!$H$32 -> 0 | O89: 0 | Q89: =IF(COA!$E$82="Y","Show","Hide") -> Hide | R89: Costais Thuarastail an Cheaintín | S89: 0 | T89: 0 | W89: Y
B90: Costas Tuarastal Staidéir/Club Iarscoile | C90: ='Leathnach Achoimre Bainc'!$I$21 -> 0 | D90: ='Leathnach Achoimre Bainc'!$I$22 -> 0 | E90: ='Leathnach Achoimre Bainc'!$I$23 -> 0 | F90: ='Leathnach Achoimre Bainc'!$I$24 -> 0 | G90: ='Leathnach Achoimre Bainc'!$I$25 -> 0 | H90: ='Leathnach Achoimre Bainc'!$I$26 -> 0 | I90: ='Leathnach Achoimre Bainc'!$I$27 -> 0 | J90: ='Leathnach Achoimre Bainc'!$I$28 -> 0 | K90: ='Leathnach Achoimre Bainc'!$I$29 -> 0 | L90: ='Leathnach Achoimre Bainc'!$I$30 -> 0 | M90: ='Leathnach Achoimre Bainc'!$I$31 -> 0 | N90: ='Leathnach Achoimre Bainc'!$I$32 -> 0 | O90: 0 | Q90: =IF(COA!$E$83="Y","Show","Hide") -> Show | R90: Costas Tuarastal Staidéir/Club Iarscoile | S90: 0 | T90: 0 | W90: N
B91: Costais Tuarastail Campaí Samhraidh | C91: ='Leathnach Achoimre Bainc'!$J$21 -> 0 | D91: ='Leathnach Achoimre Bainc'!$J$22 -> 0 | E91: ='Leathnach Achoimre Bainc'!$J$23 -> 0 | F91: ='Leathnach Achoimre Bainc'!$J$24 -> 0 | G91: ='Leathnach Achoimre Bainc'!$J$25 -> 0 | H91: ='Leathnach Achoimre Bainc'!$J$26 -> 0 | I91: ='Leathnach Achoimre Bainc'!$J$27 -> 0 | J91: ='Leathnach Achoimre Bainc'!$J$28 -> 0 | K91: ='Leathnach Achoimre Bainc'!$J$29 -> 0 | L91: ='Leathnach Achoimre Bainc'!$J$30 -> 0 | M91: ='Leathnach Achoimre Bainc'!$J$31 -> 0 | N91: ='Leathnach Achoimre Bainc'!$J$32 -> 0 | O91: 0 | Q91: =IF(COA!$E$84="Y","Show","Hide") -> Hide | R91: Costais Tuarastail Campaí Samhraidh | S91: 0 | T91: 0 | W91: Y
B92: Costas Tuarastail Tionlacaithe Bus | C92: ='Leathnach Achoimre Bainc'!$K$21 -> 0 | D92: ='Leathnach Achoimre Bainc'!$K$22 -> 0 | E92: ='Leathnach Achoimre Bainc'!$K$23 -> 0 | F92: ='Leathnach Achoimre Bainc'!$K$24 -> 0 | G92: ='Leathnach Achoimre Bainc'!$K$25 -> 0 | H92: ='Leathnach Achoimre Bainc'!$K$26 -> 0 | I92: ='Leathnach Achoimre Bainc'!$K$27 -> 0 | J92: ='Leathnach Achoimre Bainc'!$K$28 -> 0 | K92: ='Leathnach Achoimre Bainc'!$K$29 -> 0 | L92: ='Leathnach Achoimre Bainc'!$K$30 -> 0 | M92: ='Leathnach Achoimre Bainc'!$K$31 -> 0 | N92: ='Leathnach Achoimre Bainc'!$K$32 -> 0 | O92: 0 | Q92: =IF(COA!$E$85="Y","Show","Hide") -> Show | R92: Costas Tuarastail Tionlacaithe Bus | S92: 0 | T92: 0 | W92: N
B93: Costais Tuarastail Oideachais Eile | C93: ='Leathnach Achoimre Bainc'!$L$21 -> 0 | D93: ='Leathnach Achoimre Bainc'!$L$22 -> 0 | E93: ='Leathnach Achoimre Bainc'!$L$23 -> 0 | F93: ='Leathnach Achoimre Bainc'!$L$24 -> 0 | G93: ='Leathnach Achoimre Bainc'!$L$25 -> 0 | H93: ='Leathnach Achoimre Bainc'!$L$26 -> 0 | I93: ='Leathnach Achoimre Bainc'!$L$27 -> 0 | J93: ='Leathnach Achoimre Bainc'!$L$28 -> 0 | K93: ='Leathnach Achoimre Bainc'!$L$29 -> 0 | L93: ='Leathnach Achoimre Bainc'!$L$30 -> 0 | M93: ='Leathnach Achoimre Bainc'!$L$31 -> 0 | N93: ='Leathnach Achoimre Bainc'!$L$32 -> 0 | O93: 0 | Q93: =IF(COA!$E$86="Y","Show","Hide") -> Show | R93: Costais Tuarastail Oideachais Eile | S93: 0 | T93: 0 | W93: N
B94: Costais Tuarastail Maoinithe ag FSS | C94: ='Leathnach Achoimre Bainc'!$M$21 -> 0 | D94: ='Leathnach Achoimre Bainc'!$M$22 -> 0 | E94: ='Leathnach Achoimre Bainc'!$M$23 -> 0 | F94: ='Leathnach Achoimre Bainc'!$M$24 -> 0 | G94: ='Leathnach Achoimre Bainc'!$M$25 -> 0 | H94: ='Leathnach Achoimre Bainc'!$M$26 -> 0 | I94: ='Leathnach Achoimre Bainc'!$M$27 -> 0 | J94: ='Leathnach Achoimre Bainc'!$M$28 -> 0 | K94: ='Leathnach Achoimre Bainc'!$M$29 -> 0 | L94: ='Leathnach Achoimre Bainc'!$M$30 -> 0 | M94: ='Leathnach Achoimre Bainc'!$M$31 -> 0 | N94: ='Leathnach Achoimre Bainc'!$M$32 -> 0 | O94: 0 | Q94: =IF(COA!$E$87="Y","Show","Hide") -> Hide | R94: Costais Tuarastail Maoinithe ag FSS | S94: 0 | T94: 0 | W94: Y
B95: Costas Áiseanna Teagaisc | C95: ='Leathnach Achoimre Bainc'!$N$21 -> 0 | D95: ='Leathnach Achoimre Bainc'!$N$22 -> 0 | E95: ='Leathnach Achoimre Bainc'!$N$23 -> 0 | F95: ='Leathnach Achoimre Bainc'!$N$24 -> 0 | G95: ='Leathnach Achoimre Bainc'!$N$25 -> 0 | H95: ='Leathnach Achoimre Bainc'!$N$26 -> 0 | I95: ='Leathnach Achoimre Bainc'!$N$27 -> 0 | J95: ='Leathnach Achoimre Bainc'!$N$28 -> 0 | K95: ='Leathnach Achoimre Bainc'!$N$29 -> 0 | L95: ='Leathnach Achoimre Bainc'!$N$30 -> 0 | M95: ='Leathnach Achoimre Bainc'!$N$31 -> 0 | N95: ='Leathnach Achoimre Bainc'!$N$32 -> 0 | O95: 0 | Q95: =IF(COA!$E$88="Y","Show","Hide") -> Show | R95: Costas Áiseanna Teagaisc | S95: 0 | T95: 0 | W95: N
B96: Costaisí Scéim luath-thosaithe le haghaidh Ábh/Tre/For tuis | C96: ='Leathnach Achoimre Bainc'!$O$21 -> 0 | D96: ='Leathnach Achoimre Bainc'!$O$22 -> 0 | E96: ='Leathnach Achoimre Bainc'!$O$23 -> 0 | F96: ='Leathnach Achoimre Bainc'!$O$24 -> 0 | G96: ='Leathnach Achoimre Bainc'!$O$25 -> 0 | H96: ='Leathnach Achoimre Bainc'!$O$26 -> 0 | I96: ='Leathnach Achoimre Bainc'!$O$27 -> 0 | J96: ='Leathnach Achoimre Bainc'!$O$28 -> 0 | K96: ='Leathnach Achoimre Bainc'!$O$29 -> 0 | L96: ='Leathnach Achoimre Bainc'!$O$30 -> 0 | M96: ='Leathnach Achoimre Bainc'!$O$31 -> 0 | N96: ='Leathnach Achoimre Bainc'!$O$32 -> 0 | O96: 0 | Q96: =IF(COA!$E$89="Y","Show","Hide") -> Hide | R96: Costaisí Scéim luath-thosaithe le haghaidh Ábh/Tre/For tuis | S96: 0 | T96: 0 | W96: Y
B97: Costas fótachóipeáil mac léinn | C97: ='Leathnach Achoimre Bainc'!$P$21 -> 0 | D97: ='Leathnach Achoimre Bainc'!$P$22 -> 0 | E97: ='Leathnach Achoimre Bainc'!$P$23 -> 0 | F97: ='Leathnach Achoimre Bainc'!$P$24 -> 0 | G97: ='Leathnach Achoimre Bainc'!$P$25 -> 0 | H97: ='Leathnach Achoimre Bainc'!$P$26 -> 0 | I97: ='Leathnach Achoimre Bainc'!$P$27 -> 0 | J97: ='Leathnach Achoimre Bainc'!$P$28 -> 0 | K97: ='Leathnach Achoimre Bainc'!$P$29 -> 0 | L97: ='Leathnach Achoimre Bainc'!$P$30 -> 0 | M97: ='Leathnach Achoimre Bainc'!$P$31 -> 0 | N97: ='Leathnach Achoimre Bainc'!$P$32 -> 0 | O97: 0 | Q97: =IF(COA!$E$90="Y","Show","Hide") -> Show | R97: Costas fótachóipeáil mac léinn | S97: 0 | T97: 0 | W97: N
B98: Costas maidir le Reiligiún/hÉiteas | C98: ='Leathnach Achoimre Bainc'!$Q$21 -> 0 | D98: ='Leathnach Achoimre Bainc'!$Q$22 -> 0 | E98: ='Leathnach Achoimre Bainc'!$Q$23 -> 0 | F98: ='Leathnach Achoimre Bainc'!$Q$24 -> 0 | G98: ='Leathnach Achoimre Bainc'!$Q$25 -> 0 | H98: ='Leathnach Achoimre Bainc'!$Q$26 -> 0 | I98: ='Leathnach Achoimre Bainc'!$Q$27 -> 0 | J98: ='Leathnach Achoimre Bainc'!$Q$28 -> 0 | K98: ='Leathnach Achoimre Bainc'!$Q$29 -> 0 | L98: ='Leathnach Achoimre Bainc'!$Q$30 -> 0 | M98: ='Leathnach Achoimre Bainc'!$Q$31 -> 0 | N98: ='Leathnach Achoimre Bainc'!$Q$32 -> 0 | O98: 0 | Q98: =IF(COA!$E$91="Y","Show","Hide") -> Show | R98: Costas maidir le Reiligiún/hÉiteas | S98: 0 | T98: 0 | W98: N
B99: Costais Deontais Neamhchaipitil TFC | C99: ='Leathnach Achoimre Bainc'!$R$21 -> 0 | D99: ='Leathnach Achoimre Bainc'!$R$22 -> 0 | E99: ='Leathnach Achoimre Bainc'!$R$23 -> 0 | F99: ='Leathnach Achoimre Bainc'!$R$24 -> 0 | G99: ='Leathnach Achoimre Bainc'!$R$25 -> 0 | H99: ='Leathnach Achoimre Bainc'!$R$26 -> 0 | I99: ='Leathnach Achoimre Bainc'!$R$27 -> 0 | J99: ='Leathnach Achoimre Bainc'!$R$28 -> 0 | K99: ='Leathnach Achoimre Bainc'!$R$29 -> 0 | L99: ='Leathnach Achoimre Bainc'!$R$30 -> 0 | M99: ='Leathnach Achoimre Bainc'!$R$31 -> 0 | N99: ='Leathnach Achoimre Bainc'!$R$32 -> 0 | O99: 0 | Q99: =IF(COA!$E$92="Y","Show","Hide") -> Show | R99: Costais Deontais Neamhchaipitil TFC | S99: 0 | T99: 0 | W99: N
B100: Costais Cothabhála & Tacaíochta Ríomhaireachta | C100: ='Leathnach Achoimre Bainc'!$S$21 -> 0 | D100: ='Leathnach Achoimre Bainc'!$S$22 -> 0 | E100: ='Leathnach Achoimre Bainc'!$S$23 -> 0 | F100: ='Leathnach Achoimre Bainc'!$S$24 -> 0 | G100: ='Leathnach Achoimre Bainc'!$S$25 -> 0 | H100: ='Leathnach Achoimre Bainc'!$S$26 -> 0 | I100: ='Leathnach Achoimre Bainc'!$S$27 -> 0 | J100: ='Leathnach Achoimre Bainc'!$S$28 -> 0 | K100: ='Leathnach Achoimre Bainc'!$S$29 -> 0 | L100: ='Leathnach Achoimre Bainc'!$S$30 -> 0 | M100: ='Leathnach Achoimre Bainc'!$S$31 -> 0 | N100: ='Leathnach Achoimre Bainc'!$S$32 -> 0 | O100: 0 | Q100: =IF(COA!$E$93="Y","Show","Hide") -> Show | R100: Costais Cothabhála & Tacaíochta Ríomhaireachta | S100: 0 | T100: 0 | W100: N
B101: Costas d’Ábhair Eile | C101: ='Leathnach Achoimre Bainc'!$T$21 -> 0 | D101: ='Leathnach Achoimre Bainc'!$T$22 -> 0 | E101: ='Leathnach Achoimre Bainc'!$T$23 -> 0 | F101: ='Leathnach Achoimre Bainc'!$T$24 -> 0 | G101: ='Leathnach Achoimre Bainc'!$T$25 -> 0 | H101: ='Leathnach Achoimre Bainc'!$T$26 -> 0 | I101: ='Leathnach Achoimre Bainc'!$T$27 -> 0 | J101: ='Leathnach Achoimre Bainc'!$T$28 -> 0 | K101: ='Leathnach Achoimre Bainc'!$T$29 -> 0 | L101: ='Leathnach Achoimre Bainc'!$T$30 -> 0 | M101: ='Leathnach Achoimre Bainc'!$T$31 -> 0 | N101: ='Leathnach Achoimre Bainc'!$T$32 -> 0 | O101: 0 | Q101: =IF(COA!$E$94="Y","Show","Hide") -> Hide | R101: Costas d’Ábhair Eile | S101: 0 | T101: 0 | W101: Y
B102: Costas don Ardteistiméireacht Fheidhmeach | C102: ='Leathnach Achoimre Bainc'!$U$21 -> 0 | D102: ='Leathnach Achoimre Bainc'!$U$22 -> 0 | E102: ='Leathnach Achoimre Bainc'!$U$23 -> 0 | F102: ='Leathnach Achoimre Bainc'!$U$24 -> 0 | G102: ='Leathnach Achoimre Bainc'!$U$25 -> 0 | H102: ='Leathnach Achoimre Bainc'!$U$26 -> 0 | I102: ='Leathnach Achoimre Bainc'!$U$27 -> 0 | J102: ='Leathnach Achoimre Bainc'!$U$28 -> 0 | K102: ='Leathnach Achoimre Bainc'!$U$29 -> 0 | L102: ='Leathnach Achoimre Bainc'!$U$30 -> 0 | M102: ='Leathnach Achoimre Bainc'!$U$31 -> 0 | N102: ='Leathnach Achoimre Bainc'!$U$32 -> 0 | O102: 0 | Q102: =IF(COA!$E$95="Y","Show","Hide") -> Hide | R102: Costas don Ardteistiméireacht Fheidhmeach | S102: 0 | T102: 0 | W102: Y
B103: Costas do Ghairmchlár na hArdteistiméireachta | C103: ='Leathnach Achoimre Bainc'!$V$21 -> 0 | D103: ='Leathnach Achoimre Bainc'!$V$22 -> 0 | E103: ='Leathnach Achoimre Bainc'!$V$23 -> 0 | F103: ='Leathnach Achoimre Bainc'!$V$24 -> 0 | G103: ='Leathnach Achoimre Bainc'!$V$25 -> 0 | H103: ='Leathnach Achoimre Bainc'!$V$26 -> 0 | I103: ='Leathnach Achoimre Bainc'!$V$27 -> 0 | J103: ='Leathnach Achoimre Bainc'!$V$28 -> 0 | K103: ='Leathnach Achoimre Bainc'!$V$29 -> 0 | L103: ='Leathnach Achoimre Bainc'!$V$30 -> 0 | M103: ='Leathnach Achoimre Bainc'!$V$31 -> 0 | N103: ='Leathnach Achoimre Bainc'!$V$32 -> 0 | O103: 0 | Q103: =IF(COA!$E$96="Y","Show","Hide") -> Hide | R103: Costas do Ghairmchlár na hArdteistiméireachta | S103: 0 | T103: 0 | W103: Y
B104: Costas na hIdirbhliana | C104: ='Leathnach Achoimre Bainc'!$W$21 -> 0 | D104: ='Leathnach Achoimre Bainc'!$W$22 -> 0 | E104: ='Leathnach Achoimre Bainc'!$W$23 -> 0 | F104: ='Leathnach Achoimre Bainc'!$W$24 -> 0 | G104: ='Leathnach Achoimre Bainc'!$W$25 -> 0 | H104: ='Leathnach Achoimre Bainc'!$W$26 -> 0 | I104: ='Leathnach Achoimre Bainc'!$W$27 -> 0 | J104: ='Leathnach Achoimre Bainc'!$W$28 -> 0 | K104: ='Leathnach Achoimre Bainc'!$W$29 -> 0 | L104: ='Leathnach Achoimre Bainc'!$W$30 -> 0 | M104: ='Leathnach Achoimre Bainc'!$W$31 -> 0 | N104: ='Leathnach Achoimre Bainc'!$W$32 -> 0 | O104: 0 | Q104: =IF(COA!$E$97="Y","Show","Hide") -> Hide | R104: Costas na hIdirbhliana | S104: 0 | T104: 0 | W104: Y
B105: Costas na Tacaíochta Foghlama | C105: ='Leathnach Achoimre Bainc'!$X$21 -> 0 | D105: ='Leathnach Achoimre Bainc'!$X$22 -> 0 | E105: ='Leathnach Achoimre Bainc'!$X$23 -> 0 | F105: ='Leathnach Achoimre Bainc'!$X$24 -> 0 | G105: ='Leathnach Achoimre Bainc'!$X$25 -> 0 | H105: ='Leathnach Achoimre Bainc'!$X$26 -> 0 | I105: ='Leathnach Achoimre Bainc'!$X$27 -> 0 | J105: ='Leathnach Achoimre Bainc'!$X$28 -> 0 | K105: ='Leathnach Achoimre Bainc'!$X$29 -> 0 | L105: ='Leathnach Achoimre Bainc'!$X$30 -> 0 | M105: ='Leathnach Achoimre Bainc'!$X$31 -> 0 | N105: ='Leathnach Achoimre Bainc'!$X$32 -> 0 | O105: 0 | Q105: =IF(COA!$E$98="Y","Show","Hide") -> Show | R105: Costas na Tacaíochta Foghlama | S105: 0 | T105: 0 | W105: N
B106: Costas Inseirbhíse agus Oiliúna Múinteoirí | C106: ='Leathnach Achoimre Bainc'!$Y$21 -> 0 | D106: ='Leathnach Achoimre Bainc'!$Y$22 -> 0 | E106: ='Leathnach Achoimre Bainc'!$Y$23 -> 0 | F106: ='Leathnach Achoimre Bainc'!$Y$24 -> 0 | G106: ='Leathnach Achoimre Bainc'!$Y$25 -> 0 | H106: ='Leathnach Achoimre Bainc'!$Y$26 -> 0 | I106: ='Leathnach Achoimre Bainc'!$Y$27 -> 0 | J106: ='Leathnach Achoimre Bainc'!$Y$28 -> 0 | K106: ='Leathnach Achoimre Bainc'!$Y$29 -> 0 | L106: ='Leathnach Achoimre Bainc'!$Y$30 -> 0 | M106: ='Leathnach Achoimre Bainc'!$Y$31 -> 0 | N106: ='Leathnach Achoimre Bainc'!$Y$32 -> 0 | O106: 0 | Q106: =IF(COA!$E$99="Y","Show","Hide") -> Show | R106: Costas Inseirbhíse agus Oiliúna Múinteoirí | S106: 0 | T106: 0 | W106: N
B107: Costais i leith Folláine Mac Léinn | C107: ='Leathnach Achoimre Bainc'!$Z$21 -> 0 | D107: ='Leathnach Achoimre Bainc'!$Z$22 -> 0 | E107: ='Leathnach Achoimre Bainc'!$Z$23 -> 0 | F107: ='Leathnach Achoimre Bainc'!$Z$24 -> 0 | G107: ='Leathnach Achoimre Bainc'!$Z$25 -> 0 | H107: ='Leathnach Achoimre Bainc'!$Z$26 -> 0 | I107: ='Leathnach Achoimre Bainc'!$Z$27 -> 0 | J107: ='Leathnach Achoimre Bainc'!$Z$28 -> 0 | K107: ='Leathnach Achoimre Bainc'!$Z$29 -> 0 | L107: ='Leathnach Achoimre Bainc'!$Z$30 -> 0 | M107: ='Leathnach Achoimre Bainc'!$Z$31 -> 0 | N107: ='Leathnach Achoimre Bainc'!$Z$32 -> 0 | O107: 0 | Q107: =IF(COA!$E$100="Y","Show","Hide") -> Show | R107: Costais i leith Folláine Mac Léinn | S107: 0 | T107: 0 | W107: N
B108: Caiteachas Leabharlainne nach Maoinítear Deontas | C108: ='Leathnach Achoimre Bainc'!$AA$21 -> 0 | D108: ='Leathnach Achoimre Bainc'!$AA$22 -> 0 | E108: ='Leathnach Achoimre Bainc'!$AA$23 -> 0 | F108: ='Leathnach Achoimre Bainc'!$AA$24 -> 0 | G108: ='Leathnach Achoimre Bainc'!$AA$25 -> 0 | H108: ='Leathnach Achoimre Bainc'!$AA$26 -> 0 | I108: ='Leathnach Achoimre Bainc'!$AA$27 -> 0 | J108: ='Leathnach Achoimre Bainc'!$AA$28 -> 0 | K108: ='Leathnach Achoimre Bainc'!$AA$29 -> 0 | L108: ='Leathnach Achoimre Bainc'!$AA$30 -> 0 | M108: ='Leathnach Achoimre Bainc'!$AA$31 -> 0 | N108: ='Leathnach Achoimre Bainc'!$AA$32 -> 0 | O108: 0 | Q108: =IF(COA!$E$101="Y","Show","Hide") -> Hide | R108: Caiteachas Leabharlainne nach Maoinítear Deontas | S108: 0 | T108: 0 | W108: Y
B109: Caiteachas Deontas Caipitil Leabhair Leabharlainne Scoile | C109: ='Leathnach Achoimre Bainc'!$AB$21 -> 0 | D109: ='Leathnach Achoimre Bainc'!$AB$22 -> 0 | E109: ='Leathnach Achoimre Bainc'!$AB$23 -> 0 | F109: ='Leathnach Achoimre Bainc'!$AB$24 -> 0 | G109: ='Leathnach Achoimre Bainc'!$AB$25 -> 0 | H109: ='Leathnach Achoimre Bainc'!$AB$26 -> 0 | I109: ='Leathnach Achoimre Bainc'!$AB$27 -> 0 | J109: ='Leathnach Achoimre Bainc'!$AB$28 -> 0 | K109: ='Leathnach Achoimre Bainc'!$AB$29 -> 0 | L109: ='Leathnach Achoimre Bainc'!$AB$30 -> 0 | M109: ='Leathnach Achoimre Bainc'!$AB$31 -> 0 | N109: ='Leathnach Achoimre Bainc'!$AB$32 -> 0 | O109: 0 | Q109: =IF(COA!$E$102="Y","Show","Hide") -> Hide | R109: Caiteachas Deontas Caipitil Leabhair Leabharlainne Scoile | S109: 0 | T109: 0 | W109: Y
B110: Costas Corpoideachais | C110: ='Leathnach Achoimre Bainc'!$AC$21 -> 0 | D110: ='Leathnach Achoimre Bainc'!$AC$22 -> 0 | E110: ='Leathnach Achoimre Bainc'!$AC$23 -> 0 | F110: ='Leathnach Achoimre Bainc'!$AC$24 -> 0 | G110: ='Leathnach Achoimre Bainc'!$AC$25 -> 0 | H110: ='Leathnach Achoimre Bainc'!$AC$26 -> 0 | I110: ='Leathnach Achoimre Bainc'!$AC$27 -> 0 | J110: ='Leathnach Achoimre Bainc'!$AC$28 -> 0 | K110: ='Leathnach Achoimre Bainc'!$AC$29 -> 0 | L110: ='Leathnach Achoimre Bainc'!$AC$30 -> 0 | M110: ='Leathnach Achoimre Bainc'!$AC$31 -> 0 | N110: ='Leathnach Achoimre Bainc'!$AC$32 -> 0 | O110: 0 | Q110: =IF(COA!$E$103="Y","Show","Hide") -> Show | R110: Costas Corpoideachais | S110: 0 | T110: 0 | W110: N
B111: Costas Cluichí (gan taisteal san áireamh) | C111: ='Leathnach Achoimre Bainc'!$AD$21 -> 0 | D111: ='Leathnach Achoimre Bainc'!$AD$22 -> 0 | E111: ='Leathnach Achoimre Bainc'!$AD$23 -> 0 | F111: ='Leathnach Achoimre Bainc'!$AD$24 -> 0 | G111: ='Leathnach Achoimre Bainc'!$AD$25 -> 0 | H111: ='Leathnach Achoimre Bainc'!$AD$26 -> 0 | I111: ='Leathnach Achoimre Bainc'!$AD$27 -> 0 | J111: ='Leathnach Achoimre Bainc'!$AD$28 -> 0 | K111: ='Leathnach Achoimre Bainc'!$AD$29 -> 0 | L111: ='Leathnach Achoimre Bainc'!$AD$30 -> 0 | M111: ='Leathnach Achoimre Bainc'!$AD$31 -> 0 | N111: ='Leathnach Achoimre Bainc'!$AD$32 -> 0 | O111: 0 | Q111: =IF(COA!$E$104="Y","Show","Hide") -> Show | R111: Costas Cluichí (gan taisteal san áireamh) | S111: 0 | T111: 0 | W111: N
B112: Cíosú Bus le haghaidh Costas Cluichí | C112: ='Leathnach Achoimre Bainc'!$AE$21 -> 0 | D112: ='Leathnach Achoimre Bainc'!$AE$22 -> 0 | E112: ='Leathnach Achoimre Bainc'!$AE$23 -> 0 | F112: ='Leathnach Achoimre Bainc'!$AE$24 -> 0 | G112: ='Leathnach Achoimre Bainc'!$AE$25 -> 0 | H112: ='Leathnach Achoimre Bainc'!$AE$26 -> 0 | I112: ='Leathnach Achoimre Bainc'!$AE$27 -> 0 | J112: ='Leathnach Achoimre Bainc'!$AE$28 -> 0 | K112: ='Leathnach Achoimre Bainc'!$AE$29 -> 0 | L112: ='Leathnach Achoimre Bainc'!$AE$30 -> 0 | M112: ='Leathnach Achoimre Bainc'!$AE$31 -> 0 | N112: ='Leathnach Achoimre Bainc'!$AE$32 -> 0 | O112: 0 | Q112: =IF(COA!$E$105="Y","Show","Hide") -> Show | R112: Cíosú Bus le haghaidh Costas Cluichí | S112: 0 | T112: 0 | W112: N
B113: Costas Eile ar Fruiliú Bus | C113: ='Leathnach Achoimre Bainc'!$AF$21 -> 0 | D113: ='Leathnach Achoimre Bainc'!$AF$22 -> 0 | E113: ='Leathnach Achoimre Bainc'!$AF$23 -> 0 | F113: ='Leathnach Achoimre Bainc'!$AF$24 -> 0 | G113: ='Leathnach Achoimre Bainc'!$AF$25 -> 0 | H113: ='Leathnach Achoimre Bainc'!$AF$26 -> 0 | I113: ='Leathnach Achoimre Bainc'!$AF$27 -> 0 | J113: ='Leathnach Achoimre Bainc'!$AF$28 -> 0 | K113: ='Leathnach Achoimre Bainc'!$AF$29 -> 0 | L113: ='Leathnach Achoimre Bainc'!$AF$30 -> 0 | M113: ='Leathnach Achoimre Bainc'!$AF$31 -> 0 | N113: ='Leathnach Achoimre Bainc'!$AF$32 -> 0 | O113: 0 | Q113: =IF(COA!$E$106="Y","Show","Hide") -> Show | R113: Costas Eile ar Fruiliú Bus | S113: 0 | T113: 0 | W113: N
B114: Costas Turas Scoile | C114: ='Leathnach Achoimre Bainc'!$AG$21 -> 0 | D114: ='Leathnach Achoimre Bainc'!$AG$22 -> 0 | E114: ='Leathnach Achoimre Bainc'!$AG$23 -> 0 | F114: ='Leathnach Achoimre Bainc'!$AG$24 -> 0 | G114: ='Leathnach Achoimre Bainc'!$AG$25 -> 0 | H114: ='Leathnach Achoimre Bainc'!$AG$26 -> 0 | I114: ='Leathnach Achoimre Bainc'!$AG$27 -> 0 | J114: ='Leathnach Achoimre Bainc'!$AG$28 -> 0 | K114: ='Leathnach Achoimre Bainc'!$AG$29 -> 0 | L114: ='Leathnach Achoimre Bainc'!$AG$30 -> 0 | M114: ='Leathnach Achoimre Bainc'!$AG$31 -> 0 | N114: ='Leathnach Achoimre Bainc'!$AG$32 -> 0 | O114: 0 | Q114: =IF(COA!$E$107="Y","Show","Hide") -> Show | R114: Costas Turas Scoile | S114: 0 | T114: 0 | W114: N
B115: Costas Ceoldráma/Dráma Scoile | C115: ='Leathnach Achoimre Bainc'!$AH$21 -> 0 | D115: ='Leathnach Achoimre Bainc'!$AH$22 -> 0 | E115: ='Leathnach Achoimre Bainc'!$AH$23 -> 0 | F115: ='Leathnach Achoimre Bainc'!$AH$24 -> 0 | G115: ='Leathnach Achoimre Bainc'!$AH$25 -> 0 | H115: ='Leathnach Achoimre Bainc'!$AH$26 -> 0 | I115: ='Leathnach Achoimre Bainc'!$AH$27 -> 0 | J115: ='Leathnach Achoimre Bainc'!$AH$28 -> 0 | K115: ='Leathnach Achoimre Bainc'!$AH$29 -> 0 | L115: ='Leathnach Achoimre Bainc'!$AH$30 -> 0 | M115: ='Leathnach Achoimre Bainc'!$AH$31 -> 0 | N115: ='Leathnach Achoimre Bainc'!$AH$32 -> 0 | O115: 0 | Q115: =IF(COA!$E$108="Y","Show","Hide") -> Show | R115: Costas Ceoldráma/Dráma Scoile | S115: 0 | T115: 0 | W115: N
B116: Costas Deontas Scoile saor in aisce | C116: ='Leathnach Achoimre Bainc'!$AI$21 -> 0 | D116: ='Leathnach Achoimre Bainc'!$AI$22 -> 0 | E116: ='Leathnach Achoimre Bainc'!$AI$23 -> 0 | F116: ='Leathnach Achoimre Bainc'!$AI$24 -> 0 | G116: ='Leathnach Achoimre Bainc'!$AI$25 -> 0 | H116: ='Leathnach Achoimre Bainc'!$AI$26 -> 0 | I116: ='Leathnach Achoimre Bainc'!$AI$27 -> 0 | J116: ='Leathnach Achoimre Bainc'!$AI$28 -> 0 | K116: ='Leathnach Achoimre Bainc'!$AI$29 -> 0 | L116: ='Leathnach Achoimre Bainc'!$AI$30 -> 0 | M116: ='Leathnach Achoimre Bainc'!$AI$31 -> 0 | N116: ='Leathnach Achoimre Bainc'!$AI$32 -> 0 | O116: 0 | Q116: =IF(COA!$E$109="Y","Show","Hide") -> Show | R116: Costas Deontas Scoile saor in aisce | S116: =INDEX($C$84:$O$197,MATCH(R116,$B$84:$B$197,0),MATCH($S$83,$C$83:$O$83,0)) -> 0 | T116: 0 | W116: N
B117: Costas Scéim na Leabhar ar Cíos | C117: ='Leathnach Achoimre Bainc'!$AJ$21 -> 0 | D117: ='Leathnach Achoimre Bainc'!$AJ$22 -> 0 | E117: ='Leathnach Achoimre Bainc'!$AJ$23 -> 0 | F117: ='Leathnach Achoimre Bainc'!$AJ$24 -> 0 | G117: ='Leathnach Achoimre Bainc'!$AJ$25 -> 0 | H117: ='Leathnach Achoimre Bainc'!$AJ$26 -> 0 | I117: ='Leathnach Achoimre Bainc'!$AJ$27 -> 0 | J117: ='Leathnach Achoimre Bainc'!$AJ$28 -> 0 | K117: ='Leathnach Achoimre Bainc'!$AJ$29 -> 0 | L117: ='Leathnach Achoimre Bainc'!$AJ$30 -> 0 | M117: ='Leathnach Achoimre Bainc'!$AJ$31 -> 0 | N117: ='Leathnach Achoimre Bainc'!$AJ$32 -> 0 | O117: 0 | Q117: =IF(COA!$E$110="Y","Show","Hide") -> Hide | R117: Costas Scéim na Leabhar ar Cíos | S117: 0 | T117: 0 | W117: Y
B118: Costais Leabhar Seomra Ranga | C118: ='Leathnach Achoimre Bainc'!$AK$21 -> 0 | D118: ='Leathnach Achoimre Bainc'!$AK$22 -> 0 | E118: ='Leathnach Achoimre Bainc'!$AK$23 -> 0 | F118: ='Leathnach Achoimre Bainc'!$AK$24 -> 0 | G118: ='Leathnach Achoimre Bainc'!$AK$25 -> 0 | H118: ='Leathnach Achoimre Bainc'!$AK$26 -> 0 | I118: ='Leathnach Achoimre Bainc'!$AK$27 -> 0 | J118: ='Leathnach Achoimre Bainc'!$AK$28 -> 0 | K118: ='Leathnach Achoimre Bainc'!$AK$29 -> 0 | L118: ='Leathnach Achoimre Bainc'!$AK$30 -> 0 | M118: ='Leathnach Achoimre Bainc'!$AK$31 -> 0 | N118: ='Leathnach Achoimre Bainc'!$AK$32 -> 0 | O118: 0 | Q118: =IF(COA!$E$111="Y","Show","Hide") -> Show | R118: Costais Leabhar Seomra Ranga | S118: 0 | T118: 0 | W118: N
B119: Costas Bliainirisí/Dialanna Scoile | C119: ='Leathnach Achoimre Bainc'!$AL$21 -> 0 | D119: ='Leathnach Achoimre Bainc'!$AL$22 -> 0 | E119: ='Leathnach Achoimre Bainc'!$AL$23 -> 0 | F119: ='Leathnach Achoimre Bainc'!$AL$24 -> 0 | G119: ='Leathnach Achoimre Bainc'!$AL$25 -> 0 | H119: ='Leathnach Achoimre Bainc'!$AL$26 -> 0 | I119: ='Leathnach Achoimre Bainc'!$AL$27 -> 0 | J119: ='Leathnach Achoimre Bainc'!$AL$28 -> 0 | K119: ='Leathnach Achoimre Bainc'!$AL$29 -> 0 | L119: ='Leathnach Achoimre Bainc'!$AL$30 -> 0 | M119: ='Leathnach Achoimre Bainc'!$AL$31 -> 0 | N119: ='Leathnach Achoimre Bainc'!$AL$32 -> 0 | O119: 0 | Q119: =IF(COA!$E$112="Y","Show","Hide") -> Show | R119: Costas Bliainirisí/Dialanna Scoile | S119: 0 | T119: 0 | W119: N
B120: Costas Trófaithe agus Duaiseanna | C120: ='Leathnach Achoimre Bainc'!$AM$21 -> 0 | D120: ='Leathnach Achoimre Bainc'!$AM$22 -> 0 | E120: ='Leathnach Achoimre Bainc'!$AM$23 -> 0 | F120: ='Leathnach Achoimre Bainc'!$AM$24 -> 0 | G120: ='Leathnach Achoimre Bainc'!$AM$25 -> 0 | H120: ='Leathnach Achoimre Bainc'!$AM$26 -> 0 | I120: ='Leathnach Achoimre Bainc'!$AM$27 -> 0 | J120: ='Leathnach Achoimre Bainc'!$AM$28 -> 0 | K120: ='Leathnach Achoimre Bainc'!$AM$29 -> 0 | L120: ='Leathnach Achoimre Bainc'!$AM$30 -> 0 | M120: ='Leathnach Achoimre Bainc'!$AM$31 -> 0 | N120: ='Leathnach Achoimre Bainc'!$AM$32 -> 0 | O120: 0 | Q120: =IF(COA!$E$113="Y","Show","Hide") -> Show | R120: Costas Trófaithe agus Duaiseanna | S120: 0 | T120: 0 | W120: N
B121: Costas Éidí | C121: ='Leathnach Achoimre Bainc'!$AN$21 -> 0 | D121: ='Leathnach Achoimre Bainc'!$AN$22 -> 0 | E121: ='Leathnach Achoimre Bainc'!$AN$23 -> 0 | F121: ='Leathnach Achoimre Bainc'!$AN$24 -> 0 | G121: ='Leathnach Achoimre Bainc'!$AN$25 -> 0 | H121: ='Leathnach Achoimre Bainc'!$AN$26 -> 0 | I121: ='Leathnach Achoimre Bainc'!$AN$27 -> 0 | J121: ='Leathnach Achoimre Bainc'!$AN$28 -> 0 | K121: ='Leathnach Achoimre Bainc'!$AN$29 -> 0 | L121: ='Leathnach Achoimre Bainc'!$AN$30 -> 0 | M121: ='Leathnach Achoimre Bainc'!$AN$31 -> 0 | N121: ='Leathnach Achoimre Bainc'!$AN$32 -> 0 | O121: 0 | Q121: =IF(COA!$E$114="Y","Show","Hide") -> Show | R121: Costas Éidí | S121: 0 | T121: 0 | W121: N
B122: Costas na Teagmhála idir an Baile agus an Scoil | C122: ='Leathnach Achoimre Bainc'!$AO$21 -> 0 | D122: ='Leathnach Achoimre Bainc'!$AO$22 -> 0 | E122: ='Leathnach Achoimre Bainc'!$AO$23 -> 0 | F122: ='Leathnach Achoimre Bainc'!$AO$24 -> 0 | G122: ='Leathnach Achoimre Bainc'!$AO$25 -> 0 | H122: ='Leathnach Achoimre Bainc'!$AO$26 -> 0 | I122: ='Leathnach Achoimre Bainc'!$AO$27 -> 0 | J122: ='Leathnach Achoimre Bainc'!$AO$28 -> 0 | K122: ='Leathnach Achoimre Bainc'!$AO$29 -> 0 | L122: ='Leathnach Achoimre Bainc'!$AO$30 -> 0 | M122: ='Leathnach Achoimre Bainc'!$AO$31 -> 0 | N122: ='Leathnach Achoimre Bainc'!$AO$32 -> 0 | O122: 0 | Q122: =IF(COA!$E$115="Y","Show","Hide") -> Show | R122: Costas na Teagmhála idir an Baile agus an Scoil | S122: 0 | T122: 0 | W122: N
B123: Costas an Chiste Barr Feabhais Scoileanna | C123: ='Leathnach Achoimre Bainc'!$AP$21 -> 0 | D123: ='Leathnach Achoimre Bainc'!$AP$22 -> 0 | E123: ='Leathnach Achoimre Bainc'!$AP$23 -> 0 | F123: ='Leathnach Achoimre Bainc'!$AP$24 -> 0 | G123: ='Leathnach Achoimre Bainc'!$AP$25 -> 0 | H123: ='Leathnach Achoimre Bainc'!$AP$26 -> 0 | I123: ='Leathnach Achoimre Bainc'!$AP$27 -> 0 | J123: ='Leathnach Achoimre Bainc'!$AP$28 -> 0 | K123: ='Leathnach Achoimre Bainc'!$AP$29 -> 0 | L123: ='Leathnach Achoimre Bainc'!$AP$30 -> 0 | M123: ='Leathnach Achoimre Bainc'!$AP$31 -> 0 | N123: ='Leathnach Achoimre Bainc'!$AP$32 -> 0 | O123: 0 | Q123: =IF(COA!$E$116="Y","Show","Hide") -> Hide | R123: Costas an Chiste Barr Feabhais Scoileanna | S123: 0 | T123: 0 | W123: Y
B124: Costais Eile Campaí Samhraidh | C124: ='Leathnach Achoimre Bainc'!$AQ$21 -> 0 | D124: ='Leathnach Achoimre Bainc'!$AQ$22 -> 0 | E124: ='Leathnach Achoimre Bainc'!$AQ$23 -> 0 | F124: ='Leathnach Achoimre Bainc'!$AQ$24 -> 0 | G124: ='Leathnach Achoimre Bainc'!$AQ$25 -> 0 | H124: ='Leathnach Achoimre Bainc'!$AQ$26 -> 0 | I124: ='Leathnach Achoimre Bainc'!$AQ$27 -> 0 | J124: ='Leathnach Achoimre Bainc'!$AQ$28 -> 0 | K124: ='Leathnach Achoimre Bainc'!$AQ$29 -> 0 | L124: ='Leathnach Achoimre Bainc'!$AQ$30 -> 0 | M124: ='Leathnach Achoimre Bainc'!$AQ$31 -> 0 | N124: ='Leathnach Achoimre Bainc'!$AQ$32 -> 0 | O124: 0 | Q124: =IF(COA!$E$117="Y","Show","Hide") -> Hide | R124: Costais Eile Campaí Samhraidh | S124: 0 | T124: 0 | W124: Y
B125: Costais Sholáthar Eile Samhraidh | C125: ='Leathnach Achoimre Bainc'!$AR$21 -> 0 | D125: ='Leathnach Achoimre Bainc'!$AR$22 -> 0 | E125: ='Leathnach Achoimre Bainc'!$AR$23 -> 0 | F125: ='Leathnach Achoimre Bainc'!$AR$24 -> 0 | G125: ='Leathnach Achoimre Bainc'!$AR$25 -> 0 | H125: ='Leathnach Achoimre Bainc'!$AR$26 -> 0 | I125: ='Leathnach Achoimre Bainc'!$AR$27 -> 0 | J125: ='Leathnach Achoimre Bainc'!$AR$28 -> 0 | K125: ='Leathnach Achoimre Bainc'!$AR$29 -> 0 | L125: ='Leathnach Achoimre Bainc'!$AR$30 -> 0 | M125: ='Leathnach Achoimre Bainc'!$AR$31 -> 0 | N125: ='Leathnach Achoimre Bainc'!$AR$32 -> 0 | O125: 0 | Q125: =IF(COA!$E$118="Y","Show","Hide") -> Show | R125: Costais Sholáthar Eile Samhraidh | S125: 0 | T125: 0 | W125: N
B126: Costas Oideachais Eile | C126: ='Leathnach Achoimre Bainc'!$AS$21 -> 0 | D126: ='Leathnach Achoimre Bainc'!$AS$22 -> 0 | E126: ='Leathnach Achoimre Bainc'!$AS$23 -> 0 | F126: ='Leathnach Achoimre Bainc'!$AS$24 -> 0 | G126: ='Leathnach Achoimre Bainc'!$AS$25 -> 0 | H126: ='Leathnach Achoimre Bainc'!$AS$26 -> 0 | I126: ='Leathnach Achoimre Bainc'!$AS$27 -> 0 | J126: ='Leathnach Achoimre Bainc'!$AS$28 -> 0 | K126: ='Leathnach Achoimre Bainc'!$AS$29 -> 0 | L126: ='Leathnach Achoimre Bainc'!$AS$30 -> 0 | M126: ='Leathnach Achoimre Bainc'!$AS$31 -> 0 | N126: ='Leathnach Achoimre Bainc'!$AS$32 -> 0 | O126: 0 | Q126: =IF(COA!$E$119="Y","Show","Hide") -> Show | R126: Costas Oideachais Eile | S126: 0 | T126: 0 | W126: N
B127: Costas Ghníomhaíochtaí na Roinne Leanaí agus Gnóthaí Óige | C127: ='Leathnach Achoimre Bainc'!$AT$21 -> 0 | D127: ='Leathnach Achoimre Bainc'!$AT$22 -> 0 | E127: ='Leathnach Achoimre Bainc'!$AT$23 -> 0 | F127: ='Leathnach Achoimre Bainc'!$AT$24 -> 0 | G127: ='Leathnach Achoimre Bainc'!$AT$25 -> 0 | H127: ='Leathnach Achoimre Bainc'!$AT$26 -> 0 | I127: ='Leathnach Achoimre Bainc'!$AT$27 -> 0 | J127: ='Leathnach Achoimre Bainc'!$AT$28 -> 0 | K127: ='Leathnach Achoimre Bainc'!$AT$29 -> 0 | L127: ='Leathnach Achoimre Bainc'!$AT$30 -> 0 | M127: ='Leathnach Achoimre Bainc'!$AT$31 -> 0 | N127: ='Leathnach Achoimre Bainc'!$AT$32 -> 0 | O127: 0 | Q127: =IF(COA!$E$120="Y","Show","Hide") -> Hide | R127: Costas Ghníomhaíochtaí na Roinne Leanaí agus Gnóthaí Óige | S127: 0 | T127: 0 | W127: Y
B128: Costais Bia Béilí Scoileanna na Roinne Coimirce Sóisialaí | C128: ='Leathnach Achoimre Bainc'!$AU$21 -> 0 | D128: ='Leathnach Achoimre Bainc'!$AU$22 -> 0 | E128: ='Leathnach Achoimre Bainc'!$AU$23 -> 0 | F128: ='Leathnach Achoimre Bainc'!$AU$24 -> 0 | G128: ='Leathnach Achoimre Bainc'!$AU$25 -> 0 | H128: ='Leathnach Achoimre Bainc'!$AU$26 -> 0 | I128: ='Leathnach Achoimre Bainc'!$AU$27 -> 0 | J128: ='Leathnach Achoimre Bainc'!$AU$28 -> 0 | K128: ='Leathnach Achoimre Bainc'!$AU$29 -> 0 | L128: ='Leathnach Achoimre Bainc'!$AU$30 -> 0 | M128: ='Leathnach Achoimre Bainc'!$AU$31 -> 0 | N128: ='Leathnach Achoimre Bainc'!$AU$32 -> 0 | O128: 0 | Q128: =IF(COA!$E$121="Y","Show","Hide") -> Show | R128: Costais Bia Béilí Scoileanna na Roinne Coimirce Sóisialaí | S128: 0 | T128: 0 | W128: N
B129: Costas Erasmus | C129: ='Leathnach Achoimre Bainc'!$AV$21 -> 0 | D129: ='Leathnach Achoimre Bainc'!$AV$22 -> 0 | E129: ='Leathnach Achoimre Bainc'!$AV$23 -> 0 | F129: ='Leathnach Achoimre Bainc'!$AV$24 -> 0 | G129: ='Leathnach Achoimre Bainc'!$AV$25 -> 0 | H129: ='Leathnach Achoimre Bainc'!$AV$26 -> 0 | I129: ='Leathnach Achoimre Bainc'!$AV$27 -> 0 | J129: ='Leathnach Achoimre Bainc'!$AV$28 -> 0 | K129: ='Leathnach Achoimre Bainc'!$AV$29 -> 0 | L129: ='Leathnach Achoimre Bainc'!$AV$30 -> 0 | M129: ='Leathnach Achoimre Bainc'!$AV$31 -> 0 | N129: ='Leathnach Achoimre Bainc'!$AV$32 -> 0 | O129: 0 | Q129: =IF(COA!$E$122="Y","Show","Hide") -> Hide | R129: Costas Erasmus | S129: 0 | T129: 0 | W129: Y
B130: Costais Deontais Neamhchaipitil Eile RO | C130: ='Leathnach Achoimre Bainc'!$AW$21 -> 0 | D130: ='Leathnach Achoimre Bainc'!$AW$22 -> 0 | E130: ='Leathnach Achoimre Bainc'!$AW$23 -> 0 | F130: ='Leathnach Achoimre Bainc'!$AW$24 -> 0 | G130: ='Leathnach Achoimre Bainc'!$AW$25 -> 0 | H130: ='Leathnach Achoimre Bainc'!$AW$26 -> 0 | I130: ='Leathnach Achoimre Bainc'!$AW$27 -> 0 | J130: ='Leathnach Achoimre Bainc'!$AW$28 -> 0 | K130: ='Leathnach Achoimre Bainc'!$AW$29 -> 0 | L130: ='Leathnach Achoimre Bainc'!$AW$30 -> 0 | M130: ='Leathnach Achoimre Bainc'!$AW$31 -> 0 | N130: ='Leathnach Achoimre Bainc'!$AW$32 -> 0 | O130: 0 | Q130: =IF(COA!$E$123="Y","Show","Hide") -> Show | R130: Costais Deontais Neamhchaipitil Eile RO | S130: 0 | T130: 0 | W130: N
B131: Costais Eile Ceaintín | C131: ='Leathnach Achoimre Bainc'!$AX$21 -> 0 | D131: ='Leathnach Achoimre Bainc'!$AX$22 -> 0 | E131: ='Leathnach Achoimre Bainc'!$AX$23 -> 0 | F131: ='Leathnach Achoimre Bainc'!$AX$24 -> 0 | G131: ='Leathnach Achoimre Bainc'!$AX$25 -> 0 | H131: ='Leathnach Achoimre Bainc'!$AX$26 -> 0 | I131: ='Leathnach Achoimre Bainc'!$AX$27 -> 0 | J131: ='Leathnach Achoimre Bainc'!$AX$28 -> 0 | K131: ='Leathnach Achoimre Bainc'!$AX$29 -> 0 | L131: ='Leathnach Achoimre Bainc'!$AX$30 -> 0 | M131: ='Leathnach Achoimre Bainc'!$AX$31 -> 0 | N131: ='Leathnach Achoimre Bainc'!$AX$32 -> 0 | O131: 0 | Q131: =IF(COA!$E$124="Y","Show","Hide") -> Show | R131: Costais Eile Ceaintín | S131: 0 | T131: 0 | W131: N
B132: Costas Árachais Daltaí | C132: ='Leathnach Achoimre Bainc'!$AY$21 -> 0 | D132: ='Leathnach Achoimre Bainc'!$AY$22 -> 0 | E132: ='Leathnach Achoimre Bainc'!$AY$23 -> 0 | F132: ='Leathnach Achoimre Bainc'!$AY$24 -> 0 | G132: ='Leathnach Achoimre Bainc'!$AY$25 -> 0 | H132: ='Leathnach Achoimre Bainc'!$AY$26 -> 0 | I132: ='Leathnach Achoimre Bainc'!$AY$27 -> 0 | J132: ='Leathnach Achoimre Bainc'!$AY$28 -> 0 | K132: ='Leathnach Achoimre Bainc'!$AY$29 -> 0 | L132: ='Leathnach Achoimre Bainc'!$AY$30 -> 0 | M132: ='Leathnach Achoimre Bainc'!$AY$31 -> 0 | N132: ='Leathnach Achoimre Bainc'!$AY$32 -> 0 | O132: 0 | Q132: =IF(COA!$E$125="Y","Show","Hide") -> Show | R132: Costas Árachais Daltaí | S132: 0 | T132: 0 | W132: N
B133: Costas Trialacha Caighdeánaithe | C133: ='Leathnach Achoimre Bainc'!$AZ$21 -> 0 | D133: ='Leathnach Achoimre Bainc'!$AZ$22 -> 0 | E133: ='Leathnach Achoimre Bainc'!$AZ$23 -> 0 | F133: ='Leathnach Achoimre Bainc'!$AZ$24 -> 0 | G133: ='Leathnach Achoimre Bainc'!$AZ$25 -> 0 | H133: ='Leathnach Achoimre Bainc'!$AZ$26 -> 0 | I133: ='Leathnach Achoimre Bainc'!$AZ$27 -> 0 | J133: ='Leathnach Achoimre Bainc'!$AZ$28 -> 0 | K133: ='Leathnach Achoimre Bainc'!$AZ$29 -> 0 | L133: ='Leathnach Achoimre Bainc'!$AZ$30 -> 0 | M133: ='Leathnach Achoimre Bainc'!$AZ$31 -> 0 | N133: ='Leathnach Achoimre Bainc'!$AZ$32 -> 0 | O133: 0 | Q133: =IF(COA!$E$126="Y","Show","Hide") -> Show | R133: Costas Trialacha Caighdeánaithe | S133: 0 | T133: 0 | W133: N
B134: Caiteachas Ainmnithe (Neamhchaipitiúil) | C134: ='Leathnach Achoimre Bainc'!$BA$21 -> 0 | D134: ='Leathnach Achoimre Bainc'!$BA$22 -> 0 | E134: ='Leathnach Achoimre Bainc'!$BA$23 -> 0 | F134: ='Leathnach Achoimre Bainc'!$BA$24 -> 0 | G134: ='Leathnach Achoimre Bainc'!$BA$25 -> 0 | H134: ='Leathnach Achoimre Bainc'!$BA$26 -> 0 | I134: ='Leathnach Achoimre Bainc'!$BA$27 -> 0 | J134: ='Leathnach Achoimre Bainc'!$BA$28 -> 0 | K134: ='Leathnach Achoimre Bainc'!$BA$29 -> 0 | L134: ='Leathnach Achoimre Bainc'!$BA$30 -> 0 | M134: ='Leathnach Achoimre Bainc'!$BA$31 -> 0 | N134: ='Leathnach Achoimre Bainc'!$BA$32 -> 0 | O134: 0 | Q134: =IF(COA!$E$127="Y","Show","Hide") -> Show | R134: Caiteachas Ainmnithe (Neamhchaipitiúil) | S134: 0 | T134: 0 | W134: N
B135: Costas Trealaimh Oideachais Speisialta (Neamhchaipitiúil) | C135: ='Leathnach Achoimre Bainc'!$BB$21 -> 0 | D135: ='Leathnach Achoimre Bainc'!$BB$22 -> 0 | E135: ='Leathnach Achoimre Bainc'!$BB$23 -> 0 | F135: ='Leathnach Achoimre Bainc'!$BB$24 -> 0 | G135: ='Leathnach Achoimre Bainc'!$BB$25 -> 0 | H135: ='Leathnach Achoimre Bainc'!$BB$26 -> 0 | I135: ='Leathnach Achoimre Bainc'!$BB$27 -> 0 | J135: ='Leathnach Achoimre Bainc'!$BB$28 -> 0 | K135: ='Leathnach Achoimre Bainc'!$BB$29 -> 0 | L135: ='Leathnach Achoimre Bainc'!$BB$30 -> 0 | M135: ='Leathnach Achoimre Bainc'!$BB$31 -> 0 | N135: ='Leathnach Achoimre Bainc'!$BB$32 -> 0 | O135: 0 | Q135: =IF(COA!$E$128="Y","Show","Hide") -> Show | R135: Costas Trealaimh Oideachais Speisialta (Neamhchaipitiúil) | S135: 0 | T135: 0 | W135: N
B136: Costas Damhsa na Scoile | C136: ='Leathnach Achoimre Bainc'!$BC$21 -> 0 | D136: ='Leathnach Achoimre Bainc'!$BC$22 -> 0 | E136: ='Leathnach Achoimre Bainc'!$BC$23 -> 0 | F136: ='Leathnach Achoimre Bainc'!$BC$24 -> 0 | G136: ='Leathnach Achoimre Bainc'!$BC$25 -> 0 | H136: ='Leathnach Achoimre Bainc'!$BC$26 -> 0 | I136: ='Leathnach Achoimre Bainc'!$BC$27 -> 0 | J136: ='Leathnach Achoimre Bainc'!$BC$28 -> 0 | K136: ='Leathnach Achoimre Bainc'!$BC$29 -> 0 | L136: ='Leathnach Achoimre Bainc'!$BC$30 -> 0 | M136: ='Leathnach Achoimre Bainc'!$BC$31 -> 0 | N136: ='Leathnach Achoimre Bainc'!$BC$32 -> 0 | O136: 0 | Q136: =IF(COA!$E$129="Y","Show","Hide") -> Show | R136: Costas Damhsa na Scoile | S136: 0 | T136: 0 | W136: N
B137: Costas Snámha Scoile | C137: ='Leathnach Achoimre Bainc'!$BD$21 -> 0 | D137: ='Leathnach Achoimre Bainc'!$BD$22 -> 0 | E137: ='Leathnach Achoimre Bainc'!$BD$23 -> 0 | F137: ='Leathnach Achoimre Bainc'!$BD$24 -> 0 | G137: ='Leathnach Achoimre Bainc'!$BD$25 -> 0 | H137: ='Leathnach Achoimre Bainc'!$BD$26 -> 0 | I137: ='Leathnach Achoimre Bainc'!$BD$27 -> 0 | J137: ='Leathnach Achoimre Bainc'!$BD$28 -> 0 | K137: ='Leathnach Achoimre Bainc'!$BD$29 -> 0 | L137: ='Leathnach Achoimre Bainc'!$BD$30 -> 0 | M137: ='Leathnach Achoimre Bainc'!$BD$31 -> 0 | N137: ='Leathnach Achoimre Bainc'!$BD$32 -> 0 | O137: 0 | Q137: =IF(COA!$E$130="Y","Show","Hide") -> Show | R137: Costas Snámha Scoile | S137: 0 | T137: 0 | W137: N
B138: Costais a bhaineann le Tiomsú Airgid Srianta Scoile (Neamhchaipitiúil) | C138: ='Leathnach Achoimre Bainc'!$BE$21 -> 0 | D138: ='Leathnach Achoimre Bainc'!$BE$22 -> 0 | E138: ='Leathnach Achoimre Bainc'!$BE$23 -> 0 | F138: ='Leathnach Achoimre Bainc'!$BE$24 -> 0 | G138: ='Leathnach Achoimre Bainc'!$BE$25 -> 0 | H138: ='Leathnach Achoimre Bainc'!$BE$26 -> 0 | I138: ='Leathnach Achoimre Bainc'!$BE$27 -> 0 | J138: ='Leathnach Achoimre Bainc'!$BE$28 -> 0 | K138: ='Leathnach Achoimre Bainc'!$BE$29 -> 0 | L138: ='Leathnach Achoimre Bainc'!$BE$30 -> 0 | M138: ='Leathnach Achoimre Bainc'!$BE$31 -> 0 | N138: ='Leathnach Achoimre Bainc'!$BE$32 -> 0 | O138: 0 | Q138: =IF(COA!$E$131="Y","Show","Hide") -> Show | R138: Costais a bhaineann le Tiomsú Airgid Srianta Scoile (Neamhchaipitiúil) | S138: 0 | T138: 0 | W138: N
B139: Costais a bhaineann le Tiomsú Airgid Srianta Seachtrach (Neamhchaipitiúil) | C139: ='Leathnach Achoimre Bainc'!$BF$21 -> 0 | D139: ='Leathnach Achoimre Bainc'!$BF$22 -> 0 | E139: ='Leathnach Achoimre Bainc'!$BF$23 -> 0 | F139: ='Leathnach Achoimre Bainc'!$BF$24 -> 0 | G139: ='Leathnach Achoimre Bainc'!$BF$25 -> 0 | H139: ='Leathnach Achoimre Bainc'!$BF$26 -> 0 | I139: ='Leathnach Achoimre Bainc'!$BF$27 -> 0 | J139: ='Leathnach Achoimre Bainc'!$BF$28 -> 0 | K139: ='Leathnach Achoimre Bainc'!$BF$29 -> 0 | L139: ='Leathnach Achoimre Bainc'!$BF$30 -> 0 | M139: ='Leathnach Achoimre Bainc'!$BF$31 -> 0 | N139: ='Leathnach Achoimre Bainc'!$BF$32 -> 0 | O139: 0 | Q139: =IF(COA!$E$132="Y","Show","Hide") -> Show | R139: Costais a bhaineann le Tiomsú Airgid Srianta Seachtrach (Neamhchaipitiúil) | S139: 0 | T139: 0 | W139: N
B140: Costais a bhaineann le Tiomsú Airgid Neamhshrianta Seachtrach (Neamhchaipitiúil) | C140: ='Leathnach Achoimre Bainc'!$BG$21 -> 0 | D140: ='Leathnach Achoimre Bainc'!$BG$22 -> 0 | E140: ='Leathnach Achoimre Bainc'!$BG$23 -> 0 | F140: ='Leathnach Achoimre Bainc'!$BG$24 -> 0 | G140: ='Leathnach Achoimre Bainc'!$BG$25 -> 0 | H140: ='Leathnach Achoimre Bainc'!$BG$26 -> 0 | I140: ='Leathnach Achoimre Bainc'!$BG$27 -> 0 | J140: ='Leathnach Achoimre Bainc'!$BG$28 -> 0 | K140: ='Leathnach Achoimre Bainc'!$BG$29 -> 0 | L140: ='Leathnach Achoimre Bainc'!$BG$30 -> 0 | M140: ='Leathnach Achoimre Bainc'!$BG$31 -> 0 | N140: ='Leathnach Achoimre Bainc'!$BG$32 -> 0 | O140: 0 | Q140: =IF(COA!$E$133="Y","Show","Hide") -> Show | R140: Costais a bhaineann le Tiomsú Airgid Neamhshrianta Seachtrach (Neamhchaipitiúil) | S140: 0 | T140: 0 | W140: N
B141: Costais Tiomsaithe Airgid Neamhshrianta Scoile (Neamhchaipitiúil) | C141: ='Leathnach Achoimre Bainc'!$BH$21 -> 0 | D141: ='Leathnach Achoimre Bainc'!$BH$22 -> 0 | E141: ='Leathnach Achoimre Bainc'!$BH$23 -> 0 | F141: ='Leathnach Achoimre Bainc'!$BH$24 -> 0 | G141: ='Leathnach Achoimre Bainc'!$BH$25 -> 0 | H141: ='Leathnach Achoimre Bainc'!$BH$26 -> 0 | I141: ='Leathnach Achoimre Bainc'!$BH$27 -> 0 | J141: ='Leathnach Achoimre Bainc'!$BH$28 -> 0 | K141: ='Leathnach Achoimre Bainc'!$BH$29 -> 0 | L141: ='Leathnach Achoimre Bainc'!$BH$30 -> 0 | M141: ='Leathnach Achoimre Bainc'!$BH$31 -> 0 | N141: ='Leathnach Achoimre Bainc'!$BH$32 -> 0 | O141: 0 | Q141: =IF(COA!$E$134="Y","Show","Hide") -> Show | R141: Costais Tiomsaithe Airgid Neamhshrianta Scoile (Neamhchaipitiúil) | S141: 0 | T141: 0 | W141: N
B142: Costais Ealaíon agus Ceardaíochta Scoile | C142: ='Leathnach Achoimre Bainc'!$BI$21 -> 0 | D142: ='Leathnach Achoimre Bainc'!$BI$22 -> 0 | E142: ='Leathnach Achoimre Bainc'!$BI$23 -> 0 | F142: ='Leathnach Achoimre Bainc'!$BI$24 -> 0 | G142: ='Leathnach Achoimre Bainc'!$BI$25 -> 0 | H142: ='Leathnach Achoimre Bainc'!$BI$26 -> 0 | I142: ='Leathnach Achoimre Bainc'!$BI$27 -> 0 | J142: ='Leathnach Achoimre Bainc'!$BI$28 -> 0 | K142: ='Leathnach Achoimre Bainc'!$BI$29 -> 0 | L142: ='Leathnach Achoimre Bainc'!$BI$30 -> 0 | M142: ='Leathnach Achoimre Bainc'!$BI$31 -> 0 | N142: ='Leathnach Achoimre Bainc'!$BI$32 -> 0 | O142: 0 | Q142: =IF(COA!$E$135="Y","Show","Hide") -> Show | R142: Costais Ealaíon agus Ceardaíochta Scoile | S142: 0 | T142: 0 | W142: N
B143: Costais Eile FSS | C143: ='Leathnach Achoimre Bainc'!$BJ$21 -> 0 | D143: ='Leathnach Achoimre Bainc'!$BJ$22 -> 0 | E143: ='Leathnach Achoimre Bainc'!$BJ$23 -> 0 | F143: ='Leathnach Achoimre Bainc'!$BJ$24 -> 0 | G143: ='Leathnach Achoimre Bainc'!$BJ$25 -> 0 | H143: ='Leathnach Achoimre Bainc'!$BJ$26 -> 0 | I143: ='Leathnach Achoimre Bainc'!$BJ$27 -> 0 | J143: ='Leathnach Achoimre Bainc'!$BJ$28 -> 0 | K143: ='Leathnach Achoimre Bainc'!$BJ$29 -> 0 | L143: ='Leathnach Achoimre Bainc'!$BJ$30 -> 0 | M143: ='Leathnach Achoimre Bainc'!$BJ$31 -> 0 | N143: ='Leathnach Achoimre Bainc'!$BJ$32 -> 0 | O143: 0 | Q143: =IF(COA!$E$136="Y","Show","Hide") -> Hide | R143: Costais Eile FSS | S143: 0 | T143: 0 | W143: Y
B144: Costas Maoinithe eile ón Stát | C144: ='Leathnach Achoimre Bainc'!$BK$21 -> 0 | D144: ='Leathnach Achoimre Bainc'!$BK$22 -> 0 | E144: ='Leathnach Achoimre Bainc'!$BK$23 -> 0 | F144: ='Leathnach Achoimre Bainc'!$BK$24 -> 0 | G144: ='Leathnach Achoimre Bainc'!$BK$25 -> 0 | H144: ='Leathnach Achoimre Bainc'!$BK$26 -> 0 | I144: ='Leathnach Achoimre Bainc'!$BK$27 -> 0 | J144: ='Leathnach Achoimre Bainc'!$BK$28 -> 0 | K144: ='Leathnach Achoimre Bainc'!$BK$29 -> 0 | L144: ='Leathnach Achoimre Bainc'!$BK$30 -> 0 | M144: ='Leathnach Achoimre Bainc'!$BK$31 -> 0 | N144: ='Leathnach Achoimre Bainc'!$BK$32 -> 0 | O144: 0 | Q144: =IF(COA!$E$137="Y","Show","Hide") -> Show | R144: Costas Maoinithe eile ón Stát | S144: 0 | T144: 0 | W144: N
B145: Costas Réamhscoile | C145: ='Leathnach Achoimre Bainc'!$BL$21 -> 0 | D145: ='Leathnach Achoimre Bainc'!$BL$22 -> 0 | E145: ='Leathnach Achoimre Bainc'!$BL$23 -> 0 | F145: ='Leathnach Achoimre Bainc'!$BL$24 -> 0 | G145: ='Leathnach Achoimre Bainc'!$BL$25 -> 0 | H145: ='Leathnach Achoimre Bainc'!$BL$26 -> 0 | I145: ='Leathnach Achoimre Bainc'!$BL$27 -> 0 | J145: ='Leathnach Achoimre Bainc'!$BL$28 -> 0 | K145: ='Leathnach Achoimre Bainc'!$BL$29 -> 0 | L145: ='Leathnach Achoimre Bainc'!$BL$30 -> 0 | M145: ='Leathnach Achoimre Bainc'!$BL$31 -> 0 | N145: ='Leathnach Achoimre Bainc'!$BL$32 -> 0 | O145: 0 | Q145: =IF(COA!$E$138="Y","Show","Hide") -> Hide | R145: Costas Réamhscoile | S145: 0 | T145: 0 | W145: Y
B146: Costas Pá Feighlí | C146: ='Leathnach Achoimre Bainc'!$BM$21 -> 0 | D146: ='Leathnach Achoimre Bainc'!$BM$22 -> 0 | E146: ='Leathnach Achoimre Bainc'!$BM$23 -> 0 | F146: ='Leathnach Achoimre Bainc'!$BM$24 -> 0 | G146: ='Leathnach Achoimre Bainc'!$BM$25 -> 0 | H146: ='Leathnach Achoimre Bainc'!$BM$26 -> 0 | I146: ='Leathnach Achoimre Bainc'!$BM$27 -> 0 | J146: ='Leathnach Achoimre Bainc'!$BM$28 -> 0 | K146: ='Leathnach Achoimre Bainc'!$BM$29 -> 0 | L146: ='Leathnach Achoimre Bainc'!$BM$30 -> 0 | M146: ='Leathnach Achoimre Bainc'!$BM$31 -> 0 | N146: ='Leathnach Achoimre Bainc'!$BM$32 -> 0 | O146: 0 | Q146: =IF(COA!$E$139="Y","Show","Hide") -> Show | R146: Costas Pá Feighlí | S146: 0 | T146: 0 | W146: N
B147: Costas Pinsin na bhFeighlithe | C147: ='Leathnach Achoimre Bainc'!$BN$21 -> 0 | D147: ='Leathnach Achoimre Bainc'!$BN$22 -> 0 | E147: ='Leathnach Achoimre Bainc'!$BN$23 -> 0 | F147: ='Leathnach Achoimre Bainc'!$BN$24 -> 0 | G147: ='Leathnach Achoimre Bainc'!$BN$25 -> 0 | H147: ='Leathnach Achoimre Bainc'!$BN$26 -> 0 | I147: ='Leathnach Achoimre Bainc'!$BN$27 -> 0 | J147: ='Leathnach Achoimre Bainc'!$BN$28 -> 0 | K147: ='Leathnach Achoimre Bainc'!$BN$29 -> 0 | L147: ='Leathnach Achoimre Bainc'!$BN$30 -> 0 | M147: ='Leathnach Achoimre Bainc'!$BN$31 -> 0 | N147: ='Leathnach Achoimre Bainc'!$BN$32 -> 0 | O147: 0 | Q147: =IF(COA!$E$140="Y","Show","Hide") -> Hide | R147: Costas Pinsin na bhFeighlithe | S147: 0 | T147: 0 | W147: Y
B148: Costas Pá Glantóirí | C148: ='Leathnach Achoimre Bainc'!$BO$21 -> 0 | D148: ='Leathnach Achoimre Bainc'!$BO$22 -> 0 | E148: ='Leathnach Achoimre Bainc'!$BO$23 -> 0 | F148: ='Leathnach Achoimre Bainc'!$BO$24 -> 0 | G148: ='Leathnach Achoimre Bainc'!$BO$25 -> 0 | H148: ='Leathnach Achoimre Bainc'!$BO$26 -> 0 | I148: ='Leathnach Achoimre Bainc'!$BO$27 -> 0 | J148: ='Leathnach Achoimre Bainc'!$BO$28 -> 0 | K148: ='Leathnach Achoimre Bainc'!$BO$29 -> 0 | L148: ='Leathnach Achoimre Bainc'!$BO$30 -> 0 | M148: ='Leathnach Achoimre Bainc'!$BO$31 -> 0 | N148: ='Leathnach Achoimre Bainc'!$BO$32 -> 0 | O148: 0 | Q148: =IF(COA!$E$141="Y","Show","Hide") -> Show | R148: Costas Pá Glantóirí | S148: =INDEX($C$84:$O$197,MATCH(R148,$B$84:$B$197,0),MATCH($S$83,$C$83:$O$83,0)) -> 0 | T148: =O148 -> 0 | W148: =IF(AND(O148=0,Q148="Show"),"N","Y") -> N
B149: Costas Pinsin Glantóirí | C149: ='Leathnach Achoimre Bainc'!$BP$21 -> 0 | D149: ='Leathnach Achoimre Bainc'!$BP$22 -> 0 | E149: ='Leathnach Achoimre Bainc'!$BP$23 -> 0 | F149: ='Leathnach Achoimre Bainc'!$BP$24 -> 0 | G149: ='Leathnach Achoimre Bainc'!$BP$25 -> 0 | H149: ='Leathnach Achoimre Bainc'!$BP$26 -> 0 | I149: ='Leathnach Achoimre Bainc'!$BP$27 -> 0 | J149: ='Leathnach Achoimre Bainc'!$BP$28 -> 0 | K149: ='Leathnach Achoimre Bainc'!$BP$29 -> 0 | L149: ='Leathnach Achoimre Bainc'!$BP$30 -> 0 | M149: ='Leathnach Achoimre Bainc'!$BP$31 -> 0 | N149: ='Leathnach Achoimre Bainc'!$BP$32 -> 0 | O149: =(CELL("width",C149)>0)*C149+(CELL("width",D149)>0)*D149+(CELL("width",E149)>0)*E149+(CELL("width",F149)>0)*F149+(CELL("width",G149)>0)*G149+(CELL("width",H149)>0)*H149+(CELL("width",I149)>0)*I149+(CELL("width",J149)>0)*J149+(CELL("width",K149)>0)*K149+(CELL("width",L149)>0)*L149+(CELL("width",M149)>0)*M149+(CELL("width",N149)>0)*N149 -> 0 | Q149: =IF(COA!$E$142="Y","Show","Hide") -> Hide | R149: Costas Pinsin Glantóirí | S149: 0 | T149: 0 | W149: Y
B150: Costas Glantóirí ar Conradh | C150: ='Leathnach Achoimre Bainc'!$BQ$21 -> 0 | D150: ='Leathnach Achoimre Bainc'!$BQ$22 -> 0 | E150: ='Leathnach Achoimre Bainc'!$BQ$23 -> 0 | F150: ='Leathnach Achoimre Bainc'!$BQ$24 -> 0 | G150: ='Leathnach Achoimre Bainc'!$BQ$25 -> 0 | H150: ='Leathnach Achoimre Bainc'!$BQ$26 -> 0 | I150: ='Leathnach Achoimre Bainc'!$BQ$27 -> 0 | J150: ='Leathnach Achoimre Bainc'!$BQ$28 -> 0 | K150: ='Leathnach Achoimre Bainc'!$BQ$29 -> 0 | L150: ='Leathnach Achoimre Bainc'!$BQ$30 -> 0 | M150: ='Leathnach Achoimre Bainc'!$BQ$31 -> 0 | N150: ='Leathnach Achoimre Bainc'!$BQ$32 -> 0 | O150: 0 | Q150: =IF(COA!$E$143="Y","Show","Hide") -> Show | R150: Costas Glantóirí ar Conradh | S150: 0 | T150: 0 | W150: N
B151: Costas Ábhar Glantacháin | C151: ='Leathnach Achoimre Bainc'!$BR$21 -> 0 | D151: ='Leathnach Achoimre Bainc'!$BR$22 -> 0 | E151: ='Leathnach Achoimre Bainc'!$BR$23 -> 0 | F151: ='Leathnach Achoimre Bainc'!$BR$24 -> 0 | G151: ='Leathnach Achoimre Bainc'!$BR$25 -> 0 | H151: ='Leathnach Achoimre Bainc'!$BR$26 -> 0 | I151: ='Leathnach Achoimre Bainc'!$BR$27 -> 0 | J151: ='Leathnach Achoimre Bainc'!$BR$28 -> 0 | K151: ='Leathnach Achoimre Bainc'!$BR$29 -> 0 | L151: ='Leathnach Achoimre Bainc'!$BR$30 -> 0 | M151: ='Leathnach Achoimre Bainc'!$BR$31 -> 0 | N151: ='Leathnach Achoimre Bainc'!$BR$32 -> 0 | O151: 0 | Q151: =IF(COA!$E$144="Y","Show","Hide") -> Show | R151: Costas Ábhar Glantacháin | S151: 0 | T151: 0 | W151: N
B152: Costais Ghlantacháin agus Sláintíochta Eile | C152: ='Leathnach Achoimre Bainc'!$BS$21 -> 0 | D152: ='Leathnach Achoimre Bainc'!$BS$22 -> 0 | E152: ='Leathnach Achoimre Bainc'!$BS$23 -> 0 | F152: ='Leathnach Achoimre Bainc'!$BS$24 -> 0 | G152: ='Leathnach Achoimre Bainc'!$BS$25 -> 0 | H152: ='Leathnach Achoimre Bainc'!$BS$26 -> 0 | I152: ='Leathnach Achoimre Bainc'!$BS$27 -> 0 | J152: ='Leathnach Achoimre Bainc'!$BS$28 -> 0 | K152: ='Leathnach Achoimre Bainc'!$BS$29 -> 0 | L152: ='Leathnach Achoimre Bainc'!$BS$30 -> 0 | M152: ='Leathnach Achoimre Bainc'!$BS$31 -> 0 | N152: ='Leathnach Achoimre Bainc'!$BS$32 -> 0 | O152: 0 | Q152: =IF(COA!$E$145="Y","Show","Hide") -> Show | R152: Costais Ghlantacháin agus Sláintíochta Eile | S152: 0 | T152: 0 | W152: N
B153: Costas Deisiúchán ar Fhoirgnimh agus Thailte | C153: ='Leathnach Achoimre Bainc'!$BT$21 -> 0 | D153: ='Leathnach Achoimre Bainc'!$BT$22 -> 0 | E153: ='Leathnach Achoimre Bainc'!$BT$23 -> 0 | F153: ='Leathnach Achoimre Bainc'!$BT$24 -> 0 | G153: ='Leathnach Achoimre Bainc'!$BT$25 -> 0 | H153: ='Leathnach Achoimre Bainc'!$BT$26 -> 0 | I153: ='Leathnach Achoimre Bainc'!$BT$27 -> 0 | J153: ='Leathnach Achoimre Bainc'!$BT$28 -> 0 | K153: ='Leathnach Achoimre Bainc'!$BT$29 -> 0 | L153: ='Leathnach Achoimre Bainc'!$BT$30 -> 0 | M153: ='Leathnach Achoimre Bainc'!$BT$31 -> 0 | N153: ='Leathnach Achoimre Bainc'!$BT$32 -> 0 | O153: 0 | Q153: =IF(COA!$E$146="Y","Show","Hide") -> Show | R153: Costas Deisiúchán ar Fhoirgnimh agus Thailte | S153: 0 | T153: 0 | W153: N
B154: Costas Deontas Mionoibreacha (Neamhchaipitiúil) | C154: ='Leathnach Achoimre Bainc'!$BU$21 -> 0 | D154: ='Leathnach Achoimre Bainc'!$BU$22 -> 0 | E154: ='Leathnach Achoimre Bainc'!$BU$23 -> 0 | F154: ='Leathnach Achoimre Bainc'!$BU$24 -> 0 | G154: ='Leathnach Achoimre Bainc'!$BU$25 -> 0 | H154: ='Leathnach Achoimre Bainc'!$BU$26 -> 0 | I154: ='Leathnach Achoimre Bainc'!$BU$27 -> 0 | J154: ='Leathnach Achoimre Bainc'!$BU$28 -> 0 | K154: ='Leathnach Achoimre Bainc'!$BU$29 -> 0 | L154: ='Leathnach Achoimre Bainc'!$BU$30 -> 0 | M154: ='Leathnach Achoimre Bainc'!$BU$31 -> 0 | N154: ='Leathnach Achoimre Bainc'!$BU$32 -> 0 | O154: 0 | Q154: =IF(COA!$E$147="Y","Show","Hide") -> Show | R154: Costas Deontas Mionoibreacha (Neamhchaipitiúil) | S154: 0 | T154: 0 | W154: N
B155: Costas Deisiúchán ar Throscán, Feistis agus Trealamh | C155: ='Leathnach Achoimre Bainc'!$BV$21 -> 0 | D155: ='Leathnach Achoimre Bainc'!$BV$22 -> 0 | E155: ='Leathnach Achoimre Bainc'!$BV$23 -> 0 | F155: ='Leathnach Achoimre Bainc'!$BV$24 -> 0 | G155: ='Leathnach Achoimre Bainc'!$BV$25 -> 0 | H155: ='Leathnach Achoimre Bainc'!$BV$26 -> 0 | I155: ='Leathnach Achoimre Bainc'!$BV$27 -> 0 | J155: ='Leathnach Achoimre Bainc'!$BV$28 -> 0 | K155: ='Leathnach Achoimre Bainc'!$BV$29 -> 0 | L155: ='Leathnach Achoimre Bainc'!$BV$30 -> 0 | M155: ='Leathnach Achoimre Bainc'!$BV$31 -> 0 | N155: ='Leathnach Achoimre Bainc'!$BV$32 -> 0 | O155: 0 | Q155: =IF(COA!$E$148="Y","Show","Hide") -> Show | R155: Costas Deisiúchán ar Throscán, Feistis agus Trealamh | S155: 0 | T155: 0 | W155: N
B156: Gnáthchostas Slándála | C156: ='Leathnach Achoimre Bainc'!$BW$21 -> 0 | D156: ='Leathnach Achoimre Bainc'!$BW$22 -> 0 | E156: ='Leathnach Achoimre Bainc'!$BW$23 -> 0 | F156: ='Leathnach Achoimre Bainc'!$BW$24 -> 0 | G156: ='Leathnach Achoimre Bainc'!$BW$25 -> 0 | H156: ='Leathnach Achoimre Bainc'!$BW$26 -> 0 | I156: ='Leathnach Achoimre Bainc'!$BW$27 -> 0 | J156: ='Leathnach Achoimre Bainc'!$BW$28 -> 0 | K156: ='Leathnach Achoimre Bainc'!$BW$29 -> 0 | L156: ='Leathnach Achoimre Bainc'!$BW$30 -> 0 | M156: ='Leathnach Achoimre Bainc'!$BW$31 -> 0 | N156: ='Leathnach Achoimre Bainc'!$BW$32 -> 0 | O156: 0 | Q156: =IF(COA!$E$149="Y","Show","Hide") -> Show | R156: Gnáthchostas Slándála | S156: 0 | T156: 0 | W156: N
B157: Costas Árachais Ghinearálta | C157: ='Leathnach Achoimre Bainc'!$BX$21 -> 0 | D157: ='Leathnach Achoimre Bainc'!$BX$22 -> 0 | E157: ='Leathnach Achoimre Bainc'!$BX$23 -> 0 | F157: ='Leathnach Achoimre Bainc'!$BX$24 -> 0 | G157: ='Leathnach Achoimre Bainc'!$BX$25 -> 0 | H157: ='Leathnach Achoimre Bainc'!$BX$26 -> 0 | I157: ='Leathnach Achoimre Bainc'!$BX$27 -> 0 | J157: ='Leathnach Achoimre Bainc'!$BX$28 -> 0 | K157: ='Leathnach Achoimre Bainc'!$BX$29 -> 0 | L157: ='Leathnach Achoimre Bainc'!$BX$30 -> 0 | M157: ='Leathnach Achoimre Bainc'!$BX$31 -> 0 | N157: ='Leathnach Achoimre Bainc'!$BX$32 -> 0 | O157: 0 | Q157: =IF(COA!$E$150="Y","Show","Hide") -> Show | R157: Costas Árachais Ghinearálta | S157: 0 | T157: 0 | W157: N
B158: Costas Téimh | C158: ='Leathnach Achoimre Bainc'!$BY$21 -> 0 | D158: ='Leathnach Achoimre Bainc'!$BY$22 -> 0 | E158: ='Leathnach Achoimre Bainc'!$BY$23 -> 0 | F158: ='Leathnach Achoimre Bainc'!$BY$24 -> 0 | G158: ='Leathnach Achoimre Bainc'!$BY$25 -> 0 | H158: ='Leathnach Achoimre Bainc'!$BY$26 -> 0 | I158: ='Leathnach Achoimre Bainc'!$BY$27 -> 0 | J158: ='Leathnach Achoimre Bainc'!$BY$28 -> 0 | K158: ='Leathnach Achoimre Bainc'!$BY$29 -> 0 | L158: ='Leathnach Achoimre Bainc'!$BY$30 -> 0 | M158: ='Leathnach Achoimre Bainc'!$BY$31 -> 0 | N158: ='Leathnach Achoimre Bainc'!$BY$32 -> 0 | O158: 0 | Q158: =IF(COA!$E$151="Y","Show","Hide") -> Show | R158: Costas Téimh | S158: 0 | T158: 0 | W158: N
B159: Costas Soilse agus Cumhachta | C159: ='Leathnach Achoimre Bainc'!$BZ$21 -> 0 | D159: ='Leathnach Achoimre Bainc'!$BZ$22 -> 0 | E159: ='Leathnach Achoimre Bainc'!$BZ$23 -> 0 | F159: ='Leathnach Achoimre Bainc'!$BZ$24 -> 0 | G159: ='Leathnach Achoimre Bainc'!$BZ$25 -> 0 | H159: ='Leathnach Achoimre Bainc'!$BZ$26 -> 0 | I159: ='Leathnach Achoimre Bainc'!$BZ$27 -> 0 | J159: ='Leathnach Achoimre Bainc'!$BZ$28 -> 0 | K159: ='Leathnach Achoimre Bainc'!$BZ$29 -> 0 | L159: ='Leathnach Achoimre Bainc'!$BZ$30 -> 0 | M159: ='Leathnach Achoimre Bainc'!$BZ$31 -> 0 | N159: ='Leathnach Achoimre Bainc'!$BZ$32 -> 0 | O159: 0 | Q159: =IF(COA!$E$152="Y","Show","Hide") -> Show | R159: Costas Soilse agus Cumhachta | S159: 0 | T159: 0 | W159: N
B160: Costas Cíosa Cóiríochta Sealadaí | C160: ='Leathnach Achoimre Bainc'!$CA$21 -> 0 | D160: ='Leathnach Achoimre Bainc'!$CA$22 -> 0 | E160: ='Leathnach Achoimre Bainc'!$CA$23 -> 0 | F160: ='Leathnach Achoimre Bainc'!$CA$24 -> 0 | G160: ='Leathnach Achoimre Bainc'!$CA$25 -> 0 | H160: ='Leathnach Achoimre Bainc'!$CA$26 -> 0 | I160: ='Leathnach Achoimre Bainc'!$CA$27 -> 0 | J160: ='Leathnach Achoimre Bainc'!$CA$28 -> 0 | K160: ='Leathnach Achoimre Bainc'!$CA$29 -> 0 | L160: ='Leathnach Achoimre Bainc'!$CA$30 -> 0 | M160: ='Leathnach Achoimre Bainc'!$CA$31 -> 0 | N160: ='Leathnach Achoimre Bainc'!$CA$32 -> 0 | O160: 0 | Q160: =IF(COA!$E$153="Y","Show","Hide") -> Show | R160: Costas Cíosa Cóiríochta Sealadaí | S160: 0 | T160: 0 | W160: N
B161: Costais Cíosa Eile | C161: ='Leathnach Achoimre Bainc'!$CB$21 -> 0 | D161: ='Leathnach Achoimre Bainc'!$CB$22 -> 0 | E161: ='Leathnach Achoimre Bainc'!$CB$23 -> 0 | F161: ='Leathnach Achoimre Bainc'!$CB$24 -> 0 | G161: ='Leathnach Achoimre Bainc'!$CB$25 -> 0 | H161: ='Leathnach Achoimre Bainc'!$CB$26 -> 0 | I161: ='Leathnach Achoimre Bainc'!$CB$27 -> 0 | J161: ='Leathnach Achoimre Bainc'!$CB$28 -> 0 | K161: ='Leathnach Achoimre Bainc'!$CB$29 -> 0 | L161: ='Leathnach Achoimre Bainc'!$CB$30 -> 0 | M161: ='Leathnach Achoimre Bainc'!$CB$31 -> 0 | N161: ='Leathnach Achoimre Bainc'!$CB$32 -> 0 | O161: 0 | Q161: =IF(COA!$E$154="Y","Show","Hide") -> Hide | R161: Costais Cíosa Eile | S161: 0 | T161: 0 | W161: Y
B162: Costas Bruscair | C162: ='Leathnach Achoimre Bainc'!$CC$21 -> 0 | D162: ='Leathnach Achoimre Bainc'!$CC$22 -> 0 | E162: ='Leathnach Achoimre Bainc'!$CC$23 -> 0 | F162: ='Leathnach Achoimre Bainc'!$CC$24 -> 0 | G162: ='Leathnach Achoimre Bainc'!$CC$25 -> 0 | H162: ='Leathnach Achoimre Bainc'!$CC$26 -> 0 | I162: ='Leathnach Achoimre Bainc'!$CC$27 -> 0 | J162: ='Leathnach Achoimre Bainc'!$CC$28 -> 0 | K162: ='Leathnach Achoimre Bainc'!$CC$29 -> 0 | L162: ='Leathnach Achoimre Bainc'!$CC$30 -> 0 | M162: ='Leathnach Achoimre Bainc'!$CC$31 -> 0 | N162: ='Leathnach Achoimre Bainc'!$CC$32 -> 0 | O162: 0 | Q162: =IF(COA!$E$155="Y","Show","Hide") -> Show | R162: Costas Bruscair | S162: 0 | T162: 0 | W162: N
B163: Costais Rátaí Uisce | C163: ='Leathnach Achoimre Bainc'!$CD$21 -> 0 | D163: ='Leathnach Achoimre Bainc'!$CD$22 -> 0 | E163: ='Leathnach Achoimre Bainc'!$CD$23 -> 0 | F163: ='Leathnach Achoimre Bainc'!$CD$24 -> 0 | G163: ='Leathnach Achoimre Bainc'!$CD$25 -> 0 | H163: ='Leathnach Achoimre Bainc'!$CD$26 -> 0 | I163: ='Leathnach Achoimre Bainc'!$CD$27 -> 0 | J163: ='Leathnach Achoimre Bainc'!$CD$28 -> 0 | K163: ='Leathnach Achoimre Bainc'!$CD$29 -> 0 | L163: ='Leathnach Achoimre Bainc'!$CD$30 -> 0 | M163: ='Leathnach Achoimre Bainc'!$CD$31 -> 0 | N163: ='Leathnach Achoimre Bainc'!$CD$32 -> 0 | O163: 0 | Q163: =IF(COA!$E$156="Y","Show","Hide") -> Show | R163: Costais Rátaí Uisce | S163: 0 | T163: 0 | W163: N
B164: Costas na Táille Ceadúnais don Phátrún/Iontaobhaí | C164: ='Leathnach Achoimre Bainc'!$CE$21 -> 0 | D164: ='Leathnach Achoimre Bainc'!$CE$22 -> 0 | E164: ='Leathnach Achoimre Bainc'!$CE$23 -> 0 | F164: ='Leathnach Achoimre Bainc'!$CE$24 -> 0 | G164: ='Leathnach Achoimre Bainc'!$CE$25 -> 0 | H164: ='Leathnach Achoimre Bainc'!$CE$26 -> 0 | I164: ='Leathnach Achoimre Bainc'!$CE$27 -> 0 | J164: ='Leathnach Achoimre Bainc'!$CE$28 -> 0 | K164: ='Leathnach Achoimre Bainc'!$CE$29 -> 0 | L164: ='Leathnach Achoimre Bainc'!$CE$30 -> 0 | M164: ='Leathnach Achoimre Bainc'!$CE$31 -> 0 | N164: ='Leathnach Achoimre Bainc'!$CE$32 -> 0 | O164: 0 | Q164: =IF(COA!$E$157="Y","Show","Hide") -> Show | R164: Costas na Táille Ceadúnais don Phátrún/Iontaobhaí | S164: 0 | T164: 0 | W164: N
B165: Costas Deisiúcháin agus Cothabhála Eile | C165: ='Leathnach Achoimre Bainc'!$CF$21 -> 0 | D165: ='Leathnach Achoimre Bainc'!$CF$22 -> 0 | E165: ='Leathnach Achoimre Bainc'!$CF$23 -> 0 | F165: ='Leathnach Achoimre Bainc'!$CF$24 -> 0 | G165: ='Leathnach Achoimre Bainc'!$CF$25 -> 0 | H165: ='Leathnach Achoimre Bainc'!$CF$26 -> 0 | I165: ='Leathnach Achoimre Bainc'!$CF$27 -> 0 | J165: ='Leathnach Achoimre Bainc'!$CF$28 -> 0 | K165: ='Leathnach Achoimre Bainc'!$CF$29 -> 0 | L165: ='Leathnach Achoimre Bainc'!$CF$30 -> 0 | M165: ='Leathnach Achoimre Bainc'!$CF$31 -> 0 | N165: ='Leathnach Achoimre Bainc'!$CF$32 -> 0 | O165: 0 | Q165: =IF(COA!$E$158="Y","Show","Hide") -> Show | R165: Costas Deisiúcháin agus Cothabhála Eile | S165: 0 | T165: 0 | W165: N
B166: Deontas Caipitíochta COVID le haghaidh Chostas Pá Glantacháin | C166: ='Leathnach Achoimre Bainc'!$CG$21 -> 0 | D166: ='Leathnach Achoimre Bainc'!$CG$22 -> 0 | E166: ='Leathnach Achoimre Bainc'!$CG$23 -> 0 | F166: ='Leathnach Achoimre Bainc'!$CG$24 -> 0 | G166: ='Leathnach Achoimre Bainc'!$CG$25 -> 0 | H166: ='Leathnach Achoimre Bainc'!$CG$26 -> 0 | I166: ='Leathnach Achoimre Bainc'!$CG$27 -> 0 | J166: ='Leathnach Achoimre Bainc'!$CG$28 -> 0 | K166: ='Leathnach Achoimre Bainc'!$CG$29 -> 0 | L166: ='Leathnach Achoimre Bainc'!$CG$30 -> 0 | M166: ='Leathnach Achoimre Bainc'!$CG$31 -> 0 | N166: ='Leathnach Achoimre Bainc'!$CG$32 -> 0 | O166: 0 | Q166: =IF(COA!$E$159="Y","Show","Hide") -> Hide | R166: Deontas Caipitíochta COVID le haghaidh Chostas Pá Glantacháin | S166: 0 | T166: 0 | W166: Y
B167: Deontas Caipitíochta Covid le haghaidh Chostas Glantacháin (Neamhphá) & PPE | C167: ='Leathnach Achoimre Bainc'!$CH$21 -> 0 | D167: ='Leathnach Achoimre Bainc'!$CH$22 -> 0 | E167: ='Leathnach Achoimre Bainc'!$CH$23 -> 0 | F167: ='Leathnach Achoimre Bainc'!$CH$24 -> 0 | G167: ='Leathnach Achoimre Bainc'!$CH$25 -> 0 | H167: ='Leathnach Achoimre Bainc'!$CH$26 -> 0 | I167: ='Leathnach Achoimre Bainc'!$CH$27 -> 0 | J167: ='Leathnach Achoimre Bainc'!$CH$28 -> 0 | K167: ='Leathnach Achoimre Bainc'!$CH$29 -> 0 | L167: ='Leathnach Achoimre Bainc'!$CH$30 -> 0 | M167: ='Leathnach Achoimre Bainc'!$CH$31 -> 0 | N167: ='Leathnach Achoimre Bainc'!$CH$32 -> 0 | O167: 0 | Q167: =IF(COA!$E$160="Y","Show","Hide") -> Hide | R167: Deontas Caipitíochta Covid le haghaidh Chostas Glantacháin (Neamhphá) & PPE | S167: 0 | T167: 0 | W167: Y
B168: Costas Pá Oifigeach Cléireachais/Rúnaíochta | C168: ='Leathnach Achoimre Bainc'!$CI$21 -> 0 | D168: ='Leathnach Achoimre Bainc'!$CI$22 -> 0 | E168: ='Leathnach Achoimre Bainc'!$CI$23 -> 0 | F168: ='Leathnach Achoimre Bainc'!$CI$24 -> 0 | G168: ='Leathnach Achoimre Bainc'!$CI$25 -> 0 | H168: ='Leathnach Achoimre Bainc'!$CI$26 -> 0 | I168: ='Leathnach Achoimre Bainc'!$CI$27 -> 0 | J168: ='Leathnach Achoimre Bainc'!$CI$28 -> 0 | K168: ='Leathnach Achoimre Bainc'!$CI$29 -> 0 | L168: ='Leathnach Achoimre Bainc'!$CI$30 -> 0 | M168: ='Leathnach Achoimre Bainc'!$CI$31 -> 0 | N168: ='Leathnach Achoimre Bainc'!$CI$32 -> 0 | O168: 0 | Q168: =IF(COA!$E$161="Y","Show","Hide") -> Show | R168: Costas Pá Oifigeach Cléireachais/Rúnaíochta | S168: 0 | T168: 0 | W168: N
B169: Costas Pinsin Oifigeach Cléireachais/Rúnaíochta | C169: ='Leathnach Achoimre Bainc'!$CJ$21 -> 0 | D169: ='Leathnach Achoimre Bainc'!$CJ$22 -> 0 | E169: ='Leathnach Achoimre Bainc'!$CJ$23 -> 0 | F169: ='Leathnach Achoimre Bainc'!$CJ$24 -> 0 | G169: ='Leathnach Achoimre Bainc'!$CJ$25 -> 0 | H169: ='Leathnach Achoimre Bainc'!$CJ$26 -> 0 | I169: ='Leathnach Achoimre Bainc'!$CJ$27 -> 0 | J169: ='Leathnach Achoimre Bainc'!$CJ$28 -> 0 | K169: ='Leathnach Achoimre Bainc'!$CJ$29 -> 0 | L169: ='Leathnach Achoimre Bainc'!$CJ$30 -> 0 | M169: ='Leathnach Achoimre Bainc'!$CJ$31 -> 0 | N169: ='Leathnach Achoimre Bainc'!$CJ$32 -> 0 | O169: 0 | Q169: =IF(COA!$E$162="Y","Show","Hide") -> Hide | R169: Costas Pinsin Oifigeach Cléireachais/Rúnaíochta | S169: 0 | T169: 0 | W169: Y
B170: Costas Earcaíochta | C170: ='Leathnach Achoimre Bainc'!$CK$21 -> 0 | D170: ='Leathnach Achoimre Bainc'!$CK$22 -> 0 | E170: ='Leathnach Achoimre Bainc'!$CK$23 -> 0 | F170: ='Leathnach Achoimre Bainc'!$CK$24 -> 0 | G170: ='Leathnach Achoimre Bainc'!$CK$25 -> 0 | H170: ='Leathnach Achoimre Bainc'!$CK$26 -> 0 | I170: ='Leathnach Achoimre Bainc'!$CK$27 -> 0 | J170: ='Leathnach Achoimre Bainc'!$CK$28 -> 0 | K170: ='Leathnach Achoimre Bainc'!$CK$29 -> 0 | L170: ='Leathnach Achoimre Bainc'!$CK$30 -> 0 | M170: ='Leathnach Achoimre Bainc'!$CK$31 -> 0 | N170: ='Leathnach Achoimre Bainc'!$CK$32 -> 0 | O170: 0 | Q170: =IF(COA!$E$163="Y","Show","Hide") -> Show | R170: Costas Earcaíochta | S170: 0 | T170: 0 | W170: N
B171: Costas Fógraíochta / Caidrimh Phoiblí | C171: ='Leathnach Achoimre Bainc'!$CL$21 -> 0 | D171: ='Leathnach Achoimre Bainc'!$CL$22 -> 0 | E171: ='Leathnach Achoimre Bainc'!$CL$23 -> 0 | F171: ='Leathnach Achoimre Bainc'!$CL$24 -> 0 | G171: ='Leathnach Achoimre Bainc'!$CL$25 -> 0 | H171: ='Leathnach Achoimre Bainc'!$CL$26 -> 0 | I171: ='Leathnach Achoimre Bainc'!$CL$27 -> 0 | J171: ='Leathnach Achoimre Bainc'!$CL$28 -> 0 | K171: ='Leathnach Achoimre Bainc'!$CL$29 -> 0 | L171: ='Leathnach Achoimre Bainc'!$CL$30 -> 0 | M171: ='Leathnach Achoimre Bainc'!$CL$31 -> 0 | N171: ='Leathnach Achoimre Bainc'!$CL$32 -> 0 | O171: 0 | Q171: =IF(COA!$E$164="Y","Show","Hide") -> Show | R171: Costas Fógraíochta / Caidrimh Phoiblí | S171: 0 | T171: 0 | W171: N
B172: Costas Postais | C172: ='Leathnach Achoimre Bainc'!$CM$21 -> 0 | D172: ='Leathnach Achoimre Bainc'!$CM$22 -> 0 | E172: ='Leathnach Achoimre Bainc'!$CM$23 -> 0 | F172: ='Leathnach Achoimre Bainc'!$CM$24 -> 0 | G172: ='Leathnach Achoimre Bainc'!$CM$25 -> 0 | H172: ='Leathnach Achoimre Bainc'!$CM$26 -> 0 | I172: ='Leathnach Achoimre Bainc'!$CM$27 -> 0 | J172: ='Leathnach Achoimre Bainc'!$CM$28 -> 0 | K172: ='Leathnach Achoimre Bainc'!$CM$29 -> 0 | L172: ='Leathnach Achoimre Bainc'!$CM$30 -> 0 | M172: ='Leathnach Achoimre Bainc'!$CM$31 -> 0 | N172: ='Leathnach Achoimre Bainc'!$CM$32 -> 0 | O172: 0 | Q172: =IF(COA!$E$165="Y","Show","Hide") -> Show | R172: Costas Postais | S172: 0 | T172: 0 | W172: N
B173: Costas Gutháin / SMS | C173: ='Leathnach Achoimre Bainc'!$CN$21 -> 0 | D173: ='Leathnach Achoimre Bainc'!$CN$22 -> 0 | E173: ='Leathnach Achoimre Bainc'!$CN$23 -> 0 | F173: ='Leathnach Achoimre Bainc'!$CN$24 -> 0 | G173: ='Leathnach Achoimre Bainc'!$CN$25 -> 0 | H173: ='Leathnach Achoimre Bainc'!$CN$26 -> 0 | I173: ='Leathnach Achoimre Bainc'!$CN$27 -> 0 | J173: ='Leathnach Achoimre Bainc'!$CN$28 -> 0 | K173: ='Leathnach Achoimre Bainc'!$CN$29 -> 0 | L173: ='Leathnach Achoimre Bainc'!$CN$30 -> 0 | M173: ='Leathnach Achoimre Bainc'!$CN$31 -> 0 | N173: ='Leathnach Achoimre Bainc'!$CN$32 -> 0 | O173: 0 | Q173: =IF(COA!$E$166="Y","Show","Hide") -> Show | R173: Costas Gutháin / SMS | S173: 0 | T173: 0 | W173: N
B174: Costas Clódóireachta agus Páipéarachais | C174: ='Leathnach Achoimre Bainc'!$CO$21 -> 0 | D174: ='Leathnach Achoimre Bainc'!$CO$22 -> 0 | E174: ='Leathnach Achoimre Bainc'!$CO$23 -> 0 | F174: ='Leathnach Achoimre Bainc'!$CO$24 -> 0 | G174: ='Leathnach Achoimre Bainc'!$CO$25 -> 0 | H174: ='Leathnach Achoimre Bainc'!$CO$26 -> 0 | I174: ='Leathnach Achoimre Bainc'!$CO$27 -> 0 | J174: ='Leathnach Achoimre Bainc'!$CO$28 -> 0 | K174: ='Leathnach Achoimre Bainc'!$CO$29 -> 0 | L174: ='Leathnach Achoimre Bainc'!$CO$30 -> 0 | M174: ='Leathnach Achoimre Bainc'!$CO$31 -> 0 | N174: ='Leathnach Achoimre Bainc'!$CO$32 -> 0 | O174: 0 | Q174: =IF(COA!$E$167="Y","Show","Hide") -> Show | R174: Costas Clódóireachta agus Páipéarachais | S174: 0 | T174: 0 | W174: N
B175: Costas Trealaimh Oifige (Neamhchaipitiúil) | C175: ='Leathnach Achoimre Bainc'!$CP$21 -> 0 | D175: ='Leathnach Achoimre Bainc'!$CP$22 -> 0 | E175: ='Leathnach Achoimre Bainc'!$CP$23 -> 0 | F175: ='Leathnach Achoimre Bainc'!$CP$24 -> 0 | G175: ='Leathnach Achoimre Bainc'!$CP$25 -> 0 | H175: ='Leathnach Achoimre Bainc'!$CP$26 -> 0 | I175: ='Leathnach Achoimre Bainc'!$CP$27 -> 0 | J175: ='Leathnach Achoimre Bainc'!$CP$28 -> 0 | K175: ='Leathnach Achoimre Bainc'!$CP$29 -> 0 | L175: ='Leathnach Achoimre Bainc'!$CP$30 -> 0 | M175: ='Leathnach Achoimre Bainc'!$CP$31 -> 0 | N175: ='Leathnach Achoimre Bainc'!$CP$32 -> 0 | O175: 0 | Q175: =IF(COA!$E$168="Y","Show","Hide") -> Show | R175: Costas Trealaimh Oifige (Neamhchaipitiúil) | S175: 0 | T175: 0 | W175: N
B176: Costas Ríomhairí Oifige nach bhFuarthas Deontas TFC ina leith | C176: ='Leathnach Achoimre Bainc'!$CQ$21 -> 0 | D176: ='Leathnach Achoimre Bainc'!$CQ$22 -> 0 | E176: ='Leathnach Achoimre Bainc'!$CQ$23 -> 0 | F176: ='Leathnach Achoimre Bainc'!$CQ$24 -> 0 | G176: ='Leathnach Achoimre Bainc'!$CQ$25 -> 0 | H176: ='Leathnach Achoimre Bainc'!$CQ$26 -> 0 | I176: ='Leathnach Achoimre Bainc'!$CQ$27 -> 0 | J176: ='Leathnach Achoimre Bainc'!$CQ$28 -> 0 | K176: ='Leathnach Achoimre Bainc'!$CQ$29 -> 0 | L176: ='Leathnach Achoimre Bainc'!$CQ$30 -> 0 | M176: ='Leathnach Achoimre Bainc'!$CQ$31 -> 0 | N176: ='Leathnach Achoimre Bainc'!$CQ$32 -> 0 | O176: 0 | Q176: =IF(COA!$E$169="Y","Show","Hide") -> Show | R176: Costas Ríomhairí Oifige nach bhFuarthas Deontas TFC ina leith | S176: 0 | T176: 0 | W176: N
B177: Costas Cuntasaíochta / Iniúchóireachta | C177: ='Leathnach Achoimre Bainc'!$CR$21 -> 0 | D177: ='Leathnach Achoimre Bainc'!$CR$22 -> 0 | E177: ='Leathnach Achoimre Bainc'!$CR$23 -> 0 | F177: ='Leathnach Achoimre Bainc'!$CR$24 -> 0 | G177: ='Leathnach Achoimre Bainc'!$CR$25 -> 0 | H177: ='Leathnach Achoimre Bainc'!$CR$26 -> 0 | I177: ='Leathnach Achoimre Bainc'!$CR$27 -> 0 | J177: ='Leathnach Achoimre Bainc'!$CR$28 -> 0 | K177: ='Leathnach Achoimre Bainc'!$CR$29 -> 0 | L177: ='Leathnach Achoimre Bainc'!$CR$30 -> 0 | M177: ='Leathnach Achoimre Bainc'!$CR$31 -> 0 | N177: ='Leathnach Achoimre Bainc'!$CR$32 -> 0 | O177: 0 | Q177: =IF(COA!$E$170="Y","Show","Hide") -> Show | R177: Costas Cuntasaíochta / Iniúchóireachta | S177: 0 | T177: 0 | W177: N
B178: Costas Táillí Gairmiúla Eile | C178: ='Leathnach Achoimre Bainc'!$CS$21 -> 0 | D178: ='Leathnach Achoimre Bainc'!$CS$22 -> 0 | E178: ='Leathnach Achoimre Bainc'!$CS$23 -> 0 | F178: ='Leathnach Achoimre Bainc'!$CS$24 -> 0 | G178: ='Leathnach Achoimre Bainc'!$CS$25 -> 0 | H178: ='Leathnach Achoimre Bainc'!$CS$26 -> 0 | I178: ='Leathnach Achoimre Bainc'!$CS$27 -> 0 | J178: ='Leathnach Achoimre Bainc'!$CS$28 -> 0 | K178: ='Leathnach Achoimre Bainc'!$CS$29 -> 0 | L178: ='Leathnach Achoimre Bainc'!$CS$30 -> 0 | M178: ='Leathnach Achoimre Bainc'!$CS$31 -> 0 | N178: ='Leathnach Achoimre Bainc'!$CS$32 -> 0 | O178: 0 | Q178: =IF(COA!$E$171="Y","Show","Hide") -> Show | R178: Costas Táillí Gairmiúla Eile | S178: 0 | T178: 0 | W178: N
B179: Costas Taistil agus Cothaithe | C179: ='Leathnach Achoimre Bainc'!$CT$21 -> 0 | D179: ='Leathnach Achoimre Bainc'!$CT$22 -> 0 | E179: ='Leathnach Achoimre Bainc'!$CT$23 -> 0 | F179: ='Leathnach Achoimre Bainc'!$CT$24 -> 0 | G179: ='Leathnach Achoimre Bainc'!$CT$25 -> 0 | H179: ='Leathnach Achoimre Bainc'!$CT$26 -> 0 | I179: ='Leathnach Achoimre Bainc'!$CT$27 -> 0 | J179: ='Leathnach Achoimre Bainc'!$CT$28 -> 0 | K179: ='Leathnach Achoimre Bainc'!$CT$29 -> 0 | L179: ='Leathnach Achoimre Bainc'!$CT$30 -> 0 | M179: ='Leathnach Achoimre Bainc'!$CT$31 -> 0 | N179: ='Leathnach Achoimre Bainc'!$CT$32 -> 0 | O179: 0 | Q179: =IF(COA!$E$172="Y","Show","Hide") -> Show | R179: Costas Taistil agus Cothaithe | S179: 0 | T179: 0 | W179: N
B180: Costais an Phríomhoide | C180: ='Leathnach Achoimre Bainc'!$CU$21 -> 0 | D180: ='Leathnach Achoimre Bainc'!$CU$22 -> 0 | E180: ='Leathnach Achoimre Bainc'!$CU$23 -> 0 | F180: ='Leathnach Achoimre Bainc'!$CU$24 -> 0 | G180: ='Leathnach Achoimre Bainc'!$CU$25 -> 0 | H180: ='Leathnach Achoimre Bainc'!$CU$26 -> 0 | I180: ='Leathnach Achoimre Bainc'!$CU$27 -> 0 | J180: ='Leathnach Achoimre Bainc'!$CU$28 -> 0 | K180: ='Leathnach Achoimre Bainc'!$CU$29 -> 0 | L180: ='Leathnach Achoimre Bainc'!$CU$30 -> 0 | M180: ='Leathnach Achoimre Bainc'!$CU$31 -> 0 | N180: ='Leathnach Achoimre Bainc'!$CU$32 -> 0 | O180: 0 | Q180: =IF(COA!$E$173="Y","Show","Hide") -> Show | R180: Costais an Phríomhoide | S180: =INDEX($C$84:$O$197,MATCH(R180,$B$84:$B$197,0),MATCH($S$83,$C$83:$O$83,0)) -> 0 | T180: 0 | W180: N
B181: Costas an Bhoird Bainistíocha | C181: ='Leathnach Achoimre Bainc'!$CV$21 -> 0 | D181: ='Leathnach Achoimre Bainc'!$CV$22 -> 0 | E181: ='Leathnach Achoimre Bainc'!$CV$23 -> 0 | F181: ='Leathnach Achoimre Bainc'!$CV$24 -> 0 | G181: ='Leathnach Achoimre Bainc'!$CV$25 -> 0 | H181: ='Leathnach Achoimre Bainc'!$CV$26 -> 0 | I181: ='Leathnach Achoimre Bainc'!$CV$27 -> 0 | J181: ='Leathnach Achoimre Bainc'!$CV$28 -> 0 | K181: ='Leathnach Achoimre Bainc'!$CV$29 -> 0 | L181: ='Leathnach Achoimre Bainc'!$CV$30 -> 0 | M181: ='Leathnach Achoimre Bainc'!$CV$31 -> 0 | N181: ='Leathnach Achoimre Bainc'!$CV$32 -> 0 | O181: 0 | Q181: =IF(COA!$E$174="Y","Show","Hide") -> Show | R181: Costas an Bhoird Bainistíocha | S181: 0 | T181: 0 | W181: N
B182: Costas na Síntiús Bliantúil | C182: ='Leathnach Achoimre Bainc'!$CW$21 -> 0 | D182: ='Leathnach Achoimre Bainc'!$CW$22 -> 0 | E182: ='Leathnach Achoimre Bainc'!$CW$23 -> 0 | F182: ='Leathnach Achoimre Bainc'!$CW$24 -> 0 | G182: ='Leathnach Achoimre Bainc'!$CW$25 -> 0 | H182: ='Leathnach Achoimre Bainc'!$CW$26 -> 0 | I182: ='Leathnach Achoimre Bainc'!$CW$27 -> 0 | J182: ='Leathnach Achoimre Bainc'!$CW$28 -> 0 | K182: ='Leathnach Achoimre Bainc'!$CW$29 -> 0 | L182: ='Leathnach Achoimre Bainc'!$CW$30 -> 0 | M182: ='Leathnach Achoimre Bainc'!$CW$31 -> 0 | N182: ='Leathnach Achoimre Bainc'!$CW$32 -> 0 | O182: 0 | Q182: =IF(COA!$E$175="Y","Show","Hide") -> Show | R182: Costas na Síntiús Bliantúil | S182: 0 | T182: 0 | W182: N
B183: Costas an Chórais Riaracháin Inscoile | C183: ='Leathnach Achoimre Bainc'!$CX$21 -> 0 | D183: ='Leathnach Achoimre Bainc'!$CX$22 -> 0 | E183: ='Leathnach Achoimre Bainc'!$CX$23 -> 0 | F183: ='Leathnach Achoimre Bainc'!$CX$24 -> 0 | G183: ='Leathnach Achoimre Bainc'!$CX$25 -> 0 | H183: ='Leathnach Achoimre Bainc'!$CX$26 -> 0 | I183: ='Leathnach Achoimre Bainc'!$CX$27 -> 0 | J183: ='Leathnach Achoimre Bainc'!$CX$28 -> 0 | K183: ='Leathnach Achoimre Bainc'!$CX$29 -> 0 | L183: ='Leathnach Achoimre Bainc'!$CX$30 -> 0 | M183: ='Leathnach Achoimre Bainc'!$CX$31 -> 0 | N183: ='Leathnach Achoimre Bainc'!$CX$32 -> 0 | O183: 0 | Q183: =IF(COA!$E$176="Y","Show","Hide") -> Show | R183: Costas an Chórais Riaracháin Inscoile | S183: 0 | T183: 0 | W183: N
B184: Costais Bogearraí Cuntasaíochta / Bogearraí Párolla | C184: ='Leathnach Achoimre Bainc'!$CY$21 -> 0 | D184: ='Leathnach Achoimre Bainc'!$CY$22 -> 0 | E184: ='Leathnach Achoimre Bainc'!$CY$23 -> 0 | F184: ='Leathnach Achoimre Bainc'!$CY$24 -> 0 | G184: ='Leathnach Achoimre Bainc'!$CY$25 -> 0 | H184: ='Leathnach Achoimre Bainc'!$CY$26 -> 0 | I184: ='Leathnach Achoimre Bainc'!$CY$27 -> 0 | J184: ='Leathnach Achoimre Bainc'!$CY$28 -> 0 | K184: ='Leathnach Achoimre Bainc'!$CY$29 -> 0 | L184: ='Leathnach Achoimre Bainc'!$CY$30 -> 0 | M184: ='Leathnach Achoimre Bainc'!$CY$31 -> 0 | N184: ='Leathnach Achoimre Bainc'!$CY$32 -> 0 | O184: 0 | Q184: =IF(COA!$E$177="Y","Show","Hide") -> Show | R184: Costais Bogearraí Cuntasaíochta / Bogearraí Párolla | S184: 0 | T184: 0 | W184: N
B185: Tabhartais do Charthanais | C185: ='Leathnach Achoimre Bainc'!$CZ$21 -> 0 | D185: ='Leathnach Achoimre Bainc'!$CZ$22 -> 0 | E185: ='Leathnach Achoimre Bainc'!$CZ$23 -> 0 | F185: ='Leathnach Achoimre Bainc'!$CZ$24 -> 0 | G185: ='Leathnach Achoimre Bainc'!$CZ$25 -> 0 | H185: ='Leathnach Achoimre Bainc'!$CZ$26 -> 0 | I185: ='Leathnach Achoimre Bainc'!$CZ$27 -> 0 | J185: ='Leathnach Achoimre Bainc'!$CZ$28 -> 0 | K185: ='Leathnach Achoimre Bainc'!$CZ$29 -> 0 | L185: ='Leathnach Achoimre Bainc'!$CZ$30 -> 0 | M185: ='Leathnach Achoimre Bainc'!$CZ$31 -> 0 | N185: ='Leathnach Achoimre Bainc'!$CZ$32 -> 0 | O185: 0 | Q185: =IF(COA!$E$178="Y","Show","Hide") -> Show | R185: Tabhartais do Charthanais | S185: 0 | T185: 0 | W185: N
B186: Costas Leighis agus Garchabhrach | C186: ='Leathnach Achoimre Bainc'!$DA$21 -> 0 | D186: ='Leathnach Achoimre Bainc'!$DA$22 -> 0 | E186: ='Leathnach Achoimre Bainc'!$DA$23 -> 0 | F186: ='Leathnach Achoimre Bainc'!$DA$24 -> 0 | G186: ='Leathnach Achoimre Bainc'!$DA$25 -> 0 | H186: ='Leathnach Achoimre Bainc'!$DA$26 -> 0 | I186: ='Leathnach Achoimre Bainc'!$DA$27 -> 0 | J186: ='Leathnach Achoimre Bainc'!$DA$28 -> 0 | K186: ='Leathnach Achoimre Bainc'!$DA$29 -> 0 | L186: ='Leathnach Achoimre Bainc'!$DA$30 -> 0 | M186: ='Leathnach Achoimre Bainc'!$DA$31 -> 0 | N186: ='Leathnach Achoimre Bainc'!$DA$32 -> 0 | O186: 0 | Q186: =IF(COA!$E$179="Y","Show","Hide") -> Show | R186: Costas Leighis agus Garchabhrach | S186: 0 | T186: 0 | W186: N
B187: Costais an tSeomra Foirne | C187: ='Leathnach Achoimre Bainc'!$DB$21 -> 0 | D187: ='Leathnach Achoimre Bainc'!$DB$22 -> 0 | E187: ='Leathnach Achoimre Bainc'!$DB$23 -> 0 | F187: ='Leathnach Achoimre Bainc'!$DB$24 -> 0 | G187: ='Leathnach Achoimre Bainc'!$DB$25 -> 0 | H187: ='Leathnach Achoimre Bainc'!$DB$26 -> 0 | I187: ='Leathnach Achoimre Bainc'!$DB$27 -> 0 | J187: ='Leathnach Achoimre Bainc'!$DB$28 -> 0 | K187: ='Leathnach Achoimre Bainc'!$DB$29 -> 0 | L187: ='Leathnach Achoimre Bainc'!$DB$30 -> 0 | M187: ='Leathnach Achoimre Bainc'!$DB$31 -> 0 | N187: ='Leathnach Achoimre Bainc'!$DB$32 -> 0 | O187: 0 | Q187: =IF(COA!$E$180="Y","Show","Hide") -> Show | R187: Costais an tSeomra Foirne | S187: 0 | T187: 0 | W187: N
B188: Costas Fáilteachais | C188: ='Leathnach Achoimre Bainc'!$DC$21 -> 0 | D188: ='Leathnach Achoimre Bainc'!$DC$22 -> 0 | E188: ='Leathnach Achoimre Bainc'!$DC$23 -> 0 | F188: ='Leathnach Achoimre Bainc'!$DC$24 -> 0 | G188: ='Leathnach Achoimre Bainc'!$DC$25 -> 0 | H188: ='Leathnach Achoimre Bainc'!$DC$26 -> 0 | I188: ='Leathnach Achoimre Bainc'!$DC$27 -> 0 | J188: ='Leathnach Achoimre Bainc'!$DC$28 -> 0 | K188: ='Leathnach Achoimre Bainc'!$DC$29 -> 0 | L188: ='Leathnach Achoimre Bainc'!$DC$30 -> 0 | M188: ='Leathnach Achoimre Bainc'!$DC$31 -> 0 | N188: ='Leathnach Achoimre Bainc'!$DC$32 -> 0 | O188: 0 | Q188: =IF(COA!$E$181="Y","Show","Hide") -> Show | R188: Costas Fáilteachais | S188: 0 | T188: 0 | W188: N
B189: Costas Siopa Milseán | C189: ='Leathnach Achoimre Bainc'!$DD$21 -> 0 | D189: ='Leathnach Achoimre Bainc'!$DD$22 -> 0 | E189: ='Leathnach Achoimre Bainc'!$DD$23 -> 0 | F189: ='Leathnach Achoimre Bainc'!$DD$24 -> 0 | G189: ='Leathnach Achoimre Bainc'!$DD$25 -> 0 | H189: ='Leathnach Achoimre Bainc'!$DD$26 -> 0 | I189: ='Leathnach Achoimre Bainc'!$DD$27 -> 0 | J189: ='Leathnach Achoimre Bainc'!$DD$28 -> 0 | K189: ='Leathnach Achoimre Bainc'!$DD$29 -> 0 | L189: ='Leathnach Achoimre Bainc'!$DD$30 -> 0 | M189: ='Leathnach Achoimre Bainc'!$DD$31 -> 0 | N189: ='Leathnach Achoimre Bainc'!$DD$32 -> 0 | O189: 0 | Q189: =IF(COA!$E$182="Y","Show","Hide") -> Show | R189: Costas Siopa Milseán | S189: 0 | T189: 0 | W189: N
B190: Costais Riaracháin Eile | C190: ='Leathnach Achoimre Bainc'!$DE$21 -> 0 | D190: ='Leathnach Achoimre Bainc'!$DE$22 -> 0 | E190: ='Leathnach Achoimre Bainc'!$DE$23 -> 0 | F190: ='Leathnach Achoimre Bainc'!$DE$24 -> 0 | G190: ='Leathnach Achoimre Bainc'!$DE$25 -> 0 | H190: ='Leathnach Achoimre Bainc'!$DE$26 -> 0 | I190: ='Leathnach Achoimre Bainc'!$DE$27 -> 0 | J190: ='Leathnach Achoimre Bainc'!$DE$28 -> 0 | K190: ='Leathnach Achoimre Bainc'!$DE$29 -> 0 | L190: ='Leathnach Achoimre Bainc'!$DE$30 -> 0 | M190: ='Leathnach Achoimre Bainc'!$DE$31 -> 0 | N190: ='Leathnach Achoimre Bainc'!$DE$32 -> 0 | O190: 0 | Q190: =IF(COA!$E$183="Y","Show","Hide") -> Show | R190: Costais Riaracháin Eile | S190: 0 | T190: 0 | W190: N
B191: Costais Léasaithe | C191: ='Leathnach Achoimre Bainc'!$DF$21 -> 0 | D191: ='Leathnach Achoimre Bainc'!$DF$22 -> 0 | E191: ='Leathnach Achoimre Bainc'!$DF$23 -> 0 | F191: ='Leathnach Achoimre Bainc'!$DF$24 -> 0 | G191: ='Leathnach Achoimre Bainc'!$DF$25 -> 0 | H191: ='Leathnach Achoimre Bainc'!$DF$26 -> 0 | I191: ='Leathnach Achoimre Bainc'!$DF$27 -> 0 | J191: ='Leathnach Achoimre Bainc'!$DF$28 -> 0 | K191: ='Leathnach Achoimre Bainc'!$DF$29 -> 0 | L191: ='Leathnach Achoimre Bainc'!$DF$30 -> 0 | M191: ='Leathnach Achoimre Bainc'!$DF$31 -> 0 | N191: ='Leathnach Achoimre Bainc'!$DF$32 -> 0 | O191: 0 | Q191: =IF(COA!$E$184="Y","Show","Hide") -> Show | R191: Costais Léasaithe | S191: 0 | T191: 0 | W191: N
B192: Costas Táillí Iasachta | C192: ='Leathnach Achoimre Bainc'!$DG$21 -> 0 | D192: ='Leathnach Achoimre Bainc'!$DG$22 -> 0 | E192: ='Leathnach Achoimre Bainc'!$DG$23 -> 0 | F192: ='Leathnach Achoimre Bainc'!$DG$24 -> 0 | G192: ='Leathnach Achoimre Bainc'!$DG$25 -> 0 | H192: ='Leathnach Achoimre Bainc'!$DG$26 -> 0 | I192: ='Leathnach Achoimre Bainc'!$DG$27 -> 0 | J192: ='Leathnach Achoimre Bainc'!$DG$28 -> 0 | K192: ='Leathnach Achoimre Bainc'!$DG$29 -> 0 | L192: ='Leathnach Achoimre Bainc'!$DG$30 -> 0 | M192: ='Leathnach Achoimre Bainc'!$DG$31 -> 0 | N192: ='Leathnach Achoimre Bainc'!$DG$32 -> 0 | O192: 0 | Q192: =IF(COA!$E$185="Y","Show","Hide") -> Show | R192: Costas Táillí Iasachta | S192: 0 | T192: 0 | W192: N
B193: Costas Úis Bainc | C193: ='Leathnach Achoimre Bainc'!$DH$21 -> 0 | D193: ='Leathnach Achoimre Bainc'!$DH$22 -> 0 | E193: ='Leathnach Achoimre Bainc'!$DH$23 -> 0 | F193: ='Leathnach Achoimre Bainc'!$DH$24 -> 0 | G193: ='Leathnach Achoimre Bainc'!$DH$25 -> 0 | H193: ='Leathnach Achoimre Bainc'!$DH$26 -> 0 | I193: ='Leathnach Achoimre Bainc'!$DH$27 -> 0 | J193: ='Leathnach Achoimre Bainc'!$DH$28 -> 0 | K193: ='Leathnach Achoimre Bainc'!$DH$29 -> 0 | L193: ='Leathnach Achoimre Bainc'!$DH$30 -> 0 | M193: ='Leathnach Achoimre Bainc'!$DH$31 -> 0 | N193: ='Leathnach Achoimre Bainc'!$DH$32 -> 0 | O193: 0 | Q193: =IF(COA!$E$186="Y","Show","Hide") -> Show | R193: Costas Úis Bainc | S193: 0 | T193: 0 | W193: N
B194: Costas Táillí Bainc | C194: ='Leathnach Achoimre Bainc'!$DI$21 -> 0 | D194: ='Leathnach Achoimre Bainc'!$DI$22 -> 0 | E194: ='Leathnach Achoimre Bainc'!$DI$23 -> 0 | F194: ='Leathnach Achoimre Bainc'!$DI$24 -> 0 | G194: ='Leathnach Achoimre Bainc'!$DI$25 -> 0 | H194: ='Leathnach Achoimre Bainc'!$DI$26 -> 0 | I194: ='Leathnach Achoimre Bainc'!$DI$27 -> 0 | J194: ='Leathnach Achoimre Bainc'!$DI$28 -> 0 | K194: ='Leathnach Achoimre Bainc'!$DI$29 -> 0 | L194: ='Leathnach Achoimre Bainc'!$DI$30 -> 0 | M194: ='Leathnach Achoimre Bainc'!$DI$31 -> 0 | N194: ='Leathnach Achoimre Bainc'!$DI$32 -> 0 | O194: 0 | Q194: =IF(COA!$E$187="Y","Show","Hide") -> Show | R194: Costas Táillí Bainc | S194: 0 | T194: 0 | W194: N
B195: Costais In-Aisíoctha | C195: ='Leathnach Achoimre Bainc'!$DJ$21 -> 0 | D195: ='Leathnach Achoimre Bainc'!$DJ$22 -> 0 | E195: ='Leathnach Achoimre Bainc'!$DJ$23 -> 0 | F195: ='Leathnach Achoimre Bainc'!$DJ$24 -> 0 | G195: ='Leathnach Achoimre Bainc'!$DJ$25 -> 0 | H195: ='Leathnach Achoimre Bainc'!$DJ$26 -> 0 | I195: ='Leathnach Achoimre Bainc'!$DJ$27 -> 0 | J195: ='Leathnach Achoimre Bainc'!$DJ$28 -> 0 | K195: ='Leathnach Achoimre Bainc'!$DJ$29 -> 0 | L195: ='Leathnach Achoimre Bainc'!$DJ$30 -> 0 | M195: ='Leathnach Achoimre Bainc'!$DJ$31 -> 0 | N195: ='Leathnach Achoimre Bainc'!$DJ$32 -> 0 | O195: 0 | Q195: =IF(COA!$E$188="Y","Show","Hide") -> Show | R195: Costais In-Aisíoctha | S195: 0 | T195: 0 | W195: N
B196: Lascainí Faighte | C196: ='Leathnach Achoimre Bainc'!$DK$21 -> 0 | D196: ='Leathnach Achoimre Bainc'!$DK$22 -> 0 | E196: ='Leathnach Achoimre Bainc'!$DK$23 -> 0 | F196: ='Leathnach Achoimre Bainc'!$DK$24 -> 0 | G196: ='Leathnach Achoimre Bainc'!$DK$25 -> 0 | H196: ='Leathnach Achoimre Bainc'!$DK$26 -> 0 | I196: ='Leathnach Achoimre Bainc'!$DK$27 -> 0 | J196: ='Leathnach Achoimre Bainc'!$DK$28 -> 0 | K196: ='Leathnach Achoimre Bainc'!$DK$29 -> 0 | L196: ='Leathnach Achoimre Bainc'!$DK$30 -> 0 | M196: ='Leathnach Achoimre Bainc'!$DK$31 -> 0 | N196: ='Leathnach Achoimre Bainc'!$DK$32 -> 0 | O196: 0 | Q196: =IF(COA!$E$189="Y","Show","Hide") -> Hide | R196: Lascainí Faighte | S196: 0 | T196: 0 | W196: Y
B197: Aistriú Amach | C197: ='Leathnach Achoimre Bainc'!$DU$21 -> 0 | D197: ='Leathnach Achoimre Bainc'!$DU$22 -> 0 | E197: ='Leathnach Achoimre Bainc'!$DU$23 -> 0 | F197: ='Leathnach Achoimre Bainc'!$DU$24 -> 0 | G197: ='Leathnach Achoimre Bainc'!$DU$25 -> 0 | H197: ='Leathnach Achoimre Bainc'!$DU$26 -> 0 | I197: ='Leathnach Achoimre Bainc'!$DU$27 -> 0 | J197: ='Leathnach Achoimre Bainc'!$DU$28 -> 0 | K197: ='Leathnach Achoimre Bainc'!$DU$29 -> 0 | L197: ='Leathnach Achoimre Bainc'!$DU$30 -> 0 | M197: ='Leathnach Achoimre Bainc'!$DU$31 -> 0 | N197: ='Leathnach Achoimre Bainc'!$DU$32 -> 0 | O197: 0 | R197: Aistriú Amach | S197: 0 | T197: 0
B198: CAITEACHAS IOMLÁN NA SCOILE | C198: =SUM(C84:C197) -> 0 | D198: 0 | E198: 0 | F198: 0 | G198: 0 | H198: 0 | I198: 0 | J198: 0 | K198: 0 | L198: 0 | M198: 0 | N198: 0 | O198: 0 | R198: CAITEACHAS IOMLÁN NA SCOILE | S198: =SUM(S84:S197) -> 0 | T198: =SUM(T84:T197) -> 0
B200: GLANBHARRACHAS / (EASNAMH) | C200: =C81-C198 -> 0 | D200: 0 | E200: 0 | F200: 0 | G200: 0 | H200: 0 | I200: 0 | J200: 0 | K200: 0 | L200: 0 | M200: 0 | N200: 0 | O200: 0 | R200: GLANBHARRACHAS / (EASNAMH) | S200: =S81-S198 -> 0 | T200: =T81-T198 -> 0
B204: TUAIRISC AR CHAIPITEAL AGUS CÚCHISTÍ | R204: TUAIRISC AR CHAIPITEAL AGUS CÚCHISTÍ
B205: IONCAM CAIPITIÚIL | C205: Meán Fomhair | D205: Deireadh Fómhair | E205: Samhain | F205: Nollaig | G205: Eanair | H205: Feabhra | I205: Márta | J205: Aibreán | K205: Bealtaine | L205: Meitheamh | M205: Iúil | N205: Lúnasa | O205: Iomlán | R205: IONCAM CAIPITIÚIL MÍOSÚÍIL | S205: =S5 -> Meán Fomhair | T205: Iomlán
B207: Ioncam Deontais Foirgníochta Caipitil RO | C207: ='Leathnach Achoimre Bainc'!$BW$4 -> 0 | D207: ='Leathnach Achoimre Bainc'!$BW$5 -> 0 | E207: ='Leathnach Achoimre Bainc'!$BW$6 -> 0 | F207: ='Leathnach Achoimre Bainc'!$BW$7 -> 0 | G207: ='Leathnach Achoimre Bainc'!$BW$8 -> 0 | H207: ='Leathnach Achoimre Bainc'!$BW$9 -> 0 | I207: ='Leathnach Achoimre Bainc'!$BW$10 -> 0 | J207: ='Leathnach Achoimre Bainc'!$BW$11 -> 0 | K207: ='Leathnach Achoimre Bainc'!$BW$12 -> 0 | L207: ='Leathnach Achoimre Bainc'!$BW$13 -> 0 | M207: ='Leathnach Achoimre Bainc'!$BW$14 -> 0 | N207: ='Leathnach Achoimre Bainc'!$BW$15 -> 0 | O207: =(CELL("width",C207)>0)*C207+(CELL("width",D207)>0)*D207+(CELL("width",E207)>0)*E207+(CELL("width",F207)>0)*F207+(CELL("width",G207)>0)*G207+(CELL("width",H207)>0)*H207+(CELL("width",I207)>0)*I207+(CELL("width",J207)>0)*J207+(CELL("width",K207)>0)*K207+(CELL("width",L207)>0)*L207+(CELL("width",M207)>0)*M207+(CELL("width",N207)>0)*N207 -> 0 | R207: Ioncam Deontais Foirgníochta Caipitil RO | S207: =INDEX($C$207:$O$215,MATCH(R207,$B$207:$B$215,0),MATCH($S$205,$C$205:$O$205,0)) -> 0 | T207: =O207 -> 0
B208: Ioncam ó Thiomsú Airgid do Thionscadail Chaipitiúla | C208: ='Leathnach Achoimre Bainc'!$BX$4 -> 0 | D208: ='Leathnach Achoimre Bainc'!$BX$5 -> 0 | E208: ='Leathnach Achoimre Bainc'!$BX$6 -> 0 | F208: ='Leathnach Achoimre Bainc'!$BX$7 -> 0 | G208: ='Leathnach Achoimre Bainc'!$BX$8 -> 0 | H208: ='Leathnach Achoimre Bainc'!$BX$9 -> 0 | I208: ='Leathnach Achoimre Bainc'!$BX$10 -> 0 | J208: ='Leathnach Achoimre Bainc'!$BX$11 -> 0 | K208: ='Leathnach Achoimre Bainc'!$BX$12 -> 0 | L208: ='Leathnach Achoimre Bainc'!$BX$13 -> 0 | M208: ='Leathnach Achoimre Bainc'!$BX$14 -> 0 | N208: ='Leathnach Achoimre Bainc'!$BX$15 -> 0 | O208: =(CELL("width",C208)>0)*C208+(CELL("width",D208)>0)*D208+(CELL("width",E208)>0)*E208+(CELL("width",F208)>0)*F208+(CELL("width",G208)>0)*G208+(CELL("width",H208)>0)*H208+(CELL("width",I208)>0)*I208+(CELL("width",J208)>0)*J208+(CELL("width",K208)>0)*K208+(CELL("width",L208)>0)*L208+(CELL("width",M208)>0)*M208+(CELL("width",N208)>0)*N208 -> 0 | R208: Ioncam ó Thiomsú Airgid do Thionscadail Chaipitiúla | S208: =INDEX($C$207:$O$215,MATCH(R208,$B$207:$B$215,0),MATCH($S$205,$C$205:$O$205,0)) -> 0 | T208: =O208 -> 0
... 21 more rows

Sheet Iarmhír v Buiséad
A1: An Príomh-Roghchlár | B1: =Treoracha!G4 -> Cuir Isteach Anseo É | L1: Achoimre ar an mBuiséad | N1: Tuarascáil Roghnúcháin Ioncaim agus Costais
B3: Bliain Iarbhír go Dáta v Buiséad | D3: Ionchur / Allmhairiú | H3: 2024-09-01 | J3: Tréimhse i gcoinne an bhliain roimhe
A4: Cód Ainmniúil | C4: Bliain go Dáta | D4: Buiséad | E4: Bliain go Dáta v Buiséad 2024/2025 | F4: Bliain go Dáta v Buiséad 2024/2025 | H4: Tréimhse rollta | I4: Tréimhse Roimh An Bhliain 2023/2024 | J4: Tréimhse i gcoinne an bhliain roimhe | K4: Tréimhse i gcoinne an bhliain roimhe
B5: IONCAM SCOILE | C5: Iarmhír | D5: 2024/2025 | E5: Difríocht | F5: % Difríocht | G5: IONCAM SCOILE | H5: Iarmhír | I5: Iarmhír | J5: Difríocht | K5: % Difríocht
A6: 3010 | B6: Buiséad Caipitíochta/Neamhphá | C6: ='Tuairiscí Miosúla Ioncam & Cait'!O8 -> 0 | E6: =C6-D6 -> 0 | F6: =IF(D6,(C6-D6)/D6,0) -> 0 | G6: Buiséad Caipitíochta/Neamhphá | H6: =IFERROR(HLOOKUP(A6,'Leathnach Achoimre Bainc'!$B$2:$CF$18,17),"") -> 0 | I6: =IFERROR(HLOOKUP(A6,'Import BSP Bud'!$C$3:$CK$18,16,FALSE),0) -> 0 | J6: =IFERROR(SUM(H6-I6),"") -> 0 | K6: =IF(I6,(H6-I6)/I6,0) -> 0 | Y6: =IF(COA!$E$5="Y","Show","Hide") -> Show
A7: 3020 | B7: Deontas DEIS | C7: ='Tuairiscí Miosúla Ioncam & Cait'!O9 -> 0 | E7: =C7-D7 -> 0 | F7: =IF(D7,(C7-D7)/D7,0) -> 0 | G7: Deontas DEIS | H7: =IFERROR(HLOOKUP(A7,'Leathnach Achoimre Bainc'!$B$2:$CF$18,17),"") -> 0 | I7: =IFERROR(HLOOKUP(A7,'Import BSP Bud'!$C$3:$CK$18,16,FALSE),0) -> 0 | J7: =IFERROR(SUM(H7-I7),"") -> 0 | K7: =IF(I7,(H7-I7)/I7,0) -> 0 | Y7: =IF(COA!$E$6="Y","Show","Hide") -> Show
A8: 3021 | B8: Deontas Scéim luath-thosaithe le haghaidh Ábh/Tre/For Tuis | C8: ='Tuairiscí Miosúla Ioncam & Cait'!O10 -> 0 | E8: 0 | F8: 0 | G8: Deontas Scéim luath-thosaithe le haghaidh Ábh/Tre/For Tuis | H8: =IFERROR(HLOOKUP(A8,'Leathnach Achoimre Bainc'!$B$2:$CF$18,17),"") -> 0 | I8: =IFERROR(HLOOKUP(A8,'Import BSP Bud'!$C$3:$CK$18,16,FALSE),0) -> 0 | J8: 0 | K8: 0 | Y8: =IF(COA!$E$7="Y","Show","Hide") -> Hide
A9: 3022 | B9: Scéim luath-thosaithe Caipitíocht | C9: ='Tuairiscí Miosúla Ioncam & Cait'!O11 -> 0 | E9: 0 | F9: 0 | G9: Scéim luath-thosaithe Caipitíocht | H9: =IFERROR(HLOOKUP(A9,'Leathnach Achoimre Bainc'!$B$2:$CF$18,17),"") -> 0 | I9: =IFERROR(HLOOKUP(A9,'Import BSP Bud'!$C$3:$CK$18,16,FALSE),0) -> 0 | J9: 0 | K9: 0 | Y9: =IF(COA!$E$8="Y","Show","Hide") -> Hide
A10: 3050 | B10: Buiséad Pá Neamhtheagaisc | C10: ='Tuairiscí Miosúla Ioncam & Cait'!O12 -> 0 | E10: 0 | F10: 0 | G10: Buiséad Pá Neamhtheagaisc | H10: =IFERROR(HLOOKUP(A10,'Leathnach Achoimre Bainc'!$B$2:$CF$18,17),"") -> 0 | I10: =IFERROR(HLOOKUP(A10,'Import BSP Bud'!$C$3:$CK$18,16,FALSE),0) -> 0 | J10: 0 | K10: 0 | Y10: =IF(COA!$E$9="Y","Show","Hide") -> Show
A11: 3140 | B11: Deontas do Threalamh Oideachais Speisialta | C11: ='Tuairiscí Miosúla Ioncam & Cait'!O13 -> 0 | E11: 0 | F11: =IF(D11,(C11-D11)/D11,0) -> 0 | G11: Deontas do Threalamh Oideachais Speisialta | H11: =IFERROR(HLOOKUP(A11,'Leathnach Achoimre Bainc'!$B$2:$CF$18,17),"") -> 0 | I11: =IFERROR(HLOOKUP(A11,'Import BSP Bud'!$C$3:$CK$18,16,FALSE),0) -> 0 | J11: 0 | K11: 0 | Y11: =IF(COA!$E$10="Y","Show","Hide") -> Show
A12: 3151 | B12: Deontas leabhar scoile saor in aisce | C12: ='Tuairiscí Miosúla Ioncam & Cait'!O14 -> 0 | E12: 0 | F12: 0 | G12: Deontas leabhar scoile saor in aisce | H12: =IFERROR(HLOOKUP(A12,'Leathnach Achoimre Bainc'!$B$2:$CF$18,17),"") -> 0 | I12: =IFERROR(HLOOKUP(A12,'Import BSP Bud'!$C$3:$CK$18,16,FALSE),0) -> 0 | J12: 0 | K12: 0 | Y12: =IF(COA!$E$11="Y","Show","Hide") -> Show
A13: 3152 | B13: Deontas riaracháin leabhar scoile saor in aisce | C13: ='Tuairiscí Miosúla Ioncam & Cait'!O15 -> 0 | E13: 0 | F13: 0 | G13: Deontas riaracháin leabhar scoile saor in aisce | H13: =IFERROR(HLOOKUP(A13,'Leathnach Achoimre Bainc'!$B$2:$CF$18,17),"") -> 0 | I13: =IFERROR(HLOOKUP(A13,'Import BSP Bud'!$C$3:$CK$18,16,FALSE),0) -> 0 | J13: 0 | K13: 0 | Y13: =IF(COA!$E$12="Y","Show","Hide") -> Show
A14: 3155 | B14: Deontas Caipitil do Leabhair Leabharlainne Scoile | C14: ='Tuairiscí Miosúla Ioncam & Cait'!O16 -> 0 | E14: 0 | F14: 0 | G14: Deontas Caipitil do Leabhair Leabharlainne Scoile | H14: =IFERROR(HLOOKUP(A14,'Leathnach Achoimre Bainc'!$B$2:$CF$18,17),"") -> 0 | I14: =IFERROR(HLOOKUP(A14,'Import BSP Bud'!$C$3:$CK$18,16,FALSE),0) -> 0 | J14: 0 | K14: 0 | Y14: =IF(COA!$E$13="Y","Show","Hide") -> Hide
A15: 3170 | B15: Deontas na nÁbhar Speisialta | C15: ='Tuairiscí Miosúla Ioncam & Cait'!O17 -> 0 | E15: 0 | F15: 0 | G15: Deontas na nÁbhar Speisialta | H15: =IFERROR(HLOOKUP(A15,'Leathnach Achoimre Bainc'!$B$2:$CF$18,17),"") -> 0 | I15: =IFERROR(HLOOKUP(A15,'Import BSP Bud'!$C$3:$CK$18,16,FALSE),0) -> 0 | J15: 0 | K15: 0 | Y15: =IF(COA!$E$14="Y","Show","Hide") -> Hide
A16: 3171 | B16: Deontas scoile Gaeilge agus Dátheangach | C16: ='Tuairiscí Miosúla Ioncam & Cait'!O18 -> 0 | E16: 0 | F16: 0 | G16: Deontas scoile Gaeilge agus Dátheangach | H16: =IFERROR(HLOOKUP(A16,'Leathnach Achoimre Bainc'!$B$2:$CF$18,17),"") -> 0 | I16: =IFERROR(HLOOKUP(A16,'Import BSP Bud'!$C$3:$CK$18,16,FALSE),0) -> 0 | J16: 0 | K16: 0 | Y16: =IF(COA!$E$15="Y","Show","Hide") -> Hide
A17: 3190 | B17: Deontas Chlár Scoile an Teastais Shóisearaigh | C17: ='Tuairiscí Miosúla Ioncam & Cait'!O19 -> 0 | E17: 0 | F17: 0 | G17: Deontas Chlár Scoile an Teastais Shóisearaigh | H17: =IFERROR(HLOOKUP(A17,'Leathnach Achoimre Bainc'!$B$2:$CF$18,17),"") -> 0 | I17: =IFERROR(HLOOKUP(A17,'Import BSP Bud'!$C$3:$CK$18,16,FALSE),0) -> 0 | J17: 0 | K17: 0 | Y17: =IF(COA!$E$16="Y","Show","Hide") -> Hide
A18: 3200 | B18: Deontas Idirbhliana | C18: ='Tuairiscí Miosúla Ioncam & Cait'!O20 -> 0 | E18: 0 | F18: 0 | G18: Deontas Idirbhliana | H18: =IFERROR(HLOOKUP(A18,'Leathnach Achoimre Bainc'!$B$2:$CF$18,17),"") -> 0 | I18: =IFERROR(HLOOKUP(A18,'Import BSP Bud'!$C$3:$CK$18,16,FALSE),0) -> 0 | J18: 0 | K18: 0 | Y18: =IF(COA!$E$17="Y","Show","Hide") -> Hide
A19: 3210 | B19: Deontas na hArdteistiméireachta Feidhmí | C19: ='Tuairiscí Miosúla Ioncam & Cait'!O21 -> 0 | E19: 0 | F19: 0 | G19: Deontas na hArdteistiméireachta Feidhmí | H19: =IFERROR(HLOOKUP(A19,'Leathnach Achoimre Bainc'!$B$2:$CF$18,17),"") -> 0 | I19: =IFERROR(HLOOKUP(A19,'Import BSP Bud'!$C$3:$CK$18,16,FALSE),0) -> 0 | J19: 0 | K19: 0 | Y19: =IF(COA!$E$18="Y","Show","Hide") -> Hide
A20: 3225 | B20: Amúchadh Deontas Trealamh RO | C20: ='Tuairiscí Miosúla Ioncam & Cait'!O22 -> 0 | E20: 0 | F20: 0 | G20: Amúchadh Deontas Trealamh RO | H20: =IFERROR(HLOOKUP(A20,'Leathnach Achoimre Bainc'!$B$2:$CF$18,17),"") -> 0 | I20: =IFERROR(HLOOKUP(A20,'Import BSP Bud'!$C$3:$CK$18,16,FALSE),0) -> 0 | J20: 0 | K20: 0 | Y20: =IF(COA!$E$19="Y","Show","Hide") -> Hide
A21: 3226 | B21: Amúchadh Deontas TFC RO | C21: ='Tuairiscí Miosúla Ioncam & Cait'!O23 -> 0 | E21: 0 | F21: 0 | G21: Amúchadh Deontas TFC RO | H21: =IFERROR(HLOOKUP(A21,'Leathnach Achoimre Bainc'!$B$2:$CF$18,17),"") -> 0 | I21: =IFERROR(HLOOKUP(A21,'Import BSP Bud'!$C$3:$CK$18,16,FALSE),0) -> 0 | J21: 0 | K21: 0 | Y21: =IF(COA!$E$20="Y","Show","Hide") -> Hide
A22: 3227 | B22: Amúchadh Deontas Eile RO | C22: ='Tuairiscí Miosúla Ioncam & Cait'!O24 -> 0 | E22: 0 | F22: 0 | G22: Amúchadh Deontas Eile RO | H22: =IFERROR(HLOOKUP(A22,'Leathnach Achoimre Bainc'!$B$2:$CF$18,17),"") -> 0 | I22: =IFERROR(HLOOKUP(A22,'Import BSP Bud'!$C$3:$CK$18,16,FALSE),0) -> 0 | J22: 0 | K22: 0 | Y22: =IF(COA!$E$21="Y","Show","Hide") -> Hide
A23: 3230 | B23: Deontas TFC Neamhchaipitiúil | C23: ='Tuairiscí Miosúla Ioncam & Cait'!O25 -> 0 | E23: 0 | F23: 0 | G23: Deontas TFC Neamhchaipitiúil | H23: =IFERROR(HLOOKUP(A23,'Leathnach Achoimre Bainc'!$B$2:$CF$18,17),"") -> 0 | I23: =IFERROR(HLOOKUP(A23,'Import BSP Bud'!$C$3:$CK$18,16,FALSE),0) -> 0 | J23: 0 | K23: 0 | Y23: =IF(COA!$E$22="Y","Show","Hide") -> Show
A24: 3260 | B24: Ioncam ón gCiste Barr Feabhais Scoileanna | C24: ='Tuairiscí Miosúla Ioncam & Cait'!O26 -> 0 | E24: 0 | F24: 0 | G24: Ioncam ón gCiste Barr Feabhais Scoileanna | H24: =IFERROR(HLOOKUP(A24,'Leathnach Achoimre Bainc'!$B$2:$CF$18,17),"") -> 0 | I24: =IFERROR(HLOOKUP(A24,'Import BSP Bud'!$C$3:$CK$18,16,FALSE),0) -> 0 | J24: 0 | K24: 0 | Y24: =IF(COA!$E$23="Y","Show","Hide") -> Hide
A25: 3275 | B25: Deontas Mionoibreacha Neamhchaipitiúla | C25: ='Tuairiscí Miosúla Ioncam & Cait'!O27 -> 0 | E25: 0 | F25: 0 | G25: Deontas Mionoibreacha Neamhchaipitiúla | H25: =IFERROR(HLOOKUP(A25,'Leathnach Achoimre Bainc'!$B$2:$CF$18,17),"") -> 0 | I25: =IFERROR(HLOOKUP(A25,'Import BSP Bud'!$C$3:$CK$18,16,FALSE),0) -> 0 | J25: 0 | K25: 0 | Y25: =IF(COA!$E$24="Y","Show","Hide") -> Show
A26: 3276 | B26: Ioncam ón Deontas Cóiríochta Sealadaí | C26: ='Tuairiscí Miosúla Ioncam & Cait'!O28 -> 0 | E26: 0 | F26: 0 | G26: Ioncam ón Deontas Cóiríochta Sealadaí | H26: =IFERROR(HLOOKUP(A26,'Leathnach Achoimre Bainc'!$B$2:$CF$18,17),"") -> 0 | I26: =IFERROR(HLOOKUP(A26,'Import BSP Bud'!$C$3:$CK$18,16,FALSE),0) -> 0 | J26: 0 | K26: 0 | Y26: =IF(COA!$E$25="Y","Show","Hide") -> Show
A27: 3277 | B27: Deontas i leith Mionoibreacha COVID | C27: ='Tuairiscí Miosúla Ioncam & Cait'!O29 -> 0 | E27: 0 | F27: 0 | G27: Deontas i leith Mionoibreacha COVID | H27: =IFERROR(HLOOKUP(A27,'Leathnach Achoimre Bainc'!$B$2:$CF$18,17),"") -> 0 | I27: =IFERROR(HLOOKUP(A27,'Import BSP Bud'!$C$3:$CK$18,16,FALSE),0) -> 0 | J27: 0 | K27: 0 | Y27: =IF(COA!$E$26="Y","Show","Hide") -> Hide
A28: 3288 | B28: Caipitíocht COVID do Ghlantachán agus Deontas TCP | C28: ='Tuairiscí Miosúla Ioncam & Cait'!O30 -> 0 | E28: 0 | F28: 0 | G28: Caipitíocht COVID do Ghlantachán agus Deontas TCP | H28: =IFERROR(HLOOKUP(A28,'Leathnach Achoimre Bainc'!$B$2:$CF$18,17),"") -> 0 | I28: =IFERROR(HLOOKUP(A28,'Import BSP Bud'!$C$3:$CK$18,16,FALSE),0) -> 0 | J28: 0 | K28: 0 | Y28: =IF(COA!$E$27="Y","Show","Hide") -> Hide
A29: 3289 | B29: Deontas Aonuaire baintach le chostas Maireachtála | C29: ='Tuairiscí Miosúla Ioncam & Cait'!O31 -> 0 | E29: 0 | F29: 0 | G29: Deontas Aonuaire baintach le chostas Maireachtála | H29: =IFERROR(HLOOKUP(A29,'Leathnach Achoimre Bainc'!$B$2:$CF$18,17),"") -> 0 | I29: =IFERROR(HLOOKUP(A29,'Import BSP Bud'!$C$3:$CK$18,16,FALSE),0) -> 0 | J29: 0 | K29: 0 | Y29: =IF(COA!$E$28="Y","Show","Hide") -> Show
A30: 3290 | B30: Ioncam Deontais Neamhchaipitil Eile RO | C30: ='Tuairiscí Miosúla Ioncam & Cait'!O32 -> 0 | E30: 0 | F30: 0 | G30: Ioncam Deontais Neamhchaipitil Eile RO | H30: =IFERROR(HLOOKUP(A30,'Leathnach Achoimre Bainc'!$B$2:$CF$18,17),"") -> 0 | I30: =IFERROR(HLOOKUP(A30,'Import BSP Bud'!$C$3:$CK$18,16,FALSE),0) -> 0 | J30: 0 | K30: 0 | Y30: =IF(COA!$E$29="Y","Show","Hide") -> Show
A31: 3292 | B31: Deontas Trialacha Caighdeánaithe | C31: ='Tuairiscí Miosúla Ioncam & Cait'!O33 -> 0 | E31: 0 | F31: 0 | G31: Deontas Trialacha Caighdeánaithe | H31: =IFERROR(HLOOKUP(A31,'Leathnach Achoimre Bainc'!$B$2:$CF$18,17),"") -> 0 | I31: =IFERROR(HLOOKUP(A31,'Import BSP Bud'!$C$3:$CK$18,16,FALSE),0) -> 0 | J31: 0 | K31: 0 | Y31: =IF(COA!$E$30="Y","Show","Hide") -> Show
A32: 3293 | B32: Deontas Soláthair Samhraidh | C32: ='Tuairiscí Miosúla Ioncam & Cait'!O34 -> 0 | E32: 0 | F32: 0 | G32: Deontas Soláthair Samhraidh | H32: =IFERROR(HLOOKUP(A32,'Leathnach Achoimre Bainc'!$B$2:$CF$18,17),"") -> 0 | I32: =IFERROR(HLOOKUP(A32,'Import BSP Bud'!$C$3:$CK$18,16,FALSE),0) -> 0 | J32: 0 | K32: 0 | Y32: =IF(COA!$E$31="Y","Show","Hide") -> Show
A33: 3294 | B33: Deontas le haghaidh Tionlacaithe Bus | C33: ='Tuairiscí Miosúla Ioncam & Cait'!O35 -> 0 | E33: 0 | F33: 0 | G33: Deontas le haghaidh Tionlacaithe Bus | H33: =IFERROR(HLOOKUP(A33,'Leathnach Achoimre Bainc'!$B$2:$CF$18,17),"") -> 0 | I33: =IFERROR(HLOOKUP(A33,'Import BSP Bud'!$C$3:$CK$18,16,FALSE),0) -> 0 | J33: 0 | K33: 0 | Y33: =IF(COA!$E$32="Y","Show","Hide") -> Show
A34: 3295 | B34: Ioncam ón Roinn Leanaí agus Gnóthaí Óige | C34: ='Tuairiscí Miosúla Ioncam & Cait'!O36 -> 0 | E34: 0 | F34: 0 | G34: Ioncam ón Roinn Leanaí agus Gnóthaí Óige | H34: =IFERROR(HLOOKUP(A34,'Leathnach Achoimre Bainc'!$B$2:$CF$18,17),"") -> 0 | I34: =IFERROR(HLOOKUP(A34,'Import BSP Bud'!$C$3:$CK$18,16,FALSE),0) -> 0 | J34: 0 | K34: 0 | Y34: =IF(COA!$E$33="Y","Show","Hide") -> Hide
A35: 3296 | B35: Deontas le haghaidh Béilí Scoile ó RGFCS | C35: ='Tuairiscí Miosúla Ioncam & Cait'!O37 -> 0 | E35: 0 | F35: 0 | G35: Deontas le haghaidh Béilí Scoile ó RGFCS | H35: =IFERROR(HLOOKUP(A35,'Leathnach Achoimre Bainc'!$B$2:$CF$18,17),"") -> 0 | I35: =IFERROR(HLOOKUP(A35,'Import BSP Bud'!$C$3:$CK$18,16,FALSE),0) -> 0 | J35: 0 | K35: 0 | Y35: =IF(COA!$E$34="Y","Show","Hide") -> Show
A36: 3297 | B36: Ioncam Erasmus | C36: ='Tuairiscí Miosúla Ioncam & Cait'!O38 -> 0 | E36: 0 | F36: 0 | G36: Ioncam Erasmus | H36: =IFERROR(HLOOKUP(A36,'Leathnach Achoimre Bainc'!$B$2:$CF$18,17),"") -> 0 | I36: =IFERROR(HLOOKUP(A36,'Import BSP Bud'!$C$3:$CK$18,16,FALSE),0) -> 0 | J36: 0 | K36: 0 | Y36: =IF(COA!$E$35="Y","Show","Hide") -> Hide
A37: 3298 | B37: Maoiniú ó FSS | C37: ='Tuairiscí Miosúla Ioncam & Cait'!O39 -> 0 | E37: 0 | F37: 0 | G37: Maoiniú ó FSS | H37: =IFERROR(HLOOKUP(A37,'Leathnach Achoimre Bainc'!$B$2:$CF$18,17),"") -> 0 | I37: =IFERROR(HLOOKUP(A37,'Import BSP Bud'!$C$3:$CK$18,16,FALSE),0) -> 0 | J37: 0 | K37: 0 | Y37: =IF(COA!$E$36="Y","Show","Hide") -> Hide
A38: 3299 | B38: Maoiniú Stáit Eile | C38: ='Tuairiscí Miosúla Ioncam & Cait'!O40 -> 0 | E38: 0 | F38: 0 | G38: Maoiniú Stáit Eile | H38: =IFERROR(HLOOKUP(A38,'Leathnach Achoimre Bainc'!$B$2:$CF$18,17),"") -> 0 | I38: =IFERROR(HLOOKUP(A38,'Import BSP Bud'!$C$3:$CK$18,16,FALSE),0) -> 0 | J38: 0 | K38: 0 | Y38: =IF(COA!$E$37="Y","Show","Hide") -> Show
A39: 3300 | B39: Táillí Oideachais (Scoileanna Táille) | C39: ='Tuairiscí Miosúla Ioncam & Cait'!O41 -> 0 | E39: 0 | F39: 0 | G39: Táillí Oideachais (Scoileanna Táille) | H39: =IFERROR(HLOOKUP(A39,'Leathnach Achoimre Bainc'!$B$2:$CF$18,17),"") -> 0 | I39: =IFERROR(HLOOKUP(A39,'Import BSP Bud'!$C$3:$CK$18,16,FALSE),0) -> 0 | J39: 0 | K39: 0 | Y39: =IF(COA!$E$38="Y","Show","Hide") -> Hide
A40: 3310 | B40: Ioncam Idirbhliana | C40: ='Tuairiscí Miosúla Ioncam & Cait'!O42 -> 0 | E40: 0 | F40: 0 | G40: Ioncam Idirbhliana | H40: =IFERROR(HLOOKUP(A40,'Leathnach Achoimre Bainc'!$B$2:$CF$18,17),"") -> 0 | I40: =IFERROR(HLOOKUP(A40,'Import BSP Bud'!$C$3:$CK$18,16,FALSE),0) -> 0 | J40: 0 | K40: 0 | Y40: =IF(COA!$E$39="Y","Show","Hide") -> Hide
A41: 3335 | B41: Ioncam ó Leabhair Ranga/Acmhainní | C41: ='Tuairiscí Miosúla Ioncam & Cait'!O43 -> 0 | E41: 0 | F41: 0 | G41: Ioncam ó Leabhair Ranga/Acmhainní | H41: =IFERROR(HLOOKUP(A41,'Leathnach Achoimre Bainc'!$B$2:$CF$18,17),"") -> 0 | I41: =IFERROR(HLOOKUP(A41,'Import BSP Bud'!$C$3:$CK$18,16,FALSE),0) -> 0 | J41: 0 | K41: 0 | Y41: =IF(COA!$E$40="Y","Show","Hide") -> Show
A42: 3350 | B42: Ioncam Cíosa ó Áiseanna a Ligean ar Fhruiliú | C42: ='Tuairiscí Miosúla Ioncam & Cait'!O44 -> 0 | E42: 0 | F42: 0 | G42: Ioncam Cíosa ó Áiseanna a Ligean ar Fhruiliú | H42: =IFERROR(HLOOKUP(A42,'Leathnach Achoimre Bainc'!$B$2:$CF$18,17),"") -> 0 | I42: =IFERROR(HLOOKUP(A42,'Import BSP Bud'!$C$3:$CK$18,16,FALSE),0) -> 0 | J42: 0 | K42: 0 | Y42: =IF(COA!$E$41="Y","Show","Hide") -> Show
A43: 3370 | B43: Ioncam ó Thaisceadáin | C43: ='Tuairiscí Miosúla Ioncam & Cait'!O45 -> 0 | E43: 0 | F43: 0 | G43: Ioncam ó Thaisceadáin | H43: =IFERROR(HLOOKUP(A43,'Leathnach Achoimre Bainc'!$B$2:$CF$18,17),"") -> 0 | I43: =IFERROR(HLOOKUP(A43,'Import BSP Bud'!$C$3:$CK$18,16,FALSE),0) -> 0 | J43: 0 | K43: 0 | Y43: =IF(COA!$E$42="Y","Show","Hide") -> Hide
A44: 3375 | B44: Ioncam ó Dhialanna agus Bliainirisí | C44: ='Tuairiscí Miosúla Ioncam & Cait'!O46 -> 0 | E44: 0 | F44: 0 | G44: Ioncam ó Dhialanna agus Bliainirisí | H44: =IFERROR(HLOOKUP(A44,'Leathnach Achoimre Bainc'!$B$2:$CF$18,17),"") -> 0 | I44: =IFERROR(HLOOKUP(A44,'Import BSP Bud'!$C$3:$CK$18,16,FALSE),0) -> 0 | J44: 0 | K44: 0 | Y44: =IF(COA!$E$43="Y","Show","Hide") -> Show
A45: 3380 | B45: Ioncam fótachóipeáil mac léinn | C45: ='Tuairiscí Miosúla Ioncam & Cait'!O47 -> 0 | E45: 0 | F45: 0 | G45: Ioncam fótachóipeáil mac léinn | H45: =IFERROR(HLOOKUP(A45,'Leathnach Achoimre Bainc'!$B$2:$CF$18,17),"") -> 0 | I45: =IFERROR(HLOOKUP(A45,'Import BSP Bud'!$C$3:$CK$18,16,FALSE),0) -> 0 | J45: 0 | K45: 0 | Y45: =IF(COA!$E$44="Y","Show","Hide") -> Show
A46: 3390 | B46: Táillí riaracháin scoile | C46: ='Tuairiscí Miosúla Ioncam & Cait'!O48 -> 0 | E46: 0 | F46: 0 | G46: Táillí riaracháin scoile | H46: =IFERROR(HLOOKUP(A46,'Leathnach Achoimre Bainc'!$B$2:$CF$18,17),"") -> 0 | I46: =IFERROR(HLOOKUP(A46,'Import BSP Bud'!$C$3:$CK$18,16,FALSE),0) -> 0 | J46: 0 | K46: 0 | Y46: =IF(COA!$E$45="Y","Show","Hide") -> Show
A47: 3410 | B47: Ioncam Oideachais Aosaigh | C47: ='Tuairiscí Miosúla Ioncam & Cait'!O49 -> 0 | E47: 0 | F47: 0 | G47: Ioncam Oideachais Aosaigh | H47: =IFERROR(HLOOKUP(A47,'Leathnach Achoimre Bainc'!$B$2:$CF$18,17),"") -> 0 | I47: =IFERROR(HLOOKUP(A47,'Import BSP Bud'!$C$3:$CK$18,16,FALSE),0) -> 0 | J47: 0 | K47: 0 | Y47: =IF(COA!$E$46="Y","Show","Hide") -> Hide
A48: 3420 | B48: Ioncam ó Cheaintíní | C48: ='Tuairiscí Miosúla Ioncam & Cait'!O50 -> 0 | E48: 0 | F48: 0 | G48: Ioncam ó Cheaintíní | H48: =IFERROR(HLOOKUP(A48,'Leathnach Achoimre Bainc'!$B$2:$CF$18,17),"") -> 0 | I48: =IFERROR(HLOOKUP(A48,'Import BSP Bud'!$C$3:$CK$18,16,FALSE),0) -> 0 | J48: 0 | K48: 0 | Y48: =IF(COA!$E$47="Y","Show","Hide") -> Hide
A49: 3430 | B49: Ioncam ó Shiopaí Sólaistí | C49: ='Tuairiscí Miosúla Ioncam & Cait'!O51 -> 0 | E49: 0 | F49: 0 | G49: Ioncam ó Shiopaí Sólaistí | H49: =IFERROR(HLOOKUP(A49,'Leathnach Achoimre Bainc'!$B$2:$CF$18,17),"") -> 0 | I49: =IFERROR(HLOOKUP(A49,'Import BSP Bud'!$C$3:$CK$18,16,FALSE),0) -> 0 | J49: 0 | K49: 0 | Y49: =IF(COA!$E$48="Y","Show","Hide") -> Show
A50: 3440 | B50: Ioncam ó Éidí Scoile | C50: ='Tuairiscí Miosúla Ioncam & Cait'!O52 -> 0 | E50: 0 | F50: 0 | G50: Ioncam ó Éidí Scoile | H50: =IFERROR(HLOOKUP(A50,'Leathnach Achoimre Bainc'!$B$2:$CF$18,17),"") -> 0 | I50: =IFERROR(HLOOKUP(A50,'Import BSP Bud'!$C$3:$CK$18,16,FALSE),0) -> 0 | J50: 0 | K50: 0 | Y50: =IF(COA!$E$49="Y","Show","Hide") -> Show
A51: 3450 | B51: Ioncam Reiligiúin/Éitis | C51: ='Tuairiscí Miosúla Ioncam & Cait'!O53 -> 0 | E51: 0 | F51: 0 | G51: Ioncam Reiligiúin/Éitis | H51: =IFERROR(HLOOKUP(A51,'Leathnach Achoimre Bainc'!$B$2:$CF$18,17),"") -> 0 | I51: =IFERROR(HLOOKUP(A51,'Import BSP Bud'!$C$3:$CK$18,16,FALSE),0) -> 0 | J51: 0 | K51: 0 | Y51: =IF(COA!$E$50="Y","Show","Hide") -> Show
A52: 3490 | B52: Ioncam Club/Staidéir Iarscoile | C52: ='Tuairiscí Miosúla Ioncam & Cait'!O54 -> 0 | E52: 0 | F52: 0 | G52: Ioncam Club/Staidéir Iarscoile | H52: =IFERROR(HLOOKUP(A52,'Leathnach Achoimre Bainc'!$B$2:$CF$18,17),"") -> 0 | I52: =IFERROR(HLOOKUP(A52,'Import BSP Bud'!$C$3:$CK$18,16,FALSE),0) -> 0 | J52: 0 | K52: 0 | Y52: =IF(COA!$E$51="Y","Show","Hide") -> Show
A53: 3500 | B53: Ioncam ó Chluichí | C53: ='Tuairiscí Miosúla Ioncam & Cait'!O55 -> 0 | E53: 0 | F53: 0 | G53: Ioncam ó Chluichí | H53: =IFERROR(HLOOKUP(A53,'Leathnach Achoimre Bainc'!$B$2:$CF$18,17),"") -> 0 | I53: =IFERROR(HLOOKUP(A53,'Import BSP Bud'!$C$3:$CK$18,16,FALSE),0) -> 0 | J53: 0 | K53: 0 | Y53: =IF(COA!$E$52="Y","Show","Hide") -> Show
A54: 3510 | B54: Fruiliú Bus le haghaidh Ioncam Cluichí | C54: ='Tuairiscí Miosúla Ioncam & Cait'!O56 -> 0 | E54: 0 | F54: 0 | G54: Fruiliú Bus le haghaidh Ioncam Cluichí | H54: =IFERROR(HLOOKUP(A54,'Leathnach Achoimre Bainc'!$B$2:$CF$18,17),"") -> 0 | I54: =IFERROR(HLOOKUP(A54,'Import BSP Bud'!$C$3:$CK$18,16,FALSE),0) -> 0 | J54: 0 | K54: 0 | Y54: =IF(COA!$E$53="Y","Show","Hide") -> Show
A55: 3511 | B55: Ioncam Eile ar Fruiliú Bus | C55: ='Tuairiscí Miosúla Ioncam & Cait'!O57 -> 0 | E55: 0 | F55: 0 | G55: Ioncam Eile ar Fruiliú Bus | H55: =IFERROR(HLOOKUP(A55,'Leathnach Achoimre Bainc'!$B$2:$CF$18,17),"") -> 0 | I55: =IFERROR(HLOOKUP(A55,'Import BSP Bud'!$C$3:$CK$18,16,FALSE),0) -> 0 | J55: 0 | K55: 0 | Y55: =IF(COA!$E$54="Y","Show","Hide") -> Show
A56: 3520 | B56: Ioncam ó Cheoldrámaí/Dhrámaí Scoile | C56: ='Tuairiscí Miosúla Ioncam & Cait'!O58 -> 0 | E56: 0 | F56: 0 | G56: Ioncam ó Cheoldrámaí/Dhrámaí Scoile | H56: =IFERROR(HLOOKUP(A56,'Leathnach Achoimre Bainc'!$B$2:$CF$18,17),"") -> 0 | I56: =IFERROR(HLOOKUP(A56,'Import BSP Bud'!$C$3:$CK$18,16,FALSE),0) -> 0 | J56: 0 | K56: 0 | Y56: =IF(COA!$E$55="Y","Show","Hide") -> Show
A57: 3530 | B57: Ioncam ó Thurais Scoile | C57: ='Tuairiscí Miosúla Ioncam & Cait'!O59 -> 0 | E57: 0 | F57: 0 | G57: Ioncam ó Thurais Scoile | H57: =IFERROR(HLOOKUP(A57,'Leathnach Achoimre Bainc'!$B$2:$CF$18,17),"") -> 0 | I57: =IFERROR(HLOOKUP(A57,'Import BSP Bud'!$C$3:$CK$18,16,FALSE),0) -> 0 | J57: 0 | K57: 0 | Y57: =IF(COA!$E$56="Y","Show","Hide") -> Show
A58: 3531 | B58: Ioncam ó Snámh Scoile | C58: ='Tuairiscí Miosúla Ioncam & Cait'!O60 -> 0 | E58: 0 | F58: 0 | G58: Ioncam ó Snámh Scoile | H58: =IFERROR(HLOOKUP(A58,'Leathnach Achoimre Bainc'!$B$2:$CF$18,17),"") -> 0 | I58: =IFERROR(HLOOKUP(A58,'Import BSP Bud'!$C$3:$CK$18,16,FALSE),0) -> 0 | J58: 0 | K58: 0 | Y58: =IF(COA!$E$57="Y","Show","Hide") -> Show
A59: 3535 | B59: Ioncam ó Árachas Daltaí | C59: ='Tuairiscí Miosúla Ioncam & Cait'!O61 -> 0 | E59: 0 | F59: 0 | G59: Ioncam ó Árachas Daltaí | H59: =IFERROR(HLOOKUP(A59,'Leathnach Achoimre Bainc'!$B$2:$CF$18,17),"") -> 0 | I59: =IFERROR(HLOOKUP(A59,'Import BSP Bud'!$C$3:$CK$18,16,FALSE),0) -> 0 | J59: 0 | K59: 0 | Y59: =IF(COA!$E$58="Y","Show","Hide") -> Show
A60: 3540 | B60: Ioncam Réamhscoile | C60: ='Tuairiscí Miosúla Ioncam & Cait'!O62 -> 0 | E60: 0 | F60: 0 | G60: Ioncam Réamhscoile | H60: =IFERROR(HLOOKUP(A60,'Leathnach Achoimre Bainc'!$B$2:$CF$18,17),"") -> 0 | I60: =IFERROR(HLOOKUP(A60,'Import BSP Bud'!$C$3:$CK$18,16,FALSE),0) -> 0 | J60: 0 | K60: 0 | Y60: =IF(COA!$E$59="Y","Show","Hide") -> Show
A61: 3545 | B61: Ioncam ó Champaí Samhraidh | C61: ='Tuairiscí Miosúla Ioncam & Cait'!O63 -> 0 | E61: 0 | F61: 0 | G61: Ioncam ó Champaí Samhraidh | H61: =IFERROR(HLOOKUP(A61,'Leathnach Achoimre Bainc'!$B$2:$CF$18,17),"") -> 0 | I61: =IFERROR(HLOOKUP(A61,'Import BSP Bud'!$C$3:$CK$18,16,FALSE),0) -> 0 | J61: 0 | K61: 0 | Y61: =IF(COA!$E$60="Y","Show","Hide") -> Hide
A62: 3550 | B62: Ioncam In-Aisíoctha | C62: ='Tuairiscí Miosúla Ioncam & Cait'!O64 -> 0 | E62: 0 | F62: 0 | G62: Ioncam In-Aisíoctha | H62: =IFERROR(HLOOKUP(A62,'Leathnach Achoimre Bainc'!$B$2:$CF$18,17),"") -> 0 | I62: =IFERROR(HLOOKUP(A62,'Import BSP Bud'!$C$3:$CK$18,16,FALSE),0) -> 0 | J62: 0 | K62: 0 | Y62: =IF(COA!$E$61="Y","Show","Hide") -> Show
A63: 3570 | B63: Ioncam Eile arna Ghiniúint ag an Scoil | C63: ='Tuairiscí Miosúla Ioncam & Cait'!O65 -> 0 | E63: 0 | F63: 0 | G63: Ioncam Eile arna Ghiniúint ag an Scoil | H63: =IFERROR(HLOOKUP(A63,'Leathnach Achoimre Bainc'!$B$2:$CF$18,17),"") -> 0 | I63: =IFERROR(HLOOKUP(A63,'Import BSP Bud'!$C$3:$CK$18,16,FALSE),0) -> 0 | J63: 0 | K63: 0 | Y63: =IF(COA!$E$62="Y","Show","Hide") -> Show
A64: 3572 | B64: Ioncam Ealaíon agus Ceardaíochta Scoile | C64: ='Tuairiscí Miosúla Ioncam & Cait'!O66 -> 0 | E64: 0 | F64: 0 | G64: Ioncam Ealaíon agus Ceardaíochta Scoile | H64: =IFERROR(HLOOKUP(A64,'Leathnach Achoimre Bainc'!$B$2:$CF$18,17),"") -> 0 | I64: =IFERROR(HLOOKUP(A64,'Import BSP Bud'!$C$3:$CK$18,16,FALSE),0) -> 0 | J64: 0 | K64: 0 | Y64: =IF(COA!$E$63="Y","Show","Hide") -> Show
A65: 3573 | B65: Ioncam Damhsa Scoile | C65: ='Tuairiscí Miosúla Ioncam & Cait'!O67 -> 0 | E65: 0 | F65: 0 | G65: Ioncam Damhsa Scoile | H65: =IFERROR(HLOOKUP(A65,'Leathnach Achoimre Bainc'!$B$2:$CF$18,17),"") -> 0 | I65: =IFERROR(HLOOKUP(A65,'Import BSP Bud'!$C$3:$CK$18,16,FALSE),0) -> 0 | J65: 0 | K65: 0 | Y65: =IF(COA!$E$64="Y","Show","Hide") -> Show
A66: 3574 | B66: Tiomsú Airgid Srianta Scoile (Neamhchaipitiúil) | C66: ='Tuairiscí Miosúla Ioncam & Cait'!O68 -> 0 | E66: =C66-D66 -> 0 | F66: =IF(D66,(C66-D66)/D66,0) -> 0 | G66: Tiomsú Airgid Srianta Scoile (Neamhchaipitiúil) | H66: =IFERROR(HLOOKUP(A66,'Leathnach Achoimre Bainc'!$B$2:$CF$18,17),"") -> 0 | I66: =IFERROR(HLOOKUP(A66,'Import BSP Bud'!$C$3:$CK$18,16,FALSE),0) -> 0 | J66: 0 | K66: 0 | Y66: =IF(COA!$E$65="Y","Show","Hide") -> Show
A67: 3575 | B67: Tiomsú Airgid Neamhshrianta Scoile (Neamhchaipitiúil) | C67: ='Tuairiscí Miosúla Ioncam & Cait'!O69 -> 0 | E67: 0 | F67: 0 | G67: Tiomsú Airgid Neamhshrianta Scoile (Neamhchaipitiúil) | H67: =IFERROR(HLOOKUP(A67,'Leathnach Achoimre Bainc'!$B$2:$CF$18,17),"") -> 0 | I67: =IFERROR(HLOOKUP(A67,'Import BSP Bud'!$C$3:$CK$18,16,FALSE),0) -> 0 | J67: 0 | K67: 0 | Y67: =IF(COA!$E$66="Y","Show","Hide") -> Show
A68: 3580 | B68: Lascainí Tugtha | C68: ='Tuairiscí Miosúla Ioncam & Cait'!O70 -> 0 | E68: 0 | F68: 0 | G68: Lascainí Tugtha | H68: =IFERROR(HLOOKUP(A68,'Leathnach Achoimre Bainc'!$B$2:$CF$18,17),"") -> 0 | I68: =IFERROR(HLOOKUP(A68,'Import BSP Bud'!$C$3:$CK$18,16,FALSE),0) -> 0 | J68: 0 | K68: 0 | Y68: =IF(COA!$E$67="Y","Show","Hide") -> Hide
A69: 3650 | B69: Ranníocaíochtaí Saorálacha | C69: ='Tuairiscí Miosúla Ioncam & Cait'!O71 -> 0 | E69: 0 | F69: 0 | G69: Ranníocaíochtaí Saorálacha | H69: =IFERROR(HLOOKUP(A69,'Leathnach Achoimre Bainc'!$B$2:$CF$18,17),"") -> 0 | I69: =IFERROR(HLOOKUP(A69,'Import BSP Bud'!$C$3:$CK$18,16,FALSE),0) -> 0 | J69: 0 | K69: 0 | Y69: =IF(COA!$E$68="Y","Show","Hide") -> Show
A70: 3700 | B70: Ioncam ó Chumann na dTuismitheoirí | C70: ='Tuairiscí Miosúla Ioncam & Cait'!O72 -> 0 | E70: 0 | F70: 0 | G70: Ioncam ó Chumann na dTuismitheoirí | H70: =IFERROR(HLOOKUP(A70,'Leathnach Achoimre Bainc'!$B$2:$CF$18,17),"") -> 0 | I70: =IFERROR(HLOOKUP(A70,'Import BSP Bud'!$C$3:$CK$18,16,FALSE),0) -> 0 | J70: 0 | K70: 0 | Y70: =IF(COA!$E$69="Y","Show","Hide") -> Show
A71: 3770 | B71: Ioncam ó Éilimh Árachais | C71: ='Tuairiscí Miosúla Ioncam & Cait'!O73 -> 0 | E71: 0 | F71: 0 | G71: Ioncam ó Éilimh Árachais | H71: =IFERROR(HLOOKUP(A71,'Leathnach Achoimre Bainc'!$B$2:$CF$18,17),"") -> 0 | I71: =IFERROR(HLOOKUP(A71,'Import BSP Bud'!$C$3:$CK$18,16,FALSE),0) -> 0 | J71: =IFERROR(SUM(H71-I71),"") -> 0 | K71: =IF(I71,(H71-I71)/I71,0) -> 0 | Y71: =IF(COA!$E$70="Y","Show","Hide") -> Show
A72: 3800 | B72: Ús Bainc Faighte | C72: ='Tuairiscí Miosúla Ioncam & Cait'!O74 -> 0 | E72: 0 | F72: 0 | G72: Ús Bainc Faighte | H72: =IFERROR(HLOOKUP(A72,'Leathnach Achoimre Bainc'!$B$2:$CF$18,17),"") -> 0 | I72: =IFERROR(HLOOKUP(A72,'Import BSP Bud'!$C$3:$CK$18,16,FALSE),0) -> 0 | J72: 0 | K72: 0 | Y72: =IF(COA!$E$71="Y","Show","Hide") -> Show
A73: 3840 | B73: Amúchadh Maoinithe nach bhFuarthas ón RO | C73: ='Tuairiscí Miosúla Ioncam & Cait'!O75 -> 0 | E73: 0 | F73: 0 | G73: Amúchadh Maoinithe nach bhFuarthas ón RO | H73: =IFERROR(HLOOKUP(A73,'Leathnach Achoimre Bainc'!$B$2:$CF$18,17),"") -> 0 | I73: =IFERROR(HLOOKUP(A73,'Import BSP Bud'!$C$3:$CK$18,16,FALSE),0) -> 0 | J73: 0 | K73: 0 | Y73: =IF(COA!$E$72="Y","Show","Hide") -> Hide
A74: 3850 | B74: Ioncam Eile | C74: ='Tuairiscí Miosúla Ioncam & Cait'!O76 -> 0 | E74: 0 | F74: 0 | G74: Ioncam Eile | H74: =IFERROR(HLOOKUP(A74,'Leathnach Achoimre Bainc'!$B$2:$CF$18,17),"") -> 0 | I74: =IFERROR(HLOOKUP(A74,'Import BSP Bud'!$C$3:$CK$18,16,FALSE),0) -> 0 | J74: 0 | K74: 0 | Y74: =IF(COA!$E$73="Y","Show","Hide") -> Show
A75: 3851 | B75: Ioncam Ainmnithe (Neamhchaipitiúil) | C75: ='Tuairiscí Miosúla Ioncam & Cait'!O77 -> 0 | E75: 0 | F75: 0 | G75: Ioncam Ainmnithe (Neamhchaipitiúil) | H75: =IFERROR(HLOOKUP(A75,'Leathnach Achoimre Bainc'!$B$2:$CF$18,17),"") -> 0 | I75: =IFERROR(HLOOKUP(A75,'Import BSP Bud'!$C$3:$CK$18,16,FALSE),0) -> 0 | J75: 0 | K75: 0 | Y75: =IF(COA!$E$74="Y","Show","Hide") -> Show
A76: 3852 | B76: Tiomsú Airgid Srianta Seachtrach (Neamhchaipitiúil) | C76: ='Tuairiscí Miosúla Ioncam & Cait'!O78 -> 0 | E76: 0 | F76: 0 | G76: Tiomsú Airgid Srianta Seachtrach (Neamhchaipitiúil) | H76: =IFERROR(HLOOKUP(A76,'Leathnach Achoimre Bainc'!$B$2:$CF$18,17),"") -> 0 | I76: =IFERROR(HLOOKUP(A76,'Import BSP Bud'!$C$3:$CK$18,16,FALSE),0) -> 0 | J76: 0 | K76: 0 | Y76: =IF(COA!$E$75="Y","Show","Hide") -> Show
A77: 3853 | B77: Tiomsú Airgid Neamhshrianta Seachtrach (Neamhchaipitiúil) | C77: ='Tuairiscí Miosúla Ioncam & Cait'!O79 -> 0 | E77: 0 | F77: 0 | G77: Tiomsú Airgid Neamhshrianta Seachtrach (Neamhchaipitiúil) | H77: =IFERROR(HLOOKUP(A77,'Leathnach Achoimre Bainc'!$B$2:$CF$18,17),"") -> 0 | I77: =IFERROR(HLOOKUP(A77,'Import BSP Bud'!$C$3:$CK$18,16,FALSE),0) -> 0 | J77: 0 | K77: 0 | Y77: =IF(COA!$E$76="Y","Show","Hide") -> Show
B78: IONCAM IOMLÁN NA SCOILE | C78: =SUM(C6:C77) -> 0 | D78: =SUM(D6:D77) -> 0 | E78: =SUM(E6:E77) -> 0 | F78: =IF(D78,(C78-D78)/D78,0) -> 0 | G78: IONCAM IOMLÁN NA SCOILE | H78: =SUM(H6:H77) -> 0 | I78: =SUM(I6:I77) -> 0 | J78: =SUM(J6:J77) -> 0 | K78: =IF(I78,(H78-I78)/I78,0) -> 0
C79: Bliain go Dáta | D79: Buiséad | E79: Bliain go Dáta v Buiséad 2024/2025 | F79: Bliain go Dáta v Buiséad 2024/2025 | H79: Tréimhse rollta | I79: Tréimhse Roimh An Bhliain 2023/2024 | J79: Tréimhse i gcoinne an bhliain roimhe | K79: Tréimhse i gcoinne an bhliain roimhe
B80: CAITEACHAS NA SCOILE | C80: Iarmhír | D80: 2024/2025 | E80: Difríocht % | F80: Difríocht % | G80: CAITEACHAS NA SCOILE | H80: Iarmhír | I80: Iarmhír | J80: Difríocht | K80: % Difríocht
A81: 4110 | B81: Costas Múinteoirí Ionaid | C81: ='Tuairiscí Miosúla Ioncam & Cait'!O84 -> 0 | E81: =-(C81-D81) -> 0 | F81: =IF(D81,(C81-D81)/D81,0)*-1 -> 0 | G81: Costas Múinteoirí Ionaid | H81: =IFERROR(HLOOKUP(A81,'Leathnach Achoimre Bainc'!$B$19:$DK$35,17),"") -> 0 | I81: =IFERROR(HLOOKUP(A81,'Import BSP Bud'!$C$19:$DK$34,16,FALSE),0) -> 0 | J81: =IFERROR(SUM(H81-I81),"") -> 0 | K81: =IF(I81,(H81-I81)/I81,0) -> 0 | Y81: =IF(COA!$E$77="Y","Show","Hide") -> Show
A82: 4111 | B82: Costas Múinteoirí a Íoctar go Príobháideach | C82: ='Tuairiscí Miosúla Ioncam & Cait'!O85 -> 0 | E82: =-(C82-D82) -> 0 | F82: =IF(D82,(C82-D82)/D82,0)*-1 -> 0 | G82: Costas Múinteoirí a Íoctar go Príobháideach | H82: =IFERROR(HLOOKUP(A82,'Leathnach Achoimre Bainc'!$B$19:$DK$35,17),"") -> 0 | I82: =IFERROR(HLOOKUP(A82,'Import BSP Bud'!$C$19:$DK$34,16,FALSE),0) -> 0 | J82: =IFERROR(SUM(H82-I82),"") -> 0 | K82: =IF(I82,(H82-I82)/I82,0) -> 0 | Y82: =IF(COA!$E$78="Y","Show","Hide") -> Show
A83: 4113 | B83: Costais riaracháin leabhar scoile saor in aisce | C83: ='Tuairiscí Miosúla Ioncam & Cait'!O86 -> 0 | E83: 0 | F83: 0 | G83: Costais riaracháin leabhar scoile saor in aisce | H83: =IFERROR(HLOOKUP(A83,'Leathnach Achoimre Bainc'!$B$19:$DK$35,17),"") -> 0 | I83: =IFERROR(HLOOKUP(A83,'Import BSP Bud'!$C$19:$DK$34,16,FALSE),0) -> 0 | J83: 0 | K83: 0 | Y83: =IF(COA!$E$79="Y","Show","Hide") -> Show
A84: 4150 | B84: Costas Tuarastal Maoirseachta agus Ionadaithe | C84: ='Tuairiscí Miosúla Ioncam & Cait'!O87 -> 0 | E84: 0 | F84: 0 | G84: Costas Tuarastal Maoirseachta agus Ionadaithe | H84: =IFERROR(HLOOKUP(A84,'Leathnach Achoimre Bainc'!$B$19:$DK$35,17),"") -> 0 | I84: =IFERROR(HLOOKUP(A84,'Import BSP Bud'!$C$19:$DK$34,16,FALSE),0) -> 0 | J84: 0 | K84: 0 | Y84: =IF(COA!$E$80="Y","Show","Hide") -> Hide
A85: 4170 | B85: Costas Tuarastal Oideachais Aosaigh | C85: ='Tuairiscí Miosúla Ioncam & Cait'!O88 -> 0 | E85: 0 | F85: 0 | G85: Costas Tuarastal Oideachais Aosaigh | H85: =IFERROR(HLOOKUP(A85,'Leathnach Achoimre Bainc'!$B$19:$DK$35,17),"") -> 0 | I85: =IFERROR(HLOOKUP(A85,'Import BSP Bud'!$C$19:$DK$34,16,FALSE),0) -> 0 | J85: 0 | K85: 0 | Y85: =IF(COA!$E$81="Y","Show","Hide") -> Hide
A86: 4181 | B86: Costais Thuarastail an Cheaintín | C86: ='Tuairiscí Miosúla Ioncam & Cait'!O89 -> 0 | E86: 0 | F86: 0 | G86: Costais Thuarastail an Cheaintín | H86: =IFERROR(HLOOKUP(A86,'Leathnach Achoimre Bainc'!$B$19:$DK$35,17),"") -> 0 | I86: =IFERROR(HLOOKUP(A86,'Import BSP Bud'!$C$19:$DK$34,16,FALSE),0) -> 0 | J86: 0 | K86: 0 | Y86: =IF(COA!$E$82="Y","Show","Hide") -> Hide
A87: 4190 | B87: Costas Tuarastal Staidéir/Club Iarscoile | C87: ='Tuairiscí Miosúla Ioncam & Cait'!O90 -> 0 | E87: 0 | F87: 0 | G87: Costas Tuarastal Staidéir/Club Iarscoile | H87: =IFERROR(HLOOKUP(A87,'Leathnach Achoimre Bainc'!$B$19:$DK$35,17),"") -> 0 | I87: =IFERROR(HLOOKUP(A87,'Import BSP Bud'!$C$19:$DK$34,16,FALSE),0) -> 0 | J87: 0 | K87: 0 | Y87: =IF(COA!$E$83="Y","Show","Hide") -> Show
A88: 4191 | B88: Costais Tuarastail Campaí Samhraidh | C88: ='Tuairiscí Miosúla Ioncam & Cait'!O91 -> 0 | E88: 0 | F88: 0 | G88: Costais Tuarastail Campaí Samhraidh | H88: =IFERROR(HLOOKUP(A88,'Leathnach Achoimre Bainc'!$B$19:$DK$35,17),"") -> 0 | I88: =IFERROR(HLOOKUP(A88,'Import BSP Bud'!$C$19:$DK$34,16,FALSE),0) -> 0 | J88: 0 | K88: 0 | Y88: =IF(COA!$E$84="Y","Show","Hide") -> Hide
A89: 4196 | B89: Costas Tuarastail Tionlacaithe Bus | C89: ='Tuairiscí Miosúla Ioncam & Cait'!O92 -> 0 | E89: 0 | F89: 0 | G89: Costas Tuarastail Tionlacaithe Bus | H89: =IFERROR(HLOOKUP(A89,'Leathnach Achoimre Bainc'!$B$19:$DK$35,17),"") -> 0 | I89: =IFERROR(HLOOKUP(A89,'Import BSP Bud'!$C$19:$DK$34,16,FALSE),0) -> 0 | J89: 0 | K89: 0 | Y89: =IF(COA!$E$85="Y","Show","Hide") -> Show
A90: 4198 | B90: Costais Tuarastail Oideachais Eile | C90: ='Tuairiscí Miosúla Ioncam & Cait'!O93 -> 0 | E90: 0 | F90: 0 | G90: Costais Tuarastail Oideachais Eile | H90: =IFERROR(HLOOKUP(A90,'Leathnach Achoimre Bainc'!$B$19:$DK$35,17),"") -> 0 | I90: =IFERROR(HLOOKUP(A90,'Import BSP Bud'!$C$19:$DK$34,16,FALSE),0) -> 0 | J90: 0 | K90: 0 | Y90: =IF(COA!$E$86="Y","Show","Hide") -> Show
A91: 4199 | B91: Costais Tuarastail Maoinithe ag FSS | C91: ='Tuairiscí Miosúla Ioncam & Cait'!O94 -> 0 | E91: 0 | F91: 0 | G91: Costais Tuarastail Maoinithe ag FSS | H91: =IFERROR(HLOOKUP(A91,'Leathnach Achoimre Bainc'!$B$19:$DK$35,17),"") -> 0 | I91: =IFERROR(HLOOKUP(A91,'Import BSP Bud'!$C$19:$DK$34,16,FALSE),0) -> 0 | J91: 0 | K91: 0 | Y91: =IF(COA!$E$87="Y","Show","Hide") -> Hide
A92: 4310 | B92: Costas Áiseanna Teagaisc | C92: ='Tuairiscí Miosúla Ioncam & Cait'!O95 -> 0 | E92: 0 | F92: 0 | G92: Costas Áiseanna Teagaisc | H92: =IFERROR(HLOOKUP(A92,'Leathnach Achoimre Bainc'!$B$19:$DK$35,17),"") -> 0 | I92: =IFERROR(HLOOKUP(A92,'Import BSP Bud'!$C$19:$DK$34,16,FALSE),0) -> 0 | J92: 0 | K92: 0 | Y92: =IF(COA!$E$88="Y","Show","Hide") -> Show
A93: 4311 | B93: Costaisí Scéim luath-thosaithe le haghaidh Ábh/Tre/For tuis | C93: ='Tuairiscí Miosúla Ioncam & Cait'!O96 -> 0 | E93: 0 | F93: 0 | G93: Costaisí Scéim luath-thosaithe le haghaidh Ábh/Tre/For tuis | H93: =IFERROR(HLOOKUP(A93,'Leathnach Achoimre Bainc'!$B$19:$DK$35,17),"") -> 0 | I93: =IFERROR(HLOOKUP(A93,'Import BSP Bud'!$C$19:$DK$34,16,FALSE),0) -> 0 | J93: 0 | K93: 0 | Y93: =IF(COA!$E$89="Y","Show","Hide") -> Hide
A94: 4315 | B94: Costas fótachóipeáil mac léinn | C94: ='Tuairiscí Miosúla Ioncam & Cait'!O97 -> 0 | E94: 0 | F94: 0 | G94: Costas fótachóipeáil mac léinn | H94: =IFERROR(HLOOKUP(A94,'Leathnach Achoimre Bainc'!$B$19:$DK$35,17),"") -> 0 | I94: =IFERROR(HLOOKUP(A94,'Import BSP Bud'!$C$19:$DK$34,16,FALSE),0) -> 0 | J94: 0 | K94: 0 | Y94: =IF(COA!$E$90="Y","Show","Hide") -> Show
A95: 4330 | B95: Costas maidir le Reiligiún/hÉiteas | C95: ='Tuairiscí Miosúla Ioncam & Cait'!O98 -> 0 | E95: 0 | F95: 0 | G95: Costas maidir le Reiligiún/hÉiteas | H95: =IFERROR(HLOOKUP(A95,'Leathnach Achoimre Bainc'!$B$19:$DK$35,17),"") -> 0 | I95: =IFERROR(HLOOKUP(A95,'Import BSP Bud'!$C$19:$DK$34,16,FALSE),0) -> 0 | J95: 0 | K95: 0 | Y95: =IF(COA!$E$91="Y","Show","Hide") -> Show
A96: 4410 | B96: Costais Deontais Neamhchaipitil TFC | C96: ='Tuairiscí Miosúla Ioncam & Cait'!O99 -> 0 | E96: 0 | F96: 0 | G96: Costais Deontais Neamhchaipitil TFC | H96: =IFERROR(HLOOKUP(A96,'Leathnach Achoimre Bainc'!$B$19:$DK$35,17),"") -> 0 | I96: =IFERROR(HLOOKUP(A96,'Import BSP Bud'!$C$19:$DK$34,16,FALSE),0) -> 0 | J96: 0 | K96: 0 | Y96: =IF(COA!$E$92="Y","Show","Hide") -> Show
A97: 4420 | B97: Costais Cothabhála & Tacaíochta Ríomhaireachta | C97: ='Tuairiscí Miosúla Ioncam & Cait'!O100 -> 0 | E97: 0 | F97: 0 | G97: Costais Cothabhála & Tacaíochta Ríomhaireachta | H97: =IFERROR(HLOOKUP(A97,'Leathnach Achoimre Bainc'!$B$19:$DK$35,17),"") -> 0 | I97: =IFERROR(HLOOKUP(A97,'Import BSP Bud'!$C$19:$DK$34,16,FALSE),0) -> 0 | J97: 0 | K97: 0 | Y97: =IF(COA!$E$93="Y","Show","Hide") -> Show
A98: 4490 | B98: Costas d’Ábhair Eile | C98: ='Tuairiscí Miosúla Ioncam & Cait'!O101 -> 0 | E98: 0 | F98: 0 | G98: Costas d’Ábhair Eile | H98: =IFERROR(HLOOKUP(A98,'Leathnach Achoimre Bainc'!$B$19:$DK$35,17),"") -> 0 | I98: =IFERROR(HLOOKUP(A98,'Import BSP Bud'!$C$19:$DK$34,16,FALSE),0) -> 0 | J98: 0 | K98: 0 | Y98: =IF(COA!$E$94="Y","Show","Hide") -> Hide
A99: 4550 | B99: Costas don Ardteistiméireacht Fheidhmeach | C99: ='Tuairiscí Miosúla Ioncam & Cait'!O102 -> 0 | E99: 0 | F99: 0 | G99: Costas don Ardteistiméireacht Fheidhmeach | H99: =IFERROR(HLOOKUP(A99,'Leathnach Achoimre Bainc'!$B$19:$DK$35,17),"") -> 0 | I99: =IFERROR(HLOOKUP(A99,'Import BSP Bud'!$C$19:$DK$34,16,FALSE),0) -> 0 | J99: 0 | K99: 0 | Y99: =IF(COA!$E$95="Y","Show","Hide") -> Hide
A100: 4570 | B100: Costas do Ghairmchlár na hArdteistiméireachta | C100: ='Tuairiscí Miosúla Ioncam & Cait'!O103 -> 0 | E100: 0 | F100: 0 | G100: Costas do Ghairmchlár na hArdteistiméireachta | H100: =IFERROR(HLOOKUP(A100,'Leathnach Achoimre Bainc'!$B$19:$DK$35,17),"") -> 0 | I100: =IFERROR(HLOOKUP(A100,'Import BSP Bud'!$C$19:$DK$34,16,FALSE),0) -> 0 | J100: 0 | K100: 0 | Y100: =IF(COA!$E$96="Y","Show","Hide") -> Hide
A101: 4590 | B101: Costas na hIdirbhliana | C101: ='Tuairiscí Miosúla Ioncam & Cait'!O104 -> 0 | E101: 0 | F101: 0 | G101: Costas na hIdirbhliana | H101: =IFERROR(HLOOKUP(A101,'Leathnach Achoimre Bainc'!$B$19:$DK$35,17),"") -> 0 | I101: =IFERROR(HLOOKUP(A101,'Import BSP Bud'!$C$19:$DK$34,16,FALSE),0) -> 0 | J101: 0 | K101: 0 | Y101: =IF(COA!$E$97="Y","Show","Hide") -> Hide
A102: 4610 | B102: Costas na Tacaíochta Foghlama | C102: ='Tuairiscí Miosúla Ioncam & Cait'!O105 -> 0 | E102: 0 | F102: 0 | G102: Costas na Tacaíochta Foghlama | H102: =IFERROR(HLOOKUP(A102,'Leathnach Achoimre Bainc'!$B$19:$DK$35,17),"") -> 0 | I102: =IFERROR(HLOOKUP(A102,'Import BSP Bud'!$C$19:$DK$34,16,FALSE),0) -> 0 | J102: 0 | K102: 0 | Y102: =IF(COA!$E$98="Y","Show","Hide") -> Show
A103: 4620 | B103: Costas Inseirbhíse agus Oiliúna Múinteoirí | C103: ='Tuairiscí Miosúla Ioncam & Cait'!O106 -> 0 | E103: 0 | F103: 0 | G103: Costas Inseirbhíse agus Oiliúna Múinteoirí | H103: =IFERROR(HLOOKUP(A103,'Leathnach Achoimre Bainc'!$B$19:$DK$35,17),"") -> 0 | I103: =IFERROR(HLOOKUP(A103,'Import BSP Bud'!$C$19:$DK$34,16,FALSE),0) -> 0 | J103: 0 | K103: 0 | Y103: =IF(COA!$E$99="Y","Show","Hide") -> Show
A104: 4635 | B104: Costais i leith Folláine Mac Léinn | C104: ='Tuairiscí Miosúla Ioncam & Cait'!O107 -> 0 | E104: 0 | F104: 0 | G104: Costais i leith Folláine Mac Léinn | H104: =IFERROR(HLOOKUP(A104,'Leathnach Achoimre Bainc'!$B$19:$DK$35,17),"") -> 0 | I104: =IFERROR(HLOOKUP(A104,'Import BSP Bud'!$C$19:$DK$34,16,FALSE),0) -> 0 | J104: 0 | K104: 0 | Y104: =IF(COA!$E$100="Y","Show","Hide") -> Show
A105: 4640 | B105: Caiteachas Leabharlainne nach Maoinítear Deontas | C105: ='Tuairiscí Miosúla Ioncam & Cait'!O108 -> 0 | E105: 0 | F105: 0 | G105: Caiteachas Leabharlainne nach Maoinítear Deontas | H105: =IFERROR(HLOOKUP(A105,'Leathnach Achoimre Bainc'!$B$19:$DK$35,17),"") -> 0 | I105: =IFERROR(HLOOKUP(A105,'Import BSP Bud'!$C$19:$DK$34,16,FALSE),0) -> 0 | J105: 0 | K105: 0 | Y105: =IF(COA!$E$101="Y","Show","Hide") -> Hide
A106: 4641 | B106: Caiteachas Deontas Caipitil Leabhair Leabharlainne Scoile | C106: ='Tuairiscí Miosúla Ioncam & Cait'!O109 -> 0 | E106: 0 | F106: 0 | G106: Caiteachas Deontas Caipitil Leabhair Leabharlainne Scoile | H106: =IFERROR(HLOOKUP(A106,'Leathnach Achoimre Bainc'!$B$19:$DK$35,17),"") -> 0 | I106: =IFERROR(HLOOKUP(A106,'Import BSP Bud'!$C$19:$DK$34,16,FALSE),0) -> 0 | J106: 0 | K106: 0 | Y106: =IF(COA!$E$102="Y","Show","Hide") -> Hide
A107: 4650 | B107: Costas Corpoideachais | C107: ='Tuairiscí Miosúla Ioncam & Cait'!O110 -> 0 | E107: 0 | F107: 0 | G107: Costas Corpoideachais | H107: =IFERROR(HLOOKUP(A107,'Leathnach Achoimre Bainc'!$B$19:$DK$35,17),"") -> 0 | I107: =IFERROR(HLOOKUP(A107,'Import BSP Bud'!$C$19:$DK$34,16,FALSE),0) -> 0 | J107: 0 | K107: 0 | Y107: =IF(COA!$E$103="Y","Show","Hide") -> Show
A108: 4670 | B108: Costas Cluichí (gan taisteal san áireamh) | C108: ='Tuairiscí Miosúla Ioncam & Cait'!O111 -> 0 | E108: 0 | F108: 0 | G108: Costas Cluichí (gan taisteal san áireamh) | H108: =IFERROR(HLOOKUP(A108,'Leathnach Achoimre Bainc'!$B$19:$DK$35,17),"") -> 0 | I108: =IFERROR(HLOOKUP(A108,'Import BSP Bud'!$C$19:$DK$34,16,FALSE),0) -> 0 | J108: 0 | K108: 0 | Y108: =IF(COA!$E$104="Y","Show","Hide") -> Show
A109: 4671 | B109: Cíosú Bus le haghaidh Costas Cluichí | C109: ='Tuairiscí Miosúla Ioncam & Cait'!O112 -> 0 | E109: 0 | F109: 0 | G109: Cíosú Bus le haghaidh Costas Cluichí | H109: =IFERROR(HLOOKUP(A109,'Leathnach Achoimre Bainc'!$B$19:$DK$35,17),"") -> 0 | I109: =IFERROR(HLOOKUP(A109,'Import BSP Bud'!$C$19:$DK$34,16,FALSE),0) -> 0 | J109: 0 | K109: 0 | Y109: =IF(COA!$E$105="Y","Show","Hide") -> Show
A110: 4690 | B110: Costas Eile ar Fruiliú Bus | C110: ='Tuairiscí Miosúla Ioncam & Cait'!O113 -> 0 | E110: 0 | F110: 0 | G110: Costas Eile ar Fruiliú Bus | H110: =IFERROR(HLOOKUP(A110,'Leathnach Achoimre Bainc'!$B$19:$DK$35,17),"") -> 0 | I110: =IFERROR(HLOOKUP(A110,'Import BSP Bud'!$C$19:$DK$34,16,FALSE),0) -> 0 | J110: 0 | K110: 0 | Y110: =IF(COA!$E$106="Y","Show","Hide") -> Show
A111: 4710 | B111: Costas Turas Scoile | C111: ='Tuairiscí Miosúla Ioncam & Cait'!O114 -> 0 | E111: 0 | F111: 0 | G111: Costas Turas Scoile | H111: =IFERROR(HLOOKUP(A111,'Leathnach Achoimre Bainc'!$B$19:$DK$35,17),"") -> 0 | I111: =IFERROR(HLOOKUP(A111,'Import BSP Bud'!$C$19:$DK$34,16,FALSE),0) -> 0 | J111: 0 | K111: 0 | Y111: =IF(COA!$E$107="Y","Show","Hide") -> Show
A112: 4720 | B112: Costas Ceoldráma/Dráma Scoile | C112: ='Tuairiscí Miosúla Ioncam & Cait'!O115 -> 0 | E112: 0 | F112: 0 | G112: Costas Ceoldráma/Dráma Scoile | H112: =IFERROR(HLOOKUP(A112,'Leathnach Achoimre Bainc'!$B$19:$DK$35,17),"") -> 0 | I112: =IFERROR(HLOOKUP(A112,'Import BSP Bud'!$C$19:$DK$34,16,FALSE),0) -> 0 | J112: 0 | K112: 0 | Y112: =IF(COA!$E$108="Y","Show","Hide") -> Show
A113: 4731 | B113: Costas Deontas Scoile saor in aisce | C113: ='Tuairiscí Miosúla Ioncam & Cait'!O116 -> 0 | E113: 0 | F113: 0 | G113: Costas Deontas Scoile saor in aisce | H113: =IFERROR(HLOOKUP(A113,'Leathnach Achoimre Bainc'!$B$19:$DK$35,17),"") -> 0 | I113: =IFERROR(HLOOKUP(A113,'Import BSP Bud'!$C$19:$DK$34,16,FALSE),0) -> 0 | J113: 0 | K113: 0 | Y113: =IF(COA!$E$109="Y","Show","Hide") -> Show
A114: 4740 | B114: Costas Scéim na Leabhar ar Cíos | C114: ='Tuairiscí Miosúla Ioncam & Cait'!O117 -> 0 | E114: 0 | F114: 0 | G114: Costas Scéim na Leabhar ar Cíos | H114: =IFERROR(HLOOKUP(A114,'Leathnach Achoimre Bainc'!$B$19:$DK$35,17),"") -> 0 | I114: =IFERROR(HLOOKUP(A114,'Import BSP Bud'!$C$19:$DK$34,16,FALSE),0) -> 0 | J114: 0 | K114: 0 | Y114: =IF(COA!$E$110="Y","Show","Hide") -> Hide
A115: 4741 | B115: Costais Leabhar Seomra Ranga | C115: ='Tuairiscí Miosúla Ioncam & Cait'!O118 -> 0 | E115: 0 | F115: 0 | G115: Costais Leabhar Seomra Ranga | H115: =IFERROR(HLOOKUP(A115,'Leathnach Achoimre Bainc'!$B$19:$DK$35,17),"") -> 0 | I115: =IFERROR(HLOOKUP(A115,'Import BSP Bud'!$C$19:$DK$34,16,FALSE),0) -> 0 | J115: 0 | K115: 0 | Y115: =IF(COA!$E$111="Y","Show","Hide") -> Show
A116: 4760 | B116: Costas Bliainirisí/Dialanna Scoile | C116: ='Tuairiscí Miosúla Ioncam & Cait'!O119 -> 0 | E116: 0 | F116: 0 | G116: Costas Bliainirisí/Dialanna Scoile | H116: =IFERROR(HLOOKUP(A116,'Leathnach Achoimre Bainc'!$B$19:$DK$35,17),"") -> 0 | I116: =IFERROR(HLOOKUP(A116,'Import BSP Bud'!$C$19:$DK$34,16,FALSE),0) -> 0 | J116: 0 | K116: 0 | Y116: =IF(COA!$E$112="Y","Show","Hide") -> Show
A117: 4770 | B117: Costas Trófaithe agus Duaiseanna | C117: ='Tuairiscí Miosúla Ioncam & Cait'!O120 -> 0 | E117: 0 | F117: 0 | G117: Costas Trófaithe agus Duaiseanna | H117: =IFERROR(HLOOKUP(A117,'Leathnach Achoimre Bainc'!$B$19:$DK$35,17),"") -> 0 | I117: =IFERROR(HLOOKUP(A117,'Import BSP Bud'!$C$19:$DK$34,16,FALSE),0) -> 0 | J117: 0 | K117: 0 | Y117: =IF(COA!$E$113="Y","Show","Hide") -> Show
A118: 4780 | B118: Costas Éidí | C118: ='Tuairiscí Miosúla Ioncam & Cait'!O121 -> 0 | E118: 0 | F118: 0 | G118: Costas Éidí | H118: =IFERROR(HLOOKUP(A118,'Leathnach Achoimre Bainc'!$B$19:$DK$35,17),"") -> 0 | I118: =IFERROR(HLOOKUP(A118,'Import BSP Bud'!$C$19:$DK$34,16,FALSE),0) -> 0 | J118: 0 | K118: 0 | Y118: =IF(COA!$E$114="Y","Show","Hide") -> Show
A119: 4810 | B119: Costas na Teagmhála idir an Baile agus an Scoil | C119: ='Tuairiscí Miosúla Ioncam & Cait'!O122 -> 0 | E119: 0 | F119: 0 | G119: Costas na Teagmhála idir an Baile agus an Scoil | H119: =IFERROR(HLOOKUP(A119,'Leathnach Achoimre Bainc'!$B$19:$DK$35,17),"") -> 0 | I119: =IFERROR(HLOOKUP(A119,'Import BSP Bud'!$C$19:$DK$34,16,FALSE),0) -> 0 | J119: 0 | K119: 0 | Y119: =IF(COA!$E$115="Y","Show","Hide") -> Show
A120: 4815 | B120: Costas an Chiste Barr Feabhais Scoileanna | C120: ='Tuairiscí Miosúla Ioncam & Cait'!O123 -> 0 | E120: 0 | F120: 0 | G120: Costas an Chiste Barr Feabhais Scoileanna | H120: =IFERROR(HLOOKUP(A120,'Leathnach Achoimre Bainc'!$B$19:$DK$35,17),"") -> 0 | I120: =IFERROR(HLOOKUP(A120,'Import BSP Bud'!$C$19:$DK$34,16,FALSE),0) -> 0 | J120: 0 | K120: 0 | Y120: =IF(COA!$E$116="Y","Show","Hide") -> Hide
A121: 4908 | B121: Costais Eile Campaí Samhraidh | C121: ='Tuairiscí Miosúla Ioncam & Cait'!O124 -> 0 | E121: 0 | F121: 0 | G121: Costais Eile Campaí Samhraidh | H121: =IFERROR(HLOOKUP(A121,'Leathnach Achoimre Bainc'!$B$19:$DK$35,17),"") -> 0 | I121: =IFERROR(HLOOKUP(A121,'Import BSP Bud'!$C$19:$DK$34,16,FALSE),0) -> 0 | J121: 0 | K121: 0 | Y121: =IF(COA!$E$117="Y","Show","Hide") -> Hide
A122: 4909 | B122: Costais Sholáthar Eile Samhraidh | C122: ='Tuairiscí Miosúla Ioncam & Cait'!O125 -> 0 | E122: 0 | F122: 0 | G122: Costais Sholáthar Eile Samhraidh | H122: =IFERROR(HLOOKUP(A122,'Leathnach Achoimre Bainc'!$B$19:$DK$35,17),"") -> 0 | I122: =IFERROR(HLOOKUP(A122,'Import BSP Bud'!$C$19:$DK$34,16,FALSE),0) -> 0 | J122: 0 | K122: 0 | Y122: =IF(COA!$E$118="Y","Show","Hide") -> Show
A123: 4910 | B123: Costas Oideachais Eile | C123: ='Tuairiscí Miosúla Ioncam & Cait'!O126 -> 0 | E123: 0 | F123: 0 | G123: Costas Oideachais Eile | H123: =IFERROR(HLOOKUP(A123,'Leathnach Achoimre Bainc'!$B$19:$DK$35,17),"") -> 0 | I123: =IFERROR(HLOOKUP(A123,'Import BSP Bud'!$C$19:$DK$34,16,FALSE),0) -> 0 | J123: 0 | K123: 0 | Y123: =IF(COA!$E$119="Y","Show","Hide") -> Show
A124: 4911 | B124: Costas Ghníomhaíochtaí na Roinne Leanaí agus Gnóthaí Óige | C124: ='Tuairiscí Miosúla Ioncam & Cait'!O127 -> 0 | E124: 0 | F124: 0 | G124: Costas Ghníomhaíochtaí na Roinne Leanaí agus Gnóthaí Óige | H124: =IFERROR(HLOOKUP(A124,'Leathnach Achoimre Bainc'!$B$19:$DK$35,17),"") -> 0 | I124: =IFERROR(HLOOKUP(A124,'Import BSP Bud'!$C$19:$DK$34,16,FALSE),0) -> 0 | J124: 0 | K124: 0 | Y124: =IF(COA!$E$120="Y","Show","Hide") -> Hide
A125: 4912 | B125: Costais Bia Béilí Scoileanna na Roinne Coimirce Sóisialaí | C125: ='Tuairiscí Miosúla Ioncam & Cait'!O128 -> 0 | E125: 0 | F125: 0 | G125: Costais Bia Béilí Scoileanna na Roinne Coimirce Sóisialaí | H125: =IFERROR(HLOOKUP(A125,'Leathnach Achoimre Bainc'!$B$19:$DK$35,17),"") -> 0 | I125: =IFERROR(HLOOKUP(A125,'Import BSP Bud'!$C$19:$DK$34,16,FALSE),0) -> 0 | J125: 0 | K125: 0 | Y125: =IF(COA!$E$121="Y","Show","Hide") -> Show
A126: 4913 | B126: Costas Erasmus | C126: ='Tuairiscí Miosúla Ioncam & Cait'!O129 -> 0 | E126: 0 | F126: 0 | G126: Costas Erasmus | H126: =IFERROR(HLOOKUP(A126,'Leathnach Achoimre Bainc'!$B$19:$DK$35,17),"") -> 0 | I126: =IFERROR(HLOOKUP(A126,'Import BSP Bud'!$C$19:$DK$34,16,FALSE),0) -> 0 | J126: 0 | K126: 0 | Y126: =IF(COA!$E$122="Y","Show","Hide") -> Hide
A127: 4914 | B127: Costais Deontais Neamhchaipitil Eile RO | C127: ='Tuairiscí Miosúla Ioncam & Cait'!O130 -> 0 | E127: 0 | F127: 0 | G127: Costais Deontais Neamhchaipitil Eile RO | H127: =IFERROR(HLOOKUP(A127,'Leathnach Achoimre Bainc'!$B$19:$DK$35,17),"") -> 0 | I127: =IFERROR(HLOOKUP(A127,'Import BSP Bud'!$C$19:$DK$34,16,FALSE),0) -> 0 | J127: 0 | K127: 0 | Y127: =IF(COA!$E$123="Y","Show","Hide") -> Show
A128: 4915 | B128: Costais Eile Ceaintín | C128: ='Tuairiscí Miosúla Ioncam & Cait'!O131 -> 0 | E128: 0 | F128: 0 | G128: Costais Eile Ceaintín | H128: =IFERROR(HLOOKUP(A128,'Leathnach Achoimre Bainc'!$B$19:$DK$35,17),"") -> 0 | I128: =IFERROR(HLOOKUP(A128,'Import BSP Bud'!$C$19:$DK$34,16,FALSE),0) -> 0 | J128: 0 | K128: 0 | Y128: =IF(COA!$E$124="Y","Show","Hide") -> Show
A129: 4916 | B129: Costas Árachais Daltaí | C129: ='Tuairiscí Miosúla Ioncam & Cait'!O132 -> 0 | E129: 0 | F129: 0 | G129: Costas Árachais Daltaí | H129: =IFERROR(HLOOKUP(A129,'Leathnach Achoimre Bainc'!$B$19:$DK$35,17),"") -> 0 | I129: =IFERROR(HLOOKUP(A129,'Import BSP Bud'!$C$19:$DK$34,16,FALSE),0) -> 0 | J129: 0 | K129: 0 | Y129: =IF(COA!$E$125="Y","Show","Hide") -> Show
A130: 4917 | B130: Costas Trialacha Caighdeánaithe | C130: ='Tuairiscí Miosúla Ioncam & Cait'!O133 -> 0 | E130: 0 | F130: 0 | G130: Costas Trialacha Caighdeánaithe | H130: =IFERROR(HLOOKUP(A130,'Leathnach Achoimre Bainc'!$B$19:$DK$35,17),"") -> 0 | I130: =IFERROR(HLOOKUP(A130,'Import BSP Bud'!$C$19:$DK$34,16,FALSE),0) -> 0 | J130: 0 | K130: 0 | Y130: =IF(COA!$E$126="Y","Show","Hide") -> Show
A131: 4918 | B131: Caiteachas Ainmnithe (Neamhchaipitiúil) | C131: ='Tuairiscí Miosúla Ioncam & Cait'!O134 -> 0 | E131: 0 | F131: 0 | G131: Caiteachas Ainmnithe (Neamhchaipitiúil) | H131: =IFERROR(HLOOKUP(A131,'Leathnach Achoimre Bainc'!$B$19:$DK$35,17),"") -> 0 | I131: =IFERROR(HLOOKUP(A131,'Import BSP Bud'!$C$19:$DK$34,16,FALSE),0) -> 0 | J131: 0 | K131: 0 | Y131: =IF(COA!$E$127="Y","Show","Hide") -> Show
A132: 4919 | B132: Costas Trealaimh Oideachais Speisialta (Neamhchaipitiúil) | C132: ='Tuairiscí Miosúla Ioncam & Cait'!O135 -> 0 | E132: 0 | F132: 0 | G132: Costas Trealaimh Oideachais Speisialta (Neamhchaipitiúil) | H132: =IFERROR(HLOOKUP(A132,'Leathnach Achoimre Bainc'!$B$19:$DK$35,17),"") -> 0 | I132: =IFERROR(HLOOKUP(A132,'Import BSP Bud'!$C$19:$DK$34,16,FALSE),0) -> 0 | J132: 0 | K132: 0 | Y132: =IF(COA!$E$128="Y","Show","Hide") -> Show
A133: 4920 | B133: Costas Damhsa na Scoile | C133: ='Tuairiscí Miosúla Ioncam & Cait'!O136 -> 0 | E133: 0 | F133: 0 | G133: Costas Damhsa na Scoile | H133: =IFERROR(HLOOKUP(A133,'Leathnach Achoimre Bainc'!$B$19:$DK$35,17),"") -> 0 | I133: =IFERROR(HLOOKUP(A133,'Import BSP Bud'!$C$19:$DK$34,16,FALSE),0) -> 0 | J133: 0 | K133: 0 | Y133: =IF(COA!$E$129="Y","Show","Hide") -> Show
A134: 4921 | B134: Costas Snámha Scoile | C134: ='Tuairiscí Miosúla Ioncam & Cait'!O137 -> 0 | E134: 0 | F134: 0 | G134: Costas Snámha Scoile | H134: =IFERROR(HLOOKUP(A134,'Leathnach Achoimre Bainc'!$B$19:$DK$35,17),"") -> 0 | I134: =IFERROR(HLOOKUP(A134,'Import BSP Bud'!$C$19:$DK$34,16,FALSE),0) -> 0 | J134: 0 | K134: 0 | Y134: =IF(COA!$E$130="Y","Show","Hide") -> Show
A135: 4922 | B135: Costais a bhaineann le Tiomsú Airgid Srianta Scoile (Neamhchaipitiúil) | C135: ='Tuairiscí Miosúla Ioncam & Cait'!O138 -> 0 | E135: 0 | F135: 0 | G135: Costais a bhaineann le Tiomsú Airgid Srianta Scoile (Neamhchaipitiúil) | H135: =IFERROR(HLOOKUP(A135,'Leathnach Achoimre Bainc'!$B$19:$DK$35,17),"") -> 0 | I135: =IFERROR(HLOOKUP(A135,'Import BSP Bud'!$C$19:$DK$34,16,FALSE),0) -> 0 | J135: 0 | K135: 0 | Y135: =IF(COA!$E$131="Y","Show","Hide") -> Show
A136: 4923 | B136: Costais a bhaineann le Tiomsú Airgid Srianta Seachtrach (Neamhchaipitiúil) | C136: ='Tuairiscí Miosúla Ioncam & Cait'!O139 -> 0 | E136: 0 | F136: 0 | G136: Costais a bhaineann le Tiomsú Airgid Srianta Seachtrach (Neamhchaipitiúil) | H136: =IFERROR(HLOOKUP(A136,'Leathnach Achoimre Bainc'!$B$19:$DK$35,17),"") -> 0 | I136: =IFERROR(HLOOKUP(A136,'Import BSP Bud'!$C$19:$DK$34,16,FALSE),0) -> 0 | J136: 0 | K136: 0 | Y136: =IF(COA!$E$132="Y","Show","Hide") -> Show
A137: 4924 | B137: Costais a bhaineann le Tiomsú Airgid Neamhshrianta Seachtrach (Neamhchaipitiúil) | C137: ='Tuairiscí Miosúla Ioncam & Cait'!O140 -> 0 | E137: 0 | F137: 0 | G137: Costais a bhaineann le Tiomsú Airgid Neamhshrianta Seachtrach (Neamhchaipitiúil) | H137: =IFERROR(HLOOKUP(A137,'Leathnach Achoimre Bainc'!$B$19:$DK$35,17),"") -> 0 | I137: =IFERROR(HLOOKUP(A137,'Import BSP Bud'!$C$19:$DK$34,16,FALSE),0) -> 0 | J137: 0 | K137: 0 | Y137: =IF(COA!$E$133="Y","Show","Hide") -> Show
A138: 4925 | B138: Costais Tiomsaithe Airgid Neamhshrianta Scoile (Neamhchaipitiúil) | C138: ='Tuairiscí Miosúla Ioncam & Cait'!O141 -> 0 | E138: 0 | F138: 0 | G138: Costais Tiomsaithe Airgid Neamhshrianta Scoile (Neamhchaipitiúil) | H138: =IFERROR(HLOOKUP(A138,'Leathnach Achoimre Bainc'!$B$19:$DK$35,17),"") -> 0 | I138: =IFERROR(HLOOKUP(A138,'Import BSP Bud'!$C$19:$DK$34,16,FALSE),0) -> 0 | J138: 0 | K138: 0 | Y138: =IF(COA!$E$134="Y","Show","Hide") -> Show
A139: 4927 | B139: Costais Ealaíon agus Ceardaíochta Scoile | C139: ='Tuairiscí Miosúla Ioncam & Cait'!O142 -> 0 | E139: 0 | F139: 0 | G139: Costais Ealaíon agus Ceardaíochta Scoile | H139: =IFERROR(HLOOKUP(A139,'Leathnach Achoimre Bainc'!$B$19:$DK$35,17),"") -> 0 | I139: =IFERROR(HLOOKUP(A139,'Import BSP Bud'!$C$19:$DK$34,16,FALSE),0) -> 0 | J139: 0 | K139: 0 | Y139: =IF(COA!$E$135="Y","Show","Hide") -> Show
A140: 4928 | B140: Costais Eile FSS | C140: ='Tuairiscí Miosúla Ioncam & Cait'!O143 -> 0 | E140: 0 | F140: 0 | G140: Costais Eile FSS | H140: =IFERROR(HLOOKUP(A140,'Leathnach Achoimre Bainc'!$B$19:$DK$35,17),"") -> 0 | I140: =IFERROR(HLOOKUP(A140,'Import BSP Bud'!$C$19:$DK$34,16,FALSE),0) -> 0 | J140: 0 | K140: 0 | Y140: =IF(COA!$E$136="Y","Show","Hide") -> Hide
A141: 4929 | B141: Costas Maoinithe eile ón Stát | C141: ='Tuairiscí Miosúla Ioncam & Cait'!O144 -> 0 | E141: 0 | F141: 0 | G141: Costas Maoinithe eile ón Stát | H141: =IFERROR(HLOOKUP(A141,'Leathnach Achoimre Bainc'!$B$19:$DK$35,17),"") -> 0 | I141: =IFERROR(HLOOKUP(A141,'Import BSP Bud'!$C$19:$DK$34,16,FALSE),0) -> 0 | J141: 0 | K141: 0 | Y141: =IF(COA!$E$137="Y","Show","Hide") -> Show
A142: 4930 | B142: Costas Réamhscoile | C142: ='Tuairiscí Miosúla Ioncam & Cait'!O145 -> 0 | E142: 0 | F142: 0 | G142: Costas Réamhscoile | H142: =IFERROR(HLOOKUP(A142,'Leathnach Achoimre Bainc'!$B$19:$DK$35,17),"") -> 0 | I142: =IFERROR(HLOOKUP(A142,'Import BSP Bud'!$C$19:$DK$34,16,FALSE),0) -> 0 | J142: 0 | K142: 0 | Y142: =IF(COA!$E$138="Y","Show","Hide") -> Hide
A143: 5010 | B143: Costas Pá Feighlí | C143: ='Tuairiscí Miosúla Ioncam & Cait'!O146 -> 0 | E143: 0 | F143: 0 | G143: Costas Pá Feighlí | H143: =IFERROR(HLOOKUP(A143,'Leathnach Achoimre Bainc'!$B$19:$DK$35,17),"") -> 0 | I143: =IFERROR(HLOOKUP(A143,'Import BSP Bud'!$C$19:$DK$34,16,FALSE),0) -> 0 | J143: 0 | K143: 0 | Y143: =IF(COA!$E$139="Y","Show","Hide") -> Show
A144: 5030 | B144: Costas Pinsin na bhFeighlithe | C144: ='Tuairiscí Miosúla Ioncam & Cait'!O147 -> 0 | E144: 0 | F144: 0 | G144: Costas Pinsin na bhFeighlithe | H144: =IFERROR(HLOOKUP(A144,'Leathnach Achoimre Bainc'!$B$19:$DK$35,17),"") -> 0 | I144: =IFERROR(HLOOKUP(A144,'Import BSP Bud'!$C$19:$DK$34,16,FALSE),0) -> 0 | J144: 0 | K144: 0 | Y144: =IF(COA!$E$140="Y","Show","Hide") -> Hide
A145: 5110 | B145: Costas Pá Glantóirí | C145: ='Tuairiscí Miosúla Ioncam & Cait'!O148 -> 0 | E145: =-(C145-D145) -> 0 | F145: =IF(D145,(C145-D145)/D145,0)*-1 -> 0 | G145: Costas Pá Glantóirí | H145: =IFERROR(HLOOKUP(A145,'Leathnach Achoimre Bainc'!$B$19:$DK$35,17),"") -> 0 | I145: =IFERROR(HLOOKUP(A145,'Import BSP Bud'!$C$19:$DK$34,16,FALSE),0) -> 0 | J145: 0 | K145: 0 | Y145: =IF(COA!$E$141="Y","Show","Hide") -> Show
A146: 5112 | B146: Costas Pinsin Glantóirí | C146: ='Tuairiscí Miosúla Ioncam & Cait'!O149 -> 0 | E146: 0 | F146: 0 | G146: Costas Pinsin Glantóirí | H146: =IFERROR(HLOOKUP(A146,'Leathnach Achoimre Bainc'!$B$19:$DK$35,17),"") -> 0 | I146: =IFERROR(HLOOKUP(A146,'Import BSP Bud'!$C$19:$DK$34,16,FALSE),0) -> 0 | J146: =IFERROR(SUM(H146-I146),"") -> 0 | K146: =IF(I146,(H146-I146)/I146,0) -> 0 | Y146: =IF(COA!$E$142="Y","Show","Hide") -> Hide
A147: 5150 | B147: Costas Glantóirí ar Conradh | C147: ='Tuairiscí Miosúla Ioncam & Cait'!O150 -> 0 | E147: 0 | F147: 0 | G147: Costas Glantóirí ar Conradh | H147: =IFERROR(HLOOKUP(A147,'Leathnach Achoimre Bainc'!$B$19:$DK$35,17),"") -> 0 | I147: =IFERROR(HLOOKUP(A147,'Import BSP Bud'!$C$19:$DK$34,16,FALSE),0) -> 0 | J147: 0 | K147: 0 | Y147: =IF(COA!$E$143="Y","Show","Hide") -> Show
A148: 5170 | B148: Costas Ábhar Glantacháin | C148: ='Tuairiscí Miosúla Ioncam & Cait'!O151 -> 0 | E148: 0 | F148: 0 | G148: Costas Ábhar Glantacháin | H148: =IFERROR(HLOOKUP(A148,'Leathnach Achoimre Bainc'!$B$19:$DK$35,17),"") -> 0 | I148: =IFERROR(HLOOKUP(A148,'Import BSP Bud'!$C$19:$DK$34,16,FALSE),0) -> 0 | J148: 0 | K148: 0 | Y148: =IF(COA!$E$144="Y","Show","Hide") -> Show
A149: 5175 | B149: Costais Ghlantacháin agus Sláintíochta Eile | C149: ='Tuairiscí Miosúla Ioncam & Cait'!O152 -> 0 | E149: 0 | F149: 0 | G149: Costais Ghlantacháin agus Sláintíochta Eile | H149: =IFERROR(HLOOKUP(A149,'Leathnach Achoimre Bainc'!$B$19:$DK$35,17),"") -> 0 | I149: =IFERROR(HLOOKUP(A149,'Import BSP Bud'!$C$19:$DK$34,16,FALSE),0) -> 0 | J149: 0 | K149: 0 | Y149: =IF(COA!$E$145="Y","Show","Hide") -> Show
A150: 5310 | B150: Costas Deisiúchán ar Fhoirgnimh agus Thailte | C150: ='Tuairiscí Miosúla Ioncam & Cait'!O153 -> 0 | E150: 0 | F150: 0 | G150: Costas Deisiúchán ar Fhoirgnimh agus Thailte | H150: =IFERROR(HLOOKUP(A150,'Leathnach Achoimre Bainc'!$B$19:$DK$35,17),"") -> 0 | I150: =IFERROR(HLOOKUP(A150,'Import BSP Bud'!$C$19:$DK$34,16,FALSE),0) -> 0 | J150: 0 | K150: 0 | Y150: =IF(COA!$E$146="Y","Show","Hide") -> Show
A151: 5315 | B151: Costas Deontas Mionoibreacha (Neamhchaipitiúil) | C151: ='Tuairiscí Miosúla Ioncam & Cait'!O154 -> 0 | E151: 0 | F151: 0 | G151: Costas Deontas Mionoibreacha (Neamhchaipitiúil) | H151: =IFERROR(HLOOKUP(A151,'Leathnach Achoimre Bainc'!$B$19:$DK$35,17),"") -> 0 | I151: =IFERROR(HLOOKUP(A151,'Import BSP Bud'!$C$19:$DK$34,16,FALSE),0) -> 0 | J151: 0 | K151: 0 | Y151: =IF(COA!$E$147="Y","Show","Hide") -> Show
A152: 5350 | B152: Costas Deisiúchán ar Throscán, Feistis agus Trealamh | C152: ='Tuairiscí Miosúla Ioncam & Cait'!O155 -> 0 | E152: 0 | F152: 0 | G152: Costas Deisiúchán ar Throscán, Feistis agus Trealamh | H152: =IFERROR(HLOOKUP(A152,'Leathnach Achoimre Bainc'!$B$19:$DK$35,17),"") -> 0 | I152: =IFERROR(HLOOKUP(A152,'Import BSP Bud'!$C$19:$DK$34,16,FALSE),0) -> 0 | J152: 0 | K152: 0 | Y152: =IF(COA!$E$148="Y","Show","Hide") -> Show
A153: 5400 | B153: Gnáthchostas Slándála | C153: ='Tuairiscí Miosúla Ioncam & Cait'!O156 -> 0 | E153: 0 | F153: 0 | G153: Gnáthchostas Slándála | H153: =IFERROR(HLOOKUP(A153,'Leathnach Achoimre Bainc'!$B$19:$DK$35,17),"") -> 0 | I153: =IFERROR(HLOOKUP(A153,'Import BSP Bud'!$C$19:$DK$34,16,FALSE),0) -> 0 | J153: 0 | K153: 0 | Y153: =IF(COA!$E$149="Y","Show","Hide") -> Show
A154: 5450 | B154: Costas Árachais Ghinearálta | C154: ='Tuairiscí Miosúla Ioncam & Cait'!O157 -> 0 | E154: 0 | F154: 0 | G154: Costas Árachais Ghinearálta | H154: =IFERROR(HLOOKUP(A154,'Leathnach Achoimre Bainc'!$B$19:$DK$35,17),"") -> 0 | I154: =IFERROR(HLOOKUP(A154,'Import BSP Bud'!$C$19:$DK$34,16,FALSE),0) -> 0 | J154: 0 | K154: 0 | Y154: =IF(COA!$E$150="Y","Show","Hide") -> Show
A155: 5510 | B155: Costas Téimh | C155: ='Tuairiscí Miosúla Ioncam & Cait'!O158 -> 0 | E155: 0 | F155: 0 | G155: Costas Téimh | H155: =IFERROR(HLOOKUP(A155,'Leathnach Achoimre Bainc'!$B$19:$DK$35,17),"") -> 0 | I155: =IFERROR(HLOOKUP(A155,'Import BSP Bud'!$C$19:$DK$34,16,FALSE),0) -> 0 | J155: 0 | K155: 0 | Y155: =IF(COA!$E$151="Y","Show","Hide") -> Show
A156: 5550 | B156: Costas Soilse agus Cumhachta | C156: ='Tuairiscí Miosúla Ioncam & Cait'!O159 -> 0 | E156: 0 | F156: 0 | G156: Costas Soilse agus Cumhachta | H156: =IFERROR(HLOOKUP(A156,'Leathnach Achoimre Bainc'!$B$19:$DK$35,17),"") -> 0 | I156: =IFERROR(HLOOKUP(A156,'Import BSP Bud'!$C$19:$DK$34,16,FALSE),0) -> 0 | J156: 0 | K156: 0 | Y156: =IF(COA!$E$152="Y","Show","Hide") -> Show
A157: 5551 | B157: Costas Cíosa Cóiríochta Sealadaí | C157: ='Tuairiscí Miosúla Ioncam & Cait'!O160 -> 0 | E157: 0 | F157: 0 | G157: Costas Cíosa Cóiríochta Sealadaí | H157: =IFERROR(HLOOKUP(A157,'Leathnach Achoimre Bainc'!$B$19:$DK$35,17),"") -> 0 | I157: =IFERROR(HLOOKUP(A157,'Import BSP Bud'!$C$19:$DK$34,16,FALSE),0) -> 0 | J157: 0 | K157: 0 | Y157: =IF(COA!$E$153="Y","Show","Hide") -> Show
A158: 5552 | B158: Costais Cíosa Eile | C158: ='Tuairiscí Miosúla Ioncam & Cait'!O161 -> 0 | E158: 0 | F158: 0 | G158: Costais Cíosa Eile | H158: =IFERROR(HLOOKUP(A158,'Leathnach Achoimre Bainc'!$B$19:$DK$35,17),"") -> 0 | I158: =IFERROR(HLOOKUP(A158,'Import BSP Bud'!$C$19:$DK$34,16,FALSE),0) -> 0 | J158: 0 | K158: 0 | Y158: =IF(COA!$E$154="Y","Show","Hide") -> Hide
A159: 5610 | B159: Costas Bruscair | C159: ='Tuairiscí Miosúla Ioncam & Cait'!O162 -> 0 | E159: 0 | F159: 0 | G159: Costas Bruscair | H159: =IFERROR(HLOOKUP(A159,'Leathnach Achoimre Bainc'!$B$19:$DK$35,17),"") -> 0 | I159: =IFERROR(HLOOKUP(A159,'Import BSP Bud'!$C$19:$DK$34,16,FALSE),0) -> 0 | J159: 0 | K159: 0 | Y159: =IF(COA!$E$155="Y","Show","Hide") -> Show
A160: 5611 | B160: Costais Rátaí Uisce | C160: ='Tuairiscí Miosúla Ioncam & Cait'!O163 -> 0 | E160: 0 | F160: 0 | G160: Costais Rátaí Uisce | H160: =IFERROR(HLOOKUP(A160,'Leathnach Achoimre Bainc'!$B$19:$DK$35,17),"") -> 0 | I160: =IFERROR(HLOOKUP(A160,'Import BSP Bud'!$C$19:$DK$34,16,FALSE),0) -> 0 | J160: 0 | K160: 0 | Y160: =IF(COA!$E$156="Y","Show","Hide") -> Show
A161: 5700 | B161: Costas na Táille Ceadúnais don Phátrún/Iontaobhaí | C161: ='Tuairiscí Miosúla Ioncam & Cait'!O164 -> 0 | E161: 0 | F161: 0 | G161: Costas na Táille Ceadúnais don Phátrún/Iontaobhaí | H161: =IFERROR(HLOOKUP(A161,'Leathnach Achoimre Bainc'!$B$19:$DK$35,17),"") -> 0 | I161: =IFERROR(HLOOKUP(A161,'Import BSP Bud'!$C$19:$DK$34,16,FALSE),0) -> 0 | J161: 0 | K161: 0 | Y161: =IF(COA!$E$157="Y","Show","Hide") -> Show
A162: 5800 | B162: Costas Deisiúcháin agus Cothabhála Eile | C162: ='Tuairiscí Miosúla Ioncam & Cait'!O165 -> 0 | E162: 0 | F162: 0 | G162: Costas Deisiúcháin agus Cothabhála Eile | H162: =IFERROR(HLOOKUP(A162,'Leathnach Achoimre Bainc'!$B$19:$DK$35,17),"") -> 0 | I162: =IFERROR(HLOOKUP(A162,'Import BSP Bud'!$C$19:$DK$34,16,FALSE),0) -> 0 | J162: 0 | K162: 0 | Y162: =IF(COA!$E$158="Y","Show","Hide") -> Show
A163: 5804 | B163: Deontas Caipitíochta COVID le haghaidh Chostas Pá Glantacháin | C163: ='Tuairiscí Miosúla Ioncam & Cait'!O166 -> 0 | E163: 0 | F163: 0 | G163: Deontas Caipitíochta COVID le haghaidh Chostas Pá Glantacháin | H163: =IFERROR(HLOOKUP(A163,'Leathnach Achoimre Bainc'!$B$19:$DK$35,17),"") -> 0 | I163: =IFERROR(HLOOKUP(A163,'Import BSP Bud'!$C$19:$DK$34,16,FALSE),0) -> 0 | J163: 0 | K163: 0 | Y163: =IF(COA!$E$159="Y","Show","Hide") -> Hide
A164: 5806 | B164: Deontas Caipitíochta Covid le haghaidh Chostas Glantacháin (Neamhphá) & PPE | C164: ='Tuairiscí Miosúla Ioncam & Cait'!O167 -> 0 | E164: 0 | F164: 0 | G164: Deontas Caipitíochta Covid le haghaidh Chostas Glantacháin (Neamhphá) & PPE | H164: =IFERROR(HLOOKUP(A164,'Leathnach Achoimre Bainc'!$B$19:$DK$35,17),"") -> 0 | I164: =IFERROR(HLOOKUP(A164,'Import BSP Bud'!$C$19:$DK$34,16,FALSE),0) -> 0 | J164: 0 | K164: 0 | Y164: =IF(COA!$E$160="Y","Show","Hide") -> Hide
A165: 6010 | B165: Costas Pá Oifigeach Cléireachais/Rúnaíochta | C165: ='Tuairiscí Miosúla Ioncam & Cait'!O168 -> 0 | E165: 0 | F165: 0 | G165: Costas Pá Oifigeach Cléireachais/Rúnaíochta | H165: =IFERROR(HLOOKUP(A165,'Leathnach Achoimre Bainc'!$B$19:$DK$35,17),"") -> 0 | I165: =IFERROR(HLOOKUP(A165,'Import BSP Bud'!$C$19:$DK$34,16,FALSE),0) -> 0 | J165: 0 | K165: 0 | Y165: =IF(COA!$E$161="Y","Show","Hide") -> Show
A166: 6050 | B166: Costas Pinsin Oifigeach Cléireachais/Rúnaíochta | C166: ='Tuairiscí Miosúla Ioncam & Cait'!O169 -> 0 | E166: 0 | F166: 0 | G166: Costas Pinsin Oifigeach Cléireachais/Rúnaíochta | H166: =IFERROR(HLOOKUP(A166,'Leathnach Achoimre Bainc'!$B$19:$DK$35,17),"") -> 0 | I166: =IFERROR(HLOOKUP(A166,'Import BSP Bud'!$C$19:$DK$34,16,FALSE),0) -> 0 | J166: 0 | K166: 0 | Y166: =IF(COA!$E$162="Y","Show","Hide") -> Hide
A167: 6100 | B167: Costas Earcaíochta | C167: ='Tuairiscí Miosúla Ioncam & Cait'!O170 -> 0 | E167: 0 | F167: 0 | G167: Costas Earcaíochta | H167: =IFERROR(HLOOKUP(A167,'Leathnach Achoimre Bainc'!$B$19:$DK$35,17),"") -> 0 | I167: =IFERROR(HLOOKUP(A167,'Import BSP Bud'!$C$19:$DK$34,16,FALSE),0) -> 0 | J167: 0 | K167: 0 | Y167: =IF(COA!$E$163="Y","Show","Hide") -> Show
A168: 6150 | B168: Costas Fógraíochta / Caidrimh Phoiblí | C168: ='Tuairiscí Miosúla Ioncam & Cait'!O171 -> 0 | E168: 0 | F168: 0 | G168: Costas Fógraíochta / Caidrimh Phoiblí | H168: =IFERROR(HLOOKUP(A168,'Leathnach Achoimre Bainc'!$B$19:$DK$35,17),"") -> 0 | I168: =IFERROR(HLOOKUP(A168,'Import BSP Bud'!$C$19:$DK$34,16,FALSE),0) -> 0 | J168: 0 | K168: 0 | Y168: =IF(COA!$E$164="Y","Show","Hide") -> Show
A169: 6210 | B169: Costas Postais | C169: ='Tuairiscí Miosúla Ioncam & Cait'!O172 -> 0 | E169: 0 | F169: 0 | G169: Costas Postais | H169: =IFERROR(HLOOKUP(A169,'Leathnach Achoimre Bainc'!$B$19:$DK$35,17),"") -> 0 | I169: =IFERROR(HLOOKUP(A169,'Import BSP Bud'!$C$19:$DK$34,16,FALSE),0) -> 0 | J169: 0 | K169: 0 | Y169: =IF(COA!$E$165="Y","Show","Hide") -> Show
A170: 6250 | B170: Costas Gutháin / SMS | C170: ='Tuairiscí Miosúla Ioncam & Cait'!O173 -> 0 | E170: 0 | F170: 0 | G170: Costas Gutháin / SMS | H170: =IFERROR(HLOOKUP(A170,'Leathnach Achoimre Bainc'!$B$19:$DK$35,17),"") -> 0 | I170: =IFERROR(HLOOKUP(A170,'Import BSP Bud'!$C$19:$DK$34,16,FALSE),0) -> 0 | J170: 0 | K170: 0 | Y170: =IF(COA!$E$166="Y","Show","Hide") -> Show
A171: 6300 | B171: Costas Clódóireachta agus Páipéarachais | C171: ='Tuairiscí Miosúla Ioncam & Cait'!O174 -> 0 | E171: 0 | F171: 0 | G171: Costas Clódóireachta agus Páipéarachais | H171: =IFERROR(HLOOKUP(A171,'Leathnach Achoimre Bainc'!$B$19:$DK$35,17),"") -> 0 | I171: =IFERROR(HLOOKUP(A171,'Import BSP Bud'!$C$19:$DK$34,16,FALSE),0) -> 0 | J171: 0 | K171: 0 | Y171: =IF(COA!$E$167="Y","Show","Hide") -> Show
A172: 6350 | B172: Costas Trealaimh Oifige (Neamhchaipitiúil) | C172: ='Tuairiscí Miosúla Ioncam & Cait'!O175 -> 0 | E172: 0 | F172: 0 | G172: Costas Trealaimh Oifige (Neamhchaipitiúil) | H172: =IFERROR(HLOOKUP(A172,'Leathnach Achoimre Bainc'!$B$19:$DK$35,17),"") -> 0 | I172: =IFERROR(HLOOKUP(A172,'Import BSP Bud'!$C$19:$DK$34,16,FALSE),0) -> 0 | J172: 0 | K172: 0 | Y172: =IF(COA!$E$168="Y","Show","Hide") -> Show
A173: 6355 | B173: Costas Ríomhairí Oifige nach bhFuarthas Deontas TFC ina leith | C173: ='Tuairiscí Miosúla Ioncam & Cait'!O176 -> 0 | E173: 0 | F173: 0 | G173: Costas Ríomhairí Oifige nach bhFuarthas Deontas TFC ina leith | H173: =IFERROR(HLOOKUP(A173,'Leathnach Achoimre Bainc'!$B$19:$DK$35,17),"") -> 0 | I173: =IFERROR(HLOOKUP(A173,'Import BSP Bud'!$C$19:$DK$34,16,FALSE),0) -> 0 | J173: 0 | K173: 0 | Y173: =IF(COA!$E$169="Y","Show","Hide") -> Show
A174: 6400 | B174: Costas Cuntasaíochta / Iniúchóireachta | C174: ='Tuairiscí Miosúla Ioncam & Cait'!O177 -> 0 | E174: 0 | F174: 0 | G174: Costas Cuntasaíochta / Iniúchóireachta | H174: =IFERROR(HLOOKUP(A174,'Leathnach Achoimre Bainc'!$B$19:$DK$35,17),"") -> 0 | I174: =IFERROR(HLOOKUP(A174,'Import BSP Bud'!$C$19:$DK$34,16,FALSE),0) -> 0 | J174: 0 | K174: 0 | Y174: =IF(COA!$E$170="Y","Show","Hide") -> Show
A175: 6450 | B175: Costas Táillí Gairmiúla Eile | C175: ='Tuairiscí Miosúla Ioncam & Cait'!O178 -> 0 | E175: 0 | F175: 0 | G175: Costas Táillí Gairmiúla Eile | H175: =IFERROR(HLOOKUP(A175,'Leathnach Achoimre Bainc'!$B$19:$DK$35,17),"") -> 0 | I175: =IFERROR(HLOOKUP(A175,'Import BSP Bud'!$C$19:$DK$34,16,FALSE),0) -> 0 | J175: 0 | K175: 0 | Y175: =IF(COA!$E$171="Y","Show","Hide") -> Show
A176: 6500 | B176: Costas Taistil agus Cothaithe | C176: ='Tuairiscí Miosúla Ioncam & Cait'!O179 -> 0 | E176: 0 | F176: 0 | G176: Costas Taistil agus Cothaithe | H176: =IFERROR(HLOOKUP(A176,'Leathnach Achoimre Bainc'!$B$19:$DK$35,17),"") -> 0 | I176: =IFERROR(HLOOKUP(A176,'Import BSP Bud'!$C$19:$DK$34,16,FALSE),0) -> 0 | J176: 0 | K176: 0 | Y176: =IF(COA!$E$172="Y","Show","Hide") -> Show
A177: 6600 | B177: Costais an Phríomhoide | C177: ='Tuairiscí Miosúla Ioncam & Cait'!O180 -> 0 | E177: 0 | F177: 0 | G177: Costais an Phríomhoide | H177: =IFERROR(HLOOKUP(A177,'Leathnach Achoimre Bainc'!$B$19:$DK$35,17),"") -> 0 | I177: =IFERROR(HLOOKUP(A177,'Import BSP Bud'!$C$19:$DK$34,16,FALSE),0) -> 0 | J177: 0 | K177: 0 | Y177: =IF(COA!$E$173="Y","Show","Hide") -> Show
A178: 6650 | B178: Costas an Bhoird Bainistíocha | C178: ='Tuairiscí Miosúla Ioncam & Cait'!O181 -> 0 | E178: 0 | F178: 0 | G178: Costas an Bhoird Bainistíocha | H178: =IFERROR(HLOOKUP(A178,'Leathnach Achoimre Bainc'!$B$19:$DK$35,17),"") -> 0 | I178: =IFERROR(HLOOKUP(A178,'Import BSP Bud'!$C$19:$DK$34,16,FALSE),0) -> 0 | J178: 0 | K178: 0 | Y178: =IF(COA!$E$174="Y","Show","Hide") -> Show
A179: 6700 | B179: Costas na Síntiús Bliantúil | C179: ='Tuairiscí Miosúla Ioncam & Cait'!O182 -> 0 | E179: 0 | F179: 0 | G179: Costas na Síntiús Bliantúil | H179: =IFERROR(HLOOKUP(A179,'Leathnach Achoimre Bainc'!$B$19:$DK$35,17),"") -> 0 | I179: =IFERROR(HLOOKUP(A179,'Import BSP Bud'!$C$19:$DK$34,16,FALSE),0) -> 0 | J179: 0 | K179: 0 | Y179: =IF(COA!$E$175="Y","Show","Hide") -> Show
A180: 6730 | B180: Costas an Chórais Riaracháin Inscoile | C180: ='Tuairiscí Miosúla Ioncam & Cait'!O183 -> 0 | E180: 0 | F180: 0 | G180: Costas an Chórais Riaracháin Inscoile | H180: =IFERROR(HLOOKUP(A180,'Leathnach Achoimre Bainc'!$B$19:$DK$35,17),"") -> 0 | I180: =IFERROR(HLOOKUP(A180,'Import BSP Bud'!$C$19:$DK$34,16,FALSE),0) -> 0 | J180: 0 | K180: 0 | Y180: =IF(COA!$E$176="Y","Show","Hide") -> Show
A181: 6731 | B181: Costais Bogearraí Cuntasaíochta / Bogearraí Párolla | C181: ='Tuairiscí Miosúla Ioncam & Cait'!O184 -> 0 | E181: 0 | F181: 0 | G181: Costais Bogearraí Cuntasaíochta / Bogearraí Párolla | H181: =IFERROR(HLOOKUP(A181,'Leathnach Achoimre Bainc'!$B$19:$DK$35,17),"") -> 0 | I181: =IFERROR(HLOOKUP(A181,'Import BSP Bud'!$C$19:$DK$34,16,FALSE),0) -> 0 | J181: 0 | K181: 0 | Y181: =IF(COA!$E$177="Y","Show","Hide") -> Show
A182: 6750 | B182: Tabhartais do Charthanais | C182: ='Tuairiscí Miosúla Ioncam & Cait'!O185 -> 0 | E182: 0 | F182: 0 | G182: Tabhartais do Charthanais | H182: =IFERROR(HLOOKUP(A182,'Leathnach Achoimre Bainc'!$B$19:$DK$35,17),"") -> 0 | I182: =IFERROR(HLOOKUP(A182,'Import BSP Bud'!$C$19:$DK$34,16,FALSE),0) -> 0 | J182: 0 | K182: 0 | Y182: =IF(COA!$E$178="Y","Show","Hide") -> Show
A183: 6755 | B183: Costas Leighis agus Garchabhrach | C183: ='Tuairiscí Miosúla Ioncam & Cait'!O186 -> 0 | E183: 0 | F183: 0 | G183: Costas Leighis agus Garchabhrach | H183: =IFERROR(HLOOKUP(A183,'Leathnach Achoimre Bainc'!$B$19:$DK$35,17),"") -> 0 | I183: =IFERROR(HLOOKUP(A183,'Import BSP Bud'!$C$19:$DK$34,16,FALSE),0) -> 0 | J183: 0 | K183: 0 | Y183: =IF(COA!$E$179="Y","Show","Hide") -> Show
A184: 6780 | B184: Costais an tSeomra Foirne | C184: ='Tuairiscí Miosúla Ioncam & Cait'!O187 -> 0 | E184: 0 | F184: 0 | G184: Costais an tSeomra Foirne | H184: =IFERROR(HLOOKUP(A184,'Leathnach Achoimre Bainc'!$B$19:$DK$35,17),"") -> 0 | I184: =IFERROR(HLOOKUP(A184,'Import BSP Bud'!$C$19:$DK$34,16,FALSE),0) -> 0 | J184: 0 | K184: 0 | Y184: =IF(COA!$E$180="Y","Show","Hide") -> Show
A185: 6800 | B185: Costas Fáilteachais | C185: ='Tuairiscí Miosúla Ioncam & Cait'!O188 -> 0 | E185: 0 | F185: 0 | G185: Costas Fáilteachais | H185: =IFERROR(HLOOKUP(A185,'Leathnach Achoimre Bainc'!$B$19:$DK$35,17),"") -> 0 | I185: =IFERROR(HLOOKUP(A185,'Import BSP Bud'!$C$19:$DK$34,16,FALSE),0) -> 0 | J185: 0 | K185: 0 | Y185: =IF(COA!$E$181="Y","Show","Hide") -> Show
A186: 6830 | B186: Costas Siopa Milseán | C186: ='Tuairiscí Miosúla Ioncam & Cait'!O189 -> 0 | E186: 0 | F186: 0 | G186: Costas Siopa Milseán | H186: =IFERROR(HLOOKUP(A186,'Leathnach Achoimre Bainc'!$B$19:$DK$35,17),"") -> 0 | I186: =IFERROR(HLOOKUP(A186,'Import BSP Bud'!$C$19:$DK$34,16,FALSE),0) -> 0 | J186: 0 | K186: 0 | Y186: =IF(COA!$E$182="Y","Show","Hide") -> Show
A187: 6900 | B187: Costais Riaracháin Eile | C187: ='Tuairiscí Miosúla Ioncam & Cait'!O190 -> 0 | E187: 0 | F187: 0 | G187: Costais Riaracháin Eile | H187: =IFERROR(HLOOKUP(A187,'Leathnach Achoimre Bainc'!$B$19:$DK$35,17),"") -> 0 | I187: =IFERROR(HLOOKUP(A187,'Import BSP Bud'!$C$19:$DK$34,16,FALSE),0) -> 0 | J187: 0 | K187: 0 | Y187: =IF(COA!$E$183="Y","Show","Hide") -> Show
A188: 7300 | B188: Costais Léasaithe | C188: ='Tuairiscí Miosúla Ioncam & Cait'!O191 -> 0 | E188: 0 | F188: 0 | G188: Costais Léasaithe | H188: =IFERROR(HLOOKUP(A188,'Leathnach Achoimre Bainc'!$B$19:$DK$35,17),"") -> 0 | I188: =IFERROR(HLOOKUP(A188,'Import BSP Bud'!$C$19:$DK$34,16,FALSE),0) -> 0 | J188: 0 | K188: 0 | Y188: =IF(COA!$E$184="Y","Show","Hide") -> Show
A189: 7320 | B189: Costas Táillí Iasachta | C189: ='Tuairiscí Miosúla Ioncam & Cait'!O192 -> 0 | E189: 0 | F189: 0 | G189: Costas Táillí Iasachta | H189: =IFERROR(HLOOKUP(A189,'Leathnach Achoimre Bainc'!$B$19:$DK$35,17),"") -> 0 | I189: =IFERROR(HLOOKUP(A189,'Import BSP Bud'!$C$19:$DK$34,16,FALSE),0) -> 0 | J189: 0 | K189: 0 | Y189: =IF(COA!$E$185="Y","Show","Hide") -> Show
A190: 7400 | B190: Costas Úis Bainc | C190: ='Tuairiscí Miosúla Ioncam & Cait'!O193 -> 0 | E190: 0 | F190: 0 | G190: Costas Úis Bainc | H190: =IFERROR(HLOOKUP(A190,'Leathnach Achoimre Bainc'!$B$19:$DK$35,17),"") -> 0 | I190: =IFERROR(HLOOKUP(A190,'Import BSP Bud'!$C$19:$DK$34,16,FALSE),0) -> 0 | J190: 0 | K190: 0 | Y190: =IF(COA!$E$186="Y","Show","Hide") -> Show
A191: 7450 | B191: Costas Táillí Bainc | C191: ='Tuairiscí Miosúla Ioncam & Cait'!O194 -> 0 | E191: 0 | F191: 0 | G191: Costas Táillí Bainc | H191: =IFERROR(HLOOKUP(A191,'Leathnach Achoimre Bainc'!$B$19:$DK$35,17),"") -> 0 | I191: =IFERROR(HLOOKUP(A191,'Import BSP Bud'!$C$19:$DK$34,16,FALSE),0) -> 0 | J191: 0 | K191: 0 | Y191: =IF(COA!$E$187="Y","Show","Hide") -> Show
A192: 7800 | B192: Costais In-Aisíoctha | C192: ='Tuairiscí Miosúla Ioncam & Cait'!O195 -> 0 | E192: 0 | F192: 0 | G192: Costais In-Aisíoctha | H192: =IFERROR(HLOOKUP(A192,'Leathnach Achoimre Bainc'!$B$19:$DK$35,17),"") -> 0 | I192: =IFERROR(HLOOKUP(A192,'Import BSP Bud'!$C$19:$DK$34,16,FALSE),0) -> 0 | J192: 0 | K192: 0 | Y192: =IF(COA!$E$188="Y","Show","Hide") -> Show
A193: 7850 | B193: Lascainí Faighte | C193: ='Tuairiscí Miosúla Ioncam & Cait'!O196 -> 0 | D193: 0 | E193: 0 | F193: 0 | G193: Lascainí Faighte | H193: =IFERROR(HLOOKUP(A193,'Leathnach Achoimre Bainc'!$B$19:$DK$35,16),"") -> 0 | I193: =IFERROR(HLOOKUP(A193,'Import BSP Bud'!$C$19:$DK$34,16,FALSE),"") -> 0 | J193: 0 | K193: 0 | Y193: =IF(COA!$E$189="Y","Show","Hide") -> Hide
B194: Caiteachas Iomlán na Scoile | C194: =SUM(C81:C193) -> 0 | D194: =SUM(D81:D193) -> 0 | E194: =SUM(E81:E193) -> 0 | F194: =IF(D194,(C194-D194)/D194,0)*-1 -> 0 | G194: Caiteachas Iomlán na Scoile | H194: =SUM(H81:H193) -> 0 | I194: =SUM(I81:I193) -> 0 | J194: =SUM(J81:J193) -> 0 | K194: =IF(I194,(H194-I194)/I194,0)*-1 -> 0
B196: GLANBHARRACHAS / (EASNAMH) | C196: =C78-C194 -> 0 | D196: =D78-D194 -> 0 | E196: =E78-(-E194) -> 0 | F196: =IF(D196,(C196-D196)/D196,0) -> 0 | G196: GLANBHARRACHAS / (EASNAMH) | H196: =H78-H194 -> 0 | I196: =I78-I194 -> 0 | J196: =J78-(-J194) -> 0 | K196: =IF(I196,(H196-I196)/I196,0) -> 0
D199: Difríocht | E199: % Difríocht
B200: Achoimre: Bliain Iarbhír go Dáta v Buiséad | D200: Bliain go Dáta v Buiséad 2024/2025 | E200: Bliain go Dáta v Buiséad 2024/2025
C201: Iarmbhír | J201: Buiséad
A202: Ioncam | B202: An Roinn Oideachais | C202: =SUM(INDEX(BudvAct_Dep_of_Edu_Inc,,3)) -> 0 | D202: =C202-J202 -> 0 | E202: =IF(J202,(C202-J202)/J202,0) -> 0 | F202: Ioncam | G202: An Roinn Oideachais | J202: =SUM(INDEX(BudvAct_Dep_of_Edu_Inc,,4)) -> 0
A203: Iarbhír | B203: Ioncam Eile ón Stát | C203: =SUM(INDEX(BudvAct_Other_State_Income,,3)) -> 0 | D203: =C203-J203 -> 0 | E203: =IF(J203,(C203-J203)/J203,0) -> 0 | F203: Buiséad | G203: Ioncam Eile ón Stát | J203: =SUM(INDEX(BudvAct_Other_State_Income,,4)) -> 0
B204: Ioncam arna Ghiniúint ag an Scoil | C204: =SUM(INDEX(BudvAct_School_Generated_Income,,3)) -> 0 | D204: =C204-J204 -> 0 | E204: =IF(J204,(C204-J204)/J204,0) -> 0 | G204: Ioncam arna Ghiniúint ag an Scoil | J204: =SUM(INDEX(BudvAct_School_Generated_Income,,4)) -> 0
... 17 more rows

Sheet Leathnach Achoimre Bainc
A1: ='Tuairiscí Miosúla Ioncam & Cait'!B3 -> Cuir Isteach Anseo É | B1: An Príomh-Roghchlár | C1: Anailís ar Dheontais | D1: Anailís ar Ioncam | E1: Anailís ar Caiteachas | BW1: =IF(OR(CM2="Show",CL19="Show")=TRUE,"Show","Hide") -> Hide | BX1: =IF(OR(CN2="Show",CM19="Show")=TRUE,"Show","Hide") -> Hide
